Workbook

Sheet Target Index
B1: Show | Z1: Total
Z2: =SUM(Table1[Net Charge '[uAh']]) -> 2935703.14
A3: ID | B3: Material | C3: No | D3: HP/LP | E3: IS | F3: Note | G3: TS | H3: TM | I3: Year | J3: Month | K3: Day | L3: Schedule | M3: DocuShare | N3: URL | O3: Target Mtl [g] | P3: Backing Mtl [g] | Q3: Weight [kg] | R3: Installed | S3: Heaters / ECR On | T3: Online p+ | U3: Offline p+ | V3: Removed | W3: Impedance [mΩ] | X3: Rated p+ [uA] | Y3: Peak p+ [uA] | Z3: Net Charge [uAh] | AA3: Est p+ Charge | AB3: BIAS [kV] | AC3: Target ID | AD3: Assay 1 Date | AE3: Assay 1 [uSv/h]@1m | AF3: Assay 2 Date | AG3: Assay 2 [uSv/h]@1m | AH3: Assay 3 Date | AI3: Assay 3 [uSv/h]@1m | AJ3: Assay 4 Date | AK3: Assay 4 [uSv/h]@1m | AL3: Assay 5 Date | AM3: Assay 5 [uSv/h]@1m | AN3: Date of being sent to Mini Storage | AO3: Mini Storage location | AP3: Date removed from Mini Storage | AQ3: Shipping Date | AR3: Dose rate OC F-308 uSv/h [mSv/h] | AS3: Dose rate@1m F-308 uSv/h | AT3: Days to ship [d] | AU3: Calc ship days | AV3: Optimistic | AW3: Estimated current | AX3: Schedule start | AY3: Schedule end | AZ3: Estimated ship days | BA3: Estimated ship years | BB3: Vault location | BC3: Pail | BD3: Vault comment | BE3: Target Assayed | BF3: Name
A4: =_xlfn.CONCAT(Table1[[#This Row],[Material]],"#",Table1[[#This Row],[No]]) -> Nb#10 | B4: Nb | C4: 10 | D4: LP | E4: IGLIS | G4: ITW | H4: TM2 | L4: 144 | M4: Link | P4: =29.049-22.009 -> 7.04 | AC4: =CONCATENATE(Table1[[#This Row],[Material]], "#", Table1[[#This Row],[No]]) -> Nb#10 | AT4: =IF(AND(AND(Table1[[#This Row],[Online p+]]>0,Table1[[#This Row],[Shipping Date]]>0),NOT(Table1[[#This Row],[Shipping Date]]="")),Table1[[#This Row],[Shipping Date]]-Table1[[#This Row],[Offline p+]], NA()) ->  | AU4: =IF(Table1[[#This Row],[Offline p+]]>0,_xlfn.IFS(Table1[[#This Row],[Material]]="Ta",Table1[[#This Row],[Net Charge '[uAh']]]*0.034,Table1[[#This Row],[Material]]="ZrC",Table1[[#This Row],[Net Charge '[uAh']]]*0.05,Table1[[#This Row],[Material]]="UO2",Table1[[#This Row],[Net Charge '[uAh']]]*0.116,Table1[[#This Row],[Material]]="UC",Table1[[#This Row],[Net Charge '[uAh']]]*0.116,Table1[[#This Row],[Material]]="SiC",Table1[[#This Row],[Net Charge '[uAh']]]*0.05,Table1[[#This Row],[Material]]="nSiC",Table1[[#This Row],[Net Charge '[uAh']]]*0.05,Table1[[#This Row],[Material]]="TiC",Table1[[#This Row],[Net Charge '[uAh']]]*0.032,Table1[[#This Row],[Material]]="NiO",Table1[[#This Row],[Net Charge '[uAh']]]*0.03,Table1[[#This Row],[Material]]="Nb",Table1[[#This Row],[Net Charge '[uAh']]]*0.0305,Table1[[#This Row],[Material]]="TaC",Table1[[#This Row],[Net Charge '[uAh']]]*0.025,Table1[[#This Row],[Material]]="ThO",1095,TRUE,NA()),NA()) ->  | AV4: =IF(Table1[[#This Row],[Offline p+]]>0,_xlfn.IFS(Table1[[#This Row],[Material]]="Ta",Table1[[#This Row],[Net Charge '[uAh']]]*0.028,Table1[[#This Row],[Material]]="ZrC",Table1[[#This Row],[Net Charge '[uAh']]]*0.036,Table1[[#This Row],[Material]]="UO2",Table1[[#This Row],[Net Charge '[uAh']]]*0.116,Table1[[#This Row],[Material]]="UC",Table1[[#This Row],[Net Charge '[uAh']]]*0.076,Table1[[#This Row],[Material]]="SiC",Table1[[#This Row],[Net Charge '[uAh']]]*0.048,Table1[[#This Row],[Material]]="nSiC",Table1[[#This Row],[Net Charge '[uAh']]]*0.048,Table1[[#This Row],[Material]]="TiC",Table1[[#This Row],[Net Charge '[uAh']]]*0.032,Table1[[#This Row],[Material]]="NiO",Table1[[#This Row],[Net Charge '[uAh']]]*0.03,Table1[[#This Row],[Material]]="Nb",Table1[[#This Row],[Net Charge '[uAh']]]*0.023,Table1[[#This Row],[Material]]="TaC",Table1[[#This Row],[Net Charge '[uAh']]]*0.025,Table1[[#This Row],[Material]]="ThO",Table1[[#This Row],[Net Charge '[uAh']]]*0.076,TRUE,NA()),NA()) ->  | AZ4: =IF(Table1[[#This Row],[Schedule end]]>0,IF(Table1[[#This Row],[Material]]="Ta",Table1[[#This Row],[Estimated current]]*(Table1[[#This Row],[Schedule end]]-Table1[[#This Row],[Schedule start]])*24*0.028,IF(Table1[[#This Row],[Material]]="ZrC", Table1[[#This Row],[Estimated current]]*(Table1[[#This Row],[Schedule end]]-Table1[[#This Row],[Schedule start]])*24*0.036,IF(Table1[[#This Row],[Material]]="UO2",Table1[[#This Row],[Estimated current]]*(Table1[[#This Row],[Schedule end]]-Table1[[#This Row],[Schedule start]])*24*0.116,IF(Table1[[#This Row],[Material]]="UC",Table1[[#This Row],[Estimated current]]*(Table1[[#This Row],[Schedule end]]-Table1[[#This Row],[Schedule start]])*24*0.076,IF(Table1[[#This Row],[Material]]="SiC",Table1[[#This Row],[Estimated current]]*(Table1[[#This Row],[Schedule end]]-Table1[[#This Row],[Schedule start]])*24*0.076,IF(Table1[[#This Row],[Material]]="nSiC",Table1[[#This Row],[Estimated current]]*(Table1[[#This Row],[Schedule end]]-Table1[[#This Row],[Schedule start]])*24*0.048,IF(Table1[[#This Row],[Material]]="TiC",Table1[[#This Row],[Estimated current]]*(Table1[[#This Row],[Schedule end]]-Table1[[#This Row],[Schedule start]])*24*0.032,IF(Table1[[#This Row],[Material]]="NiO",Table1[[#This Row],[Estimated current]]*(Table1[[#This Row],[Schedule end]]-Table1[[#This Row],[Schedule start]])*24*0.03,IF(Table1[[#This Row],[Material]]="Nb",Table1[[#This Row],[Estimated current]]*(Table1[[#This Row],[Schedule end]]-Table1[[#This Row],[Schedule start]])*24*0.023,IF(Table1[[#This Row],[Material]]="TaC",Table1[[#This Row],[Estimated current]]*(Table1[[#This Row],[Schedule end]]-Table1[[#This Row],[Schedule start]])*24*0.025,IF(Table1[[#This Row],[Material]]="ThO",Table1[[#This Row],[Estimated current]]*(Table1[[#This Row],[Schedule end]]-Table1[[#This Row],[Schedule start]])*24*0.076,NA()))))))))))),NA()) ->  | BA4: =Table1[[#This Row],[Estimated ship days]]/365 ->  | BF4: =Table1[[#This Row],[TS]]&"-"&Table1[[#This Row],[TM]]&"-"&Table1[[#This Row],[Material]]&"#"&Table1[[#This Row],[No]]&"-"&Table1[[#This Row],[HP/LP]]&"-"&Table1[[#This Row],[IS]] -> ITW-TM2-Nb#10-LP-IGLIS
A5: =_xlfn.CONCAT(Table1[[#This Row],[Material]],"#",Table1[[#This Row],[No]]) -> UC#42 | B5: UC | C5: 42 | D5: LP | E5: SIS | G5: ITE | H5: TM4 | L5: 144 | M5: Link | P5: =29.049-22.009 -> 7.04 | R5: 2023-07-18 | S5: 2023-07-22 | T5: 2023-07-25 | W5: 13.7 | X5: 20 | AC5: =CONCATENATE(Table1[[#This Row],[Material]], "#", Table1[[#This Row],[No]]) -> UC#42 | AD5: 2023-09-01 | AE5: 34900 | AT5: =IF(AND(AND(Table1[[#This Row],[Online p+]]>0,Table1[[#This Row],[Shipping Date]]>0),NOT(Table1[[#This Row],[Shipping Date]]="")),Table1[[#This Row],[Shipping Date]]-Table1[[#This Row],[Offline p+]], NA()) ->  | AU5: =IF(Table1[[#This Row],[Offline p+]]>0,_xlfn.IFS(Table1[[#This Row],[Material]]="Ta",Table1[[#This Row],[Net Charge '[uAh']]]*0.034,Table1[[#This Row],[Material]]="ZrC",Table1[[#This Row],[Net Charge '[uAh']]]*0.05,Table1[[#This Row],[Material]]="UO2",Table1[[#This Row],[Net Charge '[uAh']]]*0.116,Table1[[#This Row],[Material]]="UC",Table1[[#This Row],[Net Charge '[uAh']]]*0.116,Table1[[#This Row],[Material]]="SiC",Table1[[#This Row],[Net Charge '[uAh']]]*0.05,Table1[[#This Row],[Material]]="nSiC",Table1[[#This Row],[Net Charge '[uAh']]]*0.05,Table1[[#This Row],[Material]]="TiC",Table1[[#This Row],[Net Charge '[uAh']]]*0.032,Table1[[#This Row],[Material]]="NiO",Table1[[#This Row],[Net Charge '[uAh']]]*0.03,Table1[[#This Row],[Material]]="Nb",Table1[[#This Row],[Net Charge '[uAh']]]*0.0305,Table1[[#This Row],[Material]]="TaC",Table1[[#This Row],[Net Charge '[uAh']]]*0.025,Table1[[#This Row],[Material]]="ThO",1095,TRUE,NA()),NA()) ->  | AV5: =IF(Table1[[#This Row],[Offline p+]]>0,_xlfn.IFS(Table1[[#This Row],[Material]]="Ta",Table1[[#This Row],[Net Charge '[uAh']]]*0.028,Table1[[#This Row],[Material]]="ZrC",Table1[[#This Row],[Net Charge '[uAh']]]*0.036,Table1[[#This Row],[Material]]="UO2",Table1[[#This Row],[Net Charge '[uAh']]]*0.116,Table1[[#This Row],[Material]]="UC",Table1[[#This Row],[Net Charge '[uAh']]]*0.076,Table1[[#This Row],[Material]]="SiC",Table1[[#This Row],[Net Charge '[uAh']]]*0.048,Table1[[#This Row],[Material]]="nSiC",Table1[[#This Row],[Net Charge '[uAh']]]*0.048,Table1[[#This Row],[Material]]="TiC",Table1[[#This Row],[Net Charge '[uAh']]]*0.032,Table1[[#This Row],[Material]]="NiO",Table1[[#This Row],[Net Charge '[uAh']]]*0.03,Table1[[#This Row],[Material]]="Nb",Table1[[#This Row],[Net Charge '[uAh']]]*0.023,Table1[[#This Row],[Material]]="TaC",Table1[[#This Row],[Net Charge '[uAh']]]*0.025,Table1[[#This Row],[Material]]="ThO",Table1[[#This Row],[Net Charge '[uAh']]]*0.076,TRUE,NA()),NA()) ->  | AZ5: =IF(Table1[[#This Row],[Schedule end]]>0,IF(Table1[[#This Row],[Material]]="Ta",Table1[[#This Row],[Estimated current]]*(Table1[[#This Row],[Schedule end]]-Table1[[#This Row],[Schedule start]])*24*0.028,IF(Table1[[#This Row],[Material]]="ZrC", Table1[[#This Row],[Estimated current]]*(Table1[[#This Row],[Schedule end]]-Table1[[#This Row],[Schedule start]])*24*0.036,IF(Table1[[#This Row],[Material]]="UO2",Table1[[#This Row],[Estimated current]]*(Table1[[#This Row],[Schedule end]]-Table1[[#This Row],[Schedule start]])*24*0.116,IF(Table1[[#This Row],[Material]]="UC",Table1[[#This Row],[Estimated current]]*(Table1[[#This Row],[Schedule end]]-Table1[[#This Row],[Schedule start]])*24*0.076,IF(Table1[[#This Row],[Material]]="SiC",Table1[[#This Row],[Estimated current]]*(Table1[[#This Row],[Schedule end]]-Table1[[#This Row],[Schedule start]])*24*0.076,IF(Table1[[#This Row],[Material]]="nSiC",Table1[[#This Row],[Estimated current]]*(Table1[[#This Row],[Schedule end]]-Table1[[#This Row],[Schedule start]])*24*0.048,IF(Table1[[#This Row],[Material]]="TiC",Table1[[#This Row],[Estimated current]]*(Table1[[#This Row],[Schedule end]]-Table1[[#This Row],[Schedule start]])*24*0.032,IF(Table1[[#This Row],[Material]]="NiO",Table1[[#This Row],[Estimated current]]*(Table1[[#This Row],[Schedule end]]-Table1[[#This Row],[Schedule start]])*24*0.03,IF(Table1[[#This Row],[Material]]="Nb",Table1[[#This Row],[Estimated current]]*(Table1[[#This Row],[Schedule end]]-Table1[[#This Row],[Schedule start]])*24*0.023,IF(Table1[[#This Row],[Material]]="TaC",Table1[[#This Row],[Estimated current]]*(Table1[[#This Row],[Schedule end]]-Table1[[#This Row],[Schedule start]])*24*0.025,IF(Table1[[#This Row],[Material]]="ThO",Table1[[#This Row],[Estimated current]]*(Table1[[#This Row],[Schedule end]]-Table1[[#This Row],[Schedule start]])*24*0.076,NA()))))))))))),NA()) ->  | BA5: =Table1[[#This Row],[Estimated ship days]]/365 ->  | BB5: 6B | BC5: 282 | BD5: This pail is of previous revision, not certified as lifting device. Prior to shipping, a 3" loop must be crimped at the end of the wire rope. | BF5: =Table1[[#This Row],[TS]]&"-"&Table1[[#This Row],[TM]]&"-"&Table1[[#This Row],[Material]]&"#"&Table1[[#This Row],[No]]&"-"&Table1[[#This Row],[HP/LP]]&"-"&Table1[[#This Row],[IS]] -> ITE-TM4-UC#42-LP-SIS
A6: =_xlfn.CONCAT(Table1[[#This Row],[Material]],"#",Table1[[#This Row],[No]]) -> SiC#45 | B6: SiC | C6: 45 | D6: HP | E6: SIS | G6: ITE | H6: TM4 | L6: 144 | M6: Link | P6: =29.049-22.009 -> 7.04 | R6: 2023-06-13 | S6: 2023-06-19 | T6: 2023-06-20 | U6: 2023-07-11 | V6: 2023-07-18 | W6: 12.3 | X6: 70 | Y6: 70 | Z6: 29342.01 | AA6: =Table1[[#This Row],[Net Charge '[uAh']]]*6200000000000000000*0.000001*3600 -> 6.549136632e+20 | AB6: 42 | AC6: =CONCATENATE(Table1[[#This Row],[Material]], "#", Table1[[#This Row],[No]]) -> SiC#45 | AD6: 2023-07-27 | AE6: 138000 | AT6: =IF(AND(AND(Table1[[#This Row],[Online p+]]>0,Table1[[#This Row],[Shipping Date]]>0),NOT(Table1[[#This Row],[Shipping Date]]="")),Table1[[#This Row],[Shipping Date]]-Table1[[#This Row],[Offline p+]], NA()) ->  | AU6: =IF(Table1[[#This Row],[Offline p+]]>0,_xlfn.IFS(Table1[[#This Row],[Material]]="Ta",Table1[[#This Row],[Net Charge '[uAh']]]*0.034,Table1[[#This Row],[Material]]="ZrC",Table1[[#This Row],[Net Charge '[uAh']]]*0.05,Table1[[#This Row],[Material]]="UO2",Table1[[#This Row],[Net Charge '[uAh']]]*0.116,Table1[[#This Row],[Material]]="UC",Table1[[#This Row],[Net Charge '[uAh']]]*0.116,Table1[[#This Row],[Material]]="SiC",Table1[[#This Row],[Net Charge '[uAh']]]*0.05,Table1[[#This Row],[Material]]="nSiC",Table1[[#This Row],[Net Charge '[uAh']]]*0.05,Table1[[#This Row],[Material]]="TiC",Table1[[#This Row],[Net Charge '[uAh']]]*0.032,Table1[[#This Row],[Material]]="NiO",Table1[[#This Row],[Net Charge '[uAh']]]*0.03,Table1[[#This Row],[Material]]="Nb",Table1[[#This Row],[Net Charge '[uAh']]]*0.0305,Table1[[#This Row],[Material]]="TaC",Table1[[#This Row],[Net Charge '[uAh']]]*0.025,Table1[[#This Row],[Material]]="ThO",1095,TRUE,NA()),NA()) -> 1467.1005 | AV6: =IF(Table1[[#This Row],[Offline p+]]>0,_xlfn.IFS(Table1[[#This Row],[Material]]="Ta",Table1[[#This Row],[Net Charge '[uAh']]]*0.028,Table1[[#This Row],[Material]]="ZrC",Table1[[#This Row],[Net Charge '[uAh']]]*0.036,Table1[[#This Row],[Material]]="UO2",Table1[[#This Row],[Net Charge '[uAh']]]*0.116,Table1[[#This Row],[Material]]="UC",Table1[[#This Row],[Net Charge '[uAh']]]*0.076,Table1[[#This Row],[Material]]="SiC",Table1[[#This Row],[Net Charge '[uAh']]]*0.048,Table1[[#This Row],[Material]]="nSiC",Table1[[#This Row],[Net Charge '[uAh']]]*0.048,Table1[[#This Row],[Material]]="TiC",Table1[[#This Row],[Net Charge '[uAh']]]*0.032,Table1[[#This Row],[Material]]="NiO",Table1[[#This Row],[Net Charge '[uAh']]]*0.03,Table1[[#This Row],[Material]]="Nb",Table1[[#This Row],[Net Charge '[uAh']]]*0.023,Table1[[#This Row],[Material]]="TaC",Table1[[#This Row],[Net Charge '[uAh']]]*0.025,Table1[[#This Row],[Material]]="ThO",Table1[[#This Row],[Net Charge '[uAh']]]*0.076,TRUE,NA()),NA()) -> 1408.41648 | AZ6: =IF(Table1[[#This Row],[Schedule end]]>0,IF(Table1[[#This Row],[Material]]="Ta",Table1[[#This Row],[Estimated current]]*(Table1[[#This Row],[Schedule end]]-Table1[[#This Row],[Schedule start]])*24*0.028,IF(Table1[[#This Row],[Material]]="ZrC", Table1[[#This Row],[Estimated current]]*(Table1[[#This Row],[Schedule end]]-Table1[[#This Row],[Schedule start]])*24*0.036,IF(Table1[[#This Row],[Material]]="UO2",Table1[[#This Row],[Estimated current]]*(Table1[[#This Row],[Schedule end]]-Table1[[#This Row],[Schedule start]])*24*0.116,IF(Table1[[#This Row],[Material]]="UC",Table1[[#This Row],[Estimated current]]*(Table1[[#This Row],[Schedule end]]-Table1[[#This Row],[Schedule start]])*24*0.076,IF(Table1[[#This Row],[Material]]="SiC",Table1[[#This Row],[Estimated current]]*(Table1[[#This Row],[Schedule end]]-Table1[[#This Row],[Schedule start]])*24*0.076,IF(Table1[[#This Row],[Material]]="nSiC",Table1[[#This Row],[Estimated current]]*(Table1[[#This Row],[Schedule end]]-Table1[[#This Row],[Schedule start]])*24*0.048,IF(Table1[[#This Row],[Material]]="TiC",Table1[[#This Row],[Estimated current]]*(Table1[[#This Row],[Schedule end]]-Table1[[#This Row],[Schedule start]])*24*0.032,IF(Table1[[#This Row],[Material]]="NiO",Table1[[#This Row],[Estimated current]]*(Table1[[#This Row],[Schedule end]]-Table1[[#This Row],[Schedule start]])*24*0.03,IF(Table1[[#This Row],[Material]]="Nb",Table1[[#This Row],[Estimated current]]*(Table1[[#This Row],[Schedule end]]-Table1[[#This Row],[Schedule start]])*24*0.023,IF(Table1[[#This Row],[Material]]="TaC",Table1[[#This Row],[Estimated current]]*(Table1[[#This Row],[Schedule end]]-Table1[[#This Row],[Schedule start]])*24*0.025,IF(Table1[[#This Row],[Material]]="ThO",Table1[[#This Row],[Estimated current]]*(Table1[[#This Row],[Schedule end]]-Table1[[#This Row],[Schedule start]])*24*0.076,NA()))))))))))),NA()) ->  | BA6: =Table1[[#This Row],[Estimated ship days]]/365 ->  | BB6: 3C | BC6: 280 | BD6: This pail is of previous revision, not certified as lifting device. Prior to shipping, a 3" loop must be crimped at the end of the wire rope. | BF6: =Table1[[#This Row],[TS]]&"-"&Table1[[#This Row],[TM]]&"-"&Table1[[#This Row],[Material]]&"#"&Table1[[#This Row],[No]]&"-"&Table1[[#This Row],[HP/LP]]&"-"&Table1[[#This Row],[IS]] -> ITE-TM4-SiC#45-HP-SIS
A7: =_xlfn.CONCAT(Table1[[#This Row],[Material]],"#",Table1[[#This Row],[No]]) -> TiC#6 | B7: TiC | C7: 6 | D7: HP | E7: FEBIAD | G7: ITW | H7: TM2 | L7: 144 | M7: Link | P7: =29.049-22.009 -> 7.04 | R7: 2023-05-29 | S7: 2023-06-08 | T7: 2023-06-09 | U7: 2023-07-25 | V7: 2023-08-08 | W7: 12.8 | X7: 100 | Y7: 90 | Z7: 22481 | AA7: =Table1[[#This Row],[Net Charge '[uAh']]]*6200000000000000000*0.000001*3600 -> 5.0177592e+20 | AB7: 46 | AC7: =CONCATENATE(Table1[[#This Row],[Material]], "#", Table1[[#This Row],[No]]) -> TiC#6 | AD7: 2023-08-23 | AE7: 151000 | AT7: =IF(AND(AND(Table1[[#This Row],[Online p+]]>0,Table1[[#This Row],[Shipping Date]]>0),NOT(Table1[[#This Row],[Shipping Date]]="")),Table1[[#This Row],[Shipping Date]]-Table1[[#This Row],[Offline p+]], NA()) ->  | AU7: =IF(Table1[[#This Row],[Offline p+]]>0,_xlfn.IFS(Table1[[#This Row],[Material]]="Ta",Table1[[#This Row],[Net Charge '[uAh']]]*0.034,Table1[[#This Row],[Material]]="ZrC",Table1[[#This Row],[Net Charge '[uAh']]]*0.05,Table1[[#This Row],[Material]]="UO2",Table1[[#This Row],[Net Charge '[uAh']]]*0.116,Table1[[#This Row],[Material]]="UC",Table1[[#This Row],[Net Charge '[uAh']]]*0.116,Table1[[#This Row],[Material]]="SiC",Table1[[#This Row],[Net Charge '[uAh']]]*0.05,Table1[[#This Row],[Material]]="nSiC",Table1[[#This Row],[Net Charge '[uAh']]]*0.05,Table1[[#This Row],[Material]]="TiC",Table1[[#This Row],[Net Charge '[uAh']]]*0.032,Table1[[#This Row],[Material]]="NiO",Table1[[#This Row],[Net Charge '[uAh']]]*0.03,Table1[[#This Row],[Material]]="Nb",Table1[[#This Row],[Net Charge '[uAh']]]*0.0305,Table1[[#This Row],[Material]]="TaC",Table1[[#This Row],[Net Charge '[uAh']]]*0.025,Table1[[#This Row],[Material]]="ThO",1095,TRUE,NA()),NA()) -> 719.392 | AV7: =IF(Table1[[#This Row],[Offline p+]]>0,_xlfn.IFS(Table1[[#This Row],[Material]]="Ta",Table1[[#This Row],[Net Charge '[uAh']]]*0.028,Table1[[#This Row],[Material]]="ZrC",Table1[[#This Row],[Net Charge '[uAh']]]*0.036,Table1[[#This Row],[Material]]="UO2",Table1[[#This Row],[Net Charge '[uAh']]]*0.116,Table1[[#This Row],[Material]]="UC",Table1[[#This Row],[Net Charge '[uAh']]]*0.076,Table1[[#This Row],[Material]]="SiC",Table1[[#This Row],[Net Charge '[uAh']]]*0.048,Table1[[#This Row],[Material]]="nSiC",Table1[[#This Row],[Net Charge '[uAh']]]*0.048,Table1[[#This Row],[Material]]="TiC",Table1[[#This Row],[Net Charge '[uAh']]]*0.032,Table1[[#This Row],[Material]]="NiO",Table1[[#This Row],[Net Charge '[uAh']]]*0.03,Table1[[#This Row],[Material]]="Nb",Table1[[#This Row],[Net Charge '[uAh']]]*0.023,Table1[[#This Row],[Material]]="TaC",Table1[[#This Row],[Net Charge '[uAh']]]*0.025,Table1[[#This Row],[Material]]="ThO",Table1[[#This Row],[Net Charge '[uAh']]]*0.076,TRUE,NA()),NA()) -> 719.392 | AZ7: =IF(Table1[[#This Row],[Schedule end]]>0,IF(Table1[[#This Row],[Material]]="Ta",Table1[[#This Row],[Estimated current]]*(Table1[[#This Row],[Schedule end]]-Table1[[#This Row],[Schedule start]])*24*0.028,IF(Table1[[#This Row],[Material]]="ZrC", Table1[[#This Row],[Estimated current]]*(Table1[[#This Row],[Schedule end]]-Table1[[#This Row],[Schedule start]])*24*0.036,IF(Table1[[#This Row],[Material]]="UO2",Table1[[#This Row],[Estimated current]]*(Table1[[#This Row],[Schedule end]]-Table1[[#This Row],[Schedule start]])*24*0.116,IF(Table1[[#This Row],[Material]]="UC",Table1[[#This Row],[Estimated current]]*(Table1[[#This Row],[Schedule end]]-Table1[[#This Row],[Schedule start]])*24*0.076,IF(Table1[[#This Row],[Material]]="SiC",Table1[[#This Row],[Estimated current]]*(Table1[[#This Row],[Schedule end]]-Table1[[#This Row],[Schedule start]])*24*0.076,IF(Table1[[#This Row],[Material]]="nSiC",Table1[[#This Row],[Estimated current]]*(Table1[[#This Row],[Schedule end]]-Table1[[#This Row],[Schedule start]])*24*0.048,IF(Table1[[#This Row],[Material]]="TiC",Table1[[#This Row],[Estimated current]]*(Table1[[#This Row],[Schedule end]]-Table1[[#This Row],[Schedule start]])*24*0.032,IF(Table1[[#This Row],[Material]]="NiO",Table1[[#This Row],[Estimated current]]*(Table1[[#This Row],[Schedule end]]-Table1[[#This Row],[Schedule start]])*24*0.03,IF(Table1[[#This Row],[Material]]="Nb",Table1[[#This Row],[Estimated current]]*(Table1[[#This Row],[Schedule end]]-Table1[[#This Row],[Schedule start]])*24*0.023,IF(Table1[[#This Row],[Material]]="TaC",Table1[[#This Row],[Estimated current]]*(Table1[[#This Row],[Schedule end]]-Table1[[#This Row],[Schedule start]])*24*0.025,IF(Table1[[#This Row],[Material]]="ThO",Table1[[#This Row],[Estimated current]]*(Table1[[#This Row],[Schedule end]]-Table1[[#This Row],[Schedule start]])*24*0.076,NA()))))))))))),NA()) ->  | BA7: =Table1[[#This Row],[Estimated ship days]]/365 ->  | BB7: 6A | BC7: 232 | BD7: This pail is of previous revision, not certified as lifting device. Prior to shipping, a 3" loop must be crimped at the end of the wire rope. | BF7: =Table1[[#This Row],[TS]]&"-"&Table1[[#This Row],[TM]]&"-"&Table1[[#This Row],[Material]]&"#"&Table1[[#This Row],[No]]&"-"&Table1[[#This Row],[HP/LP]]&"-"&Table1[[#This Row],[IS]] -> ITW-TM2-TiC#6-HP-FEBIAD
A8: =_xlfn.CONCAT(Table1[[#This Row],[Material]],"#",Table1[[#This Row],[No]]) -> TiC#5 | B8: TiC | C8: 5 | D8: LP | E8: FEBIAD | G8: ITE | H8: TM4 | I8: 2023 | J8: 6 | K8: 21 | L8: 144 | M8: Link | P8: =29.049-22.009 -> 7.04 | R8: 2023-05-09 | S8: 2023-05-24 | T8: 2023-05-31 | U8: 2023-06-13 | V8: 2023-06-13 | W8: 16 | X8: 55/70 | Y8: 65 | Z8: 7499.37 | AA8: =Table1[[#This Row],[Net Charge '[uAh']]]*6200000000000000000*0.000001*3600 -> 1.673859384e+20 | AB8: 45 | AC8: =CONCATENATE(Table1[[#This Row],[Material]], "#", Table1[[#This Row],[No]]) -> TiC#5 | AD8: 2023-06-21 | AE8: 40000 | AT8: =IF(AND(AND(Table1[[#This Row],[Online p+]]>0,Table1[[#This Row],[Shipping Date]]>0),NOT(Table1[[#This Row],[Shipping Date]]="")),Table1[[#This Row],[Shipping Date]]-Table1[[#This Row],[Offline p+]], NA()) ->  | AU8: =IF(Table1[[#This Row],[Offline p+]]>0,_xlfn.IFS(Table1[[#This Row],[Material]]="Ta",Table1[[#This Row],[Net Charge '[uAh']]]*0.034,Table1[[#This Row],[Material]]="ZrC",Table1[[#This Row],[Net Charge '[uAh']]]*0.05,Table1[[#This Row],[Material]]="UO2",Table1[[#This Row],[Net Charge '[uAh']]]*0.116,Table1[[#This Row],[Material]]="UC",Table1[[#This Row],[Net Charge '[uAh']]]*0.116,Table1[[#This Row],[Material]]="SiC",Table1[[#This Row],[Net Charge '[uAh']]]*0.05,Table1[[#This Row],[Material]]="nSiC",Table1[[#This Row],[Net Charge '[uAh']]]*0.05,Table1[[#This Row],[Material]]="TiC",Table1[[#This Row],[Net Charge '[uAh']]]*0.032,Table1[[#This Row],[Material]]="NiO",Table1[[#This Row],[Net Charge '[uAh']]]*0.03,Table1[[#This Row],[Material]]="Nb",Table1[[#This Row],[Net Charge '[uAh']]]*0.0305,Table1[[#This Row],[Material]]="TaC",Table1[[#This Row],[Net Charge '[uAh']]]*0.025,Table1[[#This Row],[Material]]="ThO",1095,TRUE,NA()),NA()) -> 239.97984 | AV8: =IF(Table1[[#This Row],[Offline p+]]>0,_xlfn.IFS(Table1[[#This Row],[Material]]="Ta",Table1[[#This Row],[Net Charge '[uAh']]]*0.028,Table1[[#This Row],[Material]]="ZrC",Table1[[#This Row],[Net Charge '[uAh']]]*0.036,Table1[[#This Row],[Material]]="UO2",Table1[[#This Row],[Net Charge '[uAh']]]*0.116,Table1[[#This Row],[Material]]="UC",Table1[[#This Row],[Net Charge '[uAh']]]*0.076,Table1[[#This Row],[Material]]="SiC",Table1[[#This Row],[Net Charge '[uAh']]]*0.048,Table1[[#This Row],[Material]]="nSiC",Table1[[#This Row],[Net Charge '[uAh']]]*0.048,Table1[[#This Row],[Material]]="TiC",Table1[[#This Row],[Net Charge '[uAh']]]*0.032,Table1[[#This Row],[Material]]="NiO",Table1[[#This Row],[Net Charge '[uAh']]]*0.03,Table1[[#This Row],[Material]]="Nb",Table1[[#This Row],[Net Charge '[uAh']]]*0.023,Table1[[#This Row],[Material]]="TaC",Table1[[#This Row],[Net Charge '[uAh']]]*0.025,Table1[[#This Row],[Material]]="ThO",Table1[[#This Row],[Net Charge '[uAh']]]*0.076,TRUE,NA()),NA()) -> 239.97984 | AZ8: =IF(Table1[[#This Row],[Schedule end]]>0,IF(Table1[[#This Row],[Material]]="Ta",Table1[[#This Row],[Estimated current]]*(Table1[[#This Row],[Schedule end]]-Table1[[#This Row],[Schedule start]])*24*0.028,IF(Table1[[#This Row],[Material]]="ZrC", Table1[[#This Row],[Estimated current]]*(Table1[[#This Row],[Schedule end]]-Table1[[#This Row],[Schedule start]])*24*0.036,IF(Table1[[#This Row],[Material]]="UO2",Table1[[#This Row],[Estimated current]]*(Table1[[#This Row],[Schedule end]]-Table1[[#This Row],[Schedule start]])*24*0.116,IF(Table1[[#This Row],[Material]]="UC",Table1[[#This Row],[Estimated current]]*(Table1[[#This Row],[Schedule end]]-Table1[[#This Row],[Schedule start]])*24*0.076,IF(Table1[[#This Row],[Material]]="SiC",Table1[[#This Row],[Estimated current]]*(Table1[[#This Row],[Schedule end]]-Table1[[#This Row],[Schedule start]])*24*0.076,IF(Table1[[#This Row],[Material]]="nSiC",Table1[[#This Row],[Estimated current]]*(Table1[[#This Row],[Schedule end]]-Table1[[#This Row],[Schedule start]])*24*0.048,IF(Table1[[#This Row],[Material]]="TiC",Table1[[#This Row],[Estimated current]]*(Table1[[#This Row],[Schedule end]]-Table1[[#This Row],[Schedule start]])*24*0.032,IF(Table1[[#This Row],[Material]]="NiO",Table1[[#This Row],[Estimated current]]*(Table1[[#This Row],[Schedule end]]-Table1[[#This Row],[Schedule start]])*24*0.03,IF(Table1[[#This Row],[Material]]="Nb",Table1[[#This Row],[Estimated current]]*(Table1[[#This Row],[Schedule end]]-Table1[[#This Row],[Schedule start]])*24*0.023,IF(Table1[[#This Row],[Material]]="TaC",Table1[[#This Row],[Estimated current]]*(Table1[[#This Row],[Schedule end]]-Table1[[#This Row],[Schedule start]])*24*0.025,IF(Table1[[#This Row],[Material]]="ThO",Table1[[#This Row],[Estimated current]]*(Table1[[#This Row],[Schedule end]]-Table1[[#This Row],[Schedule start]])*24*0.076,NA()))))))))))),NA()) ->  | BA8: =Table1[[#This Row],[Estimated ship days]]/365 ->  | BB8: 3A | BC8: 279 | BD8: This pail is of previous revision, not certified as lifting device. Prior to shipping, a 3" loop must be crimped at the end of the wire rope. | BF8: =Table1[[#This Row],[TS]]&"-"&Table1[[#This Row],[TM]]&"-"&Table1[[#This Row],[Material]]&"#"&Table1[[#This Row],[No]]&"-"&Table1[[#This Row],[HP/LP]]&"-"&Table1[[#This Row],[IS]] -> ITE-TM4-TiC#5-LP-FEBIAD
A9: =_xlfn.CONCAT(Table1[[#This Row],[Material]],"#",Table1[[#This Row],[No]]) -> UC#41 | B9: UC | C9: 41 | D9: LP | E9: SIS | G9: ITE | H9: TM4 | I9: 2023 | J9: 1 | K9: 30 | L9: 143 | M9: Link | P9: =29.049-22.009 -> 7.04 | R9: 2022-11-29 | S9: 2022-12-05 | T9: 2022-12-06 | U9: 2022-12-21 | V9: 2023-01-24 | W9: 14.8 | X9: 20 | Y9: 18 | Z9: 4038.64 | AA9: =Table1[[#This Row],[Net Charge '[uAh']]]*6200000000000000000*0.000001*3600 -> 9.01424448e+19 | AB9: 40 | AC9: =CONCATENATE(Table1[[#This Row],[Material]], "#", Table1[[#This Row],[No]]) -> UC#41 | AD9: 2023-01-30 | AE9: 14000 | AT9: =IF(AND(AND(Table1[[#This Row],[Online p+]]>0,Table1[[#This Row],[Shipping Date]]>0),NOT(Table1[[#This Row],[Shipping Date]]="")),Table1[[#This Row],[Shipping Date]]-Table1[[#This Row],[Offline p+]], NA()) ->  | AU9: =IF(Table1[[#This Row],[Offline p+]]>0,_xlfn.IFS(Table1[[#This Row],[Material]]="Ta",Table1[[#This Row],[Net Charge '[uAh']]]*0.034,Table1[[#This Row],[Material]]="ZrC",Table1[[#This Row],[Net Charge '[uAh']]]*0.05,Table1[[#This Row],[Material]]="UO2",Table1[[#This Row],[Net Charge '[uAh']]]*0.116,Table1[[#This Row],[Material]]="UC",Table1[[#This Row],[Net Charge '[uAh']]]*0.116,Table1[[#This Row],[Material]]="SiC",Table1[[#This Row],[Net Charge '[uAh']]]*0.05,Table1[[#This Row],[Material]]="nSiC",Table1[[#This Row],[Net Charge '[uAh']]]*0.05,Table1[[#This Row],[Material]]="TiC",Table1[[#This Row],[Net Charge '[uAh']]]*0.032,Table1[[#This Row],[Material]]="NiO",Table1[[#This Row],[Net Charge '[uAh']]]*0.03,Table1[[#This Row],[Material]]="Nb",Table1[[#This Row],[Net Charge '[uAh']]]*0.0305,Table1[[#This Row],[Material]]="TaC",Table1[[#This Row],[Net Charge '[uAh']]]*0.025,Table1[[#This Row],[Material]]="ThO",1095,TRUE,NA()),NA()) -> 468.48224 | AV9: =IF(Table1[[#This Row],[Offline p+]]>0,_xlfn.IFS(Table1[[#This Row],[Material]]="Ta",Table1[[#This Row],[Net Charge '[uAh']]]*0.028,Table1[[#This Row],[Material]]="ZrC",Table1[[#This Row],[Net Charge '[uAh']]]*0.036,Table1[[#This Row],[Material]]="UO2",Table1[[#This Row],[Net Charge '[uAh']]]*0.116,Table1[[#This Row],[Material]]="UC",Table1[[#This Row],[Net Charge '[uAh']]]*0.076,Table1[[#This Row],[Material]]="SiC",Table1[[#This Row],[Net Charge '[uAh']]]*0.048,Table1[[#This Row],[Material]]="nSiC",Table1[[#This Row],[Net Charge '[uAh']]]*0.048,Table1[[#This Row],[Material]]="TiC",Table1[[#This Row],[Net Charge '[uAh']]]*0.032,Table1[[#This Row],[Material]]="NiO",Table1[[#This Row],[Net Charge '[uAh']]]*0.03,Table1[[#This Row],[Material]]="Nb",Table1[[#This Row],[Net Charge '[uAh']]]*0.023,Table1[[#This Row],[Material]]="TaC",Table1[[#This Row],[Net Charge '[uAh']]]*0.025,Table1[[#This Row],[Material]]="ThO",Table1[[#This Row],[Net Charge '[uAh']]]*0.076,TRUE,NA()),NA()) -> 306.93664 | AZ9: =IF(Table1[[#This Row],[Schedule end]]>0,IF(Table1[[#This Row],[Material]]="Ta",Table1[[#This Row],[Estimated current]]*(Table1[[#This Row],[Schedule end]]-Table1[[#This Row],[Schedule start]])*24*0.028,IF(Table1[[#This Row],[Material]]="ZrC", Table1[[#This Row],[Estimated current]]*(Table1[[#This Row],[Schedule end]]-Table1[[#This Row],[Schedule start]])*24*0.036,IF(Table1[[#This Row],[Material]]="UO2",Table1[[#This Row],[Estimated current]]*(Table1[[#This Row],[Schedule end]]-Table1[[#This Row],[Schedule start]])*24*0.116,IF(Table1[[#This Row],[Material]]="UC",Table1[[#This Row],[Estimated current]]*(Table1[[#This Row],[Schedule end]]-Table1[[#This Row],[Schedule start]])*24*0.076,IF(Table1[[#This Row],[Material]]="SiC",Table1[[#This Row],[Estimated current]]*(Table1[[#This Row],[Schedule end]]-Table1[[#This Row],[Schedule start]])*24*0.076,IF(Table1[[#This Row],[Material]]="nSiC",Table1[[#This Row],[Estimated current]]*(Table1[[#This Row],[Schedule end]]-Table1[[#This Row],[Schedule start]])*24*0.048,IF(Table1[[#This Row],[Material]]="TiC",Table1[[#This Row],[Estimated current]]*(Table1[[#This Row],[Schedule end]]-Table1[[#This Row],[Schedule start]])*24*0.032,IF(Table1[[#This Row],[Material]]="NiO",Table1[[#This Row],[Estimated current]]*(Table1[[#This Row],[Schedule end]]-Table1[[#This Row],[Schedule start]])*24*0.03,IF(Table1[[#This Row],[Material]]="Nb",Table1[[#This Row],[Estimated current]]*(Table1[[#This Row],[Schedule end]]-Table1[[#This Row],[Schedule start]])*24*0.023,IF(Table1[[#This Row],[Material]]="TaC",Table1[[#This Row],[Estimated current]]*(Table1[[#This Row],[Schedule end]]-Table1[[#This Row],[Schedule start]])*24*0.025,IF(Table1[[#This Row],[Material]]="ThO",Table1[[#This Row],[Estimated current]]*(Table1[[#This Row],[Schedule end]]-Table1[[#This Row],[Schedule start]])*24*0.076,NA()))))))))))),NA()) ->  | BA9: =Table1[[#This Row],[Estimated ship days]]/365 ->  | BB9: 1C | BC9: 231 | BD9: Pail is likely contaminated, Contains two proton beam window without copper cooling lines in addition to the target This pail is of previous revision, not certified as lifting device. Prior to shipping, a 3" loop must be crimped at the end of the wire rope. | BF9: =Table1[[#This Row],[TS]]&"-"&Table1[[#This Row],[TM]]&"-"&Table1[[#This Row],[Material]]&"#"&Table1[[#This Row],[No]]&"-"&Table1[[#This Row],[HP/LP]]&"-"&Table1[[#This Row],[IS]] -> ITE-TM4-UC#41-LP-SIS
A10: =_xlfn.CONCAT(Table1[[#This Row],[Material]],"#",Table1[[#This Row],[No]]) -> UC#40 | B10: UC | C10: 40 | D10: LP | E10: SIS | G10: ITW | H10: TM2 | I10: 2023 | J10: 1 | K10: 11 | L10: 143 | M10: Link | P10: 7.04 | R10: 2022-11-15 | S10: 2022-11-16 | T10: 2022-11-17 | U10: 2022-12-06 | V10: 2023-01-09 | W10: 14.25 | X10: 20 | Y10: 19 | Z10: 6196.91 | AA10: =Table1[[#This Row],[Net Charge '[uAh']]]*6200000000000000000*0.000001*3600 -> 1.383150312e+20 | AB10: 20 | AC10: =CONCATENATE(Table1[[#This Row],[Material]], "#", Table1[[#This Row],[No]]) -> UC#40 | AD10: 2023-01-11 | AE10: 15600 | AT10: =IF(AND(AND(Table1[[#This Row],[Online p+]]>0,Table1[[#This Row],[Shipping Date]]>0),NOT(Table1[[#This Row],[Shipping Date]]="")),Table1[[#This Row],[Shipping Date]]-Table1[[#This Row],[Offline p+]], NA()) ->  | AU10: =IF(Table1[[#This Row],[Offline p+]]>0,_xlfn.IFS(Table1[[#This Row],[Material]]="Ta",Table1[[#This Row],[Net Charge '[uAh']]]*0.034,Table1[[#This Row],[Material]]="ZrC",Table1[[#This Row],[Net Charge '[uAh']]]*0.05,Table1[[#This Row],[Material]]="UO2",Table1[[#This Row],[Net Charge '[uAh']]]*0.116,Table1[[#This Row],[Material]]="UC",Table1[[#This Row],[Net Charge '[uAh']]]*0.116,Table1[[#This Row],[Material]]="SiC",Table1[[#This Row],[Net Charge '[uAh']]]*0.05,Table1[[#This Row],[Material]]="nSiC",Table1[[#This Row],[Net Charge '[uAh']]]*0.05,Table1[[#This Row],[Material]]="TiC",Table1[[#This Row],[Net Charge '[uAh']]]*0.032,Table1[[#This Row],[Material]]="NiO",Table1[[#This Row],[Net Charge '[uAh']]]*0.03,Table1[[#This Row],[Material]]="Nb",Table1[[#This Row],[Net Charge '[uAh']]]*0.0305,Table1[[#This Row],[Material]]="TaC",Table1[[#This Row],[Net Charge '[uAh']]]*0.025,Table1[[#This Row],[Material]]="ThO",1095,TRUE,NA()),NA()) -> 718.84156 | AV10: =IF(Table1[[#This Row],[Offline p+]]>0,_xlfn.IFS(Table1[[#This Row],[Material]]="Ta",Table1[[#This Row],[Net Charge '[uAh']]]*0.028,Table1[[#This Row],[Material]]="ZrC",Table1[[#This Row],[Net Charge '[uAh']]]*0.036,Table1[[#This Row],[Material]]="UO2",Table1[[#This Row],[Net Charge '[uAh']]]*0.116,Table1[[#This Row],[Material]]="UC",Table1[[#This Row],[Net Charge '[uAh']]]*0.076,Table1[[#This Row],[Material]]="SiC",Table1[[#This Row],[Net Charge '[uAh']]]*0.048,Table1[[#This Row],[Material]]="nSiC",Table1[[#This Row],[Net Charge '[uAh']]]*0.048,Table1[[#This Row],[Material]]="TiC",Table1[[#This Row],[Net Charge '[uAh']]]*0.032,Table1[[#This Row],[Material]]="NiO",Table1[[#This Row],[Net Charge '[uAh']]]*0.03,Table1[[#This Row],[Material]]="Nb",Table1[[#This Row],[Net Charge '[uAh']]]*0.023,Table1[[#This Row],[Material]]="TaC",Table1[[#This Row],[Net Charge '[uAh']]]*0.025,Table1[[#This Row],[Material]]="ThO",Table1[[#This Row],[Net Charge '[uAh']]]*0.076,TRUE,NA()),NA()) -> 470.96516 | AZ10: =IF(Table1[[#This Row],[Schedule end]]>0,IF(Table1[[#This Row],[Material]]="Ta",Table1[[#This Row],[Estimated current]]*(Table1[[#This Row],[Schedule end]]-Table1[[#This Row],[Schedule start]])*24*0.028,IF(Table1[[#This Row],[Material]]="ZrC", Table1[[#This Row],[Estimated current]]*(Table1[[#This Row],[Schedule end]]-Table1[[#This Row],[Schedule start]])*24*0.036,IF(Table1[[#This Row],[Material]]="UO2",Table1[[#This Row],[Estimated current]]*(Table1[[#This Row],[Schedule end]]-Table1[[#This Row],[Schedule start]])*24*0.116,IF(Table1[[#This Row],[Material]]="UC",Table1[[#This Row],[Estimated current]]*(Table1[[#This Row],[Schedule end]]-Table1[[#This Row],[Schedule start]])*24*0.076,IF(Table1[[#This Row],[Material]]="SiC",Table1[[#This Row],[Estimated current]]*(Table1[[#This Row],[Schedule end]]-Table1[[#This Row],[Schedule start]])*24*0.076,IF(Table1[[#This Row],[Material]]="nSiC",Table1[[#This Row],[Estimated current]]*(Table1[[#This Row],[Schedule end]]-Table1[[#This Row],[Schedule start]])*24*0.048,IF(Table1[[#This Row],[Material]]="TiC",Table1[[#This Row],[Estimated current]]*(Table1[[#This Row],[Schedule end]]-Table1[[#This Row],[Schedule start]])*24*0.032,IF(Table1[[#This Row],[Material]]="NiO",Table1[[#This Row],[Estimated current]]*(Table1[[#This Row],[Schedule end]]-Table1[[#This Row],[Schedule start]])*24*0.03,IF(Table1[[#This Row],[Material]]="Nb",Table1[[#This Row],[Estimated current]]*(Table1[[#This Row],[Schedule end]]-Table1[[#This Row],[Schedule start]])*24*0.023,IF(Table1[[#This Row],[Material]]="TaC",Table1[[#This Row],[Estimated current]]*(Table1[[#This Row],[Schedule end]]-Table1[[#This Row],[Schedule start]])*24*0.025,IF(Table1[[#This Row],[Material]]="ThO",Table1[[#This Row],[Estimated current]]*(Table1[[#This Row],[Schedule end]]-Table1[[#This Row],[Schedule start]])*24*0.076,NA()))))))))))),NA()) ->  | BA10: =Table1[[#This Row],[Estimated ship days]]/365 ->  | BB10: 1B | BC10: 278 | BD10: contains one proton beam window without copper cooling lines in addition to the target This pail is of previous revision, not certified as lifting device. Prior to shipping, a 3" loop must be crimped at the end of the wire rope. | BF10: =Table1[[#This Row],[TS]]&"-"&Table1[[#This Row],[TM]]&"-"&Table1[[#This Row],[Material]]&"#"&Table1[[#This Row],[No]]&"-"&Table1[[#This Row],[HP/LP]]&"-"&Table1[[#This Row],[IS]] -> ITW-TM2-UC#40-LP-SIS
A11: =_xlfn.CONCAT(Table1[[#This Row],[Material]],"#",Table1[[#This Row],[No]]) -> C#4 | B11: C | C11: 4 | D11: LP | E11: SIS | G11: ITE | H11: TM4 | I11: 2022 | J11: 11 | K11: 24 | L11: 143 | M11: Link | P11: 7.04 | R11: 2022-10-11 | S11: 2022-10-18 | T11: 2022-10-20 | U11: 2022-11-17 | V11: 2022-11-22 | W11: 15.52 | X11: 90 | Y11: 78 | Z11: 28829.7 | AA11: =Table1[[#This Row],[Net Charge '[uAh']]]*6200000000000000000*0.000001*3600 -> 6.43478904e+20 | AB11: 20 | AC11: =CONCATENATE(Table1[[#This Row],[Material]], "#", Table1[[#This Row],[No]]) -> C#4 | AD11: 2022-11-24 | AE11: 164000 | AT11: =IF(AND(AND(Table1[[#This Row],[Online p+]]>0,Table1[[#This Row],[Shipping Date]]>0),NOT(Table1[[#This Row],[Shipping Date]]="")),Table1[[#This Row],[Shipping Date]]-Table1[[#This Row],[Offline p+]], NA()) ->  | AU11: =IF(Table1[[#This Row],[Offline p+]]>0,_xlfn.IFS(Table1[[#This Row],[Material]]="Ta",Table1[[#This Row],[Net Charge '[uAh']]]*0.034,Table1[[#This Row],[Material]]="ZrC",Table1[[#This Row],[Net Charge '[uAh']]]*0.05,Table1[[#This Row],[Material]]="UO2",Table1[[#This Row],[Net Charge '[uAh']]]*0.116,Table1[[#This Row],[Material]]="UC",Table1[[#This Row],[Net Charge '[uAh']]]*0.116,Table1[[#This Row],[Material]]="SiC",Table1[[#This Row],[Net Charge '[uAh']]]*0.05,Table1[[#This Row],[Material]]="nSiC",Table1[[#This Row],[Net Charge '[uAh']]]*0.05,Table1[[#This Row],[Material]]="TiC",Table1[[#This Row],[Net Charge '[uAh']]]*0.032,Table1[[#This Row],[Material]]="NiO",Table1[[#This Row],[Net Charge '[uAh']]]*0.03,Table1[[#This Row],[Material]]="Nb",Table1[[#This Row],[Net Charge '[uAh']]]*0.0305,Table1[[#This Row],[Material]]="TaC",Table1[[#This Row],[Net Charge '[uAh']]]*0.025,Table1[[#This Row],[Material]]="ThO",1095,TRUE,NA()),NA()) ->  | AV11: =IF(Table1[[#This Row],[Offline p+]]>0,_xlfn.IFS(Table1[[#This Row],[Material]]="Ta",Table1[[#This Row],[Net Charge '[uAh']]]*0.028,Table1[[#This Row],[Material]]="ZrC",Table1[[#This Row],[Net Charge '[uAh']]]*0.036,Table1[[#This Row],[Material]]="UO2",Table1[[#This Row],[Net Charge '[uAh']]]*0.116,Table1[[#This Row],[Material]]="UC",Table1[[#This Row],[Net Charge '[uAh']]]*0.076,Table1[[#This Row],[Material]]="SiC",Table1[[#This Row],[Net Charge '[uAh']]]*0.048,Table1[[#This Row],[Material]]="nSiC",Table1[[#This Row],[Net Charge '[uAh']]]*0.048,Table1[[#This Row],[Material]]="TiC",Table1[[#This Row],[Net Charge '[uAh']]]*0.032,Table1[[#This Row],[Material]]="NiO",Table1[[#This Row],[Net Charge '[uAh']]]*0.03,Table1[[#This Row],[Material]]="Nb",Table1[[#This Row],[Net Charge '[uAh']]]*0.023,Table1[[#This Row],[Material]]="TaC",Table1[[#This Row],[Net Charge '[uAh']]]*0.025,Table1[[#This Row],[Material]]="ThO",Table1[[#This Row],[Net Charge '[uAh']]]*0.076,TRUE,NA()),NA()) ->  | AZ11: =IF(Table1[[#This Row],[Schedule end]]>0,IF(Table1[[#This Row],[Material]]="Ta",Table1[[#This Row],[Estimated current]]*(Table1[[#This Row],[Schedule end]]-Table1[[#This Row],[Schedule start]])*24*0.028,IF(Table1[[#This Row],[Material]]="ZrC", Table1[[#This Row],[Estimated current]]*(Table1[[#This Row],[Schedule end]]-Table1[[#This Row],[Schedule start]])*24*0.036,IF(Table1[[#This Row],[Material]]="UO2",Table1[[#This Row],[Estimated current]]*(Table1[[#This Row],[Schedule end]]-Table1[[#This Row],[Schedule start]])*24*0.116,IF(Table1[[#This Row],[Material]]="UC",Table1[[#This Row],[Estimated current]]*(Table1[[#This Row],[Schedule end]]-Table1[[#This Row],[Schedule start]])*24*0.076,IF(Table1[[#This Row],[Material]]="SiC",Table1[[#This Row],[Estimated current]]*(Table1[[#This Row],[Schedule end]]-Table1[[#This Row],[Schedule start]])*24*0.076,IF(Table1[[#This Row],[Material]]="nSiC",Table1[[#This Row],[Estimated current]]*(Table1[[#This Row],[Schedule end]]-Table1[[#This Row],[Schedule start]])*24*0.048,IF(Table1[[#This Row],[Material]]="TiC",Table1[[#This Row],[Estimated current]]*(Table1[[#This Row],[Schedule end]]-Table1[[#This Row],[Schedule start]])*24*0.032,IF(Table1[[#This Row],[Material]]="NiO",Table1[[#This Row],[Estimated current]]*(Table1[[#This Row],[Schedule end]]-Table1[[#This Row],[Schedule start]])*24*0.03,IF(Table1[[#This Row],[Material]]="Nb",Table1[[#This Row],[Estimated current]]*(Table1[[#This Row],[Schedule end]]-Table1[[#This Row],[Schedule start]])*24*0.023,IF(Table1[[#This Row],[Material]]="TaC",Table1[[#This Row],[Estimated current]]*(Table1[[#This Row],[Schedule end]]-Table1[[#This Row],[Schedule start]])*24*0.025,IF(Table1[[#This Row],[Material]]="ThO",Table1[[#This Row],[Estimated current]]*(Table1[[#This Row],[Schedule end]]-Table1[[#This Row],[Schedule start]])*24*0.076,NA()))))))))))),NA()) ->  | BA11: =Table1[[#This Row],[Estimated ship days]]/365 ->  | BB11: 4C | BC11: 277 | BD11: This pail is of previous revision, not certified as lifting device. Prior to shipping, a 3" loop must be crimped at the end of the wire rope. | BF11: =Table1[[#This Row],[TS]]&"-"&Table1[[#This Row],[TM]]&"-"&Table1[[#This Row],[Material]]&"#"&Table1[[#This Row],[No]]&"-"&Table1[[#This Row],[HP/LP]]&"-"&Table1[[#This Row],[IS]] -> ITE-TM4-C#4-LP-SIS
A12: =_xlfn.CONCAT(Table1[[#This Row],[Material]],"#",Table1[[#This Row],[No]]) -> UC#39 | B12: UC | C12: 39 | D12: LP | E12: IGLIS | G12: ITW | H12: TM2 | I12: 2022 | J12: 11 | K12: 3 | L12: 142 | M12: Link | P12: 7.04 | R12: 2022-09-13 | S12: 2022-09-17 | T12: 2022-09-20 | U12: 2022-10-03 | V12: 2022-11-01 | W12: 13.78 | X12: 20 | Y12: 16 | Z12: 4151.79 | AA12: =Table1[[#This Row],[Net Charge '[uAh']]]*6200000000000000000*0.000001*3600 -> 9.26679528e+19 | AB12: 42 | AC12: =CONCATENATE(Table1[[#This Row],[Material]], "#", Table1[[#This Row],[No]]) -> UC#39 | AD12: 2022-11-03 | AE12: 14400 | AT12: =IF(AND(AND(Table1[[#This Row],[Online p+]]>0,Table1[[#This Row],[Shipping Date]]>0),NOT(Table1[[#This Row],[Shipping Date]]="")),Table1[[#This Row],[Shipping Date]]-Table1[[#This Row],[Offline p+]], NA()) ->  | AU12: =IF(Table1[[#This Row],[Offline p+]]>0,_xlfn.IFS(Table1[[#This Row],[Material]]="Ta",Table1[[#This Row],[Net Charge '[uAh']]]*0.034,Table1[[#This Row],[Material]]="ZrC",Table1[[#This Row],[Net Charge '[uAh']]]*0.05,Table1[[#This Row],[Material]]="UO2",Table1[[#This Row],[Net Charge '[uAh']]]*0.116,Table1[[#This Row],[Material]]="UC",Table1[[#This Row],[Net Charge '[uAh']]]*0.116,Table1[[#This Row],[Material]]="SiC",Table1[[#This Row],[Net Charge '[uAh']]]*0.05,Table1[[#This Row],[Material]]="nSiC",Table1[[#This Row],[Net Charge '[uAh']]]*0.05,Table1[[#This Row],[Material]]="TiC",Table1[[#This Row],[Net Charge '[uAh']]]*0.032,Table1[[#This Row],[Material]]="NiO",Table1[[#This Row],[Net Charge '[uAh']]]*0.03,Table1[[#This Row],[Material]]="Nb",Table1[[#This Row],[Net Charge '[uAh']]]*0.0305,Table1[[#This Row],[Material]]="TaC",Table1[[#This Row],[Net Charge '[uAh']]]*0.025,Table1[[#This Row],[Material]]="ThO",1095,TRUE,NA()),NA()) -> 481.60764 | AV12: =IF(Table1[[#This Row],[Offline p+]]>0,_xlfn.IFS(Table1[[#This Row],[Material]]="Ta",Table1[[#This Row],[Net Charge '[uAh']]]*0.028,Table1[[#This Row],[Material]]="ZrC",Table1[[#This Row],[Net Charge '[uAh']]]*0.036,Table1[[#This Row],[Material]]="UO2",Table1[[#This Row],[Net Charge '[uAh']]]*0.116,Table1[[#This Row],[Material]]="UC",Table1[[#This Row],[Net Charge '[uAh']]]*0.076,Table1[[#This Row],[Material]]="SiC",Table1[[#This Row],[Net Charge '[uAh']]]*0.048,Table1[[#This Row],[Material]]="nSiC",Table1[[#This Row],[Net Charge '[uAh']]]*0.048,Table1[[#This Row],[Material]]="TiC",Table1[[#This Row],[Net Charge '[uAh']]]*0.032,Table1[[#This Row],[Material]]="NiO",Table1[[#This Row],[Net Charge '[uAh']]]*0.03,Table1[[#This Row],[Material]]="Nb",Table1[[#This Row],[Net Charge '[uAh']]]*0.023,Table1[[#This Row],[Material]]="TaC",Table1[[#This Row],[Net Charge '[uAh']]]*0.025,Table1[[#This Row],[Material]]="ThO",Table1[[#This Row],[Net Charge '[uAh']]]*0.076,TRUE,NA()),NA()) -> 315.53604 | AZ12: =IF(Table1[[#This Row],[Schedule end]]>0,IF(Table1[[#This Row],[Material]]="Ta",Table1[[#This Row],[Estimated current]]*(Table1[[#This Row],[Schedule end]]-Table1[[#This Row],[Schedule start]])*24*0.028,IF(Table1[[#This Row],[Material]]="ZrC", Table1[[#This Row],[Estimated current]]*(Table1[[#This Row],[Schedule end]]-Table1[[#This Row],[Schedule start]])*24*0.036,IF(Table1[[#This Row],[Material]]="UO2",Table1[[#This Row],[Estimated current]]*(Table1[[#This Row],[Schedule end]]-Table1[[#This Row],[Schedule start]])*24*0.116,IF(Table1[[#This Row],[Material]]="UC",Table1[[#This Row],[Estimated current]]*(Table1[[#This Row],[Schedule end]]-Table1[[#This Row],[Schedule start]])*24*0.076,IF(Table1[[#This Row],[Material]]="SiC",Table1[[#This Row],[Estimated current]]*(Table1[[#This Row],[Schedule end]]-Table1[[#This Row],[Schedule start]])*24*0.076,IF(Table1[[#This Row],[Material]]="nSiC",Table1[[#This Row],[Estimated current]]*(Table1[[#This Row],[Schedule end]]-Table1[[#This Row],[Schedule start]])*24*0.048,IF(Table1[[#This Row],[Material]]="TiC",Table1[[#This Row],[Estimated current]]*(Table1[[#This Row],[Schedule end]]-Table1[[#This Row],[Schedule start]])*24*0.032,IF(Table1[[#This Row],[Material]]="NiO",Table1[[#This Row],[Estimated current]]*(Table1[[#This Row],[Schedule end]]-Table1[[#This Row],[Schedule start]])*24*0.03,IF(Table1[[#This Row],[Material]]="Nb",Table1[[#This Row],[Estimated current]]*(Table1[[#This Row],[Schedule end]]-Table1[[#This Row],[Schedule start]])*24*0.023,IF(Table1[[#This Row],[Material]]="TaC",Table1[[#This Row],[Estimated current]]*(Table1[[#This Row],[Schedule end]]-Table1[[#This Row],[Schedule start]])*24*0.025,IF(Table1[[#This Row],[Material]]="ThO",Table1[[#This Row],[Estimated current]]*(Table1[[#This Row],[Schedule end]]-Table1[[#This Row],[Schedule start]])*24*0.076,NA()))))))))))),NA()) ->  | BA12: =Table1[[#This Row],[Estimated ship days]]/365 ->  | BB12: 4B | BC12: 276 | BD12: This pail is of previous revision, not certified as lifting device. Prior to shipping, a 3" loop must be crimped at the end of the wire rope. | BF12: =Table1[[#This Row],[TS]]&"-"&Table1[[#This Row],[TM]]&"-"&Table1[[#This Row],[Material]]&"#"&Table1[[#This Row],[No]]&"-"&Table1[[#This Row],[HP/LP]]&"-"&Table1[[#This Row],[IS]] -> ITW-TM2-UC#39-LP-IGLIS
A13: =_xlfn.CONCAT(Table1[[#This Row],[Material]],"#",Table1[[#This Row],[No]]) -> SiC#44 | B13: SiC | C13: 44 | D13: HP | E13: FEBIAD | G13: ITE | H13: TM4 | I13: 2022 | J13: 10 | K13: 13 | L13: 142 | M13: Link | P13: 7.04 | R13: 2022-08-16 | S13: 2022-08-17 | T13: 2022-08-31 | U13: 2022-09-11 | V13: 2022-10-03 | W13: 10.27 | X13: 70 | Y13: 60 | Z13: 11419.5 | AA13: =Table1[[#This Row],[Net Charge '[uAh']]]*6200000000000000000*0.000001*3600 -> 2.5488324e+20 | AB13: 36.6 | AC13: =CONCATENATE(Table1[[#This Row],[Material]], "#", Table1[[#This Row],[No]]) -> SiC#44 | AD13: 2022-10-13 | AE13: 42600 | AT13: =IF(AND(AND(Table1[[#This Row],[Online p+]]>0,Table1[[#This Row],[Shipping Date]]>0),NOT(Table1[[#This Row],[Shipping Date]]="")),Table1[[#This Row],[Shipping Date]]-Table1[[#This Row],[Offline p+]], NA()) ->  | AU13: =IF(Table1[[#This Row],[Offline p+]]>0,_xlfn.IFS(Table1[[#This Row],[Material]]="Ta",Table1[[#This Row],[Net Charge '[uAh']]]*0.034,Table1[[#This Row],[Material]]="ZrC",Table1[[#This Row],[Net Charge '[uAh']]]*0.05,Table1[[#This Row],[Material]]="UO2",Table1[[#This Row],[Net Charge '[uAh']]]*0.116,Table1[[#This Row],[Material]]="UC",Table1[[#This Row],[Net Charge '[uAh']]]*0.116,Table1[[#This Row],[Material]]="SiC",Table1[[#This Row],[Net Charge '[uAh']]]*0.05,Table1[[#This Row],[Material]]="nSiC",Table1[[#This Row],[Net Charge '[uAh']]]*0.05,Table1[[#This Row],[Material]]="TiC",Table1[[#This Row],[Net Charge '[uAh']]]*0.032,Table1[[#This Row],[Material]]="NiO",Table1[[#This Row],[Net Charge '[uAh']]]*0.03,Table1[[#This Row],[Material]]="Nb",Table1[[#This Row],[Net Charge '[uAh']]]*0.0305,Table1[[#This Row],[Material]]="TaC",Table1[[#This Row],[Net Charge '[uAh']]]*0.025,Table1[[#This Row],[Material]]="ThO",1095,TRUE,NA()),NA()) -> 570.975 | AV13: =IF(Table1[[#This Row],[Offline p+]]>0,_xlfn.IFS(Table1[[#This Row],[Material]]="Ta",Table1[[#This Row],[Net Charge '[uAh']]]*0.028,Table1[[#This Row],[Material]]="ZrC",Table1[[#This Row],[Net Charge '[uAh']]]*0.036,Table1[[#This Row],[Material]]="UO2",Table1[[#This Row],[Net Charge '[uAh']]]*0.116,Table1[[#This Row],[Material]]="UC",Table1[[#This Row],[Net Charge '[uAh']]]*0.076,Table1[[#This Row],[Material]]="SiC",Table1[[#This Row],[Net Charge '[uAh']]]*0.048,Table1[[#This Row],[Material]]="nSiC",Table1[[#This Row],[Net Charge '[uAh']]]*0.048,Table1[[#This Row],[Material]]="TiC",Table1[[#This Row],[Net Charge '[uAh']]]*0.032,Table1[[#This Row],[Material]]="NiO",Table1[[#This Row],[Net Charge '[uAh']]]*0.03,Table1[[#This Row],[Material]]="Nb",Table1[[#This Row],[Net Charge '[uAh']]]*0.023,Table1[[#This Row],[Material]]="TaC",Table1[[#This Row],[Net Charge '[uAh']]]*0.025,Table1[[#This Row],[Material]]="ThO",Table1[[#This Row],[Net Charge '[uAh']]]*0.076,TRUE,NA()),NA()) -> 548.136 | AZ13: =IF(Table1[[#This Row],[Schedule end]]>0,IF(Table1[[#This Row],[Material]]="Ta",Table1[[#This Row],[Estimated current]]*(Table1[[#This Row],[Schedule end]]-Table1[[#This Row],[Schedule start]])*24*0.028,IF(Table1[[#This Row],[Material]]="ZrC", Table1[[#This Row],[Estimated current]]*(Table1[[#This Row],[Schedule end]]-Table1[[#This Row],[Schedule start]])*24*0.036,IF(Table1[[#This Row],[Material]]="UO2",Table1[[#This Row],[Estimated current]]*(Table1[[#This Row],[Schedule end]]-Table1[[#This Row],[Schedule start]])*24*0.116,IF(Table1[[#This Row],[Material]]="UC",Table1[[#This Row],[Estimated current]]*(Table1[[#This Row],[Schedule end]]-Table1[[#This Row],[Schedule start]])*24*0.076,IF(Table1[[#This Row],[Material]]="SiC",Table1[[#This Row],[Estimated current]]*(Table1[[#This Row],[Schedule end]]-Table1[[#This Row],[Schedule start]])*24*0.076,IF(Table1[[#This Row],[Material]]="nSiC",Table1[[#This Row],[Estimated current]]*(Table1[[#This Row],[Schedule end]]-Table1[[#This Row],[Schedule start]])*24*0.048,IF(Table1[[#This Row],[Material]]="TiC",Table1[[#This Row],[Estimated current]]*(Table1[[#This Row],[Schedule end]]-Table1[[#This Row],[Schedule start]])*24*0.032,IF(Table1[[#This Row],[Material]]="NiO",Table1[[#This Row],[Estimated current]]*(Table1[[#This Row],[Schedule end]]-Table1[[#This Row],[Schedule start]])*24*0.03,IF(Table1[[#This Row],[Material]]="Nb",Table1[[#This Row],[Estimated current]]*(Table1[[#This Row],[Schedule end]]-Table1[[#This Row],[Schedule start]])*24*0.023,IF(Table1[[#This Row],[Material]]="TaC",Table1[[#This Row],[Estimated current]]*(Table1[[#This Row],[Schedule end]]-Table1[[#This Row],[Schedule start]])*24*0.025,IF(Table1[[#This Row],[Material]]="ThO",Table1[[#This Row],[Estimated current]]*(Table1[[#This Row],[Schedule end]]-Table1[[#This Row],[Schedule start]])*24*0.076,NA()))))))))))),NA()) ->  | BA13: =Table1[[#This Row],[Estimated ship days]]/365 ->  | BB13: 4A | BC13: 275 | BD13: This pail is of previous revision, not certified as lifting device. Prior to shipping, a 3" loop must be crimped at the end of the wire rope. | BF13: =Table1[[#This Row],[TS]]&"-"&Table1[[#This Row],[TM]]&"-"&Table1[[#This Row],[Material]]&"#"&Table1[[#This Row],[No]]&"-"&Table1[[#This Row],[HP/LP]]&"-"&Table1[[#This Row],[IS]] -> ITE-TM4-SiC#44-HP-FEBIAD
A14: =_xlfn.CONCAT(Table1[[#This Row],[Material]],"#",Table1[[#This Row],[No]]) -> UC#38 | B14: UC | C14: 38 | D14: LP | E14: SIS | G14: ITW | H14: TM2 | I14: 2022 | J14: 9 | K14: 15 | L14: 142 | M14: Link | P14: 7.04 | R14: 2022-07-26 | S14: 2022-07-28 | T14: 2022-08-02 | U14: 2022-08-30 | V14: 2022-09-06 | W14: 13.54 | X14: 20 | Y14: 20 | Z14: 8011.88 | AA14: =Table1[[#This Row],[Net Charge '[uAh']]]*6200000000000000000*0.000001*3600 -> 1.788251616e+20 | AB14: 30 | AC14: =CONCATENATE(Table1[[#This Row],[Material]], "#", Table1[[#This Row],[No]]) -> UC#38 | AD14: 2022-09-15 | AE14: 33300 | AF14: 2022-12-16 | AG14: =4.78*1000 -> 4780 | AT14: =IF(AND(AND(Table1[[#This Row],[Online p+]]>0,Table1[[#This Row],[Shipping Date]]>0),NOT(Table1[[#This Row],[Shipping Date]]="")),Table1[[#This Row],[Shipping Date]]-Table1[[#This Row],[Offline p+]], NA()) ->  | AU14: =IF(Table1[[#This Row],[Offline p+]]>0,_xlfn.IFS(Table1[[#This Row],[Material]]="Ta",Table1[[#This Row],[Net Charge '[uAh']]]*0.034,Table1[[#This Row],[Material]]="ZrC",Table1[[#This Row],[Net Charge '[uAh']]]*0.05,Table1[[#This Row],[Material]]="UO2",Table1[[#This Row],[Net Charge '[uAh']]]*0.116,Table1[[#This Row],[Material]]="UC",Table1[[#This Row],[Net Charge '[uAh']]]*0.116,Table1[[#This Row],[Material]]="SiC",Table1[[#This Row],[Net Charge '[uAh']]]*0.05,Table1[[#This Row],[Material]]="nSiC",Table1[[#This Row],[Net Charge '[uAh']]]*0.05,Table1[[#This Row],[Material]]="TiC",Table1[[#This Row],[Net Charge '[uAh']]]*0.032,Table1[[#This Row],[Material]]="NiO",Table1[[#This Row],[Net Charge '[uAh']]]*0.03,Table1[[#This Row],[Material]]="Nb",Table1[[#This Row],[Net Charge '[uAh']]]*0.0305,Table1[[#This Row],[Material]]="TaC",Table1[[#This Row],[Net Charge '[uAh']]]*0.025,Table1[[#This Row],[Material]]="ThO",1095,TRUE,NA()),NA()) -> 929.37808 | AV14: =IF(Table1[[#This Row],[Offline p+]]>0,_xlfn.IFS(Table1[[#This Row],[Material]]="Ta",Table1[[#This Row],[Net Charge '[uAh']]]*0.028,Table1[[#This Row],[Material]]="ZrC",Table1[[#This Row],[Net Charge '[uAh']]]*0.036,Table1[[#This Row],[Material]]="UO2",Table1[[#This Row],[Net Charge '[uAh']]]*0.116,Table1[[#This Row],[Material]]="UC",Table1[[#This Row],[Net Charge '[uAh']]]*0.076,Table1[[#This Row],[Material]]="SiC",Table1[[#This Row],[Net Charge '[uAh']]]*0.048,Table1[[#This Row],[Material]]="nSiC",Table1[[#This Row],[Net Charge '[uAh']]]*0.048,Table1[[#This Row],[Material]]="TiC",Table1[[#This Row],[Net Charge '[uAh']]]*0.032,Table1[[#This Row],[Material]]="NiO",Table1[[#This Row],[Net Charge '[uAh']]]*0.03,Table1[[#This Row],[Material]]="Nb",Table1[[#This Row],[Net Charge '[uAh']]]*0.023,Table1[[#This Row],[Material]]="TaC",Table1[[#This Row],[Net Charge '[uAh']]]*0.025,Table1[[#This Row],[Material]]="ThO",Table1[[#This Row],[Net Charge '[uAh']]]*0.076,TRUE,NA()),NA()) -> 608.90288 | AZ14: =IF(Table1[[#This Row],[Schedule end]]>0,IF(Table1[[#This Row],[Material]]="Ta",Table1[[#This Row],[Estimated current]]*(Table1[[#This Row],[Schedule end]]-Table1[[#This Row],[Schedule start]])*24*0.028,IF(Table1[[#This Row],[Material]]="ZrC", Table1[[#This Row],[Estimated current]]*(Table1[[#This Row],[Schedule end]]-Table1[[#This Row],[Schedule start]])*24*0.036,IF(Table1[[#This Row],[Material]]="UO2",Table1[[#This Row],[Estimated current]]*(Table1[[#This Row],[Schedule end]]-Table1[[#This Row],[Schedule start]])*24*0.116,IF(Table1[[#This Row],[Material]]="UC",Table1[[#This Row],[Estimated current]]*(Table1[[#This Row],[Schedule end]]-Table1[[#This Row],[Schedule start]])*24*0.076,IF(Table1[[#This Row],[Material]]="SiC",Table1[[#This Row],[Estimated current]]*(Table1[[#This Row],[Schedule end]]-Table1[[#This Row],[Schedule start]])*24*0.076,IF(Table1[[#This Row],[Material]]="nSiC",Table1[[#This Row],[Estimated current]]*(Table1[[#This Row],[Schedule end]]-Table1[[#This Row],[Schedule start]])*24*0.048,IF(Table1[[#This Row],[Material]]="TiC",Table1[[#This Row],[Estimated current]]*(Table1[[#This Row],[Schedule end]]-Table1[[#This Row],[Schedule start]])*24*0.032,IF(Table1[[#This Row],[Material]]="NiO",Table1[[#This Row],[Estimated current]]*(Table1[[#This Row],[Schedule end]]-Table1[[#This Row],[Schedule start]])*24*0.03,IF(Table1[[#This Row],[Material]]="Nb",Table1[[#This Row],[Estimated current]]*(Table1[[#This Row],[Schedule end]]-Table1[[#This Row],[Schedule start]])*24*0.023,IF(Table1[[#This Row],[Material]]="TaC",Table1[[#This Row],[Estimated current]]*(Table1[[#This Row],[Schedule end]]-Table1[[#This Row],[Schedule start]])*24*0.025,IF(Table1[[#This Row],[Material]]="ThO",Table1[[#This Row],[Estimated current]]*(Table1[[#This Row],[Schedule end]]-Table1[[#This Row],[Schedule start]])*24*0.076,NA()))))))))))),NA()) ->  | BA14: =Table1[[#This Row],[Estimated ship days]]/365 ->  | BB14: 1A | BC14: 274 | BD14: This pail is of previous revision, not certified as lifting device. Prior to shipping, a 3" loop must be crimped at the end of the wire rope. | BF14: =Table1[[#This Row],[TS]]&"-"&Table1[[#This Row],[TM]]&"-"&Table1[[#This Row],[Material]]&"#"&Table1[[#This Row],[No]]&"-"&Table1[[#This Row],[HP/LP]]&"-"&Table1[[#This Row],[IS]] -> ITW-TM2-UC#38-LP-SIS
A15: =_xlfn.CONCAT(Table1[[#This Row],[Material]],"#",Table1[[#This Row],[No]]) -> Ta#64 | B15: Ta | C15: 64 | D15: LP | E15: SIS | G15: ITE | H15: TM4 | I15: 2022 | J15: 8 | K15: 18 | L15: 142 | M15: Link | P15: 7.04 | R15: 2022-06-28 | S15: 2022-07-04 | T15: 2022-07-04 | U15: 2022-08-02 | V15: 2022-08-09 | W15: 13.13 | X15: 40/60 | Y15: 60 | Z15: 15070.79 | AA15: =Table1[[#This Row],[Net Charge '[uAh']]]*6200000000000000000*0.000001*3600 -> 3.363800328e+20 | AB15: 22.468 | AC15: =CONCATENATE(Table1[[#This Row],[Material]], "#", Table1[[#This Row],[No]]) -> Ta#64 | AD15: 2022-08-18 | AE15: 86600 | AT15: =IF(AND(AND(Table1[[#This Row],[Online p+]]>0,Table1[[#This Row],[Shipping Date]]>0),NOT(Table1[[#This Row],[Shipping Date]]="")),Table1[[#This Row],[Shipping Date]]-Table1[[#This Row],[Offline p+]], NA()) ->  | AU15: =IF(Table1[[#This Row],[Offline p+]]>0,_xlfn.IFS(Table1[[#This Row],[Material]]="Ta",Table1[[#This Row],[Net Charge '[uAh']]]*0.034,Table1[[#This Row],[Material]]="ZrC",Table1[[#This Row],[Net Charge '[uAh']]]*0.05,Table1[[#This Row],[Material]]="UO2",Table1[[#This Row],[Net Charge '[uAh']]]*0.116,Table1[[#This Row],[Material]]="UC",Table1[[#This Row],[Net Charge '[uAh']]]*0.116,Table1[[#This Row],[Material]]="SiC",Table1[[#This Row],[Net Charge '[uAh']]]*0.05,Table1[[#This Row],[Material]]="nSiC",Table1[[#This Row],[Net Charge '[uAh']]]*0.05,Table1[[#This Row],[Material]]="TiC",Table1[[#This Row],[Net Charge '[uAh']]]*0.032,Table1[[#This Row],[Material]]="NiO",Table1[[#This Row],[Net Charge '[uAh']]]*0.03,Table1[[#This Row],[Material]]="Nb",Table1[[#This Row],[Net Charge '[uAh']]]*0.0305,Table1[[#This Row],[Material]]="TaC",Table1[[#This Row],[Net Charge '[uAh']]]*0.025,Table1[[#This Row],[Material]]="ThO",1095,TRUE,NA()),NA()) -> 512.40686 | AV15: =IF(Table1[[#This Row],[Offline p+]]>0,_xlfn.IFS(Table1[[#This Row],[Material]]="Ta",Table1[[#This Row],[Net Charge '[uAh']]]*0.028,Table1[[#This Row],[Material]]="ZrC",Table1[[#This Row],[Net Charge '[uAh']]]*0.036,Table1[[#This Row],[Material]]="UO2",Table1[[#This Row],[Net Charge '[uAh']]]*0.116,Table1[[#This Row],[Material]]="UC",Table1[[#This Row],[Net Charge '[uAh']]]*0.076,Table1[[#This Row],[Material]]="SiC",Table1[[#This Row],[Net Charge '[uAh']]]*0.048,Table1[[#This Row],[Material]]="nSiC",Table1[[#This Row],[Net Charge '[uAh']]]*0.048,Table1[[#This Row],[Material]]="TiC",Table1[[#This Row],[Net Charge '[uAh']]]*0.032,Table1[[#This Row],[Material]]="NiO",Table1[[#This Row],[Net Charge '[uAh']]]*0.03,Table1[[#This Row],[Material]]="Nb",Table1[[#This Row],[Net Charge '[uAh']]]*0.023,Table1[[#This Row],[Material]]="TaC",Table1[[#This Row],[Net Charge '[uAh']]]*0.025,Table1[[#This Row],[Material]]="ThO",Table1[[#This Row],[Net Charge '[uAh']]]*0.076,TRUE,NA()),NA()) -> 421.98212 | AZ15: =IF(Table1[[#This Row],[Schedule end]]>0,IF(Table1[[#This Row],[Material]]="Ta",Table1[[#This Row],[Estimated current]]*(Table1[[#This Row],[Schedule end]]-Table1[[#This Row],[Schedule start]])*24*0.028,IF(Table1[[#This Row],[Material]]="ZrC", Table1[[#This Row],[Estimated current]]*(Table1[[#This Row],[Schedule end]]-Table1[[#This Row],[Schedule start]])*24*0.036,IF(Table1[[#This Row],[Material]]="UO2",Table1[[#This Row],[Estimated current]]*(Table1[[#This Row],[Schedule end]]-Table1[[#This Row],[Schedule start]])*24*0.116,IF(Table1[[#This Row],[Material]]="UC",Table1[[#This Row],[Estimated current]]*(Table1[[#This Row],[Schedule end]]-Table1[[#This Row],[Schedule start]])*24*0.076,IF(Table1[[#This Row],[Material]]="SiC",Table1[[#This Row],[Estimated current]]*(Table1[[#This Row],[Schedule end]]-Table1[[#This Row],[Schedule start]])*24*0.076,IF(Table1[[#This Row],[Material]]="nSiC",Table1[[#This Row],[Estimated current]]*(Table1[[#This Row],[Schedule end]]-Table1[[#This Row],[Schedule start]])*24*0.048,IF(Table1[[#This Row],[Material]]="TiC",Table1[[#This Row],[Estimated current]]*(Table1[[#This Row],[Schedule end]]-Table1[[#This Row],[Schedule start]])*24*0.032,IF(Table1[[#This Row],[Material]]="NiO",Table1[[#This Row],[Estimated current]]*(Table1[[#This Row],[Schedule end]]-Table1[[#This Row],[Schedule start]])*24*0.03,IF(Table1[[#This Row],[Material]]="Nb",Table1[[#This Row],[Estimated current]]*(Table1[[#This Row],[Schedule end]]-Table1[[#This Row],[Schedule start]])*24*0.023,IF(Table1[[#This Row],[Material]]="TaC",Table1[[#This Row],[Estimated current]]*(Table1[[#This Row],[Schedule end]]-Table1[[#This Row],[Schedule start]])*24*0.025,IF(Table1[[#This Row],[Material]]="ThO",Table1[[#This Row],[Estimated current]]*(Table1[[#This Row],[Schedule end]]-Table1[[#This Row],[Schedule start]])*24*0.076,NA()))))))))))),NA()) ->  | BA15: =Table1[[#This Row],[Estimated ship days]]/365 ->  | BB15: 5C | BC15: 273 | BD15: This pail is of previous revision, not certified as lifting device. Prior to shipping, a 3" loop must be crimped at the end of the wire rope. | BF15: =Table1[[#This Row],[TS]]&"-"&Table1[[#This Row],[TM]]&"-"&Table1[[#This Row],[Material]]&"#"&Table1[[#This Row],[No]]&"-"&Table1[[#This Row],[HP/LP]]&"-"&Table1[[#This Row],[IS]] -> ITE-TM4-Ta#64-LP-SIS
A16: =_xlfn.CONCAT(Table1[[#This Row],[Material]],"#",Table1[[#This Row],[No]]) -> SiC#43 | B16: SiC | C16: 43 | D16: HP | E16: FEBIAD | G16: ITW | H16: TM2 | I16: 2022 | J16: 7 | K16: 28 | L16: 142 | M16: Link | P16: 7.04 | R16: 2022-0620 | S16: 2022-06-21 | T16: 2022-06-22 | U16: 20022-07-02 | V16: 2022-07-19 | W16: 12.72 | X16: 75 | Y16: 65 | Z16: 10192.27 | AA16: =Table1[[#This Row],[Net Charge '[uAh']]]*6200000000000000000*0.000001*3600 -> 2.274914664e+20 | AB16: 36.7 | AC16: =CONCATENATE(Table1[[#This Row],[Material]], "#", Table1[[#This Row],[No]]) -> SiC#43 | AD16: 28/07/2022 | AE16: 47800 | AT16: =IF(AND(AND(Table1[[#This Row],[Online p+]]>0,Table1[[#This Row],[Shipping Date]]>0),NOT(Table1[[#This Row],[Shipping Date]]="")),Table1[[#This Row],[Shipping Date]]-Table1[[#This Row],[Offline p+]], NA()) ->  | AU16: =IF(Table1[[#This Row],[Offline p+]]>0,_xlfn.IFS(Table1[[#This Row],[Material]]="Ta",Table1[[#This Row],[Net Charge '[uAh']]]*0.034,Table1[[#This Row],[Material]]="ZrC",Table1[[#This Row],[Net Charge '[uAh']]]*0.05,Table1[[#This Row],[Material]]="UO2",Table1[[#This Row],[Net Charge '[uAh']]]*0.116,Table1[[#This Row],[Material]]="UC",Table1[[#This Row],[Net Charge '[uAh']]]*0.116,Table1[[#This Row],[Material]]="SiC",Table1[[#This Row],[Net Charge '[uAh']]]*0.05,Table1[[#This Row],[Material]]="nSiC",Table1[[#This Row],[Net Charge '[uAh']]]*0.05,Table1[[#This Row],[Material]]="TiC",Table1[[#This Row],[Net Charge '[uAh']]]*0.032,Table1[[#This Row],[Material]]="NiO",Table1[[#This Row],[Net Charge '[uAh']]]*0.03,Table1[[#This Row],[Material]]="Nb",Table1[[#This Row],[Net Charge '[uAh']]]*0.0305,Table1[[#This Row],[Material]]="TaC",Table1[[#This Row],[Net Charge '[uAh']]]*0.025,Table1[[#This Row],[Material]]="ThO",1095,TRUE,NA()),NA()) -> 509.6135 | AV16: =IF(Table1[[#This Row],[Offline p+]]>0,_xlfn.IFS(Table1[[#This Row],[Material]]="Ta",Table1[[#This Row],[Net Charge '[uAh']]]*0.028,Table1[[#This Row],[Material]]="ZrC",Table1[[#This Row],[Net Charge '[uAh']]]*0.036,Table1[[#This Row],[Material]]="UO2",Table1[[#This Row],[Net Charge '[uAh']]]*0.116,Table1[[#This Row],[Material]]="UC",Table1[[#This Row],[Net Charge '[uAh']]]*0.076,Table1[[#This Row],[Material]]="SiC",Table1[[#This Row],[Net Charge '[uAh']]]*0.048,Table1[[#This Row],[Material]]="nSiC",Table1[[#This Row],[Net Charge '[uAh']]]*0.048,Table1[[#This Row],[Material]]="TiC",Table1[[#This Row],[Net Charge '[uAh']]]*0.032,Table1[[#This Row],[Material]]="NiO",Table1[[#This Row],[Net Charge '[uAh']]]*0.03,Table1[[#This Row],[Material]]="Nb",Table1[[#This Row],[Net Charge '[uAh']]]*0.023,Table1[[#This Row],[Material]]="TaC",Table1[[#This Row],[Net Charge '[uAh']]]*0.025,Table1[[#This Row],[Material]]="ThO",Table1[[#This Row],[Net Charge '[uAh']]]*0.076,TRUE,NA()),NA()) -> 489.22896 | AZ16: =IF(Table1[[#This Row],[Schedule end]]>0,IF(Table1[[#This Row],[Material]]="Ta",Table1[[#This Row],[Estimated current]]*(Table1[[#This Row],[Schedule end]]-Table1[[#This Row],[Schedule start]])*24*0.028,IF(Table1[[#This Row],[Material]]="ZrC", Table1[[#This Row],[Estimated current]]*(Table1[[#This Row],[Schedule end]]-Table1[[#This Row],[Schedule start]])*24*0.036,IF(Table1[[#This Row],[Material]]="UO2",Table1[[#This Row],[Estimated current]]*(Table1[[#This Row],[Schedule end]]-Table1[[#This Row],[Schedule start]])*24*0.116,IF(Table1[[#This Row],[Material]]="UC",Table1[[#This Row],[Estimated current]]*(Table1[[#This Row],[Schedule end]]-Table1[[#This Row],[Schedule start]])*24*0.076,IF(Table1[[#This Row],[Material]]="SiC",Table1[[#This Row],[Estimated current]]*(Table1[[#This Row],[Schedule end]]-Table1[[#This Row],[Schedule start]])*24*0.076,IF(Table1[[#This Row],[Material]]="nSiC",Table1[[#This Row],[Estimated current]]*(Table1[[#This Row],[Schedule end]]-Table1[[#This Row],[Schedule start]])*24*0.048,IF(Table1[[#This Row],[Material]]="TiC",Table1[[#This Row],[Estimated current]]*(Table1[[#This Row],[Schedule end]]-Table1[[#This Row],[Schedule start]])*24*0.032,IF(Table1[[#This Row],[Material]]="NiO",Table1[[#This Row],[Estimated current]]*(Table1[[#This Row],[Schedule end]]-Table1[[#This Row],[Schedule start]])*24*0.03,IF(Table1[[#This Row],[Material]]="Nb",Table1[[#This Row],[Estimated current]]*(Table1[[#This Row],[Schedule end]]-Table1[[#This Row],[Schedule start]])*24*0.023,IF(Table1[[#This Row],[Material]]="TaC",Table1[[#This Row],[Estimated current]]*(Table1[[#This Row],[Schedule end]]-Table1[[#This Row],[Schedule start]])*24*0.025,IF(Table1[[#This Row],[Material]]="ThO",Table1[[#This Row],[Estimated current]]*(Table1[[#This Row],[Schedule end]]-Table1[[#This Row],[Schedule start]])*24*0.076,NA()))))))))))),NA()) ->  | BA16: =Table1[[#This Row],[Estimated ship days]]/365 ->  | BB16: 5A | BC16: 272 | BD16: This pail is of previous revision, not certified as lifting device. Prior to shipping, a 3" loop must be crimped at the end of the wire rope. | BF16: =Table1[[#This Row],[TS]]&"-"&Table1[[#This Row],[TM]]&"-"&Table1[[#This Row],[Material]]&"#"&Table1[[#This Row],[No]]&"-"&Table1[[#This Row],[HP/LP]]&"-"&Table1[[#This Row],[IS]] -> ITW-TM2-SiC#43-HP-FEBIAD
A17: =_xlfn.CONCAT(Table1[[#This Row],[Material]],"#",Table1[[#This Row],[No]]) -> SiC#42 | B17: SiC | C17: 42 | D17: HP | E17: FEBIAD | G17: ITW | H17: TM2 | I17: 2022 | J17: 7 | K17: 6 | L17: 142 | M17: Link | P17: 7.04 | R17: 2022-06-07 | S17: 2022-06-10 | T17: 2022-06-14 | U17: 2022-06-17 | V17: 2022-06-20 | W17: 12.26 | X17: 70 | Y17: 80 | Z17: 1307.21 | AA17: =Table1[[#This Row],[Net Charge '[uAh']]]*6200000000000000000*0.000001*3600 -> 2.91769272e+19 | AB17: 42 | AC17: =CONCATENATE(Table1[[#This Row],[Material]], "#", Table1[[#This Row],[No]]) -> SiC#42 | AD17: 2022-07-06 | AE17: 9140 | AT17: =IF(AND(AND(Table1[[#This Row],[Online p+]]>0,Table1[[#This Row],[Shipping Date]]>0),NOT(Table1[[#This Row],[Shipping Date]]="")),Table1[[#This Row],[Shipping Date]]-Table1[[#This Row],[Offline p+]], NA()) ->  | AU17: =IF(Table1[[#This Row],[Offline p+]]>0,_xlfn.IFS(Table1[[#This Row],[Material]]="Ta",Table1[[#This Row],[Net Charge '[uAh']]]*0.034,Table1[[#This Row],[Material]]="ZrC",Table1[[#This Row],[Net Charge '[uAh']]]*0.05,Table1[[#This Row],[Material]]="UO2",Table1[[#This Row],[Net Charge '[uAh']]]*0.116,Table1[[#This Row],[Material]]="UC",Table1[[#This Row],[Net Charge '[uAh']]]*0.116,Table1[[#This Row],[Material]]="SiC",Table1[[#This Row],[Net Charge '[uAh']]]*0.05,Table1[[#This Row],[Material]]="nSiC",Table1[[#This Row],[Net Charge '[uAh']]]*0.05,Table1[[#This Row],[Material]]="TiC",Table1[[#This Row],[Net Charge '[uAh']]]*0.032,Table1[[#This Row],[Material]]="NiO",Table1[[#This Row],[Net Charge '[uAh']]]*0.03,Table1[[#This Row],[Material]]="Nb",Table1[[#This Row],[Net Charge '[uAh']]]*0.0305,Table1[[#This Row],[Material]]="TaC",Table1[[#This Row],[Net Charge '[uAh']]]*0.025,Table1[[#This Row],[Material]]="ThO",1095,TRUE,NA()),NA()) -> 65.3605 | AV17: =IF(Table1[[#This Row],[Offline p+]]>0,_xlfn.IFS(Table1[[#This Row],[Material]]="Ta",Table1[[#This Row],[Net Charge '[uAh']]]*0.028,Table1[[#This Row],[Material]]="ZrC",Table1[[#This Row],[Net Charge '[uAh']]]*0.036,Table1[[#This Row],[Material]]="UO2",Table1[[#This Row],[Net Charge '[uAh']]]*0.116,Table1[[#This Row],[Material]]="UC",Table1[[#This Row],[Net Charge '[uAh']]]*0.076,Table1[[#This Row],[Material]]="SiC",Table1[[#This Row],[Net Charge '[uAh']]]*0.048,Table1[[#This Row],[Material]]="nSiC",Table1[[#This Row],[Net Charge '[uAh']]]*0.048,Table1[[#This Row],[Material]]="TiC",Table1[[#This Row],[Net Charge '[uAh']]]*0.032,Table1[[#This Row],[Material]]="NiO",Table1[[#This Row],[Net Charge '[uAh']]]*0.03,Table1[[#This Row],[Material]]="Nb",Table1[[#This Row],[Net Charge '[uAh']]]*0.023,Table1[[#This Row],[Material]]="TaC",Table1[[#This Row],[Net Charge '[uAh']]]*0.025,Table1[[#This Row],[Material]]="ThO",Table1[[#This Row],[Net Charge '[uAh']]]*0.076,TRUE,NA()),NA()) -> 62.74608 | AZ17: =IF(Table1[[#This Row],[Schedule end]]>0,IF(Table1[[#This Row],[Material]]="Ta",Table1[[#This Row],[Estimated current]]*(Table1[[#This Row],[Schedule end]]-Table1[[#This Row],[Schedule start]])*24*0.028,IF(Table1[[#This Row],[Material]]="ZrC", Table1[[#This Row],[Estimated current]]*(Table1[[#This Row],[Schedule end]]-Table1[[#This Row],[Schedule start]])*24*0.036,IF(Table1[[#This Row],[Material]]="UO2",Table1[[#This Row],[Estimated current]]*(Table1[[#This Row],[Schedule end]]-Table1[[#This Row],[Schedule start]])*24*0.116,IF(Table1[[#This Row],[Material]]="UC",Table1[[#This Row],[Estimated current]]*(Table1[[#This Row],[Schedule end]]-Table1[[#This Row],[Schedule start]])*24*0.076,IF(Table1[[#This Row],[Material]]="SiC",Table1[[#This Row],[Estimated current]]*(Table1[[#This Row],[Schedule end]]-Table1[[#This Row],[Schedule start]])*24*0.076,IF(Table1[[#This Row],[Material]]="nSiC",Table1[[#This Row],[Estimated current]]*(Table1[[#This Row],[Schedule end]]-Table1[[#This Row],[Schedule start]])*24*0.048,IF(Table1[[#This Row],[Material]]="TiC",Table1[[#This Row],[Estimated current]]*(Table1[[#This Row],[Schedule end]]-Table1[[#This Row],[Schedule start]])*24*0.032,IF(Table1[[#This Row],[Material]]="NiO",Table1[[#This Row],[Estimated current]]*(Table1[[#This Row],[Schedule end]]-Table1[[#This Row],[Schedule start]])*24*0.03,IF(Table1[[#This Row],[Material]]="Nb",Table1[[#This Row],[Estimated current]]*(Table1[[#This Row],[Schedule end]]-Table1[[#This Row],[Schedule start]])*24*0.023,IF(Table1[[#This Row],[Material]]="TaC",Table1[[#This Row],[Estimated current]]*(Table1[[#This Row],[Schedule end]]-Table1[[#This Row],[Schedule start]])*24*0.025,IF(Table1[[#This Row],[Material]]="ThO",Table1[[#This Row],[Estimated current]]*(Table1[[#This Row],[Schedule end]]-Table1[[#This Row],[Schedule start]])*24*0.076,NA()))))))))))),NA()) ->  | BA17: =Table1[[#This Row],[Estimated ship days]]/365 ->  | BB17: 2B | BC17: 271 | BD17: This pail is of previous revision, not certified as lifting device. Prior to shipping, a 3" loop must be crimped at the end of the wire rope. | BF17: =Table1[[#This Row],[TS]]&"-"&Table1[[#This Row],[TM]]&"-"&Table1[[#This Row],[Material]]&"#"&Table1[[#This Row],[No]]&"-"&Table1[[#This Row],[HP/LP]]&"-"&Table1[[#This Row],[IS]] -> ITW-TM2-SiC#42-HP-FEBIAD
A18: =_xlfn.CONCAT(Table1[[#This Row],[Material]],"#",Table1[[#This Row],[No]]) -> UC#37 | B18: UC | C18: 37 | D18: P2N | E18: SIS | G18: ITE | H18: TM4 | I18: 2022 | J18: 6 | K18: 23 | L18: 142 | M18: Link | P18: 7.04 | R18: 2022-05-18 | S18: 2022-05-26 | T18: 2022-06-01 | U18: 2022-06-14 | V18: 2022-06-21 | W18: 5.21 | X18: 16000 | Y18: 80 | Z18: 7400.87 | AA18: =Table1[[#This Row],[Net Charge '[uAh']]]*6200000000000000000*0.000001*3600 -> 1.651874184e+20 | AB18: 42 | AC18: =CONCATENATE(Table1[[#This Row],[Material]], "#", Table1[[#This Row],[No]]) -> UC#37 | AD18: 23/06/2022 | AE18: 63200 | AF18: 2022-12-16 | AG18: =3.86*1000 -> 3860 | AN18: 2023-01-06 | AO18: M3 | AP18: 2023-01-17 | AT18: =IF(AND(AND(Table1[[#This Row],[Online p+]]>0,Table1[[#This Row],[Shipping Date]]>0),NOT(Table1[[#This Row],[Shipping Date]]="")),Table1[[#This Row],[Shipping Date]]-Table1[[#This Row],[Offline p+]], NA()) ->  | AU18: =IF(Table1[[#This Row],[Offline p+]]>0,_xlfn.IFS(Table1[[#This Row],[Material]]="Ta",Table1[[#This Row],[Net Charge '[uAh']]]*0.034,Table1[[#This Row],[Material]]="ZrC",Table1[[#This Row],[Net Charge '[uAh']]]*0.05,Table1[[#This Row],[Material]]="UO2",Table1[[#This Row],[Net Charge '[uAh']]]*0.116,Table1[[#This Row],[Material]]="UC",Table1[[#This Row],[Net Charge '[uAh']]]*0.116,Table1[[#This Row],[Material]]="SiC",Table1[[#This Row],[Net Charge '[uAh']]]*0.05,Table1[[#This Row],[Material]]="nSiC",Table1[[#This Row],[Net Charge '[uAh']]]*0.05,Table1[[#This Row],[Material]]="TiC",Table1[[#This Row],[Net Charge '[uAh']]]*0.032,Table1[[#This Row],[Material]]="NiO",Table1[[#This Row],[Net Charge '[uAh']]]*0.03,Table1[[#This Row],[Material]]="Nb",Table1[[#This Row],[Net Charge '[uAh']]]*0.0305,Table1[[#This Row],[Material]]="TaC",Table1[[#This Row],[Net Charge '[uAh']]]*0.025,Table1[[#This Row],[Material]]="ThO",1095,TRUE,NA()),NA()) -> 858.50092 | AV18: =IF(Table1[[#This Row],[Offline p+]]>0,_xlfn.IFS(Table1[[#This Row],[Material]]="Ta",Table1[[#This Row],[Net Charge '[uAh']]]*0.028,Table1[[#This Row],[Material]]="ZrC",Table1[[#This Row],[Net Charge '[uAh']]]*0.036,Table1[[#This Row],[Material]]="UO2",Table1[[#This Row],[Net Charge '[uAh']]]*0.116,Table1[[#This Row],[Material]]="UC",Table1[[#This Row],[Net Charge '[uAh']]]*0.076,Table1[[#This Row],[Material]]="SiC",Table1[[#This Row],[Net Charge '[uAh']]]*0.048,Table1[[#This Row],[Material]]="nSiC",Table1[[#This Row],[Net Charge '[uAh']]]*0.048,Table1[[#This Row],[Material]]="TiC",Table1[[#This Row],[Net Charge '[uAh']]]*0.032,Table1[[#This Row],[Material]]="NiO",Table1[[#This Row],[Net Charge '[uAh']]]*0.03,Table1[[#This Row],[Material]]="Nb",Table1[[#This Row],[Net Charge '[uAh']]]*0.023,Table1[[#This Row],[Material]]="TaC",Table1[[#This Row],[Net Charge '[uAh']]]*0.025,Table1[[#This Row],[Material]]="ThO",Table1[[#This Row],[Net Charge '[uAh']]]*0.076,TRUE,NA()),NA()) -> 562.46612 | AZ18: =IF(Table1[[#This Row],[Schedule end]]>0,IF(Table1[[#This Row],[Material]]="Ta",Table1[[#This Row],[Estimated current]]*(Table1[[#This Row],[Schedule end]]-Table1[[#This Row],[Schedule start]])*24*0.028,IF(Table1[[#This Row],[Material]]="ZrC", Table1[[#This Row],[Estimated current]]*(Table1[[#This Row],[Schedule end]]-Table1[[#This Row],[Schedule start]])*24*0.036,IF(Table1[[#This Row],[Material]]="UO2",Table1[[#This Row],[Estimated current]]*(Table1[[#This Row],[Schedule end]]-Table1[[#This Row],[Schedule start]])*24*0.116,IF(Table1[[#This Row],[Material]]="UC",Table1[[#This Row],[Estimated current]]*(Table1[[#This Row],[Schedule end]]-Table1[[#This Row],[Schedule start]])*24*0.076,IF(Table1[[#This Row],[Material]]="SiC",Table1[[#This Row],[Estimated current]]*(Table1[[#This Row],[Schedule end]]-Table1[[#This Row],[Schedule start]])*24*0.076,IF(Table1[[#This Row],[Material]]="nSiC",Table1[[#This Row],[Estimated current]]*(Table1[[#This Row],[Schedule end]]-Table1[[#This Row],[Schedule start]])*24*0.048,IF(Table1[[#This Row],[Material]]="TiC",Table1[[#This Row],[Estimated current]]*(Table1[[#This Row],[Schedule end]]-Table1[[#This Row],[Schedule start]])*24*0.032,IF(Table1[[#This Row],[Material]]="NiO",Table1[[#This Row],[Estimated current]]*(Table1[[#This Row],[Schedule end]]-Table1[[#This Row],[Schedule start]])*24*0.03,IF(Table1[[#This Row],[Material]]="Nb",Table1[[#This Row],[Estimated current]]*(Table1[[#This Row],[Schedule end]]-Table1[[#This Row],[Schedule start]])*24*0.023,IF(Table1[[#This Row],[Material]]="TaC",Table1[[#This Row],[Estimated current]]*(Table1[[#This Row],[Schedule end]]-Table1[[#This Row],[Schedule start]])*24*0.025,IF(Table1[[#This Row],[Material]]="ThO",Table1[[#This Row],[Estimated current]]*(Table1[[#This Row],[Schedule end]]-Table1[[#This Row],[Schedule start]])*24*0.076,NA()))))))))))),NA()) ->  | BA18: =Table1[[#This Row],[Estimated ship days]]/365 ->  | BC18: 228 | BF18: =Table1[[#This Row],[TS]]&"-"&Table1[[#This Row],[TM]]&"-"&Table1[[#This Row],[Material]]&"#"&Table1[[#This Row],[No]]&"-"&Table1[[#This Row],[HP/LP]]&"-"&Table1[[#This Row],[IS]] -> ITE-TM4-UC#37-P2N-SIS
A19: =_xlfn.CONCAT(Table1[[#This Row],[Material]],"#",Table1[[#This Row],[No]]) -> Ta#63 | B19: Ta | C19: 63 | D19: LP | E19: SIS | G19: ITE | H19: TM4 | I19: 2022 | J19: 1 | K19: 20 | L19: 141 | M19: Link | P19: 7.04 | R19: 2021-11-30 | S19: 2021-12-03 | T19: 2021-12-07 | U19: 2021-12-21 | V19: 2022-01-18 | W19: 14.7 | X19: 40/60 | Y19: 50 | Z19: 13891.88 | AA19: =Table1[[#This Row],[Net Charge '[uAh']]]*6200000000000000000*0.000001*3600 -> 3.100667616e+20 | AB19: 22.529 | AC19: =CONCATENATE(Table1[[#This Row],[Material]], "#", Table1[[#This Row],[No]]) -> Ta#63 | AD19: 20/01/2022 | AE19: 410000 | AT19: =IF(AND(AND(Table1[[#This Row],[Online p+]]>0,Table1[[#This Row],[Shipping Date]]>0),NOT(Table1[[#This Row],[Shipping Date]]="")),Table1[[#This Row],[Shipping Date]]-Table1[[#This Row],[Offline p+]], NA()) ->  | AU19: =IF(Table1[[#This Row],[Offline p+]]>0,_xlfn.IFS(Table1[[#This Row],[Material]]="Ta",Table1[[#This Row],[Net Charge '[uAh']]]*0.034,Table1[[#This Row],[Material]]="ZrC",Table1[[#This Row],[Net Charge '[uAh']]]*0.05,Table1[[#This Row],[Material]]="UO2",Table1[[#This Row],[Net Charge '[uAh']]]*0.116,Table1[[#This Row],[Material]]="UC",Table1[[#This Row],[Net Charge '[uAh']]]*0.116,Table1[[#This Row],[Material]]="SiC",Table1[[#This Row],[Net Charge '[uAh']]]*0.05,Table1[[#This Row],[Material]]="nSiC",Table1[[#This Row],[Net Charge '[uAh']]]*0.05,Table1[[#This Row],[Material]]="TiC",Table1[[#This Row],[Net Charge '[uAh']]]*0.032,Table1[[#This Row],[Material]]="NiO",Table1[[#This Row],[Net Charge '[uAh']]]*0.03,Table1[[#This Row],[Material]]="Nb",Table1[[#This Row],[Net Charge '[uAh']]]*0.0305,Table1[[#This Row],[Material]]="TaC",Table1[[#This Row],[Net Charge '[uAh']]]*0.025,Table1[[#This Row],[Material]]="ThO",1095,TRUE,NA()),NA()) -> 472.32392 | AV19: =IF(Table1[[#This Row],[Offline p+]]>0,_xlfn.IFS(Table1[[#This Row],[Material]]="Ta",Table1[[#This Row],[Net Charge '[uAh']]]*0.028,Table1[[#This Row],[Material]]="ZrC",Table1[[#This Row],[Net Charge '[uAh']]]*0.036,Table1[[#This Row],[Material]]="UO2",Table1[[#This Row],[Net Charge '[uAh']]]*0.116,Table1[[#This Row],[Material]]="UC",Table1[[#This Row],[Net Charge '[uAh']]]*0.076,Table1[[#This Row],[Material]]="SiC",Table1[[#This Row],[Net Charge '[uAh']]]*0.048,Table1[[#This Row],[Material]]="nSiC",Table1[[#This Row],[Net Charge '[uAh']]]*0.048,Table1[[#This Row],[Material]]="TiC",Table1[[#This Row],[Net Charge '[uAh']]]*0.032,Table1[[#This Row],[Material]]="NiO",Table1[[#This Row],[Net Charge '[uAh']]]*0.03,Table1[[#This Row],[Material]]="Nb",Table1[[#This Row],[Net Charge '[uAh']]]*0.023,Table1[[#This Row],[Material]]="TaC",Table1[[#This Row],[Net Charge '[uAh']]]*0.025,Table1[[#This Row],[Material]]="ThO",Table1[[#This Row],[Net Charge '[uAh']]]*0.076,TRUE,NA()),NA()) -> 388.97264 | AZ19: =IF(Table1[[#This Row],[Schedule end]]>0,IF(Table1[[#This Row],[Material]]="Ta",Table1[[#This Row],[Estimated current]]*(Table1[[#This Row],[Schedule end]]-Table1[[#This Row],[Schedule start]])*24*0.028,IF(Table1[[#This Row],[Material]]="ZrC", Table1[[#This Row],[Estimated current]]*(Table1[[#This Row],[Schedule end]]-Table1[[#This Row],[Schedule start]])*24*0.036,IF(Table1[[#This Row],[Material]]="UO2",Table1[[#This Row],[Estimated current]]*(Table1[[#This Row],[Schedule end]]-Table1[[#This Row],[Schedule start]])*24*0.116,IF(Table1[[#This Row],[Material]]="UC",Table1[[#This Row],[Estimated current]]*(Table1[[#This Row],[Schedule end]]-Table1[[#This Row],[Schedule start]])*24*0.076,IF(Table1[[#This Row],[Material]]="SiC",Table1[[#This Row],[Estimated current]]*(Table1[[#This Row],[Schedule end]]-Table1[[#This Row],[Schedule start]])*24*0.076,IF(Table1[[#This Row],[Material]]="nSiC",Table1[[#This Row],[Estimated current]]*(Table1[[#This Row],[Schedule end]]-Table1[[#This Row],[Schedule start]])*24*0.048,IF(Table1[[#This Row],[Material]]="TiC",Table1[[#This Row],[Estimated current]]*(Table1[[#This Row],[Schedule end]]-Table1[[#This Row],[Schedule start]])*24*0.032,IF(Table1[[#This Row],[Material]]="NiO",Table1[[#This Row],[Estimated current]]*(Table1[[#This Row],[Schedule end]]-Table1[[#This Row],[Schedule start]])*24*0.03,IF(Table1[[#This Row],[Material]]="Nb",Table1[[#This Row],[Estimated current]]*(Table1[[#This Row],[Schedule end]]-Table1[[#This Row],[Schedule start]])*24*0.023,IF(Table1[[#This Row],[Material]]="TaC",Table1[[#This Row],[Estimated current]]*(Table1[[#This Row],[Schedule end]]-Table1[[#This Row],[Schedule start]])*24*0.025,IF(Table1[[#This Row],[Material]]="ThO",Table1[[#This Row],[Estimated current]]*(Table1[[#This Row],[Schedule end]]-Table1[[#This Row],[Schedule start]])*24*0.076,NA()))))))))))),NA()) ->  | BA19: =Table1[[#This Row],[Estimated ship days]]/365 ->  | BB19: 3B | BC19: 266 | BD19: This pail is of previous revision, not certified as lifting device. Prior to shipping, a 3" loop must be crimped at the end of the wire rope. | BF19: =Table1[[#This Row],[TS]]&"-"&Table1[[#This Row],[TM]]&"-"&Table1[[#This Row],[Material]]&"#"&Table1[[#This Row],[No]]&"-"&Table1[[#This Row],[HP/LP]]&"-"&Table1[[#This Row],[IS]] -> ITE-TM4-Ta#63-LP-SIS
A20: =_xlfn.CONCAT(Table1[[#This Row],[Material]],"#",Table1[[#This Row],[No]]) -> UC#36 | B20: UC | C20: 36 | D20: LP | E20: SIS | G20: ITW | H20: TM2 | I20: 2022 | J20: 1 | K20: 12 | L20: 141 | M20: Link | P20: 7.04 | R20: 2021-11-09 | S20: 2021-11-14 | T20: 2021-11-17 | U20: 2021-12-07 | V20: 2022-01-10 | W20: 14.8 | X20: 20 | Y20: 19 | Z20: 5770.26 | AA20: =Table1[[#This Row],[Net Charge '[uAh']]]*6200000000000000000*0.000001*3600 -> 1.287922032e+20 | AB20: 30 | AC20: =CONCATENATE(Table1[[#This Row],[Material]], "#", Table1[[#This Row],[No]]) -> UC#36 | AD20: 2022-01-12 | AE20: 19600 | AF20: 2022-01-28 | AG20: 10700 | AT20: =IF(AND(AND(Table1[[#This Row],[Online p+]]>0,Table1[[#This Row],[Shipping Date]]>0),NOT(Table1[[#This Row],[Shipping Date]]="")),Table1[[#This Row],[Shipping Date]]-Table1[[#This Row],[Offline p+]], NA()) ->  | AU20: =IF(Table1[[#This Row],[Offline p+]]>0,_xlfn.IFS(Table1[[#This Row],[Material]]="Ta",Table1[[#This Row],[Net Charge '[uAh']]]*0.034,Table1[[#This Row],[Material]]="ZrC",Table1[[#This Row],[Net Charge '[uAh']]]*0.05,Table1[[#This Row],[Material]]="UO2",Table1[[#This Row],[Net Charge '[uAh']]]*0.116,Table1[[#This Row],[Material]]="UC",Table1[[#This Row],[Net Charge '[uAh']]]*0.116,Table1[[#This Row],[Material]]="SiC",Table1[[#This Row],[Net Charge '[uAh']]]*0.05,Table1[[#This Row],[Material]]="nSiC",Table1[[#This Row],[Net Charge '[uAh']]]*0.05,Table1[[#This Row],[Material]]="TiC",Table1[[#This Row],[Net Charge '[uAh']]]*0.032,Table1[[#This Row],[Material]]="NiO",Table1[[#This Row],[Net Charge '[uAh']]]*0.03,Table1[[#This Row],[Material]]="Nb",Table1[[#This Row],[Net Charge '[uAh']]]*0.0305,Table1[[#This Row],[Material]]="TaC",Table1[[#This Row],[Net Charge '[uAh']]]*0.025,Table1[[#This Row],[Material]]="ThO",1095,TRUE,NA()),NA()) -> 669.35016 | AV20: =IF(Table1[[#This Row],[Offline p+]]>0,_xlfn.IFS(Table1[[#This Row],[Material]]="Ta",Table1[[#This Row],[Net Charge '[uAh']]]*0.028,Table1[[#This Row],[Material]]="ZrC",Table1[[#This Row],[Net Charge '[uAh']]]*0.036,Table1[[#This Row],[Material]]="UO2",Table1[[#This Row],[Net Charge '[uAh']]]*0.116,Table1[[#This Row],[Material]]="UC",Table1[[#This Row],[Net Charge '[uAh']]]*0.076,Table1[[#This Row],[Material]]="SiC",Table1[[#This Row],[Net Charge '[uAh']]]*0.048,Table1[[#This Row],[Material]]="nSiC",Table1[[#This Row],[Net Charge '[uAh']]]*0.048,Table1[[#This Row],[Material]]="TiC",Table1[[#This Row],[Net Charge '[uAh']]]*0.032,Table1[[#This Row],[Material]]="NiO",Table1[[#This Row],[Net Charge '[uAh']]]*0.03,Table1[[#This Row],[Material]]="Nb",Table1[[#This Row],[Net Charge '[uAh']]]*0.023,Table1[[#This Row],[Material]]="TaC",Table1[[#This Row],[Net Charge '[uAh']]]*0.025,Table1[[#This Row],[Material]]="ThO",Table1[[#This Row],[Net Charge '[uAh']]]*0.076,TRUE,NA()),NA()) -> 438.53976 | AZ20: =IF(Table1[[#This Row],[Schedule end]]>0,IF(Table1[[#This Row],[Material]]="Ta",Table1[[#This Row],[Estimated current]]*(Table1[[#This Row],[Schedule end]]-Table1[[#This Row],[Schedule start]])*24*0.028,IF(Table1[[#This Row],[Material]]="ZrC", Table1[[#This Row],[Estimated current]]*(Table1[[#This Row],[Schedule end]]-Table1[[#This Row],[Schedule start]])*24*0.036,IF(Table1[[#This Row],[Material]]="UO2",Table1[[#This Row],[Estimated current]]*(Table1[[#This Row],[Schedule end]]-Table1[[#This Row],[Schedule start]])*24*0.116,IF(Table1[[#This Row],[Material]]="UC",Table1[[#This Row],[Estimated current]]*(Table1[[#This Row],[Schedule end]]-Table1[[#This Row],[Schedule start]])*24*0.076,IF(Table1[[#This Row],[Material]]="SiC",Table1[[#This Row],[Estimated current]]*(Table1[[#This Row],[Schedule end]]-Table1[[#This Row],[Schedule start]])*24*0.076,IF(Table1[[#This Row],[Material]]="nSiC",Table1[[#This Row],[Estimated current]]*(Table1[[#This Row],[Schedule end]]-Table1[[#This Row],[Schedule start]])*24*0.048,IF(Table1[[#This Row],[Material]]="TiC",Table1[[#This Row],[Estimated current]]*(Table1[[#This Row],[Schedule end]]-Table1[[#This Row],[Schedule start]])*24*0.032,IF(Table1[[#This Row],[Material]]="NiO",Table1[[#This Row],[Estimated current]]*(Table1[[#This Row],[Schedule end]]-Table1[[#This Row],[Schedule start]])*24*0.03,IF(Table1[[#This Row],[Material]]="Nb",Table1[[#This Row],[Estimated current]]*(Table1[[#This Row],[Schedule end]]-Table1[[#This Row],[Schedule start]])*24*0.023,IF(Table1[[#This Row],[Material]]="TaC",Table1[[#This Row],[Estimated current]]*(Table1[[#This Row],[Schedule end]]-Table1[[#This Row],[Schedule start]])*24*0.025,IF(Table1[[#This Row],[Material]]="ThO",Table1[[#This Row],[Estimated current]]*(Table1[[#This Row],[Schedule end]]-Table1[[#This Row],[Schedule start]])*24*0.076,NA()))))))))))),NA()) ->  | BA20: =Table1[[#This Row],[Estimated ship days]]/365 ->  | BB20: 2A | BC20: 265 | BD20: This pail is of previous revision, not certified as lifting device. Prior to shipping, a 3" loop must be crimped at the end of the wire rope. | BE20: Measured | BF20: =Table1[[#This Row],[TS]]&"-"&Table1[[#This Row],[TM]]&"-"&Table1[[#This Row],[Material]]&"#"&Table1[[#This Row],[No]]&"-"&Table1[[#This Row],[HP/LP]]&"-"&Table1[[#This Row],[IS]] -> ITW-TM2-UC#36-LP-SIS
A21: =_xlfn.CONCAT(Table1[[#This Row],[Material]],"#",Table1[[#This Row],[No]]) -> UC#35 | B21: UC | C21: 35 | D21: LP | E21: IG-LIS | G21: ITE | H21: TM4 | I21: 2021 | J21: 11 | K21: 26 | L21: 141 | M21: Link | R21: 2021-10-07 | S21: 2021-10-18 | T21: 2021-10-26 | U21: 2021-11-16 | V21: 2021-11-23 | W21: 13.1 | X21: 20/40 | Y21: 19 | Z21: 4710.35 | AA21: =Table1[[#This Row],[Net Charge '[uAh']]]*6200000000000000000*0.000001*3600 -> 1.05135012e+20 | AB21: 30 | AC21: =CONCATENATE(Table1[[#This Row],[Material]], "#", Table1[[#This Row],[No]]) -> UC#35 | AD21: 2021-11-26 | AE21: 25700 | AF21: 2022-01-31 | AG21: 5870 | AH21: 2022-12-16 | AI21: 748 | AN21: 2022-12-16 | AT21: =IF(AND(AND(Table1[[#This Row],[Online p+]]>0,Table1[[#This Row],[Shipping Date]]>0),NOT(Table1[[#This Row],[Shipping Date]]="")),Table1[[#This Row],[Shipping Date]]-Table1[[#This Row],[Offline p+]], NA()) ->  | AU21: =IF(Table1[[#This Row],[Offline p+]]>0,_xlfn.IFS(Table1[[#This Row],[Material]]="Ta",Table1[[#This Row],[Net Charge '[uAh']]]*0.034,Table1[[#This Row],[Material]]="ZrC",Table1[[#This Row],[Net Charge '[uAh']]]*0.05,Table1[[#This Row],[Material]]="UO2",Table1[[#This Row],[Net Charge '[uAh']]]*0.116,Table1[[#This Row],[Material]]="UC",Table1[[#This Row],[Net Charge '[uAh']]]*0.116,Table1[[#This Row],[Material]]="SiC",Table1[[#This Row],[Net Charge '[uAh']]]*0.05,Table1[[#This Row],[Material]]="nSiC",Table1[[#This Row],[Net Charge '[uAh']]]*0.05,Table1[[#This Row],[Material]]="TiC",Table1[[#This Row],[Net Charge '[uAh']]]*0.032,Table1[[#This Row],[Material]]="NiO",Table1[[#This Row],[Net Charge '[uAh']]]*0.03,Table1[[#This Row],[Material]]="Nb",Table1[[#This Row],[Net Charge '[uAh']]]*0.0305,Table1[[#This Row],[Material]]="TaC",Table1[[#This Row],[Net Charge '[uAh']]]*0.025,Table1[[#This Row],[Material]]="ThO",1095,TRUE,NA()),NA()) -> 546.4006 | AV21: =IF(Table1[[#This Row],[Offline p+]]>0,_xlfn.IFS(Table1[[#This Row],[Material]]="Ta",Table1[[#This Row],[Net Charge '[uAh']]]*0.028,Table1[[#This Row],[Material]]="ZrC",Table1[[#This Row],[Net Charge '[uAh']]]*0.036,Table1[[#This Row],[Material]]="UO2",Table1[[#This Row],[Net Charge '[uAh']]]*0.116,Table1[[#This Row],[Material]]="UC",Table1[[#This Row],[Net Charge '[uAh']]]*0.076,Table1[[#This Row],[Material]]="SiC",Table1[[#This Row],[Net Charge '[uAh']]]*0.048,Table1[[#This Row],[Material]]="nSiC",Table1[[#This Row],[Net Charge '[uAh']]]*0.048,Table1[[#This Row],[Material]]="TiC",Table1[[#This Row],[Net Charge '[uAh']]]*0.032,Table1[[#This Row],[Material]]="NiO",Table1[[#This Row],[Net Charge '[uAh']]]*0.03,Table1[[#This Row],[Material]]="Nb",Table1[[#This Row],[Net Charge '[uAh']]]*0.023,Table1[[#This Row],[Material]]="TaC",Table1[[#This Row],[Net Charge '[uAh']]]*0.025,Table1[[#This Row],[Material]]="ThO",Table1[[#This Row],[Net Charge '[uAh']]]*0.076,TRUE,NA()),NA()) -> 357.9866 | AZ21: =IF(Table1[[#This Row],[Schedule end]]>0,IF(Table1[[#This Row],[Material]]="Ta",Table1[[#This Row],[Estimated current]]*(Table1[[#This Row],[Schedule end]]-Table1[[#This Row],[Schedule start]])*24*0.028,IF(Table1[[#This Row],[Material]]="ZrC", Table1[[#This Row],[Estimated current]]*(Table1[[#This Row],[Schedule end]]-Table1[[#This Row],[Schedule start]])*24*0.036,IF(Table1[[#This Row],[Material]]="UO2",Table1[[#This Row],[Estimated current]]*(Table1[[#This Row],[Schedule end]]-Table1[[#This Row],[Schedule start]])*24*0.116,IF(Table1[[#This Row],[Material]]="UC",Table1[[#This Row],[Estimated current]]*(Table1[[#This Row],[Schedule end]]-Table1[[#This Row],[Schedule start]])*24*0.076,IF(Table1[[#This Row],[Material]]="SiC",Table1[[#This Row],[Estimated current]]*(Table1[[#This Row],[Schedule end]]-Table1[[#This Row],[Schedule start]])*24*0.076,IF(Table1[[#This Row],[Material]]="nSiC",Table1[[#This Row],[Estimated current]]*(Table1[[#This Row],[Schedule end]]-Table1[[#This Row],[Schedule start]])*24*0.048,IF(Table1[[#This Row],[Material]]="TiC",Table1[[#This Row],[Estimated current]]*(Table1[[#This Row],[Schedule end]]-Table1[[#This Row],[Schedule start]])*24*0.032,IF(Table1[[#This Row],[Material]]="NiO",Table1[[#This Row],[Estimated current]]*(Table1[[#This Row],[Schedule end]]-Table1[[#This Row],[Schedule start]])*24*0.03,IF(Table1[[#This Row],[Material]]="Nb",Table1[[#This Row],[Estimated current]]*(Table1[[#This Row],[Schedule end]]-Table1[[#This Row],[Schedule start]])*24*0.023,IF(Table1[[#This Row],[Material]]="TaC",Table1[[#This Row],[Estimated current]]*(Table1[[#This Row],[Schedule end]]-Table1[[#This Row],[Schedule start]])*24*0.025,IF(Table1[[#This Row],[Material]]="ThO",Table1[[#This Row],[Estimated current]]*(Table1[[#This Row],[Schedule end]]-Table1[[#This Row],[Schedule start]])*24*0.076,NA()))))))))))),NA()) ->  | BA21: =Table1[[#This Row],[Estimated ship days]]/365 ->  | BC21: 264 | BE21: Measured | BF21: =Table1[[#This Row],[TS]]&"-"&Table1[[#This Row],[TM]]&"-"&Table1[[#This Row],[Material]]&"#"&Table1[[#This Row],[No]]&"-"&Table1[[#This Row],[HP/LP]]&"-"&Table1[[#This Row],[IS]] -> ITE-TM4-UC#35-LP-IG-LIS
A22: =_xlfn.CONCAT(Table1[[#This Row],[Material]],"#",Table1[[#This Row],[No]]) -> C#3 | B22: C | C22: 3 | D22: LP | E22: SIS | G22: ITW | H22: TM2 | I22: 2021 | J22: 11 | K22: 5 | L22: 141 | M22: Link | P22: =29.049-22.009 -> 7.04 | R22: 2021-09-27 | S22: 2021-10-10 | T22: 2021-10-13 | U22: 2021-10-26 | V22: 2021-11-09 | W22: 15.55 | X22: 90 | Y22: 75 | Z22: 15197.92 | AA22: =Table1[[#This Row],[Net Charge '[uAh']]]*6200000000000000000*0.000001*3600 -> 3.392175744e+20 | AB22: 20 | AC22: =CONCATENATE(Table1[[#This Row],[Material]], "#", Table1[[#This Row],[No]]) -> C#3 | AD22: 2021-11-10 | AE22: 37900 | AF22: 2022-01-28 | AG22: 10800 | AT22: =IF(AND(AND(Table1[[#This Row],[Online p+]]>0,Table1[[#This Row],[Shipping Date]]>0),NOT(Table1[[#This Row],[Shipping Date]]="")),Table1[[#This Row],[Shipping Date]]-Table1[[#This Row],[Offline p+]], NA()) ->  | AU22: =IF(Table1[[#This Row],[Offline p+]]>0,_xlfn.IFS(Table1[[#This Row],[Material]]="Ta",Table1[[#This Row],[Net Charge '[uAh']]]*0.034,Table1[[#This Row],[Material]]="ZrC",Table1[[#This Row],[Net Charge '[uAh']]]*0.05,Table1[[#This Row],[Material]]="UO2",Table1[[#This Row],[Net Charge '[uAh']]]*0.116,Table1[[#This Row],[Material]]="UC",Table1[[#This Row],[Net Charge '[uAh']]]*0.116,Table1[[#This Row],[Material]]="SiC",Table1[[#This Row],[Net Charge '[uAh']]]*0.05,Table1[[#This Row],[Material]]="nSiC",Table1[[#This Row],[Net Charge '[uAh']]]*0.05,Table1[[#This Row],[Material]]="TiC",Table1[[#This Row],[Net Charge '[uAh']]]*0.032,Table1[[#This Row],[Material]]="NiO",Table1[[#This Row],[Net Charge '[uAh']]]*0.03,Table1[[#This Row],[Material]]="Nb",Table1[[#This Row],[Net Charge '[uAh']]]*0.0305,Table1[[#This Row],[Material]]="TaC",Table1[[#This Row],[Net Charge '[uAh']]]*0.025,Table1[[#This Row],[Material]]="ThO",1095,TRUE,NA()),NA()) ->  | AV22: =IF(Table1[[#This Row],[Offline p+]]>0,_xlfn.IFS(Table1[[#This Row],[Material]]="Ta",Table1[[#This Row],[Net Charge '[uAh']]]*0.028,Table1[[#This Row],[Material]]="ZrC",Table1[[#This Row],[Net Charge '[uAh']]]*0.036,Table1[[#This Row],[Material]]="UO2",Table1[[#This Row],[Net Charge '[uAh']]]*0.116,Table1[[#This Row],[Material]]="UC",Table1[[#This Row],[Net Charge '[uAh']]]*0.076,Table1[[#This Row],[Material]]="SiC",Table1[[#This Row],[Net Charge '[uAh']]]*0.048,Table1[[#This Row],[Material]]="nSiC",Table1[[#This Row],[Net Charge '[uAh']]]*0.048,Table1[[#This Row],[Material]]="TiC",Table1[[#This Row],[Net Charge '[uAh']]]*0.032,Table1[[#This Row],[Material]]="NiO",Table1[[#This Row],[Net Charge '[uAh']]]*0.03,Table1[[#This Row],[Material]]="Nb",Table1[[#This Row],[Net Charge '[uAh']]]*0.023,Table1[[#This Row],[Material]]="TaC",Table1[[#This Row],[Net Charge '[uAh']]]*0.025,Table1[[#This Row],[Material]]="ThO",Table1[[#This Row],[Net Charge '[uAh']]]*0.076,TRUE,NA()),NA()) ->  | AZ22: =IF(Table1[[#This Row],[Schedule end]]>0,IF(Table1[[#This Row],[Material]]="Ta",Table1[[#This Row],[Estimated current]]*(Table1[[#This Row],[Schedule end]]-Table1[[#This Row],[Schedule start]])*24*0.028,IF(Table1[[#This Row],[Material]]="ZrC", Table1[[#This Row],[Estimated current]]*(Table1[[#This Row],[Schedule end]]-Table1[[#This Row],[Schedule start]])*24*0.036,IF(Table1[[#This Row],[Material]]="UO2",Table1[[#This Row],[Estimated current]]*(Table1[[#This Row],[Schedule end]]-Table1[[#This Row],[Schedule start]])*24*0.116,IF(Table1[[#This Row],[Material]]="UC",Table1[[#This Row],[Estimated current]]*(Table1[[#This Row],[Schedule end]]-Table1[[#This Row],[Schedule start]])*24*0.076,IF(Table1[[#This Row],[Material]]="SiC",Table1[[#This Row],[Estimated current]]*(Table1[[#This Row],[Schedule end]]-Table1[[#This Row],[Schedule start]])*24*0.076,IF(Table1[[#This Row],[Material]]="nSiC",Table1[[#This Row],[Estimated current]]*(Table1[[#This Row],[Schedule end]]-Table1[[#This Row],[Schedule start]])*24*0.048,IF(Table1[[#This Row],[Material]]="TiC",Table1[[#This Row],[Estimated current]]*(Table1[[#This Row],[Schedule end]]-Table1[[#This Row],[Schedule start]])*24*0.032,IF(Table1[[#This Row],[Material]]="NiO",Table1[[#This Row],[Estimated current]]*(Table1[[#This Row],[Schedule end]]-Table1[[#This Row],[Schedule start]])*24*0.03,IF(Table1[[#This Row],[Material]]="Nb",Table1[[#This Row],[Estimated current]]*(Table1[[#This Row],[Schedule end]]-Table1[[#This Row],[Schedule start]])*24*0.023,IF(Table1[[#This Row],[Material]]="TaC",Table1[[#This Row],[Estimated current]]*(Table1[[#This Row],[Schedule end]]-Table1[[#This Row],[Schedule start]])*24*0.025,IF(Table1[[#This Row],[Material]]="ThO",Table1[[#This Row],[Estimated current]]*(Table1[[#This Row],[Schedule end]]-Table1[[#This Row],[Schedule start]])*24*0.076,NA()))))))))))),NA()) ->  | BA22: =Table1[[#This Row],[Estimated ship days]]/365 ->  | BB22: 2C | BC22: 270 | BD22: This pail is of previous revision, not certified as lifting device. Prior to shipping, a 3" loop must be crimped at the end of the wire rope. | BE22: Measured | BF22: =Table1[[#This Row],[TS]]&"-"&Table1[[#This Row],[TM]]&"-"&Table1[[#This Row],[Material]]&"#"&Table1[[#This Row],[No]]&"-"&Table1[[#This Row],[HP/LP]]&"-"&Table1[[#This Row],[IS]] -> ITW-TM2-C#3-LP-SIS
A23: =_xlfn.CONCAT(Table1[[#This Row],[Material]],"#",Table1[[#This Row],[No]]) -> SiC#40 | B23: SiC | C23: 40 | D23: HP | E23: SIS | G23: ITE | H23: TM4 | I23: 2021 | J23: 9 | K23: 14 | L23: 140 | M23: Link | R23: 2021-09-07 | S23: 2021-09-10 | T23: N/A | U23: N/A | V23: 2021-09-14 | X23: 75 | Y23: 0 | Z23: 0 | AA23: =Table1[[#This Row],[Net Charge '[uAh']]]*6200000000000000000*0.000001*3600 -> 0 | AB23: 38 | AC23: =CONCATENATE(Table1[[#This Row],[Material]], "#", Table1[[#This Row],[No]]) -> SiC#40 | AT23: =IF(AND(AND(Table1[[#This Row],[Online p+]]>0,Table1[[#This Row],[Shipping Date]]>0),NOT(Table1[[#This Row],[Shipping Date]]="")),Table1[[#This Row],[Shipping Date]]-Table1[[#This Row],[Offline p+]], NA()) ->  | AU23: =IF(Table1[[#This Row],[Offline p+]]>0,_xlfn.IFS(Table1[[#This Row],[Material]]="Ta",Table1[[#This Row],[Net Charge '[uAh']]]*0.034,Table1[[#This Row],[Material]]="ZrC",Table1[[#This Row],[Net Charge '[uAh']]]*0.05,Table1[[#This Row],[Material]]="UO2",Table1[[#This Row],[Net Charge '[uAh']]]*0.116,Table1[[#This Row],[Material]]="UC",Table1[[#This Row],[Net Charge '[uAh']]]*0.116,Table1[[#This Row],[Material]]="SiC",Table1[[#This Row],[Net Charge '[uAh']]]*0.05,Table1[[#This Row],[Material]]="nSiC",Table1[[#This Row],[Net Charge '[uAh']]]*0.05,Table1[[#This Row],[Material]]="TiC",Table1[[#This Row],[Net Charge '[uAh']]]*0.032,Table1[[#This Row],[Material]]="NiO",Table1[[#This Row],[Net Charge '[uAh']]]*0.03,Table1[[#This Row],[Material]]="Nb",Table1[[#This Row],[Net Charge '[uAh']]]*0.0305,Table1[[#This Row],[Material]]="TaC",Table1[[#This Row],[Net Charge '[uAh']]]*0.025,Table1[[#This Row],[Material]]="ThO",1095,TRUE,NA()),NA()) -> 0 | AV23: =IF(Table1[[#This Row],[Offline p+]]>0,_xlfn.IFS(Table1[[#This Row],[Material]]="Ta",Table1[[#This Row],[Net Charge '[uAh']]]*0.028,Table1[[#This Row],[Material]]="ZrC",Table1[[#This Row],[Net Charge '[uAh']]]*0.036,Table1[[#This Row],[Material]]="UO2",Table1[[#This Row],[Net Charge '[uAh']]]*0.116,Table1[[#This Row],[Material]]="UC",Table1[[#This Row],[Net Charge '[uAh']]]*0.076,Table1[[#This Row],[Material]]="SiC",Table1[[#This Row],[Net Charge '[uAh']]]*0.048,Table1[[#This Row],[Material]]="nSiC",Table1[[#This Row],[Net Charge '[uAh']]]*0.048,Table1[[#This Row],[Material]]="TiC",Table1[[#This Row],[Net Charge '[uAh']]]*0.032,Table1[[#This Row],[Material]]="NiO",Table1[[#This Row],[Net Charge '[uAh']]]*0.03,Table1[[#This Row],[Material]]="Nb",Table1[[#This Row],[Net Charge '[uAh']]]*0.023,Table1[[#This Row],[Material]]="TaC",Table1[[#This Row],[Net Charge '[uAh']]]*0.025,Table1[[#This Row],[Material]]="ThO",Table1[[#This Row],[Net Charge '[uAh']]]*0.076,TRUE,NA()),NA()) -> 0 | AW23: 60 | AX23: 2021-09-14 | AY23: 2021-09-26 | AZ23: =IF(Table1[[#This Row],[Schedule end]]>0,IF(Table1[[#This Row],[Material]]="Ta",Table1[[#This Row],[Estimated current]]*(Table1[[#This Row],[Schedule end]]-Table1[[#This Row],[Schedule start]])*24*0.028,IF(Table1[[#This Row],[Material]]="ZrC", Table1[[#This Row],[Estimated current]]*(Table1[[#This Row],[Schedule end]]-Table1[[#This Row],[Schedule start]])*24*0.036,IF(Table1[[#This Row],[Material]]="UO2",Table1[[#This Row],[Estimated current]]*(Table1[[#This Row],[Schedule end]]-Table1[[#This Row],[Schedule start]])*24*0.116,IF(Table1[[#This Row],[Material]]="UC",Table1[[#This Row],[Estimated current]]*(Table1[[#This Row],[Schedule end]]-Table1[[#This Row],[Schedule start]])*24*0.076,IF(Table1[[#This Row],[Material]]="SiC",Table1[[#This Row],[Estimated current]]*(Table1[[#This Row],[Schedule end]]-Table1[[#This Row],[Schedule start]])*24*0.076,IF(Table1[[#This Row],[Material]]="nSiC",Table1[[#This Row],[Estimated current]]*(Table1[[#This Row],[Schedule end]]-Table1[[#This Row],[Schedule start]])*24*0.048,IF(Table1[[#This Row],[Material]]="TiC",Table1[[#This Row],[Estimated current]]*(Table1[[#This Row],[Schedule end]]-Table1[[#This Row],[Schedule start]])*24*0.032,IF(Table1[[#This Row],[Material]]="NiO",Table1[[#This Row],[Estimated current]]*(Table1[[#This Row],[Schedule end]]-Table1[[#This Row],[Schedule start]])*24*0.03,IF(Table1[[#This Row],[Material]]="Nb",Table1[[#This Row],[Estimated current]]*(Table1[[#This Row],[Schedule end]]-Table1[[#This Row],[Schedule start]])*24*0.023,IF(Table1[[#This Row],[Material]]="TaC",Table1[[#This Row],[Estimated current]]*(Table1[[#This Row],[Schedule end]]-Table1[[#This Row],[Schedule start]])*24*0.025,IF(Table1[[#This Row],[Material]]="ThO",Table1[[#This Row],[Estimated current]]*(Table1[[#This Row],[Schedule end]]-Table1[[#This Row],[Schedule start]])*24*0.076,NA()))))))))))),NA()) -> 1313.28 | BA23: =Table1[[#This Row],[Estimated ship days]]/365 -> 3.598027397 | BF23: =Table1[[#This Row],[TS]]&"-"&Table1[[#This Row],[TM]]&"-"&Table1[[#This Row],[Material]]&"#"&Table1[[#This Row],[No]]&"-"&Table1[[#This Row],[HP/LP]]&"-"&Table1[[#This Row],[IS]] -> ITE-TM4-SiC#40-HP-SIS
A24: =_xlfn.CONCAT(Table1[[#This Row],[Material]],"#",Table1[[#This Row],[No]]) -> UC#34 | B24: UC | C24: 34 | D24: LP | E24: SIS | G24: ITW | H24: TM2 | I24: 2021 | J24: 8 | K24: 25 | L24: 140 | M24: Link | R24: 2021-08-10 | S24: 2021-08-22 | T24: 2021-08-25 | U24: 2021-09-11 | V24: 2021-09-21 | W24: 14.6 | Y24: 18 | Z24: 5750.14 | AA24: =Table1[[#This Row],[Net Charge '[uAh']]]*6200000000000000000*0.000001*3600 -> 1.283431248e+20 | AB24: 30 | AC24: =CONCATENATE(Table1[[#This Row],[Material]], "#", Table1[[#This Row],[No]]) -> UC#34 | AD24: 2021-09-22 | AE24: 419000 | AF24: 2022-01-27 | AG24: 4730 | AH24: 2022-12-16 | AI24: 809 | AN24: 2022-12-16 | AT24: =IF(AND(AND(Table1[[#This Row],[Online p+]]>0,Table1[[#This Row],[Shipping Date]]>0),NOT(Table1[[#This Row],[Shipping Date]]="")),Table1[[#This Row],[Shipping Date]]-Table1[[#This Row],[Offline p+]], NA()) ->  | AU24: =IF(Table1[[#This Row],[Offline p+]]>0,_xlfn.IFS(Table1[[#This Row],[Material]]="Ta",Table1[[#This Row],[Net Charge '[uAh']]]*0.034,Table1[[#This Row],[Material]]="ZrC",Table1[[#This Row],[Net Charge '[uAh']]]*0.05,Table1[[#This Row],[Material]]="UO2",Table1[[#This Row],[Net Charge '[uAh']]]*0.116,Table1[[#This Row],[Material]]="UC",Table1[[#This Row],[Net Charge '[uAh']]]*0.116,Table1[[#This Row],[Material]]="SiC",Table1[[#This Row],[Net Charge '[uAh']]]*0.05,Table1[[#This Row],[Material]]="nSiC",Table1[[#This Row],[Net Charge '[uAh']]]*0.05,Table1[[#This Row],[Material]]="TiC",Table1[[#This Row],[Net Charge '[uAh']]]*0.032,Table1[[#This Row],[Material]]="NiO",Table1[[#This Row],[Net Charge '[uAh']]]*0.03,Table1[[#This Row],[Material]]="Nb",Table1[[#This Row],[Net Charge '[uAh']]]*0.0305,Table1[[#This Row],[Material]]="TaC",Table1[[#This Row],[Net Charge '[uAh']]]*0.025,Table1[[#This Row],[Material]]="ThO",1095,TRUE,NA()),NA()) -> 667.01624 | AV24: =IF(Table1[[#This Row],[Offline p+]]>0,_xlfn.IFS(Table1[[#This Row],[Material]]="Ta",Table1[[#This Row],[Net Charge '[uAh']]]*0.028,Table1[[#This Row],[Material]]="ZrC",Table1[[#This Row],[Net Charge '[uAh']]]*0.036,Table1[[#This Row],[Material]]="UO2",Table1[[#This Row],[Net Charge '[uAh']]]*0.116,Table1[[#This Row],[Material]]="UC",Table1[[#This Row],[Net Charge '[uAh']]]*0.076,Table1[[#This Row],[Material]]="SiC",Table1[[#This Row],[Net Charge '[uAh']]]*0.048,Table1[[#This Row],[Material]]="nSiC",Table1[[#This Row],[Net Charge '[uAh']]]*0.048,Table1[[#This Row],[Material]]="TiC",Table1[[#This Row],[Net Charge '[uAh']]]*0.032,Table1[[#This Row],[Material]]="NiO",Table1[[#This Row],[Net Charge '[uAh']]]*0.03,Table1[[#This Row],[Material]]="Nb",Table1[[#This Row],[Net Charge '[uAh']]]*0.023,Table1[[#This Row],[Material]]="TaC",Table1[[#This Row],[Net Charge '[uAh']]]*0.025,Table1[[#This Row],[Material]]="ThO",Table1[[#This Row],[Net Charge '[uAh']]]*0.076,TRUE,NA()),NA()) -> 437.01064 | AW24: 20 | AX24: 2021-08-25 | AY24: 2021-09-14 | AZ24: =IF(Table1[[#This Row],[Schedule end]]>0,IF(Table1[[#This Row],[Material]]="Ta",Table1[[#This Row],[Estimated current]]*(Table1[[#This Row],[Schedule end]]-Table1[[#This Row],[Schedule start]])*24*0.028,IF(Table1[[#This Row],[Material]]="ZrC", Table1[[#This Row],[Estimated current]]*(Table1[[#This Row],[Schedule end]]-Table1[[#This Row],[Schedule start]])*24*0.036,IF(Table1[[#This Row],[Material]]="UO2",Table1[[#This Row],[Estimated current]]*(Table1[[#This Row],[Schedule end]]-Table1[[#This Row],[Schedule start]])*24*0.116,IF(Table1[[#This Row],[Material]]="UC",Table1[[#This Row],[Estimated current]]*(Table1[[#This Row],[Schedule end]]-Table1[[#This Row],[Schedule start]])*24*0.076,IF(Table1[[#This Row],[Material]]="SiC",Table1[[#This Row],[Estimated current]]*(Table1[[#This Row],[Schedule end]]-Table1[[#This Row],[Schedule start]])*24*0.076,IF(Table1[[#This Row],[Material]]="nSiC",Table1[[#This Row],[Estimated current]]*(Table1[[#This Row],[Schedule end]]-Table1[[#This Row],[Schedule start]])*24*0.048,IF(Table1[[#This Row],[Material]]="TiC",Table1[[#This Row],[Estimated current]]*(Table1[[#This Row],[Schedule end]]-Table1[[#This Row],[Schedule start]])*24*0.032,IF(Table1[[#This Row],[Material]]="NiO",Table1[[#This Row],[Estimated current]]*(Table1[[#This Row],[Schedule end]]-Table1[[#This Row],[Schedule start]])*24*0.03,IF(Table1[[#This Row],[Material]]="Nb",Table1[[#This Row],[Estimated current]]*(Table1[[#This Row],[Schedule end]]-Table1[[#This Row],[Schedule start]])*24*0.023,IF(Table1[[#This Row],[Material]]="TaC",Table1[[#This Row],[Estimated current]]*(Table1[[#This Row],[Schedule end]]-Table1[[#This Row],[Schedule start]])*24*0.025,IF(Table1[[#This Row],[Material]]="ThO",Table1[[#This Row],[Estimated current]]*(Table1[[#This Row],[Schedule end]]-Table1[[#This Row],[Schedule start]])*24*0.076,NA()))))))))))),NA()) -> 729.6 | BA24: =Table1[[#This Row],[Estimated ship days]]/365 -> 1.99890411 | BC24: 268 | BD24: Pail changed from 258 to 268 | BE24: Measured | BF24: =Table1[[#This Row],[TS]]&"-"&Table1[[#This Row],[TM]]&"-"&Table1[[#This Row],[Material]]&"#"&Table1[[#This Row],[No]]&"-"&Table1[[#This Row],[HP/LP]]&"-"&Table1[[#This Row],[IS]] -> ITW-TM2-UC#34-LP-SIS
A25: =_xlfn.CONCAT(Table1[[#This Row],[Material]],"#",Table1[[#This Row],[No]]) -> Ta#62 | B25: Ta | C25: 62 | D25: LP | E25: SIS | G25: ITE | H25: TM4 | I25: 2021 | J25: 7 | K25: 28 | L25: 140 | M25: Link | R25: 2021-07-20 | S25: 2021-07-26 | T25: 2021-07-29 | U25: 2021-08-24 | V25: 2021-08-31 | W25: 13.95 | X25: 50/70 | Y25: 70 | Z25: 15969.23 | AA25: =Table1[[#This Row],[Net Charge '[uAh']]]*6200000000000000000*0.000001*3600 -> 3.564332136e+20 | AB25: 30 | AC25: =CONCATENATE(Table1[[#This Row],[Material]], "#", Table1[[#This Row],[No]]) -> Ta#62 | AD25: 2021-09-17 | AE25: 58000 | AF25: 2022-01-27 | AG25: 16900 | AH25: 2022-12-16 | AI25: =3.6*1000 -> 3600 | AT25: =IF(AND(AND(Table1[[#This Row],[Online p+]]>0,Table1[[#This Row],[Shipping Date]]>0),NOT(Table1[[#This Row],[Shipping Date]]="")),Table1[[#This Row],[Shipping Date]]-Table1[[#This Row],[Offline p+]], NA()) ->  | AU25: =IF(Table1[[#This Row],[Offline p+]]>0,_xlfn.IFS(Table1[[#This Row],[Material]]="Ta",Table1[[#This Row],[Net Charge '[uAh']]]*0.034,Table1[[#This Row],[Material]]="ZrC",Table1[[#This Row],[Net Charge '[uAh']]]*0.05,Table1[[#This Row],[Material]]="UO2",Table1[[#This Row],[Net Charge '[uAh']]]*0.116,Table1[[#This Row],[Material]]="UC",Table1[[#This Row],[Net Charge '[uAh']]]*0.116,Table1[[#This Row],[Material]]="SiC",Table1[[#This Row],[Net Charge '[uAh']]]*0.05,Table1[[#This Row],[Material]]="nSiC",Table1[[#This Row],[Net Charge '[uAh']]]*0.05,Table1[[#This Row],[Material]]="TiC",Table1[[#This Row],[Net Charge '[uAh']]]*0.032,Table1[[#This Row],[Material]]="NiO",Table1[[#This Row],[Net Charge '[uAh']]]*0.03,Table1[[#This Row],[Material]]="Nb",Table1[[#This Row],[Net Charge '[uAh']]]*0.0305,Table1[[#This Row],[Material]]="TaC",Table1[[#This Row],[Net Charge '[uAh']]]*0.025,Table1[[#This Row],[Material]]="ThO",1095,TRUE,NA()),NA()) -> 542.95382 | AV25: =IF(Table1[[#This Row],[Offline p+]]>0,_xlfn.IFS(Table1[[#This Row],[Material]]="Ta",Table1[[#This Row],[Net Charge '[uAh']]]*0.028,Table1[[#This Row],[Material]]="ZrC",Table1[[#This Row],[Net Charge '[uAh']]]*0.036,Table1[[#This Row],[Material]]="UO2",Table1[[#This Row],[Net Charge '[uAh']]]*0.116,Table1[[#This Row],[Material]]="UC",Table1[[#This Row],[Net Charge '[uAh']]]*0.076,Table1[[#This Row],[Material]]="SiC",Table1[[#This Row],[Net Charge '[uAh']]]*0.048,Table1[[#This Row],[Material]]="nSiC",Table1[[#This Row],[Net Charge '[uAh']]]*0.048,Table1[[#This Row],[Material]]="TiC",Table1[[#This Row],[Net Charge '[uAh']]]*0.032,Table1[[#This Row],[Material]]="NiO",Table1[[#This Row],[Net Charge '[uAh']]]*0.03,Table1[[#This Row],[Material]]="Nb",Table1[[#This Row],[Net Charge '[uAh']]]*0.023,Table1[[#This Row],[Material]]="TaC",Table1[[#This Row],[Net Charge '[uAh']]]*0.025,Table1[[#This Row],[Material]]="ThO",Table1[[#This Row],[Net Charge '[uAh']]]*0.076,TRUE,NA()),NA()) -> 447.13844 | AW25: 40 | AX25: 2021-07-28 | AY25: 2021-08-25 | AZ25: =IF(Table1[[#This Row],[Schedule end]]>0,IF(Table1[[#This Row],[Material]]="Ta",Table1[[#This Row],[Estimated current]]*(Table1[[#This Row],[Schedule end]]-Table1[[#This Row],[Schedule start]])*24*0.028,IF(Table1[[#This Row],[Material]]="ZrC", Table1[[#This Row],[Estimated current]]*(Table1[[#This Row],[Schedule end]]-Table1[[#This Row],[Schedule start]])*24*0.036,IF(Table1[[#This Row],[Material]]="UO2",Table1[[#This Row],[Estimated current]]*(Table1[[#This Row],[Schedule end]]-Table1[[#This Row],[Schedule start]])*24*0.116,IF(Table1[[#This Row],[Material]]="UC",Table1[[#This Row],[Estimated current]]*(Table1[[#This Row],[Schedule end]]-Table1[[#This Row],[Schedule start]])*24*0.076,IF(Table1[[#This Row],[Material]]="SiC",Table1[[#This Row],[Estimated current]]*(Table1[[#This Row],[Schedule end]]-Table1[[#This Row],[Schedule start]])*24*0.076,IF(Table1[[#This Row],[Material]]="nSiC",Table1[[#This Row],[Estimated current]]*(Table1[[#This Row],[Schedule end]]-Table1[[#This Row],[Schedule start]])*24*0.048,IF(Table1[[#This Row],[Material]]="TiC",Table1[[#This Row],[Estimated current]]*(Table1[[#This Row],[Schedule end]]-Table1[[#This Row],[Schedule start]])*24*0.032,IF(Table1[[#This Row],[Material]]="NiO",Table1[[#This Row],[Estimated current]]*(Table1[[#This Row],[Schedule end]]-Table1[[#This Row],[Schedule start]])*24*0.03,IF(Table1[[#This Row],[Material]]="Nb",Table1[[#This Row],[Estimated current]]*(Table1[[#This Row],[Schedule end]]-Table1[[#This Row],[Schedule start]])*24*0.023,IF(Table1[[#This Row],[Material]]="TaC",Table1[[#This Row],[Estimated current]]*(Table1[[#This Row],[Schedule end]]-Table1[[#This Row],[Schedule start]])*24*0.025,IF(Table1[[#This Row],[Material]]="ThO",Table1[[#This Row],[Estimated current]]*(Table1[[#This Row],[Schedule end]]-Table1[[#This Row],[Schedule start]])*24*0.076,NA()))))))))))),NA()) -> 752.64 | BA25: =Table1[[#This Row],[Estimated ship days]]/365 -> 2.062027397 | BB25: 7A | BC25: 256 | BD25: 2022-12-16 moved from 7A to 7B in vault. - AN Pail placed back in 7A. -TC Disc in bottom of pail was not installed pail will need repacking. This pail is likely contaminated and also contains 2A2M19. This pail is of previous revision, not certified as lifting device. Prior to shipping, a 3" loop must be crimped at the end of the wire rope. | BE25: Measured | BF25: =Table1[[#This Row],[TS]]&"-"&Table1[[#This Row],[TM]]&"-"&Table1[[#This Row],[Material]]&"#"&Table1[[#This Row],[No]]&"-"&Table1[[#This Row],[HP/LP]]&"-"&Table1[[#This Row],[IS]] -> ITE-TM4-Ta#62-LP-SIS
A26: =_xlfn.CONCAT(Table1[[#This Row],[Material]],"#",Table1[[#This Row],[No]]) -> UC#33 | B26: UC | C26: 33 | D26: LP | E26: SIS | G26: ITW | H26: TM2 | I26: 2021 | J26: 6 | K26: 29 | L26: 140 | M26: Link | R26: 2021-06-22 | S26: 2021-06-24 | T26: 2021-06-30 | U26: 2021-07-27 | V26: 2021-08-03 | W26: 13.95 | X26: 20/40 | Y26: 22 | Z26: 6599.58 | AA26: =Table1[[#This Row],[Net Charge '[uAh']]]*6200000000000000000*0.000001*3600 -> 1.473026256e+20 | AB26: 40 | AC26: =CONCATENATE(Table1[[#This Row],[Material]], "#", Table1[[#This Row],[No]]) -> UC#33 | AD26: 2021-08-06 | AE26: 39900 | AF26: 2022-01-27 | AG26: 4070 | AH26: 2022-12-16 | AI26: 708 | AN26: 2022-12-16 | AT26: =IF(AND(AND(Table1[[#This Row],[Online p+]]>0,Table1[[#This Row],[Shipping Date]]>0),NOT(Table1[[#This Row],[Shipping Date]]="")),Table1[[#This Row],[Shipping Date]]-Table1[[#This Row],[Offline p+]], NA()) ->  | AU26: =IF(Table1[[#This Row],[Offline p+]]>0,_xlfn.IFS(Table1[[#This Row],[Material]]="Ta",Table1[[#This Row],[Net Charge '[uAh']]]*0.034,Table1[[#This Row],[Material]]="ZrC",Table1[[#This Row],[Net Charge '[uAh']]]*0.05,Table1[[#This Row],[Material]]="UO2",Table1[[#This Row],[Net Charge '[uAh']]]*0.116,Table1[[#This Row],[Material]]="UC",Table1[[#This Row],[Net Charge '[uAh']]]*0.116,Table1[[#This Row],[Material]]="SiC",Table1[[#This Row],[Net Charge '[uAh']]]*0.05,Table1[[#This Row],[Material]]="nSiC",Table1[[#This Row],[Net Charge '[uAh']]]*0.05,Table1[[#This Row],[Material]]="TiC",Table1[[#This Row],[Net Charge '[uAh']]]*0.032,Table1[[#This Row],[Material]]="NiO",Table1[[#This Row],[Net Charge '[uAh']]]*0.03,Table1[[#This Row],[Material]]="Nb",Table1[[#This Row],[Net Charge '[uAh']]]*0.0305,Table1[[#This Row],[Material]]="TaC",Table1[[#This Row],[Net Charge '[uAh']]]*0.025,Table1[[#This Row],[Material]]="ThO",1095,TRUE,NA()),NA()) -> 765.55128 | AV26: =IF(Table1[[#This Row],[Offline p+]]>0,_xlfn.IFS(Table1[[#This Row],[Material]]="Ta",Table1[[#This Row],[Net Charge '[uAh']]]*0.028,Table1[[#This Row],[Material]]="ZrC",Table1[[#This Row],[Net Charge '[uAh']]]*0.036,Table1[[#This Row],[Material]]="UO2",Table1[[#This Row],[Net Charge '[uAh']]]*0.116,Table1[[#This Row],[Material]]="UC",Table1[[#This Row],[Net Charge '[uAh']]]*0.076,Table1[[#This Row],[Material]]="SiC",Table1[[#This Row],[Net Charge '[uAh']]]*0.048,Table1[[#This Row],[Material]]="nSiC",Table1[[#This Row],[Net Charge '[uAh']]]*0.048,Table1[[#This Row],[Material]]="TiC",Table1[[#This Row],[Net Charge '[uAh']]]*0.032,Table1[[#This Row],[Material]]="NiO",Table1[[#This Row],[Net Charge '[uAh']]]*0.03,Table1[[#This Row],[Material]]="Nb",Table1[[#This Row],[Net Charge '[uAh']]]*0.023,Table1[[#This Row],[Material]]="TaC",Table1[[#This Row],[Net Charge '[uAh']]]*0.025,Table1[[#This Row],[Material]]="ThO",Table1[[#This Row],[Net Charge '[uAh']]]*0.076,TRUE,NA()),NA()) -> 501.56808 | AW26: 20 | AX26: 2021-06-29 | AY26: 2021-07-28 | AZ26: =IF(Table1[[#This Row],[Schedule end]]>0,IF(Table1[[#This Row],[Material]]="Ta",Table1[[#This Row],[Estimated current]]*(Table1[[#This Row],[Schedule end]]-Table1[[#This Row],[Schedule start]])*24*0.028,IF(Table1[[#This Row],[Material]]="ZrC", Table1[[#This Row],[Estimated current]]*(Table1[[#This Row],[Schedule end]]-Table1[[#This Row],[Schedule start]])*24*0.036,IF(Table1[[#This Row],[Material]]="UO2",Table1[[#This Row],[Estimated current]]*(Table1[[#This Row],[Schedule end]]-Table1[[#This Row],[Schedule start]])*24*0.116,IF(Table1[[#This Row],[Material]]="UC",Table1[[#This Row],[Estimated current]]*(Table1[[#This Row],[Schedule end]]-Table1[[#This Row],[Schedule start]])*24*0.076,IF(Table1[[#This Row],[Material]]="SiC",Table1[[#This Row],[Estimated current]]*(Table1[[#This Row],[Schedule end]]-Table1[[#This Row],[Schedule start]])*24*0.076,IF(Table1[[#This Row],[Material]]="nSiC",Table1[[#This Row],[Estimated current]]*(Table1[[#This Row],[Schedule end]]-Table1[[#This Row],[Schedule start]])*24*0.048,IF(Table1[[#This Row],[Material]]="TiC",Table1[[#This Row],[Estimated current]]*(Table1[[#This Row],[Schedule end]]-Table1[[#This Row],[Schedule start]])*24*0.032,IF(Table1[[#This Row],[Material]]="NiO",Table1[[#This Row],[Estimated current]]*(Table1[[#This Row],[Schedule end]]-Table1[[#This Row],[Schedule start]])*24*0.03,IF(Table1[[#This Row],[Material]]="Nb",Table1[[#This Row],[Estimated current]]*(Table1[[#This Row],[Schedule end]]-Table1[[#This Row],[Schedule start]])*24*0.023,IF(Table1[[#This Row],[Material]]="TaC",Table1[[#This Row],[Estimated current]]*(Table1[[#This Row],[Schedule end]]-Table1[[#This Row],[Schedule start]])*24*0.025,IF(Table1[[#This Row],[Material]]="ThO",Table1[[#This Row],[Estimated current]]*(Table1[[#This Row],[Schedule end]]-Table1[[#This Row],[Schedule start]])*24*0.076,NA()))))))))))),NA()) -> 1057.92 | BA26: =Table1[[#This Row],[Estimated ship days]]/365 -> 2.898410959 | BC26: 267 | BD26: First one done from the NHC pail changed from 255 to 267 | BE26: Measured | BF26: =Table1[[#This Row],[TS]]&"-"&Table1[[#This Row],[TM]]&"-"&Table1[[#This Row],[Material]]&"#"&Table1[[#This Row],[No]]&"-"&Table1[[#This Row],[HP/LP]]&"-"&Table1[[#This Row],[IS]] -> ITW-TM2-UC#33-LP-SIS
A27: =_xlfn.CONCAT(Table1[[#This Row],[Material]],"#",Table1[[#This Row],[No]]) -> UC#32 | B27: UC | C27: 32 | D27: P2N | E27: SIS | G27: ITE | H27: TM4 | I27: 2021 | J27: 6 | K27: 16 | L27: 140 | M27: Link | R27: 2021-06-01 | S27: 2021-06-10 | T27: 2021-06-15 | U27: 2021-06-24 | V27: 2021-07-06 | W27: 4.92 | X27: 98 | Y27: 50 | Z27: 2934.66 | AA27: =Table1[[#This Row],[Net Charge '[uAh']]]*6200000000000000000*0.000001*3600 -> 6.55016112e+19 | AB27: 20 | AC27: =CONCATENATE(Table1[[#This Row],[Material]], "#", Table1[[#This Row],[No]]) -> UC#32 | AD27: 2021-07-09 | AE27: 21200 | AF27: 2022-01-27 | AG27: 2760 | AN27: 2022-05-19 | AT27: =IF(AND(AND(Table1[[#This Row],[Online p+]]>0,Table1[[#This Row],[Shipping Date]]>0),NOT(Table1[[#This Row],[Shipping Date]]="")),Table1[[#This Row],[Shipping Date]]-Table1[[#This Row],[Offline p+]], NA()) ->  | AU27: =IF(Table1[[#This Row],[Offline p+]]>0,_xlfn.IFS(Table1[[#This Row],[Material]]="Ta",Table1[[#This Row],[Net Charge '[uAh']]]*0.034,Table1[[#This Row],[Material]]="ZrC",Table1[[#This Row],[Net Charge '[uAh']]]*0.05,Table1[[#This Row],[Material]]="UO2",Table1[[#This Row],[Net Charge '[uAh']]]*0.116,Table1[[#This Row],[Material]]="UC",Table1[[#This Row],[Net Charge '[uAh']]]*0.116,Table1[[#This Row],[Material]]="SiC",Table1[[#This Row],[Net Charge '[uAh']]]*0.05,Table1[[#This Row],[Material]]="nSiC",Table1[[#This Row],[Net Charge '[uAh']]]*0.05,Table1[[#This Row],[Material]]="TiC",Table1[[#This Row],[Net Charge '[uAh']]]*0.032,Table1[[#This Row],[Material]]="NiO",Table1[[#This Row],[Net Charge '[uAh']]]*0.03,Table1[[#This Row],[Material]]="Nb",Table1[[#This Row],[Net Charge '[uAh']]]*0.0305,Table1[[#This Row],[Material]]="TaC",Table1[[#This Row],[Net Charge '[uAh']]]*0.025,Table1[[#This Row],[Material]]="ThO",1095,TRUE,NA()),NA()) -> 340.42056 | AV27: =IF(Table1[[#This Row],[Offline p+]]>0,_xlfn.IFS(Table1[[#This Row],[Material]]="Ta",Table1[[#This Row],[Net Charge '[uAh']]]*0.028,Table1[[#This Row],[Material]]="ZrC",Table1[[#This Row],[Net Charge '[uAh']]]*0.036,Table1[[#This Row],[Material]]="UO2",Table1[[#This Row],[Net Charge '[uAh']]]*0.116,Table1[[#This Row],[Material]]="UC",Table1[[#This Row],[Net Charge '[uAh']]]*0.076,Table1[[#This Row],[Material]]="SiC",Table1[[#This Row],[Net Charge '[uAh']]]*0.048,Table1[[#This Row],[Material]]="nSiC",Table1[[#This Row],[Net Charge '[uAh']]]*0.048,Table1[[#This Row],[Material]]="TiC",Table1[[#This Row],[Net Charge '[uAh']]]*0.032,Table1[[#This Row],[Material]]="NiO",Table1[[#This Row],[Net Charge '[uAh']]]*0.03,Table1[[#This Row],[Material]]="Nb",Table1[[#This Row],[Net Charge '[uAh']]]*0.023,Table1[[#This Row],[Material]]="TaC",Table1[[#This Row],[Net Charge '[uAh']]]*0.025,Table1[[#This Row],[Material]]="ThO",Table1[[#This Row],[Net Charge '[uAh']]]*0.076,TRUE,NA()),NA()) -> 223.03416 | AW27: 20 | AX27: 2021-06-16 | AY27: 2021-06-29 | AZ27: =IF(Table1[[#This Row],[Schedule end]]>0,IF(Table1[[#This Row],[Material]]="Ta",Table1[[#This Row],[Estimated current]]*(Table1[[#This Row],[Schedule end]]-Table1[[#This Row],[Schedule start]])*24*0.028,IF(Table1[[#This Row],[Material]]="ZrC", Table1[[#This Row],[Estimated current]]*(Table1[[#This Row],[Schedule end]]-Table1[[#This Row],[Schedule start]])*24*0.036,IF(Table1[[#This Row],[Material]]="UO2",Table1[[#This Row],[Estimated current]]*(Table1[[#This Row],[Schedule end]]-Table1[[#This Row],[Schedule start]])*24*0.116,IF(Table1[[#This Row],[Material]]="UC",Table1[[#This Row],[Estimated current]]*(Table1[[#This Row],[Schedule end]]-Table1[[#This Row],[Schedule start]])*24*0.076,IF(Table1[[#This Row],[Material]]="SiC",Table1[[#This Row],[Estimated current]]*(Table1[[#This Row],[Schedule end]]-Table1[[#This Row],[Schedule start]])*24*0.076,IF(Table1[[#This Row],[Material]]="nSiC",Table1[[#This Row],[Estimated current]]*(Table1[[#This Row],[Schedule end]]-Table1[[#This Row],[Schedule start]])*24*0.048,IF(Table1[[#This Row],[Material]]="TiC",Table1[[#This Row],[Estimated current]]*(Table1[[#This Row],[Schedule end]]-Table1[[#This Row],[Schedule start]])*24*0.032,IF(Table1[[#This Row],[Material]]="NiO",Table1[[#This Row],[Estimated current]]*(Table1[[#This Row],[Schedule end]]-Table1[[#This Row],[Schedule start]])*24*0.03,IF(Table1[[#This Row],[Material]]="Nb",Table1[[#This Row],[Estimated current]]*(Table1[[#This Row],[Schedule end]]-Table1[[#This Row],[Schedule start]])*24*0.023,IF(Table1[[#This Row],[Material]]="TaC",Table1[[#This Row],[Estimated current]]*(Table1[[#This Row],[Schedule end]]-Table1[[#This Row],[Schedule start]])*24*0.025,IF(Table1[[#This Row],[Material]]="ThO",Table1[[#This Row],[Estimated current]]*(Table1[[#This Row],[Schedule end]]-Table1[[#This Row],[Schedule start]])*24*0.076,NA()))))))))))),NA()) -> 474.24 | BA27: =Table1[[#This Row],[Estimated ship days]]/365 -> 1.299287671 | BC27: 233 | BD27: Changed from pail 254 to 233 | BE27: Assayed | BF27: =Table1[[#This Row],[TS]]&"-"&Table1[[#This Row],[TM]]&"-"&Table1[[#This Row],[Material]]&"#"&Table1[[#This Row],[No]]&"-"&Table1[[#This Row],[HP/LP]]&"-"&Table1[[#This Row],[IS]] -> ITE-TM4-UC#32-P2N-SIS
A28: =_xlfn.CONCAT(Table1[[#This Row],[Material]],"#",Table1[[#This Row],[No]]) -> Nb#9 | B28: Nb | C28: 9 | D28: LP | E28: SS | G28: ITW | H28: TM2 | I28: 2020 | J28: 12 | K28: 1 | L28: 139 | M28: Link | R28: 2020-11-24 | S28: 2020-11-26 | T28: 2020-12-01 | U28: 2020-12-21 | V28: 2021-01-19 | W28: 13.3 | X28: 55 | Y28: 50 | Z28: 18619 | AA28: =Table1[[#This Row],[Net Charge '[uAh']]]*6200000000000000000*0.000001*3600 -> 4.1557608e+20 | AB28: 50 | AC28: =CONCATENATE(Table1[[#This Row],[Material]], "#", Table1[[#This Row],[No]]) -> Nb#9 | AD28: 2021-01-21 | AE28: 149000 | AF28: 2022-01-31 | AG28: 9080 | AH28: 2022-12-16 | AI28: =1.98*1000 -> 1980 | AT28: =IF(AND(AND(Table1[[#This Row],[Online p+]]>0,Table1[[#This Row],[Shipping Date]]>0),NOT(Table1[[#This Row],[Shipping Date]]="")),Table1[[#This Row],[Shipping Date]]-Table1[[#This Row],[Offline p+]], NA()) ->  | AU28: =IF(Table1[[#This Row],[Offline p+]]>0,_xlfn.IFS(Table1[[#This Row],[Material]]="Ta",Table1[[#This Row],[Net Charge '[uAh']]]*0.034,Table1[[#This Row],[Material]]="ZrC",Table1[[#This Row],[Net Charge '[uAh']]]*0.05,Table1[[#This Row],[Material]]="UO2",Table1[[#This Row],[Net Charge '[uAh']]]*0.116,Table1[[#This Row],[Material]]="UC",Table1[[#This Row],[Net Charge '[uAh']]]*0.116,Table1[[#This Row],[Material]]="SiC",Table1[[#This Row],[Net Charge '[uAh']]]*0.05,Table1[[#This Row],[Material]]="nSiC",Table1[[#This Row],[Net Charge '[uAh']]]*0.05,Table1[[#This Row],[Material]]="TiC",Table1[[#This Row],[Net Charge '[uAh']]]*0.032,Table1[[#This Row],[Material]]="NiO",Table1[[#This Row],[Net Charge '[uAh']]]*0.03,Table1[[#This Row],[Material]]="Nb",Table1[[#This Row],[Net Charge '[uAh']]]*0.0305,Table1[[#This Row],[Material]]="TaC",Table1[[#This Row],[Net Charge '[uAh']]]*0.025,Table1[[#This Row],[Material]]="ThO",1095,TRUE,NA()),NA()) -> 567.8795 | AV28: =IF(Table1[[#This Row],[Offline p+]]>0,_xlfn.IFS(Table1[[#This Row],[Material]]="Ta",Table1[[#This Row],[Net Charge '[uAh']]]*0.028,Table1[[#This Row],[Material]]="ZrC",Table1[[#This Row],[Net Charge '[uAh']]]*0.036,Table1[[#This Row],[Material]]="UO2",Table1[[#This Row],[Net Charge '[uAh']]]*0.116,Table1[[#This Row],[Material]]="UC",Table1[[#This Row],[Net Charge '[uAh']]]*0.076,Table1[[#This Row],[Material]]="SiC",Table1[[#This Row],[Net Charge '[uAh']]]*0.048,Table1[[#This Row],[Material]]="nSiC",Table1[[#This Row],[Net Charge '[uAh']]]*0.048,Table1[[#This Row],[Material]]="TiC",Table1[[#This Row],[Net Charge '[uAh']]]*0.032,Table1[[#This Row],[Material]]="NiO",Table1[[#This Row],[Net Charge '[uAh']]]*0.03,Table1[[#This Row],[Material]]="Nb",Table1[[#This Row],[Net Charge '[uAh']]]*0.023,Table1[[#This Row],[Material]]="TaC",Table1[[#This Row],[Net Charge '[uAh']]]*0.025,Table1[[#This Row],[Material]]="ThO",Table1[[#This Row],[Net Charge '[uAh']]]*0.076,TRUE,NA()),NA()) -> 428.237 | AW28: 40 | AX28: 2020-12-01 | AY28: 2020-12-22 | AZ28: =IF(Table1[[#This Row],[Schedule end]]>0,IF(Table1[[#This Row],[Material]]="Ta",Table1[[#This Row],[Estimated current]]*(Table1[[#This Row],[Schedule end]]-Table1[[#This Row],[Schedule start]])*24*0.028,IF(Table1[[#This Row],[Material]]="ZrC", Table1[[#This Row],[Estimated current]]*(Table1[[#This Row],[Schedule end]]-Table1[[#This Row],[Schedule start]])*24*0.036,IF(Table1[[#This Row],[Material]]="UO2",Table1[[#This Row],[Estimated current]]*(Table1[[#This Row],[Schedule end]]-Table1[[#This Row],[Schedule start]])*24*0.116,IF(Table1[[#This Row],[Material]]="UC",Table1[[#This Row],[Estimated current]]*(Table1[[#This Row],[Schedule end]]-Table1[[#This Row],[Schedule start]])*24*0.076,IF(Table1[[#This Row],[Material]]="SiC",Table1[[#This Row],[Estimated current]]*(Table1[[#This Row],[Schedule end]]-Table1[[#This Row],[Schedule start]])*24*0.076,IF(Table1[[#This Row],[Material]]="nSiC",Table1[[#This Row],[Estimated current]]*(Table1[[#This Row],[Schedule end]]-Table1[[#This Row],[Schedule start]])*24*0.048,IF(Table1[[#This Row],[Material]]="TiC",Table1[[#This Row],[Estimated current]]*(Table1[[#This Row],[Schedule end]]-Table1[[#This Row],[Schedule start]])*24*0.032,IF(Table1[[#This Row],[Material]]="NiO",Table1[[#This Row],[Estimated current]]*(Table1[[#This Row],[Schedule end]]-Table1[[#This Row],[Schedule start]])*24*0.03,IF(Table1[[#This Row],[Material]]="Nb",Table1[[#This Row],[Estimated current]]*(Table1[[#This Row],[Schedule end]]-Table1[[#This Row],[Schedule start]])*24*0.023,IF(Table1[[#This Row],[Material]]="TaC",Table1[[#This Row],[Estimated current]]*(Table1[[#This Row],[Schedule end]]-Table1[[#This Row],[Schedule start]])*24*0.025,IF(Table1[[#This Row],[Material]]="ThO",Table1[[#This Row],[Estimated current]]*(Table1[[#This Row],[Schedule end]]-Table1[[#This Row],[Schedule start]])*24*0.076,NA()))))))))))),NA()) -> 463.68 | BA28: =Table1[[#This Row],[Estimated ship days]]/365 -> 1.270356164 | BB28: 6C | BC28: 246 | BD28: This pail is of previous revision, not certified as lifting device. Prior to shipping, a 3" loop must be crimped at the end of the wire rope. | BE28: Measured | BF28: =Table1[[#This Row],[TS]]&"-"&Table1[[#This Row],[TM]]&"-"&Table1[[#This Row],[Material]]&"#"&Table1[[#This Row],[No]]&"-"&Table1[[#This Row],[HP/LP]]&"-"&Table1[[#This Row],[IS]] -> ITW-TM2-Nb#9-LP-SS
A29: =_xlfn.CONCAT(Table1[[#This Row],[Material]],"#",Table1[[#This Row],[No]]) -> Ta#61 | B29: Ta | C29: 61 | D29: LP | E29: SIS | G29: ITE | H29: TM4 | I29: 2020 | J29: 11 | K29: 10 | L29: 139 | M29: Link | R29: 2020-11-05 | S29: 2020-11-09 | T29: 2020-11-11 | U29: 2020-12-01 | V29: 2021-01-08 | W29: 13.4 | X29: 40/60 | Y29: 35 | Z29: 11870 | AA29: =Table1[[#This Row],[Net Charge '[uAh']]]*6200000000000000000*0.000001*3600 -> 2.649384e+20 | AB29: 48 | AC29: =CONCATENATE(Table1[[#This Row],[Material]], "#", Table1[[#This Row],[No]]) -> Ta#61 | AD29: 2021-01-13 | AE29: 41600 | AF29: 2022-01-31 | AG29: 3620 | AH29: 2022-12-16 | AI29: =1.56*1000 -> 1560 | AN29: 2022-12-16 | AT29: =IF(AND(AND(Table1[[#This Row],[Online p+]]>0,Table1[[#This Row],[Shipping Date]]>0),NOT(Table1[[#This Row],[Shipping Date]]="")),Table1[[#This Row],[Shipping Date]]-Table1[[#This Row],[Offline p+]], NA()) ->  | AU29: =IF(Table1[[#This Row],[Offline p+]]>0,_xlfn.IFS(Table1[[#This Row],[Material]]="Ta",Table1[[#This Row],[Net Charge '[uAh']]]*0.034,Table1[[#This Row],[Material]]="ZrC",Table1[[#This Row],[Net Charge '[uAh']]]*0.05,Table1[[#This Row],[Material]]="UO2",Table1[[#This Row],[Net Charge '[uAh']]]*0.116,Table1[[#This Row],[Material]]="UC",Table1[[#This Row],[Net Charge '[uAh']]]*0.116,Table1[[#This Row],[Material]]="SiC",Table1[[#This Row],[Net Charge '[uAh']]]*0.05,Table1[[#This Row],[Material]]="nSiC",Table1[[#This Row],[Net Charge '[uAh']]]*0.05,Table1[[#This Row],[Material]]="TiC",Table1[[#This Row],[Net Charge '[uAh']]]*0.032,Table1[[#This Row],[Material]]="NiO",Table1[[#This Row],[Net Charge '[uAh']]]*0.03,Table1[[#This Row],[Material]]="Nb",Table1[[#This Row],[Net Charge '[uAh']]]*0.0305,Table1[[#This Row],[Material]]="TaC",Table1[[#This Row],[Net Charge '[uAh']]]*0.025,Table1[[#This Row],[Material]]="ThO",1095,TRUE,NA()),NA()) -> 403.58 | AV29: =IF(Table1[[#This Row],[Offline p+]]>0,_xlfn.IFS(Table1[[#This Row],[Material]]="Ta",Table1[[#This Row],[Net Charge '[uAh']]]*0.028,Table1[[#This Row],[Material]]="ZrC",Table1[[#This Row],[Net Charge '[uAh']]]*0.036,Table1[[#This Row],[Material]]="UO2",Table1[[#This Row],[Net Charge '[uAh']]]*0.116,Table1[[#This Row],[Material]]="UC",Table1[[#This Row],[Net Charge '[uAh']]]*0.076,Table1[[#This Row],[Material]]="SiC",Table1[[#This Row],[Net Charge '[uAh']]]*0.048,Table1[[#This Row],[Material]]="nSiC",Table1[[#This Row],[Net Charge '[uAh']]]*0.048,Table1[[#This Row],[Material]]="TiC",Table1[[#This Row],[Net Charge '[uAh']]]*0.032,Table1[[#This Row],[Material]]="NiO",Table1[[#This Row],[Net Charge '[uAh']]]*0.03,Table1[[#This Row],[Material]]="Nb",Table1[[#This Row],[Net Charge '[uAh']]]*0.023,Table1[[#This Row],[Material]]="TaC",Table1[[#This Row],[Net Charge '[uAh']]]*0.025,Table1[[#This Row],[Material]]="ThO",Table1[[#This Row],[Net Charge '[uAh']]]*0.076,TRUE,NA()),NA()) -> 332.36 | AW29: 40 | AX29: 2020-11-10 | AY29: 2020-12-01 | AZ29: =IF(Table1[[#This Row],[Schedule end]]>0,IF(Table1[[#This Row],[Material]]="Ta",Table1[[#This Row],[Estimated current]]*(Table1[[#This Row],[Schedule end]]-Table1[[#This Row],[Schedule start]])*24*0.028,IF(Table1[[#This Row],[Material]]="ZrC", Table1[[#This Row],[Estimated current]]*(Table1[[#This Row],[Schedule end]]-Table1[[#This Row],[Schedule start]])*24*0.036,IF(Table1[[#This Row],[Material]]="UO2",Table1[[#This Row],[Estimated current]]*(Table1[[#This Row],[Schedule end]]-Table1[[#This Row],[Schedule start]])*24*0.116,IF(Table1[[#This Row],[Material]]="UC",Table1[[#This Row],[Estimated current]]*(Table1[[#This Row],[Schedule end]]-Table1[[#This Row],[Schedule start]])*24*0.076,IF(Table1[[#This Row],[Material]]="SiC",Table1[[#This Row],[Estimated current]]*(Table1[[#This Row],[Schedule end]]-Table1[[#This Row],[Schedule start]])*24*0.076,IF(Table1[[#This Row],[Material]]="nSiC",Table1[[#This Row],[Estimated current]]*(Table1[[#This Row],[Schedule end]]-Table1[[#This Row],[Schedule start]])*24*0.048,IF(Table1[[#This Row],[Material]]="TiC",Table1[[#This Row],[Estimated current]]*(Table1[[#This Row],[Schedule end]]-Table1[[#This Row],[Schedule start]])*24*0.032,IF(Table1[[#This Row],[Material]]="NiO",Table1[[#This Row],[Estimated current]]*(Table1[[#This Row],[Schedule end]]-Table1[[#This Row],[Schedule start]])*24*0.03,IF(Table1[[#This Row],[Material]]="Nb",Table1[[#This Row],[Estimated current]]*(Table1[[#This Row],[Schedule end]]-Table1[[#This Row],[Schedule start]])*24*0.023,IF(Table1[[#This Row],[Material]]="TaC",Table1[[#This Row],[Estimated current]]*(Table1[[#This Row],[Schedule end]]-Table1[[#This Row],[Schedule start]])*24*0.025,IF(Table1[[#This Row],[Material]]="ThO",Table1[[#This Row],[Estimated current]]*(Table1[[#This Row],[Schedule end]]-Table1[[#This Row],[Schedule start]])*24*0.076,NA()))))))))))),NA()) -> 564.48 | BA29: =Table1[[#This Row],[Estimated ship days]]/365 -> 1.546520548 | BC29: 245 | BE29: Measured | BF29: =Table1[[#This Row],[TS]]&"-"&Table1[[#This Row],[TM]]&"-"&Table1[[#This Row],[Material]]&"#"&Table1[[#This Row],[No]]&"-"&Table1[[#This Row],[HP/LP]]&"-"&Table1[[#This Row],[IS]] -> ITE-TM4-Ta#61-LP-SIS
A30: =_xlfn.CONCAT(Table1[[#This Row],[Material]],"#",Table1[[#This Row],[No]]) -> C#2 | B30: C | C30: 2 | D30: LP | E30: SIS | G30: ITW | H30: TM2 | I30: 2020 | J30: 10 | K30: 22 | L30: 139 | M30: Link | R30: 2020-10-20 | S30: 2020-10-22 | T30: 2020-10-26 | U30: 2020-11-10 | V30: 2020-11-17 | W30: 15.8 | X30: 95/100 | Y30: 90 | Z30: 18131 | AA30: =Table1[[#This Row],[Net Charge '[uAh']]]*6200000000000000000*0.000001*3600 -> 4.0468392e+20 | AB30: 40 | AC30: =CONCATENATE(Table1[[#This Row],[Material]], "#", Table1[[#This Row],[No]]) -> C#2 | AD30: 2020-11-19 | AE30: 185000 | AF30: 2022-01-28 | AG30: 3230 | AN30: 2022-05-19 | AT30: =IF(AND(AND(Table1[[#This Row],[Online p+]]>0,Table1[[#This Row],[Shipping Date]]>0),NOT(Table1[[#This Row],[Shipping Date]]="")),Table1[[#This Row],[Shipping Date]]-Table1[[#This Row],[Offline p+]], NA()) ->  | AU30: =IF(Table1[[#This Row],[Offline p+]]>0,_xlfn.IFS(Table1[[#This Row],[Material]]="Ta",Table1[[#This Row],[Net Charge '[uAh']]]*0.034,Table1[[#This Row],[Material]]="ZrC",Table1[[#This Row],[Net Charge '[uAh']]]*0.05,Table1[[#This Row],[Material]]="UO2",Table1[[#This Row],[Net Charge '[uAh']]]*0.116,Table1[[#This Row],[Material]]="UC",Table1[[#This Row],[Net Charge '[uAh']]]*0.116,Table1[[#This Row],[Material]]="SiC",Table1[[#This Row],[Net Charge '[uAh']]]*0.05,Table1[[#This Row],[Material]]="nSiC",Table1[[#This Row],[Net Charge '[uAh']]]*0.05,Table1[[#This Row],[Material]]="TiC",Table1[[#This Row],[Net Charge '[uAh']]]*0.032,Table1[[#This Row],[Material]]="NiO",Table1[[#This Row],[Net Charge '[uAh']]]*0.03,Table1[[#This Row],[Material]]="Nb",Table1[[#This Row],[Net Charge '[uAh']]]*0.0305,Table1[[#This Row],[Material]]="TaC",Table1[[#This Row],[Net Charge '[uAh']]]*0.025,Table1[[#This Row],[Material]]="ThO",1095,TRUE,NA()),NA()) ->  | AV30: =IF(Table1[[#This Row],[Offline p+]]>0,_xlfn.IFS(Table1[[#This Row],[Material]]="Ta",Table1[[#This Row],[Net Charge '[uAh']]]*0.028,Table1[[#This Row],[Material]]="ZrC",Table1[[#This Row],[Net Charge '[uAh']]]*0.036,Table1[[#This Row],[Material]]="UO2",Table1[[#This Row],[Net Charge '[uAh']]]*0.116,Table1[[#This Row],[Material]]="UC",Table1[[#This Row],[Net Charge '[uAh']]]*0.076,Table1[[#This Row],[Material]]="SiC",Table1[[#This Row],[Net Charge '[uAh']]]*0.048,Table1[[#This Row],[Material]]="nSiC",Table1[[#This Row],[Net Charge '[uAh']]]*0.048,Table1[[#This Row],[Material]]="TiC",Table1[[#This Row],[Net Charge '[uAh']]]*0.032,Table1[[#This Row],[Material]]="NiO",Table1[[#This Row],[Net Charge '[uAh']]]*0.03,Table1[[#This Row],[Material]]="Nb",Table1[[#This Row],[Net Charge '[uAh']]]*0.023,Table1[[#This Row],[Material]]="TaC",Table1[[#This Row],[Net Charge '[uAh']]]*0.025,Table1[[#This Row],[Material]]="ThO",Table1[[#This Row],[Net Charge '[uAh']]]*0.076,TRUE,NA()),NA()) ->  | AW30: 100 | AX30: 2020-10-22 | AY30: 2020-11-10 | AZ30: =IF(Table1[[#This Row],[Schedule end]]>0,IF(Table1[[#This Row],[Material]]="Ta",Table1[[#This Row],[Estimated current]]*(Table1[[#This Row],[Schedule end]]-Table1[[#This Row],[Schedule start]])*24*0.028,IF(Table1[[#This Row],[Material]]="ZrC", Table1[[#This Row],[Estimated current]]*(Table1[[#This Row],[Schedule end]]-Table1[[#This Row],[Schedule start]])*24*0.036,IF(Table1[[#This Row],[Material]]="UO2",Table1[[#This Row],[Estimated current]]*(Table1[[#This Row],[Schedule end]]-Table1[[#This Row],[Schedule start]])*24*0.116,IF(Table1[[#This Row],[Material]]="UC",Table1[[#This Row],[Estimated current]]*(Table1[[#This Row],[Schedule end]]-Table1[[#This Row],[Schedule start]])*24*0.076,IF(Table1[[#This Row],[Material]]="SiC",Table1[[#This Row],[Estimated current]]*(Table1[[#This Row],[Schedule end]]-Table1[[#This Row],[Schedule start]])*24*0.076,IF(Table1[[#This Row],[Material]]="nSiC",Table1[[#This Row],[Estimated current]]*(Table1[[#This Row],[Schedule end]]-Table1[[#This Row],[Schedule start]])*24*0.048,IF(Table1[[#This Row],[Material]]="TiC",Table1[[#This Row],[Estimated current]]*(Table1[[#This Row],[Schedule end]]-Table1[[#This Row],[Schedule start]])*24*0.032,IF(Table1[[#This Row],[Material]]="NiO",Table1[[#This Row],[Estimated current]]*(Table1[[#This Row],[Schedule end]]-Table1[[#This Row],[Schedule start]])*24*0.03,IF(Table1[[#This Row],[Material]]="Nb",Table1[[#This Row],[Estimated current]]*(Table1[[#This Row],[Schedule end]]-Table1[[#This Row],[Schedule start]])*24*0.023,IF(Table1[[#This Row],[Material]]="TaC",Table1[[#This Row],[Estimated current]]*(Table1[[#This Row],[Schedule end]]-Table1[[#This Row],[Schedule start]])*24*0.025,IF(Table1[[#This Row],[Material]]="ThO",Table1[[#This Row],[Estimated current]]*(Table1[[#This Row],[Schedule end]]-Table1[[#This Row],[Schedule start]])*24*0.076,NA()))))))))))),NA()) ->  | BA30: =Table1[[#This Row],[Estimated ship days]]/365 ->  | BC30: 235 | BE30: Measured | BF30: =Table1[[#This Row],[TS]]&"-"&Table1[[#This Row],[TM]]&"-"&Table1[[#This Row],[Material]]&"#"&Table1[[#This Row],[No]]&"-"&Table1[[#This Row],[HP/LP]]&"-"&Table1[[#This Row],[IS]] -> ITW-TM2-C#2-LP-SIS
A31: =_xlfn.CONCAT(Table1[[#This Row],[Material]],"#",Table1[[#This Row],[No]]) -> UC#31 | B31: UC | C31: 31 | D31: P2N | E31: SIS | G31: ITE | H31: TM4 | I31: 2020 | J31: 10 | K31: 6 | L31: 138 | M31: Link | R31: 2020-09-23 | S31: 2020-10-01 | T31: 2020-10-19 | U31: 2020-10-25 | V31: 2020-11-03 | W31: 21.8 | X31: 98 | Y31: 90 | Z31: 1686 | AA31: =Table1[[#This Row],[Net Charge '[uAh']]]*6200000000000000000*0.000001*3600 -> 3.763152e+19 | AB31: 20 | AC31: =CONCATENATE(Table1[[#This Row],[Material]], "#", Table1[[#This Row],[No]]) -> UC#31 | AD31: 2020-11-12 | AE31: 3710 | AN31: 2021-05-14 | AP31: 2021-05-19 | AT31: =IF(AND(AND(Table1[[#This Row],[Online p+]]>0,Table1[[#This Row],[Shipping Date]]>0),NOT(Table1[[#This Row],[Shipping Date]]="")),Table1[[#This Row],[Shipping Date]]-Table1[[#This Row],[Offline p+]], NA()) ->  | AU31: =IF(Table1[[#This Row],[Offline p+]]>0,_xlfn.IFS(Table1[[#This Row],[Material]]="Ta",Table1[[#This Row],[Net Charge '[uAh']]]*0.034,Table1[[#This Row],[Material]]="ZrC",Table1[[#This Row],[Net Charge '[uAh']]]*0.05,Table1[[#This Row],[Material]]="UO2",Table1[[#This Row],[Net Charge '[uAh']]]*0.116,Table1[[#This Row],[Material]]="UC",Table1[[#This Row],[Net Charge '[uAh']]]*0.116,Table1[[#This Row],[Material]]="SiC",Table1[[#This Row],[Net Charge '[uAh']]]*0.05,Table1[[#This Row],[Material]]="nSiC",Table1[[#This Row],[Net Charge '[uAh']]]*0.05,Table1[[#This Row],[Material]]="TiC",Table1[[#This Row],[Net Charge '[uAh']]]*0.032,Table1[[#This Row],[Material]]="NiO",Table1[[#This Row],[Net Charge '[uAh']]]*0.03,Table1[[#This Row],[Material]]="Nb",Table1[[#This Row],[Net Charge '[uAh']]]*0.0305,Table1[[#This Row],[Material]]="TaC",Table1[[#This Row],[Net Charge '[uAh']]]*0.025,Table1[[#This Row],[Material]]="ThO",1095,TRUE,NA()),NA()) -> 195.576 | AV31: =IF(Table1[[#This Row],[Offline p+]]>0,_xlfn.IFS(Table1[[#This Row],[Material]]="Ta",Table1[[#This Row],[Net Charge '[uAh']]]*0.028,Table1[[#This Row],[Material]]="ZrC",Table1[[#This Row],[Net Charge '[uAh']]]*0.036,Table1[[#This Row],[Material]]="UO2",Table1[[#This Row],[Net Charge '[uAh']]]*0.116,Table1[[#This Row],[Material]]="UC",Table1[[#This Row],[Net Charge '[uAh']]]*0.076,Table1[[#This Row],[Material]]="SiC",Table1[[#This Row],[Net Charge '[uAh']]]*0.048,Table1[[#This Row],[Material]]="nSiC",Table1[[#This Row],[Net Charge '[uAh']]]*0.048,Table1[[#This Row],[Material]]="TiC",Table1[[#This Row],[Net Charge '[uAh']]]*0.032,Table1[[#This Row],[Material]]="NiO",Table1[[#This Row],[Net Charge '[uAh']]]*0.03,Table1[[#This Row],[Material]]="Nb",Table1[[#This Row],[Net Charge '[uAh']]]*0.023,Table1[[#This Row],[Material]]="TaC",Table1[[#This Row],[Net Charge '[uAh']]]*0.025,Table1[[#This Row],[Material]]="ThO",Table1[[#This Row],[Net Charge '[uAh']]]*0.076,TRUE,NA()),NA()) -> 128.136 | AW31: 20 | AX31: 2020-09-15 | AY31: 2020-09-28 | AZ31: =IF(Table1[[#This Row],[Schedule end]]>0,IF(Table1[[#This Row],[Material]]="Ta",Table1[[#This Row],[Estimated current]]*(Table1[[#This Row],[Schedule end]]-Table1[[#This Row],[Schedule start]])*24*0.028,IF(Table1[[#This Row],[Material]]="ZrC", Table1[[#This Row],[Estimated current]]*(Table1[[#This Row],[Schedule end]]-Table1[[#This Row],[Schedule start]])*24*0.036,IF(Table1[[#This Row],[Material]]="UO2",Table1[[#This Row],[Estimated current]]*(Table1[[#This Row],[Schedule end]]-Table1[[#This Row],[Schedule start]])*24*0.116,IF(Table1[[#This Row],[Material]]="UC",Table1[[#This Row],[Estimated current]]*(Table1[[#This Row],[Schedule end]]-Table1[[#This Row],[Schedule start]])*24*0.076,IF(Table1[[#This Row],[Material]]="SiC",Table1[[#This Row],[Estimated current]]*(Table1[[#This Row],[Schedule end]]-Table1[[#This Row],[Schedule start]])*24*0.076,IF(Table1[[#This Row],[Material]]="nSiC",Table1[[#This Row],[Estimated current]]*(Table1[[#This Row],[Schedule end]]-Table1[[#This Row],[Schedule start]])*24*0.048,IF(Table1[[#This Row],[Material]]="TiC",Table1[[#This Row],[Estimated current]]*(Table1[[#This Row],[Schedule end]]-Table1[[#This Row],[Schedule start]])*24*0.032,IF(Table1[[#This Row],[Material]]="NiO",Table1[[#This Row],[Estimated current]]*(Table1[[#This Row],[Schedule end]]-Table1[[#This Row],[Schedule start]])*24*0.03,IF(Table1[[#This Row],[Material]]="Nb",Table1[[#This Row],[Estimated current]]*(Table1[[#This Row],[Schedule end]]-Table1[[#This Row],[Schedule start]])*24*0.023,IF(Table1[[#This Row],[Material]]="TaC",Table1[[#This Row],[Estimated current]]*(Table1[[#This Row],[Schedule end]]-Table1[[#This Row],[Schedule start]])*24*0.025,IF(Table1[[#This Row],[Material]]="ThO",Table1[[#This Row],[Estimated current]]*(Table1[[#This Row],[Schedule end]]-Table1[[#This Row],[Schedule start]])*24*0.076,NA()))))))))))),NA()) -> 474.24 | BA31: =Table1[[#This Row],[Estimated ship days]]/365 -> 1.299287671 | BC31: 224 | BF31: =Table1[[#This Row],[TS]]&"-"&Table1[[#This Row],[TM]]&"-"&Table1[[#This Row],[Material]]&"#"&Table1[[#This Row],[No]]&"-"&Table1[[#This Row],[HP/LP]]&"-"&Table1[[#This Row],[IS]] -> ITE-TM4-UC#31-P2N-SIS
A32: =_xlfn.CONCAT(Table1[[#This Row],[Material]],"#",Table1[[#This Row],[No]]) -> Ta#60 | B32: Ta | C32: 60 | D32: LP | E32: SIS | G32: ITW | H32: TM2 | I32: 2020 | J32: 9 | K32: 17 | L32: 138 | M32: Link | R32: 2020-08-26 | S32: 2020-09-14 | T32: 2020-09-17 | U32: 2020-10-06 | V32: 2020-10-16 | W32: 14.3 | X32: 40 | Y32: 40 | Z32: 11161 | AA32: =Table1[[#This Row],[Net Charge '[uAh']]]*6200000000000000000*0.000001*3600 -> 2.4911352e+20 | AB32: 50 | AC32: =CONCATENATE(Table1[[#This Row],[Material]], "#", Table1[[#This Row],[No]]) -> Ta#60 | AD32: 2020-10-21 | AE32: 83200 | AF32: 2022-01-27 | AG32: 3700 | AH32: 2022-12-16 | AI32: =1.38*1000 -> 1380 | AN32: 2022-12-16 | AT32: =IF(AND(AND(Table1[[#This Row],[Online p+]]>0,Table1[[#This Row],[Shipping Date]]>0),NOT(Table1[[#This Row],[Shipping Date]]="")),Table1[[#This Row],[Shipping Date]]-Table1[[#This Row],[Offline p+]], NA()) ->  | AU32: =IF(Table1[[#This Row],[Offline p+]]>0,_xlfn.IFS(Table1[[#This Row],[Material]]="Ta",Table1[[#This Row],[Net Charge '[uAh']]]*0.034,Table1[[#This Row],[Material]]="ZrC",Table1[[#This Row],[Net Charge '[uAh']]]*0.05,Table1[[#This Row],[Material]]="UO2",Table1[[#This Row],[Net Charge '[uAh']]]*0.116,Table1[[#This Row],[Material]]="UC",Table1[[#This Row],[Net Charge '[uAh']]]*0.116,Table1[[#This Row],[Material]]="SiC",Table1[[#This Row],[Net Charge '[uAh']]]*0.05,Table1[[#This Row],[Material]]="nSiC",Table1[[#This Row],[Net Charge '[uAh']]]*0.05,Table1[[#This Row],[Material]]="TiC",Table1[[#This Row],[Net Charge '[uAh']]]*0.032,Table1[[#This Row],[Material]]="NiO",Table1[[#This Row],[Net Charge '[uAh']]]*0.03,Table1[[#This Row],[Material]]="Nb",Table1[[#This Row],[Net Charge '[uAh']]]*0.0305,Table1[[#This Row],[Material]]="TaC",Table1[[#This Row],[Net Charge '[uAh']]]*0.025,Table1[[#This Row],[Material]]="ThO",1095,TRUE,NA()),NA()) -> 379.474 | AV32: =IF(Table1[[#This Row],[Offline p+]]>0,_xlfn.IFS(Table1[[#This Row],[Material]]="Ta",Table1[[#This Row],[Net Charge '[uAh']]]*0.028,Table1[[#This Row],[Material]]="ZrC",Table1[[#This Row],[Net Charge '[uAh']]]*0.036,Table1[[#This Row],[Material]]="UO2",Table1[[#This Row],[Net Charge '[uAh']]]*0.116,Table1[[#This Row],[Material]]="UC",Table1[[#This Row],[Net Charge '[uAh']]]*0.076,Table1[[#This Row],[Material]]="SiC",Table1[[#This Row],[Net Charge '[uAh']]]*0.048,Table1[[#This Row],[Material]]="nSiC",Table1[[#This Row],[Net Charge '[uAh']]]*0.048,Table1[[#This Row],[Material]]="TiC",Table1[[#This Row],[Net Charge '[uAh']]]*0.032,Table1[[#This Row],[Material]]="NiO",Table1[[#This Row],[Net Charge '[uAh']]]*0.03,Table1[[#This Row],[Material]]="Nb",Table1[[#This Row],[Net Charge '[uAh']]]*0.023,Table1[[#This Row],[Material]]="TaC",Table1[[#This Row],[Net Charge '[uAh']]]*0.025,Table1[[#This Row],[Material]]="ThO",Table1[[#This Row],[Net Charge '[uAh']]]*0.076,TRUE,NA()),NA()) -> 312.508 | AW32: 40 | AX32: 2020-09-17 | AY32: 2020-10-06 | AZ32: =IF(Table1[[#This Row],[Schedule end]]>0,IF(Table1[[#This Row],[Material]]="Ta",Table1[[#This Row],[Estimated current]]*(Table1[[#This Row],[Schedule end]]-Table1[[#This Row],[Schedule start]])*24*0.028,IF(Table1[[#This Row],[Material]]="ZrC", Table1[[#This Row],[Estimated current]]*(Table1[[#This Row],[Schedule end]]-Table1[[#This Row],[Schedule start]])*24*0.036,IF(Table1[[#This Row],[Material]]="UO2",Table1[[#This Row],[Estimated current]]*(Table1[[#This Row],[Schedule end]]-Table1[[#This Row],[Schedule start]])*24*0.116,IF(Table1[[#This Row],[Material]]="UC",Table1[[#This Row],[Estimated current]]*(Table1[[#This Row],[Schedule end]]-Table1[[#This Row],[Schedule start]])*24*0.076,IF(Table1[[#This Row],[Material]]="SiC",Table1[[#This Row],[Estimated current]]*(Table1[[#This Row],[Schedule end]]-Table1[[#This Row],[Schedule start]])*24*0.076,IF(Table1[[#This Row],[Material]]="nSiC",Table1[[#This Row],[Estimated current]]*(Table1[[#This Row],[Schedule end]]-Table1[[#This Row],[Schedule start]])*24*0.048,IF(Table1[[#This Row],[Material]]="TiC",Table1[[#This Row],[Estimated current]]*(Table1[[#This Row],[Schedule end]]-Table1[[#This Row],[Schedule start]])*24*0.032,IF(Table1[[#This Row],[Material]]="NiO",Table1[[#This Row],[Estimated current]]*(Table1[[#This Row],[Schedule end]]-Table1[[#This Row],[Schedule start]])*24*0.03,IF(Table1[[#This Row],[Material]]="Nb",Table1[[#This Row],[Estimated current]]*(Table1[[#This Row],[Schedule end]]-Table1[[#This Row],[Schedule start]])*24*0.023,IF(Table1[[#This Row],[Material]]="TaC",Table1[[#This Row],[Estimated current]]*(Table1[[#This Row],[Schedule end]]-Table1[[#This Row],[Schedule start]])*24*0.025,IF(Table1[[#This Row],[Material]]="ThO",Table1[[#This Row],[Estimated current]]*(Table1[[#This Row],[Schedule end]]-Table1[[#This Row],[Schedule start]])*24*0.076,NA()))))))))))),NA()) -> 510.72 | BA32: =Table1[[#This Row],[Estimated ship days]]/365 -> 1.399232877 | BC32: 239 | BE32: Measured | BF32: =Table1[[#This Row],[TS]]&"-"&Table1[[#This Row],[TM]]&"-"&Table1[[#This Row],[Material]]&"#"&Table1[[#This Row],[No]]&"-"&Table1[[#This Row],[HP/LP]]&"-"&Table1[[#This Row],[IS]] -> ITW-TM2-Ta#60-LP-SIS
A33: =_xlfn.CONCAT(Table1[[#This Row],[Material]],"#",Table1[[#This Row],[No]]) -> UC#30 | B33: UC | C33: 30 | D33: LP | E33: SIS | G33: ITE | H33: TM4 | I33: 2020 | J33: 8 | K33: 25 | L33: 138 | M33: Link | R33: 2020-07-03 | S33: 2020-08-24 | T33: 2020-08-25 | U33: 2020-09-17 | V33: 2020-09-22 | W33: 12.8 | X33: 20/40 | Y33: 25 | Z33: 7079 | AA33: =Table1[[#This Row],[Net Charge '[uAh']]]*6200000000000000000*0.000001*3600 -> 1.5800328e+20 | AB33: 30 | AC33: =CONCATENATE(Table1[[#This Row],[Material]], "#", Table1[[#This Row],[No]]) -> UC#30 | AD33: 2020-09-24 | AE33: 81500 | AF33: 2022-01-27 | AG33: 1240 | AN33: 2022-05-19 | AT33: =IF(AND(AND(Table1[[#This Row],[Online p+]]>0,Table1[[#This Row],[Shipping Date]]>0),NOT(Table1[[#This Row],[Shipping Date]]="")),Table1[[#This Row],[Shipping Date]]-Table1[[#This Row],[Offline p+]], NA()) ->  | AU33: =IF(Table1[[#This Row],[Offline p+]]>0,_xlfn.IFS(Table1[[#This Row],[Material]]="Ta",Table1[[#This Row],[Net Charge '[uAh']]]*0.034,Table1[[#This Row],[Material]]="ZrC",Table1[[#This Row],[Net Charge '[uAh']]]*0.05,Table1[[#This Row],[Material]]="UO2",Table1[[#This Row],[Net Charge '[uAh']]]*0.116,Table1[[#This Row],[Material]]="UC",Table1[[#This Row],[Net Charge '[uAh']]]*0.116,Table1[[#This Row],[Material]]="SiC",Table1[[#This Row],[Net Charge '[uAh']]]*0.05,Table1[[#This Row],[Material]]="nSiC",Table1[[#This Row],[Net Charge '[uAh']]]*0.05,Table1[[#This Row],[Material]]="TiC",Table1[[#This Row],[Net Charge '[uAh']]]*0.032,Table1[[#This Row],[Material]]="NiO",Table1[[#This Row],[Net Charge '[uAh']]]*0.03,Table1[[#This Row],[Material]]="Nb",Table1[[#This Row],[Net Charge '[uAh']]]*0.0305,Table1[[#This Row],[Material]]="TaC",Table1[[#This Row],[Net Charge '[uAh']]]*0.025,Table1[[#This Row],[Material]]="ThO",1095,TRUE,NA()),NA()) -> 821.164 | AV33: =IF(Table1[[#This Row],[Offline p+]]>0,_xlfn.IFS(Table1[[#This Row],[Material]]="Ta",Table1[[#This Row],[Net Charge '[uAh']]]*0.028,Table1[[#This Row],[Material]]="ZrC",Table1[[#This Row],[Net Charge '[uAh']]]*0.036,Table1[[#This Row],[Material]]="UO2",Table1[[#This Row],[Net Charge '[uAh']]]*0.116,Table1[[#This Row],[Material]]="UC",Table1[[#This Row],[Net Charge '[uAh']]]*0.076,Table1[[#This Row],[Material]]="SiC",Table1[[#This Row],[Net Charge '[uAh']]]*0.048,Table1[[#This Row],[Material]]="nSiC",Table1[[#This Row],[Net Charge '[uAh']]]*0.048,Table1[[#This Row],[Material]]="TiC",Table1[[#This Row],[Net Charge '[uAh']]]*0.032,Table1[[#This Row],[Material]]="NiO",Table1[[#This Row],[Net Charge '[uAh']]]*0.03,Table1[[#This Row],[Material]]="Nb",Table1[[#This Row],[Net Charge '[uAh']]]*0.023,Table1[[#This Row],[Material]]="TaC",Table1[[#This Row],[Net Charge '[uAh']]]*0.025,Table1[[#This Row],[Material]]="ThO",Table1[[#This Row],[Net Charge '[uAh']]]*0.076,TRUE,NA()),NA()) -> 538.004 | AW33: 20 | AX33: 2020-07-28 | AY33: 2020-08-18 | AZ33: =IF(Table1[[#This Row],[Schedule end]]>0,IF(Table1[[#This Row],[Material]]="Ta",Table1[[#This Row],[Estimated current]]*(Table1[[#This Row],[Schedule end]]-Table1[[#This Row],[Schedule start]])*24*0.028,IF(Table1[[#This Row],[Material]]="ZrC", Table1[[#This Row],[Estimated current]]*(Table1[[#This Row],[Schedule end]]-Table1[[#This Row],[Schedule start]])*24*0.036,IF(Table1[[#This Row],[Material]]="UO2",Table1[[#This Row],[Estimated current]]*(Table1[[#This Row],[Schedule end]]-Table1[[#This Row],[Schedule start]])*24*0.116,IF(Table1[[#This Row],[Material]]="UC",Table1[[#This Row],[Estimated current]]*(Table1[[#This Row],[Schedule end]]-Table1[[#This Row],[Schedule start]])*24*0.076,IF(Table1[[#This Row],[Material]]="SiC",Table1[[#This Row],[Estimated current]]*(Table1[[#This Row],[Schedule end]]-Table1[[#This Row],[Schedule start]])*24*0.076,IF(Table1[[#This Row],[Material]]="nSiC",Table1[[#This Row],[Estimated current]]*(Table1[[#This Row],[Schedule end]]-Table1[[#This Row],[Schedule start]])*24*0.048,IF(Table1[[#This Row],[Material]]="TiC",Table1[[#This Row],[Estimated current]]*(Table1[[#This Row],[Schedule end]]-Table1[[#This Row],[Schedule start]])*24*0.032,IF(Table1[[#This Row],[Material]]="NiO",Table1[[#This Row],[Estimated current]]*(Table1[[#This Row],[Schedule end]]-Table1[[#This Row],[Schedule start]])*24*0.03,IF(Table1[[#This Row],[Material]]="Nb",Table1[[#This Row],[Estimated current]]*(Table1[[#This Row],[Schedule end]]-Table1[[#This Row],[Schedule start]])*24*0.023,IF(Table1[[#This Row],[Material]]="TaC",Table1[[#This Row],[Estimated current]]*(Table1[[#This Row],[Schedule end]]-Table1[[#This Row],[Schedule start]])*24*0.025,IF(Table1[[#This Row],[Material]]="ThO",Table1[[#This Row],[Estimated current]]*(Table1[[#This Row],[Schedule end]]-Table1[[#This Row],[Schedule start]])*24*0.076,NA()))))))))))),NA()) -> 766.08 | BA33: =Table1[[#This Row],[Estimated ship days]]/365 -> 2.098849315 | BC33: 238 | BE33: Measured | BF33: =Table1[[#This Row],[TS]]&"-"&Table1[[#This Row],[TM]]&"-"&Table1[[#This Row],[Material]]&"#"&Table1[[#This Row],[No]]&"-"&Table1[[#This Row],[HP/LP]]&"-"&Table1[[#This Row],[IS]] -> ITE-TM4-UC#30-LP-SIS
A34: =_xlfn.CONCAT(Table1[[#This Row],[Material]],"#",Table1[[#This Row],[No]]) -> C#1 | B34: C | C34: 1 | D34: LP | E34: SIS | G34: ITW | H34: TM2 | I34: 2020 | J34: 7 | K34: 15 | L34: 138 | M34: Link | R34: 2020-06-17 | S34: 2020-08-14 | T34: 2020-08-15 | U34: 2020-08-16 | V34: 2020-08-18 | W34: 15.5 | X34: 100 | Y34: 1 | Z34: 0 | AA34: =Table1[[#This Row],[Net Charge '[uAh']]]*6200000000000000000*0.000001*3600 -> 0 | AB34: 30 | AC34: =CONCATENATE(Table1[[#This Row],[Material]], "#", Table1[[#This Row],[No]]) -> C#1 | AD34: 2020-08-27 | AE34: 200 | AN34: 2021-03-25 | AP34: 2021-03-26 | AQ34: 2021-03-26 | AT34: =IF(AND(AND(Table1[[#This Row],[Online p+]]>0,Table1[[#This Row],[Shipping Date]]>0),NOT(Table1[[#This Row],[Shipping Date]]="")),Table1[[#This Row],[Shipping Date]]-Table1[[#This Row],[Offline p+]], NA()) -> 222 | AU34: =IF(Table1[[#This Row],[Offline p+]]>0,_xlfn.IFS(Table1[[#This Row],[Material]]="Ta",Table1[[#This Row],[Net Charge '[uAh']]]*0.034,Table1[[#This Row],[Material]]="ZrC",Table1[[#This Row],[Net Charge '[uAh']]]*0.05,Table1[[#This Row],[Material]]="UO2",Table1[[#This Row],[Net Charge '[uAh']]]*0.116,Table1[[#This Row],[Material]]="UC",Table1[[#This Row],[Net Charge '[uAh']]]*0.116,Table1[[#This Row],[Material]]="SiC",Table1[[#This Row],[Net Charge '[uAh']]]*0.05,Table1[[#This Row],[Material]]="nSiC",Table1[[#This Row],[Net Charge '[uAh']]]*0.05,Table1[[#This Row],[Material]]="TiC",Table1[[#This Row],[Net Charge '[uAh']]]*0.032,Table1[[#This Row],[Material]]="NiO",Table1[[#This Row],[Net Charge '[uAh']]]*0.03,Table1[[#This Row],[Material]]="Nb",Table1[[#This Row],[Net Charge '[uAh']]]*0.0305,Table1[[#This Row],[Material]]="TaC",Table1[[#This Row],[Net Charge '[uAh']]]*0.025,Table1[[#This Row],[Material]]="ThO",1095,TRUE,NA()),NA()) ->  | AV34: =IF(Table1[[#This Row],[Offline p+]]>0,_xlfn.IFS(Table1[[#This Row],[Material]]="Ta",Table1[[#This Row],[Net Charge '[uAh']]]*0.028,Table1[[#This Row],[Material]]="ZrC",Table1[[#This Row],[Net Charge '[uAh']]]*0.036,Table1[[#This Row],[Material]]="UO2",Table1[[#This Row],[Net Charge '[uAh']]]*0.116,Table1[[#This Row],[Material]]="UC",Table1[[#This Row],[Net Charge '[uAh']]]*0.076,Table1[[#This Row],[Material]]="SiC",Table1[[#This Row],[Net Charge '[uAh']]]*0.048,Table1[[#This Row],[Material]]="nSiC",Table1[[#This Row],[Net Charge '[uAh']]]*0.048,Table1[[#This Row],[Material]]="TiC",Table1[[#This Row],[Net Charge '[uAh']]]*0.032,Table1[[#This Row],[Material]]="NiO",Table1[[#This Row],[Net Charge '[uAh']]]*0.03,Table1[[#This Row],[Material]]="Nb",Table1[[#This Row],[Net Charge '[uAh']]]*0.023,Table1[[#This Row],[Material]]="TaC",Table1[[#This Row],[Net Charge '[uAh']]]*0.025,Table1[[#This Row],[Material]]="ThO",Table1[[#This Row],[Net Charge '[uAh']]]*0.076,TRUE,NA()),NA()) ->  | AW34: 100 | AX34: 2020-07-15 | AY34: 2020-07-28 | AZ34: =IF(Table1[[#This Row],[Schedule end]]>0,IF(Table1[[#This Row],[Material]]="Ta",Table1[[#This Row],[Estimated current]]*(Table1[[#This Row],[Schedule end]]-Table1[[#This Row],[Schedule start]])*24*0.028,IF(Table1[[#This Row],[Material]]="ZrC", Table1[[#This Row],[Estimated current]]*(Table1[[#This Row],[Schedule end]]-Table1[[#This Row],[Schedule start]])*24*0.036,IF(Table1[[#This Row],[Material]]="UO2",Table1[[#This Row],[Estimated current]]*(Table1[[#This Row],[Schedule end]]-Table1[[#This Row],[Schedule start]])*24*0.116,IF(Table1[[#This Row],[Material]]="UC",Table1[[#This Row],[Estimated current]]*(Table1[[#This Row],[Schedule end]]-Table1[[#This Row],[Schedule start]])*24*0.076,IF(Table1[[#This Row],[Material]]="SiC",Table1[[#This Row],[Estimated current]]*(Table1[[#This Row],[Schedule end]]-Table1[[#This Row],[Schedule start]])*24*0.076,IF(Table1[[#This Row],[Material]]="nSiC",Table1[[#This Row],[Estimated current]]*(Table1[[#This Row],[Schedule end]]-Table1[[#This Row],[Schedule start]])*24*0.048,IF(Table1[[#This Row],[Material]]="TiC",Table1[[#This Row],[Estimated current]]*(Table1[[#This Row],[Schedule end]]-Table1[[#This Row],[Schedule start]])*24*0.032,IF(Table1[[#This Row],[Material]]="NiO",Table1[[#This Row],[Estimated current]]*(Table1[[#This Row],[Schedule end]]-Table1[[#This Row],[Schedule start]])*24*0.03,IF(Table1[[#This Row],[Material]]="Nb",Table1[[#This Row],[Estimated current]]*(Table1[[#This Row],[Schedule end]]-Table1[[#This Row],[Schedule start]])*24*0.023,IF(Table1[[#This Row],[Material]]="TaC",Table1[[#This Row],[Estimated current]]*(Table1[[#This Row],[Schedule end]]-Table1[[#This Row],[Schedule start]])*24*0.025,IF(Table1[[#This Row],[Material]]="ThO",Table1[[#This Row],[Estimated current]]*(Table1[[#This Row],[Schedule end]]-Table1[[#This Row],[Schedule start]])*24*0.076,NA()))))))))))),NA()) ->  | BA34: =Table1[[#This Row],[Estimated ship days]]/365 ->  | BC34: 237 | BD34: Contains broken 2A2M19. Moved to cyclotron vault 2021-03-26. | BF34: =Table1[[#This Row],[TS]]&"-"&Table1[[#This Row],[TM]]&"-"&Table1[[#This Row],[Material]]&"#"&Table1[[#This Row],[No]]&"-"&Table1[[#This Row],[HP/LP]]&"-"&Table1[[#This Row],[IS]] -> ITW-TM2-C#1-LP-SIS
A35: =_xlfn.CONCAT(Table1[[#This Row],[Material]],"#",Table1[[#This Row],[No]]) -> SiC#39 | B35: SiC | C35: 39 | D35: HP | E35: FEBIAD | G35: ITE | H35: TM2 | I35: 2019 | J35: 12 | K35: 3 | L35: 137 | M35: Link | R35: 2019-11-29 | S35: 2019-11-30 | T35: 2019-12-02 | U35: 2019-12-14 | V35: 2020-02-27 | W35: 11.9 | X35: 75/100 | Y35: 55 | Z35: 13743.37 | AA35: =Table1[[#This Row],[Net Charge '[uAh']]]*6200000000000000000*0.000001*3600 -> 3.067520184e+20 | AB35: 40 | AC35: =CONCATENATE(Table1[[#This Row],[Material]], "#", Table1[[#This Row],[No]]) -> SiC#39 | AD35: 2020-03-06 | AE35: 30600 | AF35: 2022-01-31 | AG35: 3160 | AN35: 2022-05-19 | AT35: =IF(AND(AND(Table1[[#This Row],[Online p+]]>0,Table1[[#This Row],[Shipping Date]]>0),NOT(Table1[[#This Row],[Shipping Date]]="")),Table1[[#This Row],[Shipping Date]]-Table1[[#This Row],[Offline p+]], NA()) ->  | AU35: =IF(Table1[[#This Row],[Offline p+]]>0,_xlfn.IFS(Table1[[#This Row],[Material]]="Ta",Table1[[#This Row],[Net Charge '[uAh']]]*0.034,Table1[[#This Row],[Material]]="ZrC",Table1[[#This Row],[Net Charge '[uAh']]]*0.05,Table1[[#This Row],[Material]]="UO2",Table1[[#This Row],[Net Charge '[uAh']]]*0.116,Table1[[#This Row],[Material]]="UC",Table1[[#This Row],[Net Charge '[uAh']]]*0.116,Table1[[#This Row],[Material]]="SiC",Table1[[#This Row],[Net Charge '[uAh']]]*0.05,Table1[[#This Row],[Material]]="nSiC",Table1[[#This Row],[Net Charge '[uAh']]]*0.05,Table1[[#This Row],[Material]]="TiC",Table1[[#This Row],[Net Charge '[uAh']]]*0.032,Table1[[#This Row],[Material]]="NiO",Table1[[#This Row],[Net Charge '[uAh']]]*0.03,Table1[[#This Row],[Material]]="Nb",Table1[[#This Row],[Net Charge '[uAh']]]*0.0305,Table1[[#This Row],[Material]]="TaC",Table1[[#This Row],[Net Charge '[uAh']]]*0.025,Table1[[#This Row],[Material]]="ThO",1095,TRUE,NA()),NA()) -> 687.1685 | AV35: =IF(Table1[[#This Row],[Offline p+]]>0,_xlfn.IFS(Table1[[#This Row],[Material]]="Ta",Table1[[#This Row],[Net Charge '[uAh']]]*0.028,Table1[[#This Row],[Material]]="ZrC",Table1[[#This Row],[Net Charge '[uAh']]]*0.036,Table1[[#This Row],[Material]]="UO2",Table1[[#This Row],[Net Charge '[uAh']]]*0.116,Table1[[#This Row],[Material]]="UC",Table1[[#This Row],[Net Charge '[uAh']]]*0.076,Table1[[#This Row],[Material]]="SiC",Table1[[#This Row],[Net Charge '[uAh']]]*0.048,Table1[[#This Row],[Material]]="nSiC",Table1[[#This Row],[Net Charge '[uAh']]]*0.048,Table1[[#This Row],[Material]]="TiC",Table1[[#This Row],[Net Charge '[uAh']]]*0.032,Table1[[#This Row],[Material]]="NiO",Table1[[#This Row],[Net Charge '[uAh']]]*0.03,Table1[[#This Row],[Material]]="Nb",Table1[[#This Row],[Net Charge '[uAh']]]*0.023,Table1[[#This Row],[Material]]="TaC",Table1[[#This Row],[Net Charge '[uAh']]]*0.025,Table1[[#This Row],[Material]]="ThO",Table1[[#This Row],[Net Charge '[uAh']]]*0.076,TRUE,NA()),NA()) -> 659.68176 | AW35: 15 | AX35: 2019-12-03 | AY35: 2019-12-22 | AZ35: =IF(Table1[[#This Row],[Schedule end]]>0,IF(Table1[[#This Row],[Material]]="Ta",Table1[[#This Row],[Estimated current]]*(Table1[[#This Row],[Schedule end]]-Table1[[#This Row],[Schedule start]])*24*0.028,IF(Table1[[#This Row],[Material]]="ZrC", Table1[[#This Row],[Estimated current]]*(Table1[[#This Row],[Schedule end]]-Table1[[#This Row],[Schedule start]])*24*0.036,IF(Table1[[#This Row],[Material]]="UO2",Table1[[#This Row],[Estimated current]]*(Table1[[#This Row],[Schedule end]]-Table1[[#This Row],[Schedule start]])*24*0.116,IF(Table1[[#This Row],[Material]]="UC",Table1[[#This Row],[Estimated current]]*(Table1[[#This Row],[Schedule end]]-Table1[[#This Row],[Schedule start]])*24*0.076,IF(Table1[[#This Row],[Material]]="SiC",Table1[[#This Row],[Estimated current]]*(Table1[[#This Row],[Schedule end]]-Table1[[#This Row],[Schedule start]])*24*0.076,IF(Table1[[#This Row],[Material]]="nSiC",Table1[[#This Row],[Estimated current]]*(Table1[[#This Row],[Schedule end]]-Table1[[#This Row],[Schedule start]])*24*0.048,IF(Table1[[#This Row],[Material]]="TiC",Table1[[#This Row],[Estimated current]]*(Table1[[#This Row],[Schedule end]]-Table1[[#This Row],[Schedule start]])*24*0.032,IF(Table1[[#This Row],[Material]]="NiO",Table1[[#This Row],[Estimated current]]*(Table1[[#This Row],[Schedule end]]-Table1[[#This Row],[Schedule start]])*24*0.03,IF(Table1[[#This Row],[Material]]="Nb",Table1[[#This Row],[Estimated current]]*(Table1[[#This Row],[Schedule end]]-Table1[[#This Row],[Schedule start]])*24*0.023,IF(Table1[[#This Row],[Material]]="TaC",Table1[[#This Row],[Estimated current]]*(Table1[[#This Row],[Schedule end]]-Table1[[#This Row],[Schedule start]])*24*0.025,IF(Table1[[#This Row],[Material]]="ThO",Table1[[#This Row],[Estimated current]]*(Table1[[#This Row],[Schedule end]]-Table1[[#This Row],[Schedule start]])*24*0.076,NA()))))))))))),NA()) -> 519.84 | BA35: =Table1[[#This Row],[Estimated ship days]]/365 -> 1.424219178 | BC35: 227 | BD35: Contamination might be on lid | BE35: Measured | BF35: =Table1[[#This Row],[TS]]&"-"&Table1[[#This Row],[TM]]&"-"&Table1[[#This Row],[Material]]&"#"&Table1[[#This Row],[No]]&"-"&Table1[[#This Row],[HP/LP]]&"-"&Table1[[#This Row],[IS]] -> ITE-TM2-SiC#39-HP-FEBIAD
A36: =_xlfn.CONCAT(Table1[[#This Row],[Material]],"#",Table1[[#This Row],[No]]) -> SiC#38 | B36: SiC | C36: 38 | D36: HP | E36: FEBIAD | G36: ITE | H36: TM2 | I36: 2019 | J36: 11 | K36: 20 | L36: 137 | M36: Link | R36: 2019-11-12 | S36: 2019-11-14 | T36: 2019-11-20 | U36: 2019-11-26 | V36: 2019-11-26 | W36: 12.1 | X36: 70/100 | Y36: 60 | Z36: 1541.79 | AA36: =Table1[[#This Row],[Net Charge '[uAh']]]*6200000000000000000*0.000001*3600 -> 3.44127528e+19 | AB36: 16.3 | AC36: =CONCATENATE(Table1[[#This Row],[Material]], "#", Table1[[#This Row],[No]]) -> SiC#38 | AD36: 2019-12-03 | AE36: 22200 | AF36: 2021-11-18 | AG36: 290 | AN36: 2021-11-18 | AP36: 2021-11-29 | AT36: =IF(AND(AND(Table1[[#This Row],[Online p+]]>0,Table1[[#This Row],[Shipping Date]]>0),NOT(Table1[[#This Row],[Shipping Date]]="")),Table1[[#This Row],[Shipping Date]]-Table1[[#This Row],[Offline p+]], NA()) ->  | AU36: =IF(Table1[[#This Row],[Offline p+]]>0,_xlfn.IFS(Table1[[#This Row],[Material]]="Ta",Table1[[#This Row],[Net Charge '[uAh']]]*0.034,Table1[[#This Row],[Material]]="ZrC",Table1[[#This Row],[Net Charge '[uAh']]]*0.05,Table1[[#This Row],[Material]]="UO2",Table1[[#This Row],[Net Charge '[uAh']]]*0.116,Table1[[#This Row],[Material]]="UC",Table1[[#This Row],[Net Charge '[uAh']]]*0.116,Table1[[#This Row],[Material]]="SiC",Table1[[#This Row],[Net Charge '[uAh']]]*0.05,Table1[[#This Row],[Material]]="nSiC",Table1[[#This Row],[Net Charge '[uAh']]]*0.05,Table1[[#This Row],[Material]]="TiC",Table1[[#This Row],[Net Charge '[uAh']]]*0.032,Table1[[#This Row],[Material]]="NiO",Table1[[#This Row],[Net Charge '[uAh']]]*0.03,Table1[[#This Row],[Material]]="Nb",Table1[[#This Row],[Net Charge '[uAh']]]*0.0305,Table1[[#This Row],[Material]]="TaC",Table1[[#This Row],[Net Charge '[uAh']]]*0.025,Table1[[#This Row],[Material]]="ThO",1095,TRUE,NA()),NA()) -> 77.0895 | AV36: =IF(Table1[[#This Row],[Offline p+]]>0,_xlfn.IFS(Table1[[#This Row],[Material]]="Ta",Table1[[#This Row],[Net Charge '[uAh']]]*0.028,Table1[[#This Row],[Material]]="ZrC",Table1[[#This Row],[Net Charge '[uAh']]]*0.036,Table1[[#This Row],[Material]]="UO2",Table1[[#This Row],[Net Charge '[uAh']]]*0.116,Table1[[#This Row],[Material]]="UC",Table1[[#This Row],[Net Charge '[uAh']]]*0.076,Table1[[#This Row],[Material]]="SiC",Table1[[#This Row],[Net Charge '[uAh']]]*0.048,Table1[[#This Row],[Material]]="nSiC",Table1[[#This Row],[Net Charge '[uAh']]]*0.048,Table1[[#This Row],[Material]]="TiC",Table1[[#This Row],[Net Charge '[uAh']]]*0.032,Table1[[#This Row],[Material]]="NiO",Table1[[#This Row],[Net Charge '[uAh']]]*0.03,Table1[[#This Row],[Material]]="Nb",Table1[[#This Row],[Net Charge '[uAh']]]*0.023,Table1[[#This Row],[Material]]="TaC",Table1[[#This Row],[Net Charge '[uAh']]]*0.025,Table1[[#This Row],[Material]]="ThO",Table1[[#This Row],[Net Charge '[uAh']]]*0.076,TRUE,NA()),NA()) -> 74.00592 | AW36: 60 | AX36: 2019-11-20 | AY36: 2019-12-03 | AZ36: =IF(Table1[[#This Row],[Schedule end]]>0,IF(Table1[[#This Row],[Material]]="Ta",Table1[[#This Row],[Estimated current]]*(Table1[[#This Row],[Schedule end]]-Table1[[#This Row],[Schedule start]])*24*0.028,IF(Table1[[#This Row],[Material]]="ZrC", Table1[[#This Row],[Estimated current]]*(Table1[[#This Row],[Schedule end]]-Table1[[#This Row],[Schedule start]])*24*0.036,IF(Table1[[#This Row],[Material]]="UO2",Table1[[#This Row],[Estimated current]]*(Table1[[#This Row],[Schedule end]]-Table1[[#This Row],[Schedule start]])*24*0.116,IF(Table1[[#This Row],[Material]]="UC",Table1[[#This Row],[Estimated current]]*(Table1[[#This Row],[Schedule end]]-Table1[[#This Row],[Schedule start]])*24*0.076,IF(Table1[[#This Row],[Material]]="SiC",Table1[[#This Row],[Estimated current]]*(Table1[[#This Row],[Schedule end]]-Table1[[#This Row],[Schedule start]])*24*0.076,IF(Table1[[#This Row],[Material]]="nSiC",Table1[[#This Row],[Estimated current]]*(Table1[[#This Row],[Schedule end]]-Table1[[#This Row],[Schedule start]])*24*0.048,IF(Table1[[#This Row],[Material]]="TiC",Table1[[#This Row],[Estimated current]]*(Table1[[#This Row],[Schedule end]]-Table1[[#This Row],[Schedule start]])*24*0.032,IF(Table1[[#This Row],[Material]]="NiO",Table1[[#This Row],[Estimated current]]*(Table1[[#This Row],[Schedule end]]-Table1[[#This Row],[Schedule start]])*24*0.03,IF(Table1[[#This Row],[Material]]="Nb",Table1[[#This Row],[Estimated current]]*(Table1[[#This Row],[Schedule end]]-Table1[[#This Row],[Schedule start]])*24*0.023,IF(Table1[[#This Row],[Material]]="TaC",Table1[[#This Row],[Estimated current]]*(Table1[[#This Row],[Schedule end]]-Table1[[#This Row],[Schedule start]])*24*0.025,IF(Table1[[#This Row],[Material]]="ThO",Table1[[#This Row],[Estimated current]]*(Table1[[#This Row],[Schedule end]]-Table1[[#This Row],[Schedule start]])*24*0.076,NA()))))))))))),NA()) -> 1422.72 | BA36: =Table1[[#This Row],[Estimated ship days]]/365 -> 3.897863014 | BC36: 205 | BD36: Check for contamination on lid | BF36: =Table1[[#This Row],[TS]]&"-"&Table1[[#This Row],[TM]]&"-"&Table1[[#This Row],[Material]]&"#"&Table1[[#This Row],[No]]&"-"&Table1[[#This Row],[HP/LP]]&"-"&Table1[[#This Row],[IS]] -> ITE-TM2-SiC#38-HP-FEBIAD
A37: =_xlfn.CONCAT(Table1[[#This Row],[Material]],"#",Table1[[#This Row],[No]]) -> UC#29 | B37: UC | C37: 29 | D37: LP | E37: SIS | G37: ITW | H37: TM4 | I37: 2019 | J37: 10 | K37: 30 | L37: 137 | M37: Link | R37: 2019-10-24 | S37: 2019-10-29 | T37: 2019-10-30 | U37: 2019-12-21 | V37: 2020-02-04 | W37: 13.85 | X37: 20/40 | Y37: 20 | Z37: 11913 | AA37: =Table1[[#This Row],[Net Charge '[uAh']]]*6200000000000000000*0.000001*3600 -> 2.6589816e+20 | AB37: 35 | AC37: =CONCATENATE(Table1[[#This Row],[Material]], "#", Table1[[#This Row],[No]]) -> UC#29 | AD37: 2020-02-07 | AE37: 22400 | AF37: 2021-11-18 | AG37: 922 | AN37: 2021-11-18 | AP37: 2021-11-29 | AT37: =IF(AND(AND(Table1[[#This Row],[Online p+]]>0,Table1[[#This Row],[Shipping Date]]>0),NOT(Table1[[#This Row],[Shipping Date]]="")),Table1[[#This Row],[Shipping Date]]-Table1[[#This Row],[Offline p+]], NA()) ->  | AU37: =IF(Table1[[#This Row],[Offline p+]]>0,_xlfn.IFS(Table1[[#This Row],[Material]]="Ta",Table1[[#This Row],[Net Charge '[uAh']]]*0.034,Table1[[#This Row],[Material]]="ZrC",Table1[[#This Row],[Net Charge '[uAh']]]*0.05,Table1[[#This Row],[Material]]="UO2",Table1[[#This Row],[Net Charge '[uAh']]]*0.116,Table1[[#This Row],[Material]]="UC",Table1[[#This Row],[Net Charge '[uAh']]]*0.116,Table1[[#This Row],[Material]]="SiC",Table1[[#This Row],[Net Charge '[uAh']]]*0.05,Table1[[#This Row],[Material]]="nSiC",Table1[[#This Row],[Net Charge '[uAh']]]*0.05,Table1[[#This Row],[Material]]="TiC",Table1[[#This Row],[Net Charge '[uAh']]]*0.032,Table1[[#This Row],[Material]]="NiO",Table1[[#This Row],[Net Charge '[uAh']]]*0.03,Table1[[#This Row],[Material]]="Nb",Table1[[#This Row],[Net Charge '[uAh']]]*0.0305,Table1[[#This Row],[Material]]="TaC",Table1[[#This Row],[Net Charge '[uAh']]]*0.025,Table1[[#This Row],[Material]]="ThO",1095,TRUE,NA()),NA()) -> 1381.908 | AV37: =IF(Table1[[#This Row],[Offline p+]]>0,_xlfn.IFS(Table1[[#This Row],[Material]]="Ta",Table1[[#This Row],[Net Charge '[uAh']]]*0.028,Table1[[#This Row],[Material]]="ZrC",Table1[[#This Row],[Net Charge '[uAh']]]*0.036,Table1[[#This Row],[Material]]="UO2",Table1[[#This Row],[Net Charge '[uAh']]]*0.116,Table1[[#This Row],[Material]]="UC",Table1[[#This Row],[Net Charge '[uAh']]]*0.076,Table1[[#This Row],[Material]]="SiC",Table1[[#This Row],[Net Charge '[uAh']]]*0.048,Table1[[#This Row],[Material]]="nSiC",Table1[[#This Row],[Net Charge '[uAh']]]*0.048,Table1[[#This Row],[Material]]="TiC",Table1[[#This Row],[Net Charge '[uAh']]]*0.032,Table1[[#This Row],[Material]]="NiO",Table1[[#This Row],[Net Charge '[uAh']]]*0.03,Table1[[#This Row],[Material]]="Nb",Table1[[#This Row],[Net Charge '[uAh']]]*0.023,Table1[[#This Row],[Material]]="TaC",Table1[[#This Row],[Net Charge '[uAh']]]*0.025,Table1[[#This Row],[Material]]="ThO",Table1[[#This Row],[Net Charge '[uAh']]]*0.076,TRUE,NA()),NA()) -> 905.388 | AW37: 15 | AX37: 2019-10-30 | AY37: 2019-11-20 | AZ37: =IF(Table1[[#This Row],[Schedule end]]>0,IF(Table1[[#This Row],[Material]]="Ta",Table1[[#This Row],[Estimated current]]*(Table1[[#This Row],[Schedule end]]-Table1[[#This Row],[Schedule start]])*24*0.028,IF(Table1[[#This Row],[Material]]="ZrC", Table1[[#This Row],[Estimated current]]*(Table1[[#This Row],[Schedule end]]-Table1[[#This Row],[Schedule start]])*24*0.036,IF(Table1[[#This Row],[Material]]="UO2",Table1[[#This Row],[Estimated current]]*(Table1[[#This Row],[Schedule end]]-Table1[[#This Row],[Schedule start]])*24*0.116,IF(Table1[[#This Row],[Material]]="UC",Table1[[#This Row],[Estimated current]]*(Table1[[#This Row],[Schedule end]]-Table1[[#This Row],[Schedule start]])*24*0.076,IF(Table1[[#This Row],[Material]]="SiC",Table1[[#This Row],[Estimated current]]*(Table1[[#This Row],[Schedule end]]-Table1[[#This Row],[Schedule start]])*24*0.076,IF(Table1[[#This Row],[Material]]="nSiC",Table1[[#This Row],[Estimated current]]*(Table1[[#This Row],[Schedule end]]-Table1[[#This Row],[Schedule start]])*24*0.048,IF(Table1[[#This Row],[Material]]="TiC",Table1[[#This Row],[Estimated current]]*(Table1[[#This Row],[Schedule end]]-Table1[[#This Row],[Schedule start]])*24*0.032,IF(Table1[[#This Row],[Material]]="NiO",Table1[[#This Row],[Estimated current]]*(Table1[[#This Row],[Schedule end]]-Table1[[#This Row],[Schedule start]])*24*0.03,IF(Table1[[#This Row],[Material]]="Nb",Table1[[#This Row],[Estimated current]]*(Table1[[#This Row],[Schedule end]]-Table1[[#This Row],[Schedule start]])*24*0.023,IF(Table1[[#This Row],[Material]]="TaC",Table1[[#This Row],[Estimated current]]*(Table1[[#This Row],[Schedule end]]-Table1[[#This Row],[Schedule start]])*24*0.025,IF(Table1[[#This Row],[Material]]="ThO",Table1[[#This Row],[Estimated current]]*(Table1[[#This Row],[Schedule end]]-Table1[[#This Row],[Schedule start]])*24*0.076,NA()))))))))))),NA()) -> 574.56 | BA37: =Table1[[#This Row],[Estimated ship days]]/365 -> 1.574136986 | BC37: 225 | BF37: =Table1[[#This Row],[TS]]&"-"&Table1[[#This Row],[TM]]&"-"&Table1[[#This Row],[Material]]&"#"&Table1[[#This Row],[No]]&"-"&Table1[[#This Row],[HP/LP]]&"-"&Table1[[#This Row],[IS]] -> ITW-TM4-UC#29-LP-SIS
A38: =_xlfn.CONCAT(Table1[[#This Row],[Material]],"#",Table1[[#This Row],[No]]) -> Ta#59 | B38: Ta | C38: 59 | D38: LP | E38: SIS | G38: ITE | H38: TM2 | I38: 2019 | J38: 10 | K38: 15 | L38: 137 | M38: Link | R38: 2019-10-07 | S38: 2019-10-11 | T38: 2019-10-15 | U38: 2019-10-29 | V38: 2019-11-05 | W38: 12.7 | X38: 40/60 | Y38: 40 | Z38: 8117.5 | AA38: =Table1[[#This Row],[Net Charge '[uAh']]]*6200000000000000000*0.000001*3600 -> 1.811826e+20 | AB38: 20 | AC38: =CONCATENATE(Table1[[#This Row],[Material]], "#", Table1[[#This Row],[No]]) -> Ta#59 | AD38: 2019-11-08 | AE38: 121000 | AF38: 2022-01-31 | AG38: 1680 | AN38: 2022-05-19 | AT38: =IF(AND(AND(Table1[[#This Row],[Online p+]]>0,Table1[[#This Row],[Shipping Date]]>0),NOT(Table1[[#This Row],[Shipping Date]]="")),Table1[[#This Row],[Shipping Date]]-Table1[[#This Row],[Offline p+]], NA()) ->  | AU38: =IF(Table1[[#This Row],[Offline p+]]>0,_xlfn.IFS(Table1[[#This Row],[Material]]="Ta",Table1[[#This Row],[Net Charge '[uAh']]]*0.034,Table1[[#This Row],[Material]]="ZrC",Table1[[#This Row],[Net Charge '[uAh']]]*0.05,Table1[[#This Row],[Material]]="UO2",Table1[[#This Row],[Net Charge '[uAh']]]*0.116,Table1[[#This Row],[Material]]="UC",Table1[[#This Row],[Net Charge '[uAh']]]*0.116,Table1[[#This Row],[Material]]="SiC",Table1[[#This Row],[Net Charge '[uAh']]]*0.05,Table1[[#This Row],[Material]]="nSiC",Table1[[#This Row],[Net Charge '[uAh']]]*0.05,Table1[[#This Row],[Material]]="TiC",Table1[[#This Row],[Net Charge '[uAh']]]*0.032,Table1[[#This Row],[Material]]="NiO",Table1[[#This Row],[Net Charge '[uAh']]]*0.03,Table1[[#This Row],[Material]]="Nb",Table1[[#This Row],[Net Charge '[uAh']]]*0.0305,Table1[[#This Row],[Material]]="TaC",Table1[[#This Row],[Net Charge '[uAh']]]*0.025,Table1[[#This Row],[Material]]="ThO",1095,TRUE,NA()),NA()) -> 275.995 | AV38: =IF(Table1[[#This Row],[Offline p+]]>0,_xlfn.IFS(Table1[[#This Row],[Material]]="Ta",Table1[[#This Row],[Net Charge '[uAh']]]*0.028,Table1[[#This Row],[Material]]="ZrC",Table1[[#This Row],[Net Charge '[uAh']]]*0.036,Table1[[#This Row],[Material]]="UO2",Table1[[#This Row],[Net Charge '[uAh']]]*0.116,Table1[[#This Row],[Material]]="UC",Table1[[#This Row],[Net Charge '[uAh']]]*0.076,Table1[[#This Row],[Material]]="SiC",Table1[[#This Row],[Net Charge '[uAh']]]*0.048,Table1[[#This Row],[Material]]="nSiC",Table1[[#This Row],[Net Charge '[uAh']]]*0.048,Table1[[#This Row],[Material]]="TiC",Table1[[#This Row],[Net Charge '[uAh']]]*0.032,Table1[[#This Row],[Material]]="NiO",Table1[[#This Row],[Net Charge '[uAh']]]*0.03,Table1[[#This Row],[Material]]="Nb",Table1[[#This Row],[Net Charge '[uAh']]]*0.023,Table1[[#This Row],[Material]]="TaC",Table1[[#This Row],[Net Charge '[uAh']]]*0.025,Table1[[#This Row],[Material]]="ThO",Table1[[#This Row],[Net Charge '[uAh']]]*0.076,TRUE,NA()),NA()) -> 227.29 | AW38: 60 | AX38: 2019-10-15 | AY38: 2019-10-29 | AZ38: =IF(Table1[[#This Row],[Schedule end]]>0,IF(Table1[[#This Row],[Material]]="Ta",Table1[[#This Row],[Estimated current]]*(Table1[[#This Row],[Schedule end]]-Table1[[#This Row],[Schedule start]])*24*0.028,IF(Table1[[#This Row],[Material]]="ZrC", Table1[[#This Row],[Estimated current]]*(Table1[[#This Row],[Schedule end]]-Table1[[#This Row],[Schedule start]])*24*0.036,IF(Table1[[#This Row],[Material]]="UO2",Table1[[#This Row],[Estimated current]]*(Table1[[#This Row],[Schedule end]]-Table1[[#This Row],[Schedule start]])*24*0.116,IF(Table1[[#This Row],[Material]]="UC",Table1[[#This Row],[Estimated current]]*(Table1[[#This Row],[Schedule end]]-Table1[[#This Row],[Schedule start]])*24*0.076,IF(Table1[[#This Row],[Material]]="SiC",Table1[[#This Row],[Estimated current]]*(Table1[[#This Row],[Schedule end]]-Table1[[#This Row],[Schedule start]])*24*0.076,IF(Table1[[#This Row],[Material]]="nSiC",Table1[[#This Row],[Estimated current]]*(Table1[[#This Row],[Schedule end]]-Table1[[#This Row],[Schedule start]])*24*0.048,IF(Table1[[#This Row],[Material]]="TiC",Table1[[#This Row],[Estimated current]]*(Table1[[#This Row],[Schedule end]]-Table1[[#This Row],[Schedule start]])*24*0.032,IF(Table1[[#This Row],[Material]]="NiO",Table1[[#This Row],[Estimated current]]*(Table1[[#This Row],[Schedule end]]-Table1[[#This Row],[Schedule start]])*24*0.03,IF(Table1[[#This Row],[Material]]="Nb",Table1[[#This Row],[Estimated current]]*(Table1[[#This Row],[Schedule end]]-Table1[[#This Row],[Schedule start]])*24*0.023,IF(Table1[[#This Row],[Material]]="TaC",Table1[[#This Row],[Estimated current]]*(Table1[[#This Row],[Schedule end]]-Table1[[#This Row],[Schedule start]])*24*0.025,IF(Table1[[#This Row],[Material]]="ThO",Table1[[#This Row],[Estimated current]]*(Table1[[#This Row],[Schedule end]]-Table1[[#This Row],[Schedule start]])*24*0.076,NA()))))))))))),NA()) -> 564.48 | BA38: =Table1[[#This Row],[Estimated ship days]]/365 -> 1.546520548 | BC38: 220 | BE38: Measured | BF38: =Table1[[#This Row],[TS]]&"-"&Table1[[#This Row],[TM]]&"-"&Table1[[#This Row],[Material]]&"#"&Table1[[#This Row],[No]]&"-"&Table1[[#This Row],[HP/LP]]&"-"&Table1[[#This Row],[IS]] -> ITE-TM2-Ta#59-LP-SIS
A39: =_xlfn.CONCAT(Table1[[#This Row],[Material]],"#",Table1[[#This Row],[No]]) -> UC#28 | B39: UC | C39: 28 | D39: LP | E39: SIS | G39: ITW | H39: TM4 | I39: 2019 | J39: 9 | K39: 17 | L39: 136 | M39: Link | R39: 2019-10-04 | S39: 2019-10-07 | T39: 2019-10-09 | U39: 2019-10-15 | V39: 2019-10-22 | W39: 12.3 | X39: 20/40 | Y39: 15 | Z39: 1792.36 | AA39: =Table1[[#This Row],[Net Charge '[uAh']]]*6200000000000000000*0.000001*3600 -> 4.00054752e+19 | AB39: 30 | AC39: =CONCATENATE(Table1[[#This Row],[Material]], "#", Table1[[#This Row],[No]]) -> UC#28 | AD39: 2019-10-28 | AE39: 12600 | AF39: 2019-12-05 | AG39: 3370 | AN39: 2020-02-20 | AP39: 2020-02-21 | AQ39: 2020-06-17 | AT39: =IF(AND(AND(Table1[[#This Row],[Online p+]]>0,Table1[[#This Row],[Shipping Date]]>0),NOT(Table1[[#This Row],[Shipping Date]]="")),Table1[[#This Row],[Shipping Date]]-Table1[[#This Row],[Offline p+]], NA()) -> 246 | AU39: =IF(Table1[[#This Row],[Offline p+]]>0,_xlfn.IFS(Table1[[#This Row],[Material]]="Ta",Table1[[#This Row],[Net Charge '[uAh']]]*0.034,Table1[[#This Row],[Material]]="ZrC",Table1[[#This Row],[Net Charge '[uAh']]]*0.05,Table1[[#This Row],[Material]]="UO2",Table1[[#This Row],[Net Charge '[uAh']]]*0.116,Table1[[#This Row],[Material]]="UC",Table1[[#This Row],[Net Charge '[uAh']]]*0.116,Table1[[#This Row],[Material]]="SiC",Table1[[#This Row],[Net Charge '[uAh']]]*0.05,Table1[[#This Row],[Material]]="nSiC",Table1[[#This Row],[Net Charge '[uAh']]]*0.05,Table1[[#This Row],[Material]]="TiC",Table1[[#This Row],[Net Charge '[uAh']]]*0.032,Table1[[#This Row],[Material]]="NiO",Table1[[#This Row],[Net Charge '[uAh']]]*0.03,Table1[[#This Row],[Material]]="Nb",Table1[[#This Row],[Net Charge '[uAh']]]*0.0305,Table1[[#This Row],[Material]]="TaC",Table1[[#This Row],[Net Charge '[uAh']]]*0.025,Table1[[#This Row],[Material]]="ThO",1095,TRUE,NA()),NA()) -> 207.91376 | AV39: =IF(Table1[[#This Row],[Offline p+]]>0,_xlfn.IFS(Table1[[#This Row],[Material]]="Ta",Table1[[#This Row],[Net Charge '[uAh']]]*0.028,Table1[[#This Row],[Material]]="ZrC",Table1[[#This Row],[Net Charge '[uAh']]]*0.036,Table1[[#This Row],[Material]]="UO2",Table1[[#This Row],[Net Charge '[uAh']]]*0.116,Table1[[#This Row],[Material]]="UC",Table1[[#This Row],[Net Charge '[uAh']]]*0.076,Table1[[#This Row],[Material]]="SiC",Table1[[#This Row],[Net Charge '[uAh']]]*0.048,Table1[[#This Row],[Material]]="nSiC",Table1[[#This Row],[Net Charge '[uAh']]]*0.048,Table1[[#This Row],[Material]]="TiC",Table1[[#This Row],[Net Charge '[uAh']]]*0.032,Table1[[#This Row],[Material]]="NiO",Table1[[#This Row],[Net Charge '[uAh']]]*0.03,Table1[[#This Row],[Material]]="Nb",Table1[[#This Row],[Net Charge '[uAh']]]*0.023,Table1[[#This Row],[Material]]="TaC",Table1[[#This Row],[Net Charge '[uAh']]]*0.025,Table1[[#This Row],[Material]]="ThO",Table1[[#This Row],[Net Charge '[uAh']]]*0.076,TRUE,NA()),NA()) -> 136.21936 | AW39: 20 | AX39: 2019-09-17 | AY39: 2019-10-15 | AZ39: =IF(Table1[[#This Row],[Schedule end]]>0,IF(Table1[[#This Row],[Material]]="Ta",Table1[[#This Row],[Estimated current]]*(Table1[[#This Row],[Schedule end]]-Table1[[#This Row],[Schedule start]])*24*0.028,IF(Table1[[#This Row],[Material]]="ZrC", Table1[[#This Row],[Estimated current]]*(Table1[[#This Row],[Schedule end]]-Table1[[#This Row],[Schedule start]])*24*0.036,IF(Table1[[#This Row],[Material]]="UO2",Table1[[#This Row],[Estimated current]]*(Table1[[#This Row],[Schedule end]]-Table1[[#This Row],[Schedule start]])*24*0.116,IF(Table1[[#This Row],[Material]]="UC",Table1[[#This Row],[Estimated current]]*(Table1[[#This Row],[Schedule end]]-Table1[[#This Row],[Schedule start]])*24*0.076,IF(Table1[[#This Row],[Material]]="SiC",Table1[[#This Row],[Estimated current]]*(Table1[[#This Row],[Schedule end]]-Table1[[#This Row],[Schedule start]])*24*0.076,IF(Table1[[#This Row],[Material]]="nSiC",Table1[[#This Row],[Estimated current]]*(Table1[[#This Row],[Schedule end]]-Table1[[#This Row],[Schedule start]])*24*0.048,IF(Table1[[#This Row],[Material]]="TiC",Table1[[#This Row],[Estimated current]]*(Table1[[#This Row],[Schedule end]]-Table1[[#This Row],[Schedule start]])*24*0.032,IF(Table1[[#This Row],[Material]]="NiO",Table1[[#This Row],[Estimated current]]*(Table1[[#This Row],[Schedule end]]-Table1[[#This Row],[Schedule start]])*24*0.03,IF(Table1[[#This Row],[Material]]="Nb",Table1[[#This Row],[Estimated current]]*(Table1[[#This Row],[Schedule end]]-Table1[[#This Row],[Schedule start]])*24*0.023,IF(Table1[[#This Row],[Material]]="TaC",Table1[[#This Row],[Estimated current]]*(Table1[[#This Row],[Schedule end]]-Table1[[#This Row],[Schedule start]])*24*0.025,IF(Table1[[#This Row],[Material]]="ThO",Table1[[#This Row],[Estimated current]]*(Table1[[#This Row],[Schedule end]]-Table1[[#This Row],[Schedule start]])*24*0.076,NA()))))))))))),NA()) -> 1021.44 | BA39: =Table1[[#This Row],[Estimated ship days]]/365 -> 2.798465753 | BC39: 219 | BE39: Assayed | BF39: =Table1[[#This Row],[TS]]&"-"&Table1[[#This Row],[TM]]&"-"&Table1[[#This Row],[Material]]&"#"&Table1[[#This Row],[No]]&"-"&Table1[[#This Row],[HP/LP]]&"-"&Table1[[#This Row],[IS]] -> ITW-TM4-UC#28-LP-SIS
A40: =_xlfn.CONCAT(Table1[[#This Row],[Material]],"#",Table1[[#This Row],[No]]) -> ZrC#8 | B40: ZrC | C40: 8 | D40: LP | E40: SIS | G40: ITE | H40: TM2 | I40: 2019 | J40: 8 | K40: 27 | L40: 136 | M40: Link | R40: 2019-08-15 | S40: 2019-08-17 | T40: 2019-08-20 | U40: 2019-09-17 | V40: 2019-09-30 | W40: 19.44 | X40: 55/70 | Y40: 70 | Z40: 28196.73 | AA40: =Table1[[#This Row],[Net Charge '[uAh']]]*6200000000000000000*0.000001*3600 -> 6.293510136e+20 | AB40: 25 | AC40: =CONCATENATE(Table1[[#This Row],[Material]], "#", Table1[[#This Row],[No]]) -> ZrC#8 | AD40: 2019-10-02 | AE40: 205000 | AF40: 2019-12-10 | AG40: 74800 | AH40: 2022-01-31 | AI40: 3050 | AJ40: 2022-12-16 | AK40: =1.05*1000 -> 1050 | AN40: 2023-01-06 | AO40: M2 | AP40: 2023-01-17 | AT40: =IF(AND(AND(Table1[[#This Row],[Online p+]]>0,Table1[[#This Row],[Shipping Date]]>0),NOT(Table1[[#This Row],[Shipping Date]]="")),Table1[[#This Row],[Shipping Date]]-Table1[[#This Row],[Offline p+]], NA()) ->  | AU40: =IF(Table1[[#This Row],[Offline p+]]>0,_xlfn.IFS(Table1[[#This Row],[Material]]="Ta",Table1[[#This Row],[Net Charge '[uAh']]]*0.034,Table1[[#This Row],[Material]]="ZrC",Table1[[#This Row],[Net Charge '[uAh']]]*0.05,Table1[[#This Row],[Material]]="UO2",Table1[[#This Row],[Net Charge '[uAh']]]*0.116,Table1[[#This Row],[Material]]="UC",Table1[[#This Row],[Net Charge '[uAh']]]*0.116,Table1[[#This Row],[Material]]="SiC",Table1[[#This Row],[Net Charge '[uAh']]]*0.05,Table1[[#This Row],[Material]]="nSiC",Table1[[#This Row],[Net Charge '[uAh']]]*0.05,Table1[[#This Row],[Material]]="TiC",Table1[[#This Row],[Net Charge '[uAh']]]*0.032,Table1[[#This Row],[Material]]="NiO",Table1[[#This Row],[Net Charge '[uAh']]]*0.03,Table1[[#This Row],[Material]]="Nb",Table1[[#This Row],[Net Charge '[uAh']]]*0.0305,Table1[[#This Row],[Material]]="TaC",Table1[[#This Row],[Net Charge '[uAh']]]*0.025,Table1[[#This Row],[Material]]="ThO",1095,TRUE,NA()),NA()) -> 1409.8365 | AV40: =IF(Table1[[#This Row],[Offline p+]]>0,_xlfn.IFS(Table1[[#This Row],[Material]]="Ta",Table1[[#This Row],[Net Charge '[uAh']]]*0.028,Table1[[#This Row],[Material]]="ZrC",Table1[[#This Row],[Net Charge '[uAh']]]*0.036,Table1[[#This Row],[Material]]="UO2",Table1[[#This Row],[Net Charge '[uAh']]]*0.116,Table1[[#This Row],[Material]]="UC",Table1[[#This Row],[Net Charge '[uAh']]]*0.076,Table1[[#This Row],[Material]]="SiC",Table1[[#This Row],[Net Charge '[uAh']]]*0.048,Table1[[#This Row],[Material]]="nSiC",Table1[[#This Row],[Net Charge '[uAh']]]*0.048,Table1[[#This Row],[Material]]="TiC",Table1[[#This Row],[Net Charge '[uAh']]]*0.032,Table1[[#This Row],[Material]]="NiO",Table1[[#This Row],[Net Charge '[uAh']]]*0.03,Table1[[#This Row],[Material]]="Nb",Table1[[#This Row],[Net Charge '[uAh']]]*0.023,Table1[[#This Row],[Material]]="TaC",Table1[[#This Row],[Net Charge '[uAh']]]*0.025,Table1[[#This Row],[Material]]="ThO",Table1[[#This Row],[Net Charge '[uAh']]]*0.076,TRUE,NA()),NA()) -> 1015.08228 | AW40: 50 | AX40: 2019-08-27 | AY40: 2019-09-17 | AZ40: =IF(Table1[[#This Row],[Schedule end]]>0,IF(Table1[[#This Row],[Material]]="Ta",Table1[[#This Row],[Estimated current]]*(Table1[[#This Row],[Schedule end]]-Table1[[#This Row],[Schedule start]])*24*0.028,IF(Table1[[#This Row],[Material]]="ZrC", Table1[[#This Row],[Estimated current]]*(Table1[[#This Row],[Schedule end]]-Table1[[#This Row],[Schedule start]])*24*0.036,IF(Table1[[#This Row],[Material]]="UO2",Table1[[#This Row],[Estimated current]]*(Table1[[#This Row],[Schedule end]]-Table1[[#This Row],[Schedule start]])*24*0.116,IF(Table1[[#This Row],[Material]]="UC",Table1[[#This Row],[Estimated current]]*(Table1[[#This Row],[Schedule end]]-Table1[[#This Row],[Schedule start]])*24*0.076,IF(Table1[[#This Row],[Material]]="SiC",Table1[[#This Row],[Estimated current]]*(Table1[[#This Row],[Schedule end]]-Table1[[#This Row],[Schedule start]])*24*0.076,IF(Table1[[#This Row],[Material]]="nSiC",Table1[[#This Row],[Estimated current]]*(Table1[[#This Row],[Schedule end]]-Table1[[#This Row],[Schedule start]])*24*0.048,IF(Table1[[#This Row],[Material]]="TiC",Table1[[#This Row],[Estimated current]]*(Table1[[#This Row],[Schedule end]]-Table1[[#This Row],[Schedule start]])*24*0.032,IF(Table1[[#This Row],[Material]]="NiO",Table1[[#This Row],[Estimated current]]*(Table1[[#This Row],[Schedule end]]-Table1[[#This Row],[Schedule start]])*24*0.03,IF(Table1[[#This Row],[Material]]="Nb",Table1[[#This Row],[Estimated current]]*(Table1[[#This Row],[Schedule end]]-Table1[[#This Row],[Schedule start]])*24*0.023,IF(Table1[[#This Row],[Material]]="TaC",Table1[[#This Row],[Estimated current]]*(Table1[[#This Row],[Schedule end]]-Table1[[#This Row],[Schedule start]])*24*0.025,IF(Table1[[#This Row],[Material]]="ThO",Table1[[#This Row],[Estimated current]]*(Table1[[#This Row],[Schedule end]]-Table1[[#This Row],[Schedule start]])*24*0.076,NA()))))))))))),NA()) -> 907.2 | BA40: =Table1[[#This Row],[Estimated ship days]]/365 -> 2.485479452 | BC40: 217 | BD40: This pail also contains, wire, a wirescanner, IGM guage, target bolts and water block bolts | BE40: Measured | BF40: =Table1[[#This Row],[TS]]&"-"&Table1[[#This Row],[TM]]&"-"&Table1[[#This Row],[Material]]&"#"&Table1[[#This Row],[No]]&"-"&Table1[[#This Row],[HP/LP]]&"-"&Table1[[#This Row],[IS]] -> ITE-TM2-ZrC#8-LP-SIS
A41: =_xlfn.CONCAT(Table1[[#This Row],[Material]],"#",Table1[[#This Row],[No]]) -> UC#27 | B41: UC | C41: 27 | D41: LP | E41: SIS | G41: ITW | H41: TM4 | I41: 2019 | J41: 8 | K41: 7 | L41: 136 | M41: Link | R41: 2019-09-10 | S41: 2019-09-15 | T41: 2019-09-19 | U41: 2019-09-30 | V41: 2019-10-03 | W41: 13.48 | X41: 16/40 | Y41: 20 | Z41: 2539.23 | AA41: =Table1[[#This Row],[Net Charge '[uAh']]]*6200000000000000000*0.000001*3600 -> 5.66756136e+19 | AB41: 25 | AC41: =CONCATENATE(Table1[[#This Row],[Material]], "#", Table1[[#This Row],[No]]) -> UC#27 | AD41: 2019-10-09 | AE41: 22900 | AF41: 2019-12-05 | AG41: 4230 | AN41: 2021-05-20 | AP41: 2021-05-21 | AT41: =IF(AND(AND(Table1[[#This Row],[Online p+]]>0,Table1[[#This Row],[Shipping Date]]>0),NOT(Table1[[#This Row],[Shipping Date]]="")),Table1[[#This Row],[Shipping Date]]-Table1[[#This Row],[Offline p+]], NA()) ->  | AU41: =IF(Table1[[#This Row],[Offline p+]]>0,_xlfn.IFS(Table1[[#This Row],[Material]]="Ta",Table1[[#This Row],[Net Charge '[uAh']]]*0.034,Table1[[#This Row],[Material]]="ZrC",Table1[[#This Row],[Net Charge '[uAh']]]*0.05,Table1[[#This Row],[Material]]="UO2",Table1[[#This Row],[Net Charge '[uAh']]]*0.116,Table1[[#This Row],[Material]]="UC",Table1[[#This Row],[Net Charge '[uAh']]]*0.116,Table1[[#This Row],[Material]]="SiC",Table1[[#This Row],[Net Charge '[uAh']]]*0.05,Table1[[#This Row],[Material]]="nSiC",Table1[[#This Row],[Net Charge '[uAh']]]*0.05,Table1[[#This Row],[Material]]="TiC",Table1[[#This Row],[Net Charge '[uAh']]]*0.032,Table1[[#This Row],[Material]]="NiO",Table1[[#This Row],[Net Charge '[uAh']]]*0.03,Table1[[#This Row],[Material]]="Nb",Table1[[#This Row],[Net Charge '[uAh']]]*0.0305,Table1[[#This Row],[Material]]="TaC",Table1[[#This Row],[Net Charge '[uAh']]]*0.025,Table1[[#This Row],[Material]]="ThO",1095,TRUE,NA()),NA()) -> 294.55068 | AV41: =IF(Table1[[#This Row],[Offline p+]]>0,_xlfn.IFS(Table1[[#This Row],[Material]]="Ta",Table1[[#This Row],[Net Charge '[uAh']]]*0.028,Table1[[#This Row],[Material]]="ZrC",Table1[[#This Row],[Net Charge '[uAh']]]*0.036,Table1[[#This Row],[Material]]="UO2",Table1[[#This Row],[Net Charge '[uAh']]]*0.116,Table1[[#This Row],[Material]]="UC",Table1[[#This Row],[Net Charge '[uAh']]]*0.076,Table1[[#This Row],[Material]]="SiC",Table1[[#This Row],[Net Charge '[uAh']]]*0.048,Table1[[#This Row],[Material]]="nSiC",Table1[[#This Row],[Net Charge '[uAh']]]*0.048,Table1[[#This Row],[Material]]="TiC",Table1[[#This Row],[Net Charge '[uAh']]]*0.032,Table1[[#This Row],[Material]]="NiO",Table1[[#This Row],[Net Charge '[uAh']]]*0.03,Table1[[#This Row],[Material]]="Nb",Table1[[#This Row],[Net Charge '[uAh']]]*0.023,Table1[[#This Row],[Material]]="TaC",Table1[[#This Row],[Net Charge '[uAh']]]*0.025,Table1[[#This Row],[Material]]="ThO",Table1[[#This Row],[Net Charge '[uAh']]]*0.076,TRUE,NA()),NA()) -> 192.98148 | AW41: 20 | AX41: 2019-08-07 | AY41: 2019-08-27 | AZ41: =IF(Table1[[#This Row],[Schedule end]]>0,IF(Table1[[#This Row],[Material]]="Ta",Table1[[#This Row],[Estimated current]]*(Table1[[#This Row],[Schedule end]]-Table1[[#This Row],[Schedule start]])*24*0.028,IF(Table1[[#This Row],[Material]]="ZrC", Table1[[#This Row],[Estimated current]]*(Table1[[#This Row],[Schedule end]]-Table1[[#This Row],[Schedule start]])*24*0.036,IF(Table1[[#This Row],[Material]]="UO2",Table1[[#This Row],[Estimated current]]*(Table1[[#This Row],[Schedule end]]-Table1[[#This Row],[Schedule start]])*24*0.116,IF(Table1[[#This Row],[Material]]="UC",Table1[[#This Row],[Estimated current]]*(Table1[[#This Row],[Schedule end]]-Table1[[#This Row],[Schedule start]])*24*0.076,IF(Table1[[#This Row],[Material]]="SiC",Table1[[#This Row],[Estimated current]]*(Table1[[#This Row],[Schedule end]]-Table1[[#This Row],[Schedule start]])*24*0.076,IF(Table1[[#This Row],[Material]]="nSiC",Table1[[#This Row],[Estimated current]]*(Table1[[#This Row],[Schedule end]]-Table1[[#This Row],[Schedule start]])*24*0.048,IF(Table1[[#This Row],[Material]]="TiC",Table1[[#This Row],[Estimated current]]*(Table1[[#This Row],[Schedule end]]-Table1[[#This Row],[Schedule start]])*24*0.032,IF(Table1[[#This Row],[Material]]="NiO",Table1[[#This Row],[Estimated current]]*(Table1[[#This Row],[Schedule end]]-Table1[[#This Row],[Schedule start]])*24*0.03,IF(Table1[[#This Row],[Material]]="Nb",Table1[[#This Row],[Estimated current]]*(Table1[[#This Row],[Schedule end]]-Table1[[#This Row],[Schedule start]])*24*0.023,IF(Table1[[#This Row],[Material]]="TaC",Table1[[#This Row],[Estimated current]]*(Table1[[#This Row],[Schedule end]]-Table1[[#This Row],[Schedule start]])*24*0.025,IF(Table1[[#This Row],[Material]]="ThO",Table1[[#This Row],[Estimated current]]*(Table1[[#This Row],[Schedule end]]-Table1[[#This Row],[Schedule start]])*24*0.076,NA()))))))))))),NA()) -> 729.6 | BA41: =Table1[[#This Row],[Estimated ship days]]/365 -> 1.99890411 | BC41: 218 | BE41: Assayed | BF41: =Table1[[#This Row],[TS]]&"-"&Table1[[#This Row],[TM]]&"-"&Table1[[#This Row],[Material]]&"#"&Table1[[#This Row],[No]]&"-"&Table1[[#This Row],[HP/LP]]&"-"&Table1[[#This Row],[IS]] -> ITW-TM4-UC#27-LP-SIS
A42: =_xlfn.CONCAT(Table1[[#This Row],[Material]],"#",Table1[[#This Row],[No]]) -> Ta#58 | B42: Ta | C42: 58 | D42: LP | E42: SIS | G42: ITE | H42: TM2 | I42: 2019 | J42: 6 | K42: 19 | L42: 136 | M42: Link | R42: 2019-05-17 | S42: 2019-06-04 | T42: 2019-06-17 | U42: 2019-08-11 | V42: 2019-08-13 | W42: 15.4 | X42: 40/60 | Y42: 50 | Z42: 50808.75 | AA42: =Table1[[#This Row],[Net Charge '[uAh']]]*6200000000000000000*0.000001*3600 -> 1.1340513e+21 | AB42: 30 | AC42: =CONCATENATE(Table1[[#This Row],[Material]], "#", Table1[[#This Row],[No]]) -> Ta#58 | AD42: 2019-08-19 | AE42: 311000 | AF42: 2019-12-10 | AG42: 52500 | AH42: 2022-01-31 | AI42: 7120 | AJ42: 2022-12-16 | AK42: =4.21*1000 -> 4210 | AN42: 2023-01-06 | AO42: M1 | AP42: 2023-01-17 | AT42: =IF(AND(AND(Table1[[#This Row],[Online p+]]>0,Table1[[#This Row],[Shipping Date]]>0),NOT(Table1[[#This Row],[Shipping Date]]="")),Table1[[#This Row],[Shipping Date]]-Table1[[#This Row],[Offline p+]], NA()) ->  | AU42: =IF(Table1[[#This Row],[Offline p+]]>0,_xlfn.IFS(Table1[[#This Row],[Material]]="Ta",Table1[[#This Row],[Net Charge '[uAh']]]*0.034,Table1[[#This Row],[Material]]="ZrC",Table1[[#This Row],[Net Charge '[uAh']]]*0.05,Table1[[#This Row],[Material]]="UO2",Table1[[#This Row],[Net Charge '[uAh']]]*0.116,Table1[[#This Row],[Material]]="UC",Table1[[#This Row],[Net Charge '[uAh']]]*0.116,Table1[[#This Row],[Material]]="SiC",Table1[[#This Row],[Net Charge '[uAh']]]*0.05,Table1[[#This Row],[Material]]="nSiC",Table1[[#This Row],[Net Charge '[uAh']]]*0.05,Table1[[#This Row],[Material]]="TiC",Table1[[#This Row],[Net Charge '[uAh']]]*0.032,Table1[[#This Row],[Material]]="NiO",Table1[[#This Row],[Net Charge '[uAh']]]*0.03,Table1[[#This Row],[Material]]="Nb",Table1[[#This Row],[Net Charge '[uAh']]]*0.0305,Table1[[#This Row],[Material]]="TaC",Table1[[#This Row],[Net Charge '[uAh']]]*0.025,Table1[[#This Row],[Material]]="ThO",1095,TRUE,NA()),NA()) -> 1727.4975 | AV42: =IF(Table1[[#This Row],[Offline p+]]>0,_xlfn.IFS(Table1[[#This Row],[Material]]="Ta",Table1[[#This Row],[Net Charge '[uAh']]]*0.028,Table1[[#This Row],[Material]]="ZrC",Table1[[#This Row],[Net Charge '[uAh']]]*0.036,Table1[[#This Row],[Material]]="UO2",Table1[[#This Row],[Net Charge '[uAh']]]*0.116,Table1[[#This Row],[Material]]="UC",Table1[[#This Row],[Net Charge '[uAh']]]*0.076,Table1[[#This Row],[Material]]="SiC",Table1[[#This Row],[Net Charge '[uAh']]]*0.048,Table1[[#This Row],[Material]]="nSiC",Table1[[#This Row],[Net Charge '[uAh']]]*0.048,Table1[[#This Row],[Material]]="TiC",Table1[[#This Row],[Net Charge '[uAh']]]*0.032,Table1[[#This Row],[Material]]="NiO",Table1[[#This Row],[Net Charge '[uAh']]]*0.03,Table1[[#This Row],[Material]]="Nb",Table1[[#This Row],[Net Charge '[uAh']]]*0.023,Table1[[#This Row],[Material]]="TaC",Table1[[#This Row],[Net Charge '[uAh']]]*0.025,Table1[[#This Row],[Material]]="ThO",Table1[[#This Row],[Net Charge '[uAh']]]*0.076,TRUE,NA()),NA()) -> 1422.645 | AW42: 50 | AX42: 2019-06-19 | AY42: 2019-08-07 | AZ42: =IF(Table1[[#This Row],[Schedule end]]>0,IF(Table1[[#This Row],[Material]]="Ta",Table1[[#This Row],[Estimated current]]*(Table1[[#This Row],[Schedule end]]-Table1[[#This Row],[Schedule start]])*24*0.028,IF(Table1[[#This Row],[Material]]="ZrC", Table1[[#This Row],[Estimated current]]*(Table1[[#This Row],[Schedule end]]-Table1[[#This Row],[Schedule start]])*24*0.036,IF(Table1[[#This Row],[Material]]="UO2",Table1[[#This Row],[Estimated current]]*(Table1[[#This Row],[Schedule end]]-Table1[[#This Row],[Schedule start]])*24*0.116,IF(Table1[[#This Row],[Material]]="UC",Table1[[#This Row],[Estimated current]]*(Table1[[#This Row],[Schedule end]]-Table1[[#This Row],[Schedule start]])*24*0.076,IF(Table1[[#This Row],[Material]]="SiC",Table1[[#This Row],[Estimated current]]*(Table1[[#This Row],[Schedule end]]-Table1[[#This Row],[Schedule start]])*24*0.076,IF(Table1[[#This Row],[Material]]="nSiC",Table1[[#This Row],[Estimated current]]*(Table1[[#This Row],[Schedule end]]-Table1[[#This Row],[Schedule start]])*24*0.048,IF(Table1[[#This Row],[Material]]="TiC",Table1[[#This Row],[Estimated current]]*(Table1[[#This Row],[Schedule end]]-Table1[[#This Row],[Schedule start]])*24*0.032,IF(Table1[[#This Row],[Material]]="NiO",Table1[[#This Row],[Estimated current]]*(Table1[[#This Row],[Schedule end]]-Table1[[#This Row],[Schedule start]])*24*0.03,IF(Table1[[#This Row],[Material]]="Nb",Table1[[#This Row],[Estimated current]]*(Table1[[#This Row],[Schedule end]]-Table1[[#This Row],[Schedule start]])*24*0.023,IF(Table1[[#This Row],[Material]]="TaC",Table1[[#This Row],[Estimated current]]*(Table1[[#This Row],[Schedule end]]-Table1[[#This Row],[Schedule start]])*24*0.025,IF(Table1[[#This Row],[Material]]="ThO",Table1[[#This Row],[Estimated current]]*(Table1[[#This Row],[Schedule end]]-Table1[[#This Row],[Schedule start]])*24*0.076,NA()))))))))))),NA()) -> 1646.4 | BA42: =Table1[[#This Row],[Estimated ship days]]/365 -> 4.510684932 | BC42: 211 | BE42: Measured | BF42: =Table1[[#This Row],[TS]]&"-"&Table1[[#This Row],[TM]]&"-"&Table1[[#This Row],[Material]]&"#"&Table1[[#This Row],[No]]&"-"&Table1[[#This Row],[HP/LP]]&"-"&Table1[[#This Row],[IS]] -> ITE-TM2-Ta#58-LP-SIS
A43: =_xlfn.CONCAT(Table1[[#This Row],[Material]],"#",Table1[[#This Row],[No]]) -> UC#26 | B43: UC | C43: 26 | D43: LP | E43: IG-LIS | G43: ITE | H43: TM4 | I43: 2018 | J43: 11 | K43: 27 | L43: 135 | M43: Link | R43: 2018-12-04 | S43: 2018-12-07 | T43: 2018-12-12 | U43: 2018-12-21 | V43: 2019-04-30 | W43: 12.58 | X43: 40 | Y43: 20 | Z43: 2154.89 | AA43: =Table1[[#This Row],[Net Charge '[uAh']]]*6200000000000000000*0.000001*3600 -> 4.80971448e+19 | AB43: 30 | AC43: =CONCATENATE(Table1[[#This Row],[Material]], "#", Table1[[#This Row],[No]]) -> UC#26 | AD43: 2019-05-02 | AE43: 2420 | AF43: 2019-12-05 | AG43: 620 | AN43: 2020-02-19 | AP43: 2020-02-21 | AQ43: 2020-06-17 | AT43: =IF(AND(AND(Table1[[#This Row],[Online p+]]>0,Table1[[#This Row],[Shipping Date]]>0),NOT(Table1[[#This Row],[Shipping Date]]="")),Table1[[#This Row],[Shipping Date]]-Table1[[#This Row],[Offline p+]], NA()) -> 544 | AU43: =IF(Table1[[#This Row],[Offline p+]]>0,_xlfn.IFS(Table1[[#This Row],[Material]]="Ta",Table1[[#This Row],[Net Charge '[uAh']]]*0.034,Table1[[#This Row],[Material]]="ZrC",Table1[[#This Row],[Net Charge '[uAh']]]*0.05,Table1[[#This Row],[Material]]="UO2",Table1[[#This Row],[Net Charge '[uAh']]]*0.116,Table1[[#This Row],[Material]]="UC",Table1[[#This Row],[Net Charge '[uAh']]]*0.116,Table1[[#This Row],[Material]]="SiC",Table1[[#This Row],[Net Charge '[uAh']]]*0.05,Table1[[#This Row],[Material]]="nSiC",Table1[[#This Row],[Net Charge '[uAh']]]*0.05,Table1[[#This Row],[Material]]="TiC",Table1[[#This Row],[Net Charge '[uAh']]]*0.032,Table1[[#This Row],[Material]]="NiO",Table1[[#This Row],[Net Charge '[uAh']]]*0.03,Table1[[#This Row],[Material]]="Nb",Table1[[#This Row],[Net Charge '[uAh']]]*0.0305,Table1[[#This Row],[Material]]="TaC",Table1[[#This Row],[Net Charge '[uAh']]]*0.025,Table1[[#This Row],[Material]]="ThO",1095,TRUE,NA()),NA()) -> 249.96724 | AV43: =IF(Table1[[#This Row],[Offline p+]]>0,_xlfn.IFS(Table1[[#This Row],[Material]]="Ta",Table1[[#This Row],[Net Charge '[uAh']]]*0.028,Table1[[#This Row],[Material]]="ZrC",Table1[[#This Row],[Net Charge '[uAh']]]*0.036,Table1[[#This Row],[Material]]="UO2",Table1[[#This Row],[Net Charge '[uAh']]]*0.116,Table1[[#This Row],[Material]]="UC",Table1[[#This Row],[Net Charge '[uAh']]]*0.076,Table1[[#This Row],[Material]]="SiC",Table1[[#This Row],[Net Charge '[uAh']]]*0.048,Table1[[#This Row],[Material]]="nSiC",Table1[[#This Row],[Net Charge '[uAh']]]*0.048,Table1[[#This Row],[Material]]="TiC",Table1[[#This Row],[Net Charge '[uAh']]]*0.032,Table1[[#This Row],[Material]]="NiO",Table1[[#This Row],[Net Charge '[uAh']]]*0.03,Table1[[#This Row],[Material]]="Nb",Table1[[#This Row],[Net Charge '[uAh']]]*0.023,Table1[[#This Row],[Material]]="TaC",Table1[[#This Row],[Net Charge '[uAh']]]*0.025,Table1[[#This Row],[Material]]="ThO",Table1[[#This Row],[Net Charge '[uAh']]]*0.076,TRUE,NA()),NA()) -> 163.77164 | AW43: 10 | AX43: 2018-11-27 | AY43: 2018-12-22 | AZ43: =IF(Table1[[#This Row],[Schedule end]]>0,IF(Table1[[#This Row],[Material]]="Ta",Table1[[#This Row],[Estimated current]]*(Table1[[#This Row],[Schedule end]]-Table1[[#This Row],[Schedule start]])*24*0.028,IF(Table1[[#This Row],[Material]]="ZrC", Table1[[#This Row],[Estimated current]]*(Table1[[#This Row],[Schedule end]]-Table1[[#This Row],[Schedule start]])*24*0.036,IF(Table1[[#This Row],[Material]]="UO2",Table1[[#This Row],[Estimated current]]*(Table1[[#This Row],[Schedule end]]-Table1[[#This Row],[Schedule start]])*24*0.116,IF(Table1[[#This Row],[Material]]="UC",Table1[[#This Row],[Estimated current]]*(Table1[[#This Row],[Schedule end]]-Table1[[#This Row],[Schedule start]])*24*0.076,IF(Table1[[#This Row],[Material]]="SiC",Table1[[#This Row],[Estimated current]]*(Table1[[#This Row],[Schedule end]]-Table1[[#This Row],[Schedule start]])*24*0.076,IF(Table1[[#This Row],[Material]]="nSiC",Table1[[#This Row],[Estimated current]]*(Table1[[#This Row],[Schedule end]]-Table1[[#This Row],[Schedule start]])*24*0.048,IF(Table1[[#This Row],[Material]]="TiC",Table1[[#This Row],[Estimated current]]*(Table1[[#This Row],[Schedule end]]-Table1[[#This Row],[Schedule start]])*24*0.032,IF(Table1[[#This Row],[Material]]="NiO",Table1[[#This Row],[Estimated current]]*(Table1[[#This Row],[Schedule end]]-Table1[[#This Row],[Schedule start]])*24*0.03,IF(Table1[[#This Row],[Material]]="Nb",Table1[[#This Row],[Estimated current]]*(Table1[[#This Row],[Schedule end]]-Table1[[#This Row],[Schedule start]])*24*0.023,IF(Table1[[#This Row],[Material]]="TaC",Table1[[#This Row],[Estimated current]]*(Table1[[#This Row],[Schedule end]]-Table1[[#This Row],[Schedule start]])*24*0.025,IF(Table1[[#This Row],[Material]]="ThO",Table1[[#This Row],[Estimated current]]*(Table1[[#This Row],[Schedule end]]-Table1[[#This Row],[Schedule start]])*24*0.076,NA()))))))))))),NA()) -> 456 | BA43: =Table1[[#This Row],[Estimated ship days]]/365 -> 1.249315068 | BC43: 209 | BE43: Assayed | BF43: =Table1[[#This Row],[TS]]&"-"&Table1[[#This Row],[TM]]&"-"&Table1[[#This Row],[Material]]&"#"&Table1[[#This Row],[No]]&"-"&Table1[[#This Row],[HP/LP]]&"-"&Table1[[#This Row],[IS]] -> ITE-TM4-UC#26-LP-IG-LIS
A44: =_xlfn.CONCAT(Table1[[#This Row],[Material]],"#",Table1[[#This Row],[No]]) -> UC#25 | B44: UC | C44: 25 | D44: LP | E44: SIS | G44: ITW | H44: TM2 | I44: 2018 | J44: 11 | K44: 7 | L44: 135 | M44: Link | R44: 2018-11-06 | S44: 2018-11-08 | T44: 2018-11-21 | U44: 2018-12-11 | V44: 2019-01-09 | W44: 13.3 | X44: 10 | Y44: 9.8 | Z44: 3863.44 | AA44: =Table1[[#This Row],[Net Charge '[uAh']]]*6200000000000000000*0.000001*3600 -> 8.62319808e+19 | AB44: 25.9 | AC44: =CONCATENATE(Table1[[#This Row],[Material]], "#", Table1[[#This Row],[No]]) -> UC#25 | AD44: 2019-01-11 | AE44: 12800 | AF44: 2019-11-04 | AG44: 1560 | AH44: 2019-12-11 | AI44: 1330 | AJ44: 2020-10-30 | AK44: 529 | AN44: 2020-10-30 | AT44: =IF(AND(AND(Table1[[#This Row],[Online p+]]>0,Table1[[#This Row],[Shipping Date]]>0),NOT(Table1[[#This Row],[Shipping Date]]="")),Table1[[#This Row],[Shipping Date]]-Table1[[#This Row],[Offline p+]], NA()) ->  | AU44: =IF(Table1[[#This Row],[Offline p+]]>0,_xlfn.IFS(Table1[[#This Row],[Material]]="Ta",Table1[[#This Row],[Net Charge '[uAh']]]*0.034,Table1[[#This Row],[Material]]="ZrC",Table1[[#This Row],[Net Charge '[uAh']]]*0.05,Table1[[#This Row],[Material]]="UO2",Table1[[#This Row],[Net Charge '[uAh']]]*0.116,Table1[[#This Row],[Material]]="UC",Table1[[#This Row],[Net Charge '[uAh']]]*0.116,Table1[[#This Row],[Material]]="SiC",Table1[[#This Row],[Net Charge '[uAh']]]*0.05,Table1[[#This Row],[Material]]="nSiC",Table1[[#This Row],[Net Charge '[uAh']]]*0.05,Table1[[#This Row],[Material]]="TiC",Table1[[#This Row],[Net Charge '[uAh']]]*0.032,Table1[[#This Row],[Material]]="NiO",Table1[[#This Row],[Net Charge '[uAh']]]*0.03,Table1[[#This Row],[Material]]="Nb",Table1[[#This Row],[Net Charge '[uAh']]]*0.0305,Table1[[#This Row],[Material]]="TaC",Table1[[#This Row],[Net Charge '[uAh']]]*0.025,Table1[[#This Row],[Material]]="ThO",1095,TRUE,NA()),NA()) -> 448.15904 | AV44: =IF(Table1[[#This Row],[Offline p+]]>0,_xlfn.IFS(Table1[[#This Row],[Material]]="Ta",Table1[[#This Row],[Net Charge '[uAh']]]*0.028,Table1[[#This Row],[Material]]="ZrC",Table1[[#This Row],[Net Charge '[uAh']]]*0.036,Table1[[#This Row],[Material]]="UO2",Table1[[#This Row],[Net Charge '[uAh']]]*0.116,Table1[[#This Row],[Material]]="UC",Table1[[#This Row],[Net Charge '[uAh']]]*0.076,Table1[[#This Row],[Material]]="SiC",Table1[[#This Row],[Net Charge '[uAh']]]*0.048,Table1[[#This Row],[Material]]="nSiC",Table1[[#This Row],[Net Charge '[uAh']]]*0.048,Table1[[#This Row],[Material]]="TiC",Table1[[#This Row],[Net Charge '[uAh']]]*0.032,Table1[[#This Row],[Material]]="NiO",Table1[[#This Row],[Net Charge '[uAh']]]*0.03,Table1[[#This Row],[Material]]="Nb",Table1[[#This Row],[Net Charge '[uAh']]]*0.023,Table1[[#This Row],[Material]]="TaC",Table1[[#This Row],[Net Charge '[uAh']]]*0.025,Table1[[#This Row],[Material]]="ThO",Table1[[#This Row],[Net Charge '[uAh']]]*0.076,TRUE,NA()),NA()) -> 293.62144 | AW44: 10 | AX44: 2018-11-07 | AY44: 2018-11-27 | AZ44: =IF(Table1[[#This Row],[Schedule end]]>0,IF(Table1[[#This Row],[Material]]="Ta",Table1[[#This Row],[Estimated current]]*(Table1[[#This Row],[Schedule end]]-Table1[[#This Row],[Schedule start]])*24*0.028,IF(Table1[[#This Row],[Material]]="ZrC", Table1[[#This Row],[Estimated current]]*(Table1[[#This Row],[Schedule end]]-Table1[[#This Row],[Schedule start]])*24*0.036,IF(Table1[[#This Row],[Material]]="UO2",Table1[[#This Row],[Estimated current]]*(Table1[[#This Row],[Schedule end]]-Table1[[#This Row],[Schedule start]])*24*0.116,IF(Table1[[#This Row],[Material]]="UC",Table1[[#This Row],[Estimated current]]*(Table1[[#This Row],[Schedule end]]-Table1[[#This Row],[Schedule start]])*24*0.076,IF(Table1[[#This Row],[Material]]="SiC",Table1[[#This Row],[Estimated current]]*(Table1[[#This Row],[Schedule end]]-Table1[[#This Row],[Schedule start]])*24*0.076,IF(Table1[[#This Row],[Material]]="nSiC",Table1[[#This Row],[Estimated current]]*(Table1[[#This Row],[Schedule end]]-Table1[[#This Row],[Schedule start]])*24*0.048,IF(Table1[[#This Row],[Material]]="TiC",Table1[[#This Row],[Estimated current]]*(Table1[[#This Row],[Schedule end]]-Table1[[#This Row],[Schedule start]])*24*0.032,IF(Table1[[#This Row],[Material]]="NiO",Table1[[#This Row],[Estimated current]]*(Table1[[#This Row],[Schedule end]]-Table1[[#This Row],[Schedule start]])*24*0.03,IF(Table1[[#This Row],[Material]]="Nb",Table1[[#This Row],[Estimated current]]*(Table1[[#This Row],[Schedule end]]-Table1[[#This Row],[Schedule start]])*24*0.023,IF(Table1[[#This Row],[Material]]="TaC",Table1[[#This Row],[Estimated current]]*(Table1[[#This Row],[Schedule end]]-Table1[[#This Row],[Schedule start]])*24*0.025,IF(Table1[[#This Row],[Material]]="ThO",Table1[[#This Row],[Estimated current]]*(Table1[[#This Row],[Schedule end]]-Table1[[#This Row],[Schedule start]])*24*0.076,NA()))))))))))),NA()) -> 364.8 | BA44: =Table1[[#This Row],[Estimated ship days]]/365 -> 0.9994520548 | BC44: 244 | BD44: This pail is one with the thicker steel. Pail changed from 204 to 244 | BE44: Assayed | BF44: =Table1[[#This Row],[TS]]&"-"&Table1[[#This Row],[TM]]&"-"&Table1[[#This Row],[Material]]&"#"&Table1[[#This Row],[No]]&"-"&Table1[[#This Row],[HP/LP]]&"-"&Table1[[#This Row],[IS]] -> ITW-TM2-UC#25-LP-SIS
A45: =_xlfn.CONCAT(Table1[[#This Row],[Material]],"#",Table1[[#This Row],[No]]) -> Ta#57 | B45: Ta | C45: 57 | D45: LP | E45: SIS | G45: ITE | H45: TM4 | I45: 2018 | J45: 10 | K45: 2 | L45: 135 | M45: Link | R45: 2018-10-09 | S45: 2018-10-13 | T45: 2018-10-16 | U45: 2018-11-21 | V45: 2018-11-27 | W45: 14.2 | X45: 40/60 | Y45: 55 | Z45: 21457.02 | AA45: =Table1[[#This Row],[Net Charge '[uAh']]]*6200000000000000000*0.000001*3600 -> 4.789206864e+20 | AB45: 25 | AC45: =CONCATENATE(Table1[[#This Row],[Material]], "#", Table1[[#This Row],[No]]) -> Ta#57 | AD45: 2018-11-30 | AE45: 139000 | AF45: 2019-11-04 | AG45: 8150 | AH45: 2021-11-17 | AI45: 3270 | AN45: 2021-11-17 | AP45: 2021-11-29 | AT45: =IF(AND(AND(Table1[[#This Row],[Online p+]]>0,Table1[[#This Row],[Shipping Date]]>0),NOT(Table1[[#This Row],[Shipping Date]]="")),Table1[[#This Row],[Shipping Date]]-Table1[[#This Row],[Offline p+]], NA()) ->  | AU45: =IF(Table1[[#This Row],[Offline p+]]>0,_xlfn.IFS(Table1[[#This Row],[Material]]="Ta",Table1[[#This Row],[Net Charge '[uAh']]]*0.034,Table1[[#This Row],[Material]]="ZrC",Table1[[#This Row],[Net Charge '[uAh']]]*0.05,Table1[[#This Row],[Material]]="UO2",Table1[[#This Row],[Net Charge '[uAh']]]*0.116,Table1[[#This Row],[Material]]="UC",Table1[[#This Row],[Net Charge '[uAh']]]*0.116,Table1[[#This Row],[Material]]="SiC",Table1[[#This Row],[Net Charge '[uAh']]]*0.05,Table1[[#This Row],[Material]]="nSiC",Table1[[#This Row],[Net Charge '[uAh']]]*0.05,Table1[[#This Row],[Material]]="TiC",Table1[[#This Row],[Net Charge '[uAh']]]*0.032,Table1[[#This Row],[Material]]="NiO",Table1[[#This Row],[Net Charge '[uAh']]]*0.03,Table1[[#This Row],[Material]]="Nb",Table1[[#This Row],[Net Charge '[uAh']]]*0.0305,Table1[[#This Row],[Material]]="TaC",Table1[[#This Row],[Net Charge '[uAh']]]*0.025,Table1[[#This Row],[Material]]="ThO",1095,TRUE,NA()),NA()) -> 729.53868 | AV45: =IF(Table1[[#This Row],[Offline p+]]>0,_xlfn.IFS(Table1[[#This Row],[Material]]="Ta",Table1[[#This Row],[Net Charge '[uAh']]]*0.028,Table1[[#This Row],[Material]]="ZrC",Table1[[#This Row],[Net Charge '[uAh']]]*0.036,Table1[[#This Row],[Material]]="UO2",Table1[[#This Row],[Net Charge '[uAh']]]*0.116,Table1[[#This Row],[Material]]="UC",Table1[[#This Row],[Net Charge '[uAh']]]*0.076,Table1[[#This Row],[Material]]="SiC",Table1[[#This Row],[Net Charge '[uAh']]]*0.048,Table1[[#This Row],[Material]]="nSiC",Table1[[#This Row],[Net Charge '[uAh']]]*0.048,Table1[[#This Row],[Material]]="TiC",Table1[[#This Row],[Net Charge '[uAh']]]*0.032,Table1[[#This Row],[Material]]="NiO",Table1[[#This Row],[Net Charge '[uAh']]]*0.03,Table1[[#This Row],[Material]]="Nb",Table1[[#This Row],[Net Charge '[uAh']]]*0.023,Table1[[#This Row],[Material]]="TaC",Table1[[#This Row],[Net Charge '[uAh']]]*0.025,Table1[[#This Row],[Material]]="ThO",Table1[[#This Row],[Net Charge '[uAh']]]*0.076,TRUE,NA()),NA()) -> 600.79656 | AW45: 40 | AX45: 2018-10-02 | AY45: 2018-11-07 | AZ45: =IF(Table1[[#This Row],[Schedule end]]>0,IF(Table1[[#This Row],[Material]]="Ta",Table1[[#This Row],[Estimated current]]*(Table1[[#This Row],[Schedule end]]-Table1[[#This Row],[Schedule start]])*24*0.028,IF(Table1[[#This Row],[Material]]="ZrC", Table1[[#This Row],[Estimated current]]*(Table1[[#This Row],[Schedule end]]-Table1[[#This Row],[Schedule start]])*24*0.036,IF(Table1[[#This Row],[Material]]="UO2",Table1[[#This Row],[Estimated current]]*(Table1[[#This Row],[Schedule end]]-Table1[[#This Row],[Schedule start]])*24*0.116,IF(Table1[[#This Row],[Material]]="UC",Table1[[#This Row],[Estimated current]]*(Table1[[#This Row],[Schedule end]]-Table1[[#This Row],[Schedule start]])*24*0.076,IF(Table1[[#This Row],[Material]]="SiC",Table1[[#This Row],[Estimated current]]*(Table1[[#This Row],[Schedule end]]-Table1[[#This Row],[Schedule start]])*24*0.076,IF(Table1[[#This Row],[Material]]="nSiC",Table1[[#This Row],[Estimated current]]*(Table1[[#This Row],[Schedule end]]-Table1[[#This Row],[Schedule start]])*24*0.048,IF(Table1[[#This Row],[Material]]="TiC",Table1[[#This Row],[Estimated current]]*(Table1[[#This Row],[Schedule end]]-Table1[[#This Row],[Schedule start]])*24*0.032,IF(Table1[[#This Row],[Material]]="NiO",Table1[[#This Row],[Estimated current]]*(Table1[[#This Row],[Schedule end]]-Table1[[#This Row],[Schedule start]])*24*0.03,IF(Table1[[#This Row],[Material]]="Nb",Table1[[#This Row],[Estimated current]]*(Table1[[#This Row],[Schedule end]]-Table1[[#This Row],[Schedule start]])*24*0.023,IF(Table1[[#This Row],[Material]]="TaC",Table1[[#This Row],[Estimated current]]*(Table1[[#This Row],[Schedule end]]-Table1[[#This Row],[Schedule start]])*24*0.025,IF(Table1[[#This Row],[Material]]="ThO",Table1[[#This Row],[Estimated current]]*(Table1[[#This Row],[Schedule end]]-Table1[[#This Row],[Schedule start]])*24*0.076,NA()))))))))))),NA()) -> 967.68 | BA45: =Table1[[#This Row],[Estimated ship days]]/365 -> 2.651178082 | BC45: 174 | BD45: Pail switched from 172 to 263 | BE45: Measured | BF45: =Table1[[#This Row],[TS]]&"-"&Table1[[#This Row],[TM]]&"-"&Table1[[#This Row],[Material]]&"#"&Table1[[#This Row],[No]]&"-"&Table1[[#This Row],[HP/LP]]&"-"&Table1[[#This Row],[IS]] -> ITE-TM4-Ta#57-LP-SIS
A46: =_xlfn.CONCAT(Table1[[#This Row],[Material]],"#",Table1[[#This Row],[No]]) -> nSiC#1 | B46: nSiC | C46: 1 | D46: LP | E46: SIS | F46: nano | G46: ITW | H46: TM2 | I46: 2018 | J46: 9 | K46: 25 | L46: 134 | M46: Link | R46: 2018-09-20 | S46: 2018-09-24 | T46: 2018-09-25 | U46: 2018-10-16 | V46: 2018-10-30 | W46: 14.3 | X46: 50 | Y46: 50 | Z46: 3782.78 | AA46: =Table1[[#This Row],[Net Charge '[uAh']]]*6200000000000000000*0.000001*3600 -> 8.44316496e+19 | AB46: 25 | AC46: =CONCATENATE(Table1[[#This Row],[Material]], "#", Table1[[#This Row],[No]]) -> nSiC#1 | AD46: 2018-11-02 | AE46: 13600 | AF46: 2019-12-09 | AG46: 796 | AH46: 2020-02-19 | AI46: 457 | AN46: 2020-02-19 | AP46: 2020-02-21 | AQ46: 2020-06-17 | AT46: =IF(AND(AND(Table1[[#This Row],[Online p+]]>0,Table1[[#This Row],[Shipping Date]]>0),NOT(Table1[[#This Row],[Shipping Date]]="")),Table1[[#This Row],[Shipping Date]]-Table1[[#This Row],[Offline p+]], NA()) -> 610 | AU46: =IF(Table1[[#This Row],[Offline p+]]>0,_xlfn.IFS(Table1[[#This Row],[Material]]="Ta",Table1[[#This Row],[Net Charge '[uAh']]]*0.034,Table1[[#This Row],[Material]]="ZrC",Table1[[#This Row],[Net Charge '[uAh']]]*0.05,Table1[[#This Row],[Material]]="UO2",Table1[[#This Row],[Net Charge '[uAh']]]*0.116,Table1[[#This Row],[Material]]="UC",Table1[[#This Row],[Net Charge '[uAh']]]*0.116,Table1[[#This Row],[Material]]="SiC",Table1[[#This Row],[Net Charge '[uAh']]]*0.05,Table1[[#This Row],[Material]]="nSiC",Table1[[#This Row],[Net Charge '[uAh']]]*0.05,Table1[[#This Row],[Material]]="TiC",Table1[[#This Row],[Net Charge '[uAh']]]*0.032,Table1[[#This Row],[Material]]="NiO",Table1[[#This Row],[Net Charge '[uAh']]]*0.03,Table1[[#This Row],[Material]]="Nb",Table1[[#This Row],[Net Charge '[uAh']]]*0.0305,Table1[[#This Row],[Material]]="TaC",Table1[[#This Row],[Net Charge '[uAh']]]*0.025,Table1[[#This Row],[Material]]="ThO",1095,TRUE,NA()),NA()) -> 189.139 | AV46: =IF(Table1[[#This Row],[Offline p+]]>0,_xlfn.IFS(Table1[[#This Row],[Material]]="Ta",Table1[[#This Row],[Net Charge '[uAh']]]*0.028,Table1[[#This Row],[Material]]="ZrC",Table1[[#This Row],[Net Charge '[uAh']]]*0.036,Table1[[#This Row],[Material]]="UO2",Table1[[#This Row],[Net Charge '[uAh']]]*0.116,Table1[[#This Row],[Material]]="UC",Table1[[#This Row],[Net Charge '[uAh']]]*0.076,Table1[[#This Row],[Material]]="SiC",Table1[[#This Row],[Net Charge '[uAh']]]*0.048,Table1[[#This Row],[Material]]="nSiC",Table1[[#This Row],[Net Charge '[uAh']]]*0.048,Table1[[#This Row],[Material]]="TiC",Table1[[#This Row],[Net Charge '[uAh']]]*0.032,Table1[[#This Row],[Material]]="NiO",Table1[[#This Row],[Net Charge '[uAh']]]*0.03,Table1[[#This Row],[Material]]="Nb",Table1[[#This Row],[Net Charge '[uAh']]]*0.023,Table1[[#This Row],[Material]]="TaC",Table1[[#This Row],[Net Charge '[uAh']]]*0.025,Table1[[#This Row],[Material]]="ThO",Table1[[#This Row],[Net Charge '[uAh']]]*0.076,TRUE,NA()),NA()) -> 181.57344 | AW46: 30 | AX46: 2018-09-25 | AY46: 2018-10-09 | AZ46: =IF(Table1[[#This Row],[Schedule end]]>0,IF(Table1[[#This Row],[Material]]="Ta",Table1[[#This Row],[Estimated current]]*(Table1[[#This Row],[Schedule end]]-Table1[[#This Row],[Schedule start]])*24*0.028,IF(Table1[[#This Row],[Material]]="ZrC", Table1[[#This Row],[Estimated current]]*(Table1[[#This Row],[Schedule end]]-Table1[[#This Row],[Schedule start]])*24*0.036,IF(Table1[[#This Row],[Material]]="UO2",Table1[[#This Row],[Estimated current]]*(Table1[[#This Row],[Schedule end]]-Table1[[#This Row],[Schedule start]])*24*0.116,IF(Table1[[#This Row],[Material]]="UC",Table1[[#This Row],[Estimated current]]*(Table1[[#This Row],[Schedule end]]-Table1[[#This Row],[Schedule start]])*24*0.076,IF(Table1[[#This Row],[Material]]="SiC",Table1[[#This Row],[Estimated current]]*(Table1[[#This Row],[Schedule end]]-Table1[[#This Row],[Schedule start]])*24*0.076,IF(Table1[[#This Row],[Material]]="nSiC",Table1[[#This Row],[Estimated current]]*(Table1[[#This Row],[Schedule end]]-Table1[[#This Row],[Schedule start]])*24*0.048,IF(Table1[[#This Row],[Material]]="TiC",Table1[[#This Row],[Estimated current]]*(Table1[[#This Row],[Schedule end]]-Table1[[#This Row],[Schedule start]])*24*0.032,IF(Table1[[#This Row],[Material]]="NiO",Table1[[#This Row],[Estimated current]]*(Table1[[#This Row],[Schedule end]]-Table1[[#This Row],[Schedule start]])*24*0.03,IF(Table1[[#This Row],[Material]]="Nb",Table1[[#This Row],[Estimated current]]*(Table1[[#This Row],[Schedule end]]-Table1[[#This Row],[Schedule start]])*24*0.023,IF(Table1[[#This Row],[Material]]="TaC",Table1[[#This Row],[Estimated current]]*(Table1[[#This Row],[Schedule end]]-Table1[[#This Row],[Schedule start]])*24*0.025,IF(Table1[[#This Row],[Material]]="ThO",Table1[[#This Row],[Estimated current]]*(Table1[[#This Row],[Schedule end]]-Table1[[#This Row],[Schedule start]])*24*0.076,NA()))))))))))),NA()) -> 483.84 | BA46: =Table1[[#This Row],[Estimated ship days]]/365 -> 1.325589041 | BC46: 172 | BD46: Pail switched from 172 to 226 | BE46: Assayed | BF46: =Table1[[#This Row],[TS]]&"-"&Table1[[#This Row],[TM]]&"-"&Table1[[#This Row],[Material]]&"#"&Table1[[#This Row],[No]]&"-"&Table1[[#This Row],[HP/LP]]&"-"&Table1[[#This Row],[IS]] -> ITW-TM2-nSiC#1-LP-SIS
A47: =_xlfn.CONCAT(Table1[[#This Row],[Material]],"#",Table1[[#This Row],[No]]) -> UC#24 | B47: UC | C47: 24 | D47: LP | E47: SIS | G47: ITE | H47: TM4 | I47: 2018 | J47: 9 | K47: 12 | L47: 134 | M47: Link | R47: 2018-09-04 | S47: 2018-09-07 | T47: 2018-09-11 | U47: 2018-09-25 | V47: 2018-10-02 | W47: 12.8 | X47: 10 | Y47: 9.8 | Z47: 2440 | AA47: =Table1[[#This Row],[Net Charge '[uAh']]]*6200000000000000000*0.000001*3600 -> 5.44608e+19 | AB47: 22.5 | AC47: =CONCATENATE(Table1[[#This Row],[Material]], "#", Table1[[#This Row],[No]]) -> UC#24 | AD47: 2018-10-05 | AE47: 22100 | AF47: 2019-11-01 | AG47: 838 | AN47: 2019-11-14 | AP47: 2020-01-13 | AQ47: 2020-06-17 | AT47: =IF(AND(AND(Table1[[#This Row],[Online p+]]>0,Table1[[#This Row],[Shipping Date]]>0),NOT(Table1[[#This Row],[Shipping Date]]="")),Table1[[#This Row],[Shipping Date]]-Table1[[#This Row],[Offline p+]], NA()) -> 631 | AU47: =IF(Table1[[#This Row],[Offline p+]]>0,_xlfn.IFS(Table1[[#This Row],[Material]]="Ta",Table1[[#This Row],[Net Charge '[uAh']]]*0.034,Table1[[#This Row],[Material]]="ZrC",Table1[[#This Row],[Net Charge '[uAh']]]*0.05,Table1[[#This Row],[Material]]="UO2",Table1[[#This Row],[Net Charge '[uAh']]]*0.116,Table1[[#This Row],[Material]]="UC",Table1[[#This Row],[Net Charge '[uAh']]]*0.116,Table1[[#This Row],[Material]]="SiC",Table1[[#This Row],[Net Charge '[uAh']]]*0.05,Table1[[#This Row],[Material]]="nSiC",Table1[[#This Row],[Net Charge '[uAh']]]*0.05,Table1[[#This Row],[Material]]="TiC",Table1[[#This Row],[Net Charge '[uAh']]]*0.032,Table1[[#This Row],[Material]]="NiO",Table1[[#This Row],[Net Charge '[uAh']]]*0.03,Table1[[#This Row],[Material]]="Nb",Table1[[#This Row],[Net Charge '[uAh']]]*0.0305,Table1[[#This Row],[Material]]="TaC",Table1[[#This Row],[Net Charge '[uAh']]]*0.025,Table1[[#This Row],[Material]]="ThO",1095,TRUE,NA()),NA()) -> 283.04 | AV47: =IF(Table1[[#This Row],[Offline p+]]>0,_xlfn.IFS(Table1[[#This Row],[Material]]="Ta",Table1[[#This Row],[Net Charge '[uAh']]]*0.028,Table1[[#This Row],[Material]]="ZrC",Table1[[#This Row],[Net Charge '[uAh']]]*0.036,Table1[[#This Row],[Material]]="UO2",Table1[[#This Row],[Net Charge '[uAh']]]*0.116,Table1[[#This Row],[Material]]="UC",Table1[[#This Row],[Net Charge '[uAh']]]*0.076,Table1[[#This Row],[Material]]="SiC",Table1[[#This Row],[Net Charge '[uAh']]]*0.048,Table1[[#This Row],[Material]]="nSiC",Table1[[#This Row],[Net Charge '[uAh']]]*0.048,Table1[[#This Row],[Material]]="TiC",Table1[[#This Row],[Net Charge '[uAh']]]*0.032,Table1[[#This Row],[Material]]="NiO",Table1[[#This Row],[Net Charge '[uAh']]]*0.03,Table1[[#This Row],[Material]]="Nb",Table1[[#This Row],[Net Charge '[uAh']]]*0.023,Table1[[#This Row],[Material]]="TaC",Table1[[#This Row],[Net Charge '[uAh']]]*0.025,Table1[[#This Row],[Material]]="ThO",Table1[[#This Row],[Net Charge '[uAh']]]*0.076,TRUE,NA()),NA()) -> 185.44 | AW47: 10 | AX47: 2018-09-11 | AY47: 2018-09-25 | AZ47: =IF(Table1[[#This Row],[Schedule end]]>0,IF(Table1[[#This Row],[Material]]="Ta",Table1[[#This Row],[Estimated current]]*(Table1[[#This Row],[Schedule end]]-Table1[[#This Row],[Schedule start]])*24*0.028,IF(Table1[[#This Row],[Material]]="ZrC", Table1[[#This Row],[Estimated current]]*(Table1[[#This Row],[Schedule end]]-Table1[[#This Row],[Schedule start]])*24*0.036,IF(Table1[[#This Row],[Material]]="UO2",Table1[[#This Row],[Estimated current]]*(Table1[[#This Row],[Schedule end]]-Table1[[#This Row],[Schedule start]])*24*0.116,IF(Table1[[#This Row],[Material]]="UC",Table1[[#This Row],[Estimated current]]*(Table1[[#This Row],[Schedule end]]-Table1[[#This Row],[Schedule start]])*24*0.076,IF(Table1[[#This Row],[Material]]="SiC",Table1[[#This Row],[Estimated current]]*(Table1[[#This Row],[Schedule end]]-Table1[[#This Row],[Schedule start]])*24*0.076,IF(Table1[[#This Row],[Material]]="nSiC",Table1[[#This Row],[Estimated current]]*(Table1[[#This Row],[Schedule end]]-Table1[[#This Row],[Schedule start]])*24*0.048,IF(Table1[[#This Row],[Material]]="TiC",Table1[[#This Row],[Estimated current]]*(Table1[[#This Row],[Schedule end]]-Table1[[#This Row],[Schedule start]])*24*0.032,IF(Table1[[#This Row],[Material]]="NiO",Table1[[#This Row],[Estimated current]]*(Table1[[#This Row],[Schedule end]]-Table1[[#This Row],[Schedule start]])*24*0.03,IF(Table1[[#This Row],[Material]]="Nb",Table1[[#This Row],[Estimated current]]*(Table1[[#This Row],[Schedule end]]-Table1[[#This Row],[Schedule start]])*24*0.023,IF(Table1[[#This Row],[Material]]="TaC",Table1[[#This Row],[Estimated current]]*(Table1[[#This Row],[Schedule end]]-Table1[[#This Row],[Schedule start]])*24*0.025,IF(Table1[[#This Row],[Material]]="ThO",Table1[[#This Row],[Estimated current]]*(Table1[[#This Row],[Schedule end]]-Table1[[#This Row],[Schedule start]])*24*0.076,NA()))))))))))),NA()) -> 255.36 | BA47: =Table1[[#This Row],[Estimated ship days]]/365 -> 0.6996164384 | BC47: 221 | BD47: Pail switched from 171 to 221 | BE47: Assayed | BF47: =Table1[[#This Row],[TS]]&"-"&Table1[[#This Row],[TM]]&"-"&Table1[[#This Row],[Material]]&"#"&Table1[[#This Row],[No]]&"-"&Table1[[#This Row],[HP/LP]]&"-"&Table1[[#This Row],[IS]] -> ITE-TM4-UC#24-LP-SIS
A48: =_xlfn.CONCAT(Table1[[#This Row],[Material]],"#",Table1[[#This Row],[No]]) -> UC#23 | B48: UC | C48: 23 | D48: LP | E48: FEBIAD | F48: CTL | G48: ITW | H48: TM2 | I48: 2018 | J48: 8 | K48: 22 | L48: 134 | M48: Link | R48: 2018-08-14 | S48: 2018-08-16 | T48: 2018-08-23 | U48: 2018-09-11 | V48: 2018-09-18 | W48: 11.8 | X48: 10 | Y48: 9.8 | Z48: 3999.46 | AA48: =Table1[[#This Row],[Net Charge '[uAh']]]*6200000000000000000*0.000001*3600 -> 8.92679472e+19 | AB48: 20 | AC48: =CONCATENATE(Table1[[#This Row],[Material]], "#", Table1[[#This Row],[No]]) -> UC#23 | AD48: 2018-09-25 | AE48: 26700 | AF48: 2019-11-01 | AG48: 1070 | AN48: 2019-11-14 | AP48: 2020-01-13 | AQ48: 2020-06-17 | AT48: =IF(AND(AND(Table1[[#This Row],[Online p+]]>0,Table1[[#This Row],[Shipping Date]]>0),NOT(Table1[[#This Row],[Shipping Date]]="")),Table1[[#This Row],[Shipping Date]]-Table1[[#This Row],[Offline p+]], NA()) -> 645 | AU48: =IF(Table1[[#This Row],[Offline p+]]>0,_xlfn.IFS(Table1[[#This Row],[Material]]="Ta",Table1[[#This Row],[Net Charge '[uAh']]]*0.034,Table1[[#This Row],[Material]]="ZrC",Table1[[#This Row],[Net Charge '[uAh']]]*0.05,Table1[[#This Row],[Material]]="UO2",Table1[[#This Row],[Net Charge '[uAh']]]*0.116,Table1[[#This Row],[Material]]="UC",Table1[[#This Row],[Net Charge '[uAh']]]*0.116,Table1[[#This Row],[Material]]="SiC",Table1[[#This Row],[Net Charge '[uAh']]]*0.05,Table1[[#This Row],[Material]]="nSiC",Table1[[#This Row],[Net Charge '[uAh']]]*0.05,Table1[[#This Row],[Material]]="TiC",Table1[[#This Row],[Net Charge '[uAh']]]*0.032,Table1[[#This Row],[Material]]="NiO",Table1[[#This Row],[Net Charge '[uAh']]]*0.03,Table1[[#This Row],[Material]]="Nb",Table1[[#This Row],[Net Charge '[uAh']]]*0.0305,Table1[[#This Row],[Material]]="TaC",Table1[[#This Row],[Net Charge '[uAh']]]*0.025,Table1[[#This Row],[Material]]="ThO",1095,TRUE,NA()),NA()) -> 463.93736 | AV48: =IF(Table1[[#This Row],[Offline p+]]>0,_xlfn.IFS(Table1[[#This Row],[Material]]="Ta",Table1[[#This Row],[Net Charge '[uAh']]]*0.028,Table1[[#This Row],[Material]]="ZrC",Table1[[#This Row],[Net Charge '[uAh']]]*0.036,Table1[[#This Row],[Material]]="UO2",Table1[[#This Row],[Net Charge '[uAh']]]*0.116,Table1[[#This Row],[Material]]="UC",Table1[[#This Row],[Net Charge '[uAh']]]*0.076,Table1[[#This Row],[Material]]="SiC",Table1[[#This Row],[Net Charge '[uAh']]]*0.048,Table1[[#This Row],[Material]]="nSiC",Table1[[#This Row],[Net Charge '[uAh']]]*0.048,Table1[[#This Row],[Material]]="TiC",Table1[[#This Row],[Net Charge '[uAh']]]*0.032,Table1[[#This Row],[Material]]="NiO",Table1[[#This Row],[Net Charge '[uAh']]]*0.03,Table1[[#This Row],[Material]]="Nb",Table1[[#This Row],[Net Charge '[uAh']]]*0.023,Table1[[#This Row],[Material]]="TaC",Table1[[#This Row],[Net Charge '[uAh']]]*0.025,Table1[[#This Row],[Material]]="ThO",Table1[[#This Row],[Net Charge '[uAh']]]*0.076,TRUE,NA()),NA()) -> 303.95896 | AW48: 10 | AX48: 2018-08-21 | AY48: 2018-09-11 | AZ48: =IF(Table1[[#This Row],[Schedule end]]>0,IF(Table1[[#This Row],[Material]]="Ta",Table1[[#This Row],[Estimated current]]*(Table1[[#This Row],[Schedule end]]-Table1[[#This Row],[Schedule start]])*24*0.028,IF(Table1[[#This Row],[Material]]="ZrC", Table1[[#This Row],[Estimated current]]*(Table1[[#This Row],[Schedule end]]-Table1[[#This Row],[Schedule start]])*24*0.036,IF(Table1[[#This Row],[Material]]="UO2",Table1[[#This Row],[Estimated current]]*(Table1[[#This Row],[Schedule end]]-Table1[[#This Row],[Schedule start]])*24*0.116,IF(Table1[[#This Row],[Material]]="UC",Table1[[#This Row],[Estimated current]]*(Table1[[#This Row],[Schedule end]]-Table1[[#This Row],[Schedule start]])*24*0.076,IF(Table1[[#This Row],[Material]]="SiC",Table1[[#This Row],[Estimated current]]*(Table1[[#This Row],[Schedule end]]-Table1[[#This Row],[Schedule start]])*24*0.076,IF(Table1[[#This Row],[Material]]="nSiC",Table1[[#This Row],[Estimated current]]*(Table1[[#This Row],[Schedule end]]-Table1[[#This Row],[Schedule start]])*24*0.048,IF(Table1[[#This Row],[Material]]="TiC",Table1[[#This Row],[Estimated current]]*(Table1[[#This Row],[Schedule end]]-Table1[[#This Row],[Schedule start]])*24*0.032,IF(Table1[[#This Row],[Material]]="NiO",Table1[[#This Row],[Estimated current]]*(Table1[[#This Row],[Schedule end]]-Table1[[#This Row],[Schedule start]])*24*0.03,IF(Table1[[#This Row],[Material]]="Nb",Table1[[#This Row],[Estimated current]]*(Table1[[#This Row],[Schedule end]]-Table1[[#This Row],[Schedule start]])*24*0.023,IF(Table1[[#This Row],[Material]]="TaC",Table1[[#This Row],[Estimated current]]*(Table1[[#This Row],[Schedule end]]-Table1[[#This Row],[Schedule start]])*24*0.025,IF(Table1[[#This Row],[Material]]="ThO",Table1[[#This Row],[Estimated current]]*(Table1[[#This Row],[Schedule end]]-Table1[[#This Row],[Schedule start]])*24*0.076,NA()))))))))))),NA()) -> 383.04 | BA48: =Table1[[#This Row],[Estimated ship days]]/365 -> 1.049424658 | BC48: 222 | BD48: Pail switched from 170 to 222 | BE48: Assayed | BF48: =Table1[[#This Row],[TS]]&"-"&Table1[[#This Row],[TM]]&"-"&Table1[[#This Row],[Material]]&"#"&Table1[[#This Row],[No]]&"-"&Table1[[#This Row],[HP/LP]]&"-"&Table1[[#This Row],[IS]] -> ITW-TM2-UC#23-LP-FEBIAD
A49: =_xlfn.CONCAT(Table1[[#This Row],[Material]],"#",Table1[[#This Row],[No]]) -> Ta#56 | B49: Ta | C49: 56 | D49: HP | E49: SIS | G49: ITE | H49: TM4 | I49: 2018 | J49: 8 | K49: 1 | L49: 134 | M49: Link | R49: 2018-07-23 | S49: 2018-07-25 | T49: 2018-07-27 | U49: 2018-08-21 | V49: 2018-08-28 | W49: 10.9 | X49: 100 | Y49: 60 | Z49: 23481 | AA49: =Table1[[#This Row],[Net Charge '[uAh']]]*6200000000000000000*0.000001*3600 -> 5.2409592e+20 | AB49: 22.5 | AC49: =CONCATENATE(Table1[[#This Row],[Material]], "#", Table1[[#This Row],[No]]) -> Ta#56 | AD49: 2018-08-30 | AE49: 251000 | AF49: 2019-11-04 | AG49: 9130 | AH49: 2021-10-29 | AI49: 3860 | AN49: 2021-10-29 | AP49: 2021-11-29 | AT49: =IF(AND(AND(Table1[[#This Row],[Online p+]]>0,Table1[[#This Row],[Shipping Date]]>0),NOT(Table1[[#This Row],[Shipping Date]]="")),Table1[[#This Row],[Shipping Date]]-Table1[[#This Row],[Offline p+]], NA()) ->  | AU49: =IF(Table1[[#This Row],[Offline p+]]>0,_xlfn.IFS(Table1[[#This Row],[Material]]="Ta",Table1[[#This Row],[Net Charge '[uAh']]]*0.034,Table1[[#This Row],[Material]]="ZrC",Table1[[#This Row],[Net Charge '[uAh']]]*0.05,Table1[[#This Row],[Material]]="UO2",Table1[[#This Row],[Net Charge '[uAh']]]*0.116,Table1[[#This Row],[Material]]="UC",Table1[[#This Row],[Net Charge '[uAh']]]*0.116,Table1[[#This Row],[Material]]="SiC",Table1[[#This Row],[Net Charge '[uAh']]]*0.05,Table1[[#This Row],[Material]]="nSiC",Table1[[#This Row],[Net Charge '[uAh']]]*0.05,Table1[[#This Row],[Material]]="TiC",Table1[[#This Row],[Net Charge '[uAh']]]*0.032,Table1[[#This Row],[Material]]="NiO",Table1[[#This Row],[Net Charge '[uAh']]]*0.03,Table1[[#This Row],[Material]]="Nb",Table1[[#This Row],[Net Charge '[uAh']]]*0.0305,Table1[[#This Row],[Material]]="TaC",Table1[[#This Row],[Net Charge '[uAh']]]*0.025,Table1[[#This Row],[Material]]="ThO",1095,TRUE,NA()),NA()) -> 798.354 | AV49: =IF(Table1[[#This Row],[Offline p+]]>0,_xlfn.IFS(Table1[[#This Row],[Material]]="Ta",Table1[[#This Row],[Net Charge '[uAh']]]*0.028,Table1[[#This Row],[Material]]="ZrC",Table1[[#This Row],[Net Charge '[uAh']]]*0.036,Table1[[#This Row],[Material]]="UO2",Table1[[#This Row],[Net Charge '[uAh']]]*0.116,Table1[[#This Row],[Material]]="UC",Table1[[#This Row],[Net Charge '[uAh']]]*0.076,Table1[[#This Row],[Material]]="SiC",Table1[[#This Row],[Net Charge '[uAh']]]*0.048,Table1[[#This Row],[Material]]="nSiC",Table1[[#This Row],[Net Charge '[uAh']]]*0.048,Table1[[#This Row],[Material]]="TiC",Table1[[#This Row],[Net Charge '[uAh']]]*0.032,Table1[[#This Row],[Material]]="NiO",Table1[[#This Row],[Net Charge '[uAh']]]*0.03,Table1[[#This Row],[Material]]="Nb",Table1[[#This Row],[Net Charge '[uAh']]]*0.023,Table1[[#This Row],[Material]]="TaC",Table1[[#This Row],[Net Charge '[uAh']]]*0.025,Table1[[#This Row],[Material]]="ThO",Table1[[#This Row],[Net Charge '[uAh']]]*0.076,TRUE,NA()),NA()) -> 657.468 | AW49: 60 | AX49: 2018-08-01 | AY49: 2018-08-21 | AZ49: =IF(Table1[[#This Row],[Schedule end]]>0,IF(Table1[[#This Row],[Material]]="Ta",Table1[[#This Row],[Estimated current]]*(Table1[[#This Row],[Schedule end]]-Table1[[#This Row],[Schedule start]])*24*0.028,IF(Table1[[#This Row],[Material]]="ZrC", Table1[[#This Row],[Estimated current]]*(Table1[[#This Row],[Schedule end]]-Table1[[#This Row],[Schedule start]])*24*0.036,IF(Table1[[#This Row],[Material]]="UO2",Table1[[#This Row],[Estimated current]]*(Table1[[#This Row],[Schedule end]]-Table1[[#This Row],[Schedule start]])*24*0.116,IF(Table1[[#This Row],[Material]]="UC",Table1[[#This Row],[Estimated current]]*(Table1[[#This Row],[Schedule end]]-Table1[[#This Row],[Schedule start]])*24*0.076,IF(Table1[[#This Row],[Material]]="SiC",Table1[[#This Row],[Estimated current]]*(Table1[[#This Row],[Schedule end]]-Table1[[#This Row],[Schedule start]])*24*0.076,IF(Table1[[#This Row],[Material]]="nSiC",Table1[[#This Row],[Estimated current]]*(Table1[[#This Row],[Schedule end]]-Table1[[#This Row],[Schedule start]])*24*0.048,IF(Table1[[#This Row],[Material]]="TiC",Table1[[#This Row],[Estimated current]]*(Table1[[#This Row],[Schedule end]]-Table1[[#This Row],[Schedule start]])*24*0.032,IF(Table1[[#This Row],[Material]]="NiO",Table1[[#This Row],[Estimated current]]*(Table1[[#This Row],[Schedule end]]-Table1[[#This Row],[Schedule start]])*24*0.03,IF(Table1[[#This Row],[Material]]="Nb",Table1[[#This Row],[Estimated current]]*(Table1[[#This Row],[Schedule end]]-Table1[[#This Row],[Schedule start]])*24*0.023,IF(Table1[[#This Row],[Material]]="TaC",Table1[[#This Row],[Estimated current]]*(Table1[[#This Row],[Schedule end]]-Table1[[#This Row],[Schedule start]])*24*0.025,IF(Table1[[#This Row],[Material]]="ThO",Table1[[#This Row],[Estimated current]]*(Table1[[#This Row],[Schedule end]]-Table1[[#This Row],[Schedule start]])*24*0.076,NA()))))))))))),NA()) -> 806.4 | BA49: =Table1[[#This Row],[Estimated ship days]]/365 -> 2.209315068 | BC49: 269 | BD49: Pail switched from 169 to 269 | BE49: Measured | BF49: =Table1[[#This Row],[TS]]&"-"&Table1[[#This Row],[TM]]&"-"&Table1[[#This Row],[Material]]&"#"&Table1[[#This Row],[No]]&"-"&Table1[[#This Row],[HP/LP]]&"-"&Table1[[#This Row],[IS]] -> ITE-TM4-Ta#56-HP-SIS
A50: =_xlfn.CONCAT(Table1[[#This Row],[Material]],"#",Table1[[#This Row],[No]]) -> Nb#8 | B50: Nb | C50: 8 | D50: HP | E50: SIS | G50: ITW | H50: TM2 | I50: 2018 | J50: 7 | K50: 11 | L50: 134 | M50: Link | R50: 2018-07-03 | S50: 2018-07-05 | T50: 2018-07-11 | U50: 2018-07-22 | V50: 2018-07-31 | W50: 12.9 | X50: 100 | Y50: 65 | Z50: 5305.78 | AA50: =Table1[[#This Row],[Net Charge '[uAh']]]*6200000000000000000*0.000001*3600 -> 1.184250096e+20 | AB50: 12.5 | AC50: =CONCATENATE(Table1[[#This Row],[Material]], "#", Table1[[#This Row],[No]]) -> Nb#8 | AD50: 2018-08-02 | AE50: 71100 | AF50: 2019-11-04 | AG50: 2740 | AN50: 2021-05-14 | AP50: 2021-05-19 | AT50: =IF(AND(AND(Table1[[#This Row],[Online p+]]>0,Table1[[#This Row],[Shipping Date]]>0),NOT(Table1[[#This Row],[Shipping Date]]="")),Table1[[#This Row],[Shipping Date]]-Table1[[#This Row],[Offline p+]], NA()) ->  | AU50: =IF(Table1[[#This Row],[Offline p+]]>0,_xlfn.IFS(Table1[[#This Row],[Material]]="Ta",Table1[[#This Row],[Net Charge '[uAh']]]*0.034,Table1[[#This Row],[Material]]="ZrC",Table1[[#This Row],[Net Charge '[uAh']]]*0.05,Table1[[#This Row],[Material]]="UO2",Table1[[#This Row],[Net Charge '[uAh']]]*0.116,Table1[[#This Row],[Material]]="UC",Table1[[#This Row],[Net Charge '[uAh']]]*0.116,Table1[[#This Row],[Material]]="SiC",Table1[[#This Row],[Net Charge '[uAh']]]*0.05,Table1[[#This Row],[Material]]="nSiC",Table1[[#This Row],[Net Charge '[uAh']]]*0.05,Table1[[#This Row],[Material]]="TiC",Table1[[#This Row],[Net Charge '[uAh']]]*0.032,Table1[[#This Row],[Material]]="NiO",Table1[[#This Row],[Net Charge '[uAh']]]*0.03,Table1[[#This Row],[Material]]="Nb",Table1[[#This Row],[Net Charge '[uAh']]]*0.0305,Table1[[#This Row],[Material]]="TaC",Table1[[#This Row],[Net Charge '[uAh']]]*0.025,Table1[[#This Row],[Material]]="ThO",1095,TRUE,NA()),NA()) -> 161.82629 | AV50: =IF(Table1[[#This Row],[Offline p+]]>0,_xlfn.IFS(Table1[[#This Row],[Material]]="Ta",Table1[[#This Row],[Net Charge '[uAh']]]*0.028,Table1[[#This Row],[Material]]="ZrC",Table1[[#This Row],[Net Charge '[uAh']]]*0.036,Table1[[#This Row],[Material]]="UO2",Table1[[#This Row],[Net Charge '[uAh']]]*0.116,Table1[[#This Row],[Material]]="UC",Table1[[#This Row],[Net Charge '[uAh']]]*0.076,Table1[[#This Row],[Material]]="SiC",Table1[[#This Row],[Net Charge '[uAh']]]*0.048,Table1[[#This Row],[Material]]="nSiC",Table1[[#This Row],[Net Charge '[uAh']]]*0.048,Table1[[#This Row],[Material]]="TiC",Table1[[#This Row],[Net Charge '[uAh']]]*0.032,Table1[[#This Row],[Material]]="NiO",Table1[[#This Row],[Net Charge '[uAh']]]*0.03,Table1[[#This Row],[Material]]="Nb",Table1[[#This Row],[Net Charge '[uAh']]]*0.023,Table1[[#This Row],[Material]]="TaC",Table1[[#This Row],[Net Charge '[uAh']]]*0.025,Table1[[#This Row],[Material]]="ThO",Table1[[#This Row],[Net Charge '[uAh']]]*0.076,TRUE,NA()),NA()) -> 122.03294 | AW50: 90 | AX50: 2018-07-11 | AY50: 2018-08-01 | AZ50: =IF(Table1[[#This Row],[Schedule end]]>0,IF(Table1[[#This Row],[Material]]="Ta",Table1[[#This Row],[Estimated current]]*(Table1[[#This Row],[Schedule end]]-Table1[[#This Row],[Schedule start]])*24*0.028,IF(Table1[[#This Row],[Material]]="ZrC", Table1[[#This Row],[Estimated current]]*(Table1[[#This Row],[Schedule end]]-Table1[[#This Row],[Schedule start]])*24*0.036,IF(Table1[[#This Row],[Material]]="UO2",Table1[[#This Row],[Estimated current]]*(Table1[[#This Row],[Schedule end]]-Table1[[#This Row],[Schedule start]])*24*0.116,IF(Table1[[#This Row],[Material]]="UC",Table1[[#This Row],[Estimated current]]*(Table1[[#This Row],[Schedule end]]-Table1[[#This Row],[Schedule start]])*24*0.076,IF(Table1[[#This Row],[Material]]="SiC",Table1[[#This Row],[Estimated current]]*(Table1[[#This Row],[Schedule end]]-Table1[[#This Row],[Schedule start]])*24*0.076,IF(Table1[[#This Row],[Material]]="nSiC",Table1[[#This Row],[Estimated current]]*(Table1[[#This Row],[Schedule end]]-Table1[[#This Row],[Schedule start]])*24*0.048,IF(Table1[[#This Row],[Material]]="TiC",Table1[[#This Row],[Estimated current]]*(Table1[[#This Row],[Schedule end]]-Table1[[#This Row],[Schedule start]])*24*0.032,IF(Table1[[#This Row],[Material]]="NiO",Table1[[#This Row],[Estimated current]]*(Table1[[#This Row],[Schedule end]]-Table1[[#This Row],[Schedule start]])*24*0.03,IF(Table1[[#This Row],[Material]]="Nb",Table1[[#This Row],[Estimated current]]*(Table1[[#This Row],[Schedule end]]-Table1[[#This Row],[Schedule start]])*24*0.023,IF(Table1[[#This Row],[Material]]="TaC",Table1[[#This Row],[Estimated current]]*(Table1[[#This Row],[Schedule end]]-Table1[[#This Row],[Schedule start]])*24*0.025,IF(Table1[[#This Row],[Material]]="ThO",Table1[[#This Row],[Estimated current]]*(Table1[[#This Row],[Schedule end]]-Table1[[#This Row],[Schedule start]])*24*0.076,NA()))))))))))),NA()) -> 1043.28 | BA50: =Table1[[#This Row],[Estimated ship days]]/365 -> 2.85830137 | BC50: 247 | BD50: Pail switched from 168 to 247 | BE50: Assayed | BF50: =Table1[[#This Row],[TS]]&"-"&Table1[[#This Row],[TM]]&"-"&Table1[[#This Row],[Material]]&"#"&Table1[[#This Row],[No]]&"-"&Table1[[#This Row],[HP/LP]]&"-"&Table1[[#This Row],[IS]] -> ITW-TM2-Nb#8-HP-SIS
A51: =_xlfn.CONCAT(Table1[[#This Row],[Material]],"#",Table1[[#This Row],[No]]) -> UC#22 | B51: UC | C51: 22 | D51: LP | E51: SIS | G51: ITE | H51: TM4 | I51: 2018 | J51: 6 | K51: 14 | L51: 134 | M51: Link | R51: 2018-06-06 | S51: 2018-06-12 | T51: 2018-06-14 | U51: 2018-07-10 | V51: 2018-07-17 | W51: 15.7 | X51: 10 | Y51: 9.8 | Z51: 4375.11 | AA51: =Table1[[#This Row],[Net Charge '[uAh']]]*6200000000000000000*0.000001*3600 -> 9.76524552e+19 | AB51: 40 | AC51: =CONCATENATE(Table1[[#This Row],[Material]], "#", Table1[[#This Row],[No]]) -> UC#22 | AD51: 2018-07-30 | AE51: 18800 | AF51: 2019-11-01 | AG51: 850 | AN51: 2019-11-14 | AP51: 2020-01-13 | AQ51: 2020-06-17 | AT51: =IF(AND(AND(Table1[[#This Row],[Online p+]]>0,Table1[[#This Row],[Shipping Date]]>0),NOT(Table1[[#This Row],[Shipping Date]]="")),Table1[[#This Row],[Shipping Date]]-Table1[[#This Row],[Offline p+]], NA()) -> 708 | AU51: =IF(Table1[[#This Row],[Offline p+]]>0,_xlfn.IFS(Table1[[#This Row],[Material]]="Ta",Table1[[#This Row],[Net Charge '[uAh']]]*0.034,Table1[[#This Row],[Material]]="ZrC",Table1[[#This Row],[Net Charge '[uAh']]]*0.05,Table1[[#This Row],[Material]]="UO2",Table1[[#This Row],[Net Charge '[uAh']]]*0.116,Table1[[#This Row],[Material]]="UC",Table1[[#This Row],[Net Charge '[uAh']]]*0.116,Table1[[#This Row],[Material]]="SiC",Table1[[#This Row],[Net Charge '[uAh']]]*0.05,Table1[[#This Row],[Material]]="nSiC",Table1[[#This Row],[Net Charge '[uAh']]]*0.05,Table1[[#This Row],[Material]]="TiC",Table1[[#This Row],[Net Charge '[uAh']]]*0.032,Table1[[#This Row],[Material]]="NiO",Table1[[#This Row],[Net Charge '[uAh']]]*0.03,Table1[[#This Row],[Material]]="Nb",Table1[[#This Row],[Net Charge '[uAh']]]*0.0305,Table1[[#This Row],[Material]]="TaC",Table1[[#This Row],[Net Charge '[uAh']]]*0.025,Table1[[#This Row],[Material]]="ThO",1095,TRUE,NA()),NA()) -> 507.51276 | AV51: =IF(Table1[[#This Row],[Offline p+]]>0,_xlfn.IFS(Table1[[#This Row],[Material]]="Ta",Table1[[#This Row],[Net Charge '[uAh']]]*0.028,Table1[[#This Row],[Material]]="ZrC",Table1[[#This Row],[Net Charge '[uAh']]]*0.036,Table1[[#This Row],[Material]]="UO2",Table1[[#This Row],[Net Charge '[uAh']]]*0.116,Table1[[#This Row],[Material]]="UC",Table1[[#This Row],[Net Charge '[uAh']]]*0.076,Table1[[#This Row],[Material]]="SiC",Table1[[#This Row],[Net Charge '[uAh']]]*0.048,Table1[[#This Row],[Material]]="nSiC",Table1[[#This Row],[Net Charge '[uAh']]]*0.048,Table1[[#This Row],[Material]]="TiC",Table1[[#This Row],[Net Charge '[uAh']]]*0.032,Table1[[#This Row],[Material]]="NiO",Table1[[#This Row],[Net Charge '[uAh']]]*0.03,Table1[[#This Row],[Material]]="Nb",Table1[[#This Row],[Net Charge '[uAh']]]*0.023,Table1[[#This Row],[Material]]="TaC",Table1[[#This Row],[Net Charge '[uAh']]]*0.025,Table1[[#This Row],[Material]]="ThO",Table1[[#This Row],[Net Charge '[uAh']]]*0.076,TRUE,NA()),NA()) -> 332.50836 | AW51: 10 | AX51: 2018-06-14 | AY51: 2018-07-11 | AZ51: =IF(Table1[[#This Row],[Schedule end]]>0,IF(Table1[[#This Row],[Material]]="Ta",Table1[[#This Row],[Estimated current]]*(Table1[[#This Row],[Schedule end]]-Table1[[#This Row],[Schedule start]])*24*0.028,IF(Table1[[#This Row],[Material]]="ZrC", Table1[[#This Row],[Estimated current]]*(Table1[[#This Row],[Schedule end]]-Table1[[#This Row],[Schedule start]])*24*0.036,IF(Table1[[#This Row],[Material]]="UO2",Table1[[#This Row],[Estimated current]]*(Table1[[#This Row],[Schedule end]]-Table1[[#This Row],[Schedule start]])*24*0.116,IF(Table1[[#This Row],[Material]]="UC",Table1[[#This Row],[Estimated current]]*(Table1[[#This Row],[Schedule end]]-Table1[[#This Row],[Schedule start]])*24*0.076,IF(Table1[[#This Row],[Material]]="SiC",Table1[[#This Row],[Estimated current]]*(Table1[[#This Row],[Schedule end]]-Table1[[#This Row],[Schedule start]])*24*0.076,IF(Table1[[#This Row],[Material]]="nSiC",Table1[[#This Row],[Estimated current]]*(Table1[[#This Row],[Schedule end]]-Table1[[#This Row],[Schedule start]])*24*0.048,IF(Table1[[#This Row],[Material]]="TiC",Table1[[#This Row],[Estimated current]]*(Table1[[#This Row],[Schedule end]]-Table1[[#This Row],[Schedule start]])*24*0.032,IF(Table1[[#This Row],[Material]]="NiO",Table1[[#This Row],[Estimated current]]*(Table1[[#This Row],[Schedule end]]-Table1[[#This Row],[Schedule start]])*24*0.03,IF(Table1[[#This Row],[Material]]="Nb",Table1[[#This Row],[Estimated current]]*(Table1[[#This Row],[Schedule end]]-Table1[[#This Row],[Schedule start]])*24*0.023,IF(Table1[[#This Row],[Material]]="TaC",Table1[[#This Row],[Estimated current]]*(Table1[[#This Row],[Schedule end]]-Table1[[#This Row],[Schedule start]])*24*0.025,IF(Table1[[#This Row],[Material]]="ThO",Table1[[#This Row],[Estimated current]]*(Table1[[#This Row],[Schedule end]]-Table1[[#This Row],[Schedule start]])*24*0.076,NA()))))))))))),NA()) -> 492.48 | BA51: =Table1[[#This Row],[Estimated ship days]]/365 -> 1.349260274 | BC51: 223 | BD51: Pail switched from 167 to 223 | BE51: Assayed | BF51: =Table1[[#This Row],[TS]]&"-"&Table1[[#This Row],[TM]]&"-"&Table1[[#This Row],[Material]]&"#"&Table1[[#This Row],[No]]&"-"&Table1[[#This Row],[HP/LP]]&"-"&Table1[[#This Row],[IS]] -> ITE-TM4-UC#22-LP-SIS
A52: =_xlfn.CONCAT(Table1[[#This Row],[Material]],"#",Table1[[#This Row],[No]]) -> Ta#55 | B52: Ta | C52: 55 | D52: LP | E52: SIS | G52: ITW | H52: TM2 | I52: 2017 | J52: 11 | K52: 21 | L52: 133 | M52: Link | R52: 2017-11-14 | S52: 2017-11-16 | T52: 2017-11-21 | U52: 2017-12-21 | V52: 2018-04-09 | W52: 14.9 | X52: 45 | Y52: 45 | Z52: 36492.17 | AA52: =Table1[[#This Row],[Net Charge '[uAh']]]*6200000000000000000*0.000001*3600 -> 8.145052344e+20 | AB52: 25 | AC52: =CONCATENATE(Table1[[#This Row],[Material]], "#", Table1[[#This Row],[No]]) -> Ta#55 | AD52: 2018-04-16 | AE52: 30400 | AF52: 2019-12-09 | AG52: 4000 | AN52: 2021-05-20 | AT52: =IF(AND(AND(Table1[[#This Row],[Online p+]]>0,Table1[[#This Row],[Shipping Date]]>0),NOT(Table1[[#This Row],[Shipping Date]]="")),Table1[[#This Row],[Shipping Date]]-Table1[[#This Row],[Offline p+]], NA()) ->  | AU52: =IF(Table1[[#This Row],[Offline p+]]>0,_xlfn.IFS(Table1[[#This Row],[Material]]="Ta",Table1[[#This Row],[Net Charge '[uAh']]]*0.034,Table1[[#This Row],[Material]]="ZrC",Table1[[#This Row],[Net Charge '[uAh']]]*0.05,Table1[[#This Row],[Material]]="UO2",Table1[[#This Row],[Net Charge '[uAh']]]*0.116,Table1[[#This Row],[Material]]="UC",Table1[[#This Row],[Net Charge '[uAh']]]*0.116,Table1[[#This Row],[Material]]="SiC",Table1[[#This Row],[Net Charge '[uAh']]]*0.05,Table1[[#This Row],[Material]]="nSiC",Table1[[#This Row],[Net Charge '[uAh']]]*0.05,Table1[[#This Row],[Material]]="TiC",Table1[[#This Row],[Net Charge '[uAh']]]*0.032,Table1[[#This Row],[Material]]="NiO",Table1[[#This Row],[Net Charge '[uAh']]]*0.03,Table1[[#This Row],[Material]]="Nb",Table1[[#This Row],[Net Charge '[uAh']]]*0.0305,Table1[[#This Row],[Material]]="TaC",Table1[[#This Row],[Net Charge '[uAh']]]*0.025,Table1[[#This Row],[Material]]="ThO",1095,TRUE,NA()),NA()) -> 1240.73378 | AV52: =IF(Table1[[#This Row],[Offline p+]]>0,_xlfn.IFS(Table1[[#This Row],[Material]]="Ta",Table1[[#This Row],[Net Charge '[uAh']]]*0.028,Table1[[#This Row],[Material]]="ZrC",Table1[[#This Row],[Net Charge '[uAh']]]*0.036,Table1[[#This Row],[Material]]="UO2",Table1[[#This Row],[Net Charge '[uAh']]]*0.116,Table1[[#This Row],[Material]]="UC",Table1[[#This Row],[Net Charge '[uAh']]]*0.076,Table1[[#This Row],[Material]]="SiC",Table1[[#This Row],[Net Charge '[uAh']]]*0.048,Table1[[#This Row],[Material]]="nSiC",Table1[[#This Row],[Net Charge '[uAh']]]*0.048,Table1[[#This Row],[Material]]="TiC",Table1[[#This Row],[Net Charge '[uAh']]]*0.032,Table1[[#This Row],[Material]]="NiO",Table1[[#This Row],[Net Charge '[uAh']]]*0.03,Table1[[#This Row],[Material]]="Nb",Table1[[#This Row],[Net Charge '[uAh']]]*0.023,Table1[[#This Row],[Material]]="TaC",Table1[[#This Row],[Net Charge '[uAh']]]*0.025,Table1[[#This Row],[Material]]="ThO",Table1[[#This Row],[Net Charge '[uAh']]]*0.076,TRUE,NA()),NA()) -> 1021.78076 | AW52: 40 | AX52: 2017-11-21 | AY52: 2017-12-13 | AZ52: =IF(Table1[[#This Row],[Schedule end]]>0,IF(Table1[[#This Row],[Material]]="Ta",Table1[[#This Row],[Estimated current]]*(Table1[[#This Row],[Schedule end]]-Table1[[#This Row],[Schedule start]])*24*0.028,IF(Table1[[#This Row],[Material]]="ZrC", Table1[[#This Row],[Estimated current]]*(Table1[[#This Row],[Schedule end]]-Table1[[#This Row],[Schedule start]])*24*0.036,IF(Table1[[#This Row],[Material]]="UO2",Table1[[#This Row],[Estimated current]]*(Table1[[#This Row],[Schedule end]]-Table1[[#This Row],[Schedule start]])*24*0.116,IF(Table1[[#This Row],[Material]]="UC",Table1[[#This Row],[Estimated current]]*(Table1[[#This Row],[Schedule end]]-Table1[[#This Row],[Schedule start]])*24*0.076,IF(Table1[[#This Row],[Material]]="SiC",Table1[[#This Row],[Estimated current]]*(Table1[[#This Row],[Schedule end]]-Table1[[#This Row],[Schedule start]])*24*0.076,IF(Table1[[#This Row],[Material]]="nSiC",Table1[[#This Row],[Estimated current]]*(Table1[[#This Row],[Schedule end]]-Table1[[#This Row],[Schedule start]])*24*0.048,IF(Table1[[#This Row],[Material]]="TiC",Table1[[#This Row],[Estimated current]]*(Table1[[#This Row],[Schedule end]]-Table1[[#This Row],[Schedule start]])*24*0.032,IF(Table1[[#This Row],[Material]]="NiO",Table1[[#This Row],[Estimated current]]*(Table1[[#This Row],[Schedule end]]-Table1[[#This Row],[Schedule start]])*24*0.03,IF(Table1[[#This Row],[Material]]="Nb",Table1[[#This Row],[Estimated current]]*(Table1[[#This Row],[Schedule end]]-Table1[[#This Row],[Schedule start]])*24*0.023,IF(Table1[[#This Row],[Material]]="TaC",Table1[[#This Row],[Estimated current]]*(Table1[[#This Row],[Schedule end]]-Table1[[#This Row],[Schedule start]])*24*0.025,IF(Table1[[#This Row],[Material]]="ThO",Table1[[#This Row],[Estimated current]]*(Table1[[#This Row],[Schedule end]]-Table1[[#This Row],[Schedule start]])*24*0.076,NA()))))))))))),NA()) -> 591.36 | BA52: =Table1[[#This Row],[Estimated ship days]]/365 -> 1.620164384 | BC52: 251 | BD52: Pail switched from 161 to 251 | BE52: Assayed | BF52: =Table1[[#This Row],[TS]]&"-"&Table1[[#This Row],[TM]]&"-"&Table1[[#This Row],[Material]]&"#"&Table1[[#This Row],[No]]&"-"&Table1[[#This Row],[HP/LP]]&"-"&Table1[[#This Row],[IS]] -> ITW-TM2-Ta#55-LP-SIS
A53: =_xlfn.CONCAT(Table1[[#This Row],[Material]],"#",Table1[[#This Row],[No]]) -> SiC#37 | B53: SiC | C53: 37 | D53: HP | E53: FEBIAD | G53: ITE | H53: TM4 | I53: 2017 | J53: 10 | K53: 31 | L53: 133 | M53: Link | R53: 2017-10-24 | S53: 2017-10-27 | T53: 2017-10-31 | U53: 2017-11-21 | V53: 2018-05-01 | W53: 12.2 | X53: 75 | Y53: 40? | Z53: 23105.08 | AA53: =Table1[[#This Row],[Net Charge '[uAh']]]*6200000000000000000*0.000001*3600 -> 5.157053856e+20 | AB53: 40 | AC53: =CONCATENATE(Table1[[#This Row],[Material]], "#", Table1[[#This Row],[No]]) -> SiC#37 | AD53: 2018-05-05 | AE53: 25800 | AF53: 2019-12-10 | AG53: 3910 | AN53: 2021-05-14 | AP53: 2021-05-19 | AT53: =IF(AND(AND(Table1[[#This Row],[Online p+]]>0,Table1[[#This Row],[Shipping Date]]>0),NOT(Table1[[#This Row],[Shipping Date]]="")),Table1[[#This Row],[Shipping Date]]-Table1[[#This Row],[Offline p+]], NA()) ->  | AU53: =IF(Table1[[#This Row],[Offline p+]]>0,_xlfn.IFS(Table1[[#This Row],[Material]]="Ta",Table1[[#This Row],[Net Charge '[uAh']]]*0.034,Table1[[#This Row],[Material]]="ZrC",Table1[[#This Row],[Net Charge '[uAh']]]*0.05,Table1[[#This Row],[Material]]="UO2",Table1[[#This Row],[Net Charge '[uAh']]]*0.116,Table1[[#This Row],[Material]]="UC",Table1[[#This Row],[Net Charge '[uAh']]]*0.116,Table1[[#This Row],[Material]]="SiC",Table1[[#This Row],[Net Charge '[uAh']]]*0.05,Table1[[#This Row],[Material]]="nSiC",Table1[[#This Row],[Net Charge '[uAh']]]*0.05,Table1[[#This Row],[Material]]="TiC",Table1[[#This Row],[Net Charge '[uAh']]]*0.032,Table1[[#This Row],[Material]]="NiO",Table1[[#This Row],[Net Charge '[uAh']]]*0.03,Table1[[#This Row],[Material]]="Nb",Table1[[#This Row],[Net Charge '[uAh']]]*0.0305,Table1[[#This Row],[Material]]="TaC",Table1[[#This Row],[Net Charge '[uAh']]]*0.025,Table1[[#This Row],[Material]]="ThO",1095,TRUE,NA()),NA()) -> 1155.254 | AV53: =IF(Table1[[#This Row],[Offline p+]]>0,_xlfn.IFS(Table1[[#This Row],[Material]]="Ta",Table1[[#This Row],[Net Charge '[uAh']]]*0.028,Table1[[#This Row],[Material]]="ZrC",Table1[[#This Row],[Net Charge '[uAh']]]*0.036,Table1[[#This Row],[Material]]="UO2",Table1[[#This Row],[Net Charge '[uAh']]]*0.116,Table1[[#This Row],[Material]]="UC",Table1[[#This Row],[Net Charge '[uAh']]]*0.076,Table1[[#This Row],[Material]]="SiC",Table1[[#This Row],[Net Charge '[uAh']]]*0.048,Table1[[#This Row],[Material]]="nSiC",Table1[[#This Row],[Net Charge '[uAh']]]*0.048,Table1[[#This Row],[Material]]="TiC",Table1[[#This Row],[Net Charge '[uAh']]]*0.032,Table1[[#This Row],[Material]]="NiO",Table1[[#This Row],[Net Charge '[uAh']]]*0.03,Table1[[#This Row],[Material]]="Nb",Table1[[#This Row],[Net Charge '[uAh']]]*0.023,Table1[[#This Row],[Material]]="TaC",Table1[[#This Row],[Net Charge '[uAh']]]*0.025,Table1[[#This Row],[Material]]="ThO",Table1[[#This Row],[Net Charge '[uAh']]]*0.076,TRUE,NA()),NA()) -> 1109.04384 | AW53: 60 | AX53: 2017-10-31 | AY53: 2017-11-21 | AZ53: =IF(Table1[[#This Row],[Schedule end]]>0,IF(Table1[[#This Row],[Material]]="Ta",Table1[[#This Row],[Estimated current]]*(Table1[[#This Row],[Schedule end]]-Table1[[#This Row],[Schedule start]])*24*0.028,IF(Table1[[#This Row],[Material]]="ZrC", Table1[[#This Row],[Estimated current]]*(Table1[[#This Row],[Schedule end]]-Table1[[#This Row],[Schedule start]])*24*0.036,IF(Table1[[#This Row],[Material]]="UO2",Table1[[#This Row],[Estimated current]]*(Table1[[#This Row],[Schedule end]]-Table1[[#This Row],[Schedule start]])*24*0.116,IF(Table1[[#This Row],[Material]]="UC",Table1[[#This Row],[Estimated current]]*(Table1[[#This Row],[Schedule end]]-Table1[[#This Row],[Schedule start]])*24*0.076,IF(Table1[[#This Row],[Material]]="SiC",Table1[[#This Row],[Estimated current]]*(Table1[[#This Row],[Schedule end]]-Table1[[#This Row],[Schedule start]])*24*0.076,IF(Table1[[#This Row],[Material]]="nSiC",Table1[[#This Row],[Estimated current]]*(Table1[[#This Row],[Schedule end]]-Table1[[#This Row],[Schedule start]])*24*0.048,IF(Table1[[#This Row],[Material]]="TiC",Table1[[#This Row],[Estimated current]]*(Table1[[#This Row],[Schedule end]]-Table1[[#This Row],[Schedule start]])*24*0.032,IF(Table1[[#This Row],[Material]]="NiO",Table1[[#This Row],[Estimated current]]*(Table1[[#This Row],[Schedule end]]-Table1[[#This Row],[Schedule start]])*24*0.03,IF(Table1[[#This Row],[Material]]="Nb",Table1[[#This Row],[Estimated current]]*(Table1[[#This Row],[Schedule end]]-Table1[[#This Row],[Schedule start]])*24*0.023,IF(Table1[[#This Row],[Material]]="TaC",Table1[[#This Row],[Estimated current]]*(Table1[[#This Row],[Schedule end]]-Table1[[#This Row],[Schedule start]])*24*0.025,IF(Table1[[#This Row],[Material]]="ThO",Table1[[#This Row],[Estimated current]]*(Table1[[#This Row],[Schedule end]]-Table1[[#This Row],[Schedule start]])*24*0.076,NA()))))))))))),NA()) -> 2298.24 | BA53: =Table1[[#This Row],[Estimated ship days]]/365 -> 6.296547945 | BC53: 249 | BD53: Pail switched from 165 to 249 | BE53: Assayed | BF53: =Table1[[#This Row],[TS]]&"-"&Table1[[#This Row],[TM]]&"-"&Table1[[#This Row],[Material]]&"#"&Table1[[#This Row],[No]]&"-"&Table1[[#This Row],[HP/LP]]&"-"&Table1[[#This Row],[IS]] -> ITE-TM4-SiC#37-HP-FEBIAD
A54: =_xlfn.CONCAT(Table1[[#This Row],[Material]],"#",Table1[[#This Row],[No]]) -> Ta#54 | B54: Ta | C54: 54 | D54: HP | E54: SIS | G54: ITW | H54: TM2 | I54: 2017 | J54: 10 | K54: 11 | L54: 133 | M54: Link | R54: 2017-10-03 | S54: 2017-10-08 | T54: 2017-10-11 | U54: 2017-10-31 | V54: 2017-11-07 | W54: 13 | X54: 60 | Y54: 50 | Z54: 16731.52 | AA54: =Table1[[#This Row],[Net Charge '[uAh']]]*6200000000000000000*0.000001*3600 -> 3.734475264e+20 | AB54: 28 | AC54: =CONCATENATE(Table1[[#This Row],[Material]], "#", Table1[[#This Row],[No]]) -> Ta#54 | AD54: 2017-11-13 | AE54: 119000 | AF54: 2018-03-23 | AG54: 20500 | AH54: 2019-12-10 | AI54: 3900 | AJ54: 2020-10-30 | AK54: 2380 | AN54: 2020-10-30 | AP54: 2020-12-01 | AT54: =IF(AND(AND(Table1[[#This Row],[Online p+]]>0,Table1[[#This Row],[Shipping Date]]>0),NOT(Table1[[#This Row],[Shipping Date]]="")),Table1[[#This Row],[Shipping Date]]-Table1[[#This Row],[Offline p+]], NA()) ->  | AU54: =IF(Table1[[#This Row],[Offline p+]]>0,_xlfn.IFS(Table1[[#This Row],[Material]]="Ta",Table1[[#This Row],[Net Charge '[uAh']]]*0.034,Table1[[#This Row],[Material]]="ZrC",Table1[[#This Row],[Net Charge '[uAh']]]*0.05,Table1[[#This Row],[Material]]="UO2",Table1[[#This Row],[Net Charge '[uAh']]]*0.116,Table1[[#This Row],[Material]]="UC",Table1[[#This Row],[Net Charge '[uAh']]]*0.116,Table1[[#This Row],[Material]]="SiC",Table1[[#This Row],[Net Charge '[uAh']]]*0.05,Table1[[#This Row],[Material]]="nSiC",Table1[[#This Row],[Net Charge '[uAh']]]*0.05,Table1[[#This Row],[Material]]="TiC",Table1[[#This Row],[Net Charge '[uAh']]]*0.032,Table1[[#This Row],[Material]]="NiO",Table1[[#This Row],[Net Charge '[uAh']]]*0.03,Table1[[#This Row],[Material]]="Nb",Table1[[#This Row],[Net Charge '[uAh']]]*0.0305,Table1[[#This Row],[Material]]="TaC",Table1[[#This Row],[Net Charge '[uAh']]]*0.025,Table1[[#This Row],[Material]]="ThO",1095,TRUE,NA()),NA()) -> 568.87168 | AV54: =IF(Table1[[#This Row],[Offline p+]]>0,_xlfn.IFS(Table1[[#This Row],[Material]]="Ta",Table1[[#This Row],[Net Charge '[uAh']]]*0.028,Table1[[#This Row],[Material]]="ZrC",Table1[[#This Row],[Net Charge '[uAh']]]*0.036,Table1[[#This Row],[Material]]="UO2",Table1[[#This Row],[Net Charge '[uAh']]]*0.116,Table1[[#This Row],[Material]]="UC",Table1[[#This Row],[Net Charge '[uAh']]]*0.076,Table1[[#This Row],[Material]]="SiC",Table1[[#This Row],[Net Charge '[uAh']]]*0.048,Table1[[#This Row],[Material]]="nSiC",Table1[[#This Row],[Net Charge '[uAh']]]*0.048,Table1[[#This Row],[Material]]="TiC",Table1[[#This Row],[Net Charge '[uAh']]]*0.032,Table1[[#This Row],[Material]]="NiO",Table1[[#This Row],[Net Charge '[uAh']]]*0.03,Table1[[#This Row],[Material]]="Nb",Table1[[#This Row],[Net Charge '[uAh']]]*0.023,Table1[[#This Row],[Material]]="TaC",Table1[[#This Row],[Net Charge '[uAh']]]*0.025,Table1[[#This Row],[Material]]="ThO",Table1[[#This Row],[Net Charge '[uAh']]]*0.076,TRUE,NA()),NA()) -> 468.48256 | AW54: 70 | AX54: 2017-10-11 | AY54: 2017-10-31 | AZ54: =IF(Table1[[#This Row],[Schedule end]]>0,IF(Table1[[#This Row],[Material]]="Ta",Table1[[#This Row],[Estimated current]]*(Table1[[#This Row],[Schedule end]]-Table1[[#This Row],[Schedule start]])*24*0.028,IF(Table1[[#This Row],[Material]]="ZrC", Table1[[#This Row],[Estimated current]]*(Table1[[#This Row],[Schedule end]]-Table1[[#This Row],[Schedule start]])*24*0.036,IF(Table1[[#This Row],[Material]]="UO2",Table1[[#This Row],[Estimated current]]*(Table1[[#This Row],[Schedule end]]-Table1[[#This Row],[Schedule start]])*24*0.116,IF(Table1[[#This Row],[Material]]="UC",Table1[[#This Row],[Estimated current]]*(Table1[[#This Row],[Schedule end]]-Table1[[#This Row],[Schedule start]])*24*0.076,IF(Table1[[#This Row],[Material]]="SiC",Table1[[#This Row],[Estimated current]]*(Table1[[#This Row],[Schedule end]]-Table1[[#This Row],[Schedule start]])*24*0.076,IF(Table1[[#This Row],[Material]]="nSiC",Table1[[#This Row],[Estimated current]]*(Table1[[#This Row],[Schedule end]]-Table1[[#This Row],[Schedule start]])*24*0.048,IF(Table1[[#This Row],[Material]]="TiC",Table1[[#This Row],[Estimated current]]*(Table1[[#This Row],[Schedule end]]-Table1[[#This Row],[Schedule start]])*24*0.032,IF(Table1[[#This Row],[Material]]="NiO",Table1[[#This Row],[Estimated current]]*(Table1[[#This Row],[Schedule end]]-Table1[[#This Row],[Schedule start]])*24*0.03,IF(Table1[[#This Row],[Material]]="Nb",Table1[[#This Row],[Estimated current]]*(Table1[[#This Row],[Schedule end]]-Table1[[#This Row],[Schedule start]])*24*0.023,IF(Table1[[#This Row],[Material]]="TaC",Table1[[#This Row],[Estimated current]]*(Table1[[#This Row],[Schedule end]]-Table1[[#This Row],[Schedule start]])*24*0.025,IF(Table1[[#This Row],[Material]]="ThO",Table1[[#This Row],[Estimated current]]*(Table1[[#This Row],[Schedule end]]-Table1[[#This Row],[Schedule start]])*24*0.076,NA()))))))))))),NA()) -> 940.8 | BA54: =Table1[[#This Row],[Estimated ship days]]/365 -> 2.577534247 | BC54: 241 | BD54: Pail Changed from 157 to 241 | BE54: Assayed | BF54: =Table1[[#This Row],[TS]]&"-"&Table1[[#This Row],[TM]]&"-"&Table1[[#This Row],[Material]]&"#"&Table1[[#This Row],[No]]&"-"&Table1[[#This Row],[HP/LP]]&"-"&Table1[[#This Row],[IS]] -> ITW-TM2-Ta#54-HP-SIS
A55: =_xlfn.CONCAT(Table1[[#This Row],[Material]],"#",Table1[[#This Row],[No]]) -> UC#21 | B55: UC | C55: 21 | D55: LP | E55: SIS | G55: ITE | H55: TM4 | I55: 2017 | J55: 9 | K55: 12 | L55: 132 | M55: Link | R55: 2017-09-05 | S55: 2017-09-07 | T55: 2017-09-12 | U55: 2017-10-02 | V55: 2017-10-17 | W55: 13.2 | X55: 9.8 | Y55: 9.8 | Z55: 3844.1 | AA55: =Table1[[#This Row],[Net Charge '[uAh']]]*6200000000000000000*0.000001*3600 -> 8.5800312e+19 | AB55: 30 | AC55: =CONCATENATE(Table1[[#This Row],[Material]], "#", Table1[[#This Row],[No]]) -> UC#21 | AD55: 2017-10-23 | AE55: 27400 | AF55: 2018-03-23 | AG55: 4050 | AN55: 2019-04-29 | AT55: =IF(AND(AND(Table1[[#This Row],[Online p+]]>0,Table1[[#This Row],[Shipping Date]]>0),NOT(Table1[[#This Row],[Shipping Date]]="")),Table1[[#This Row],[Shipping Date]]-Table1[[#This Row],[Offline p+]], NA()) ->  | AU55: =IF(Table1[[#This Row],[Offline p+]]>0,_xlfn.IFS(Table1[[#This Row],[Material]]="Ta",Table1[[#This Row],[Net Charge '[uAh']]]*0.034,Table1[[#This Row],[Material]]="ZrC",Table1[[#This Row],[Net Charge '[uAh']]]*0.05,Table1[[#This Row],[Material]]="UO2",Table1[[#This Row],[Net Charge '[uAh']]]*0.116,Table1[[#This Row],[Material]]="UC",Table1[[#This Row],[Net Charge '[uAh']]]*0.116,Table1[[#This Row],[Material]]="SiC",Table1[[#This Row],[Net Charge '[uAh']]]*0.05,Table1[[#This Row],[Material]]="nSiC",Table1[[#This Row],[Net Charge '[uAh']]]*0.05,Table1[[#This Row],[Material]]="TiC",Table1[[#This Row],[Net Charge '[uAh']]]*0.032,Table1[[#This Row],[Material]]="NiO",Table1[[#This Row],[Net Charge '[uAh']]]*0.03,Table1[[#This Row],[Material]]="Nb",Table1[[#This Row],[Net Charge '[uAh']]]*0.0305,Table1[[#This Row],[Material]]="TaC",Table1[[#This Row],[Net Charge '[uAh']]]*0.025,Table1[[#This Row],[Material]]="ThO",1095,TRUE,NA()),NA()) -> 445.9156 | AV55: =IF(Table1[[#This Row],[Offline p+]]>0,_xlfn.IFS(Table1[[#This Row],[Material]]="Ta",Table1[[#This Row],[Net Charge '[uAh']]]*0.028,Table1[[#This Row],[Material]]="ZrC",Table1[[#This Row],[Net Charge '[uAh']]]*0.036,Table1[[#This Row],[Material]]="UO2",Table1[[#This Row],[Net Charge '[uAh']]]*0.116,Table1[[#This Row],[Material]]="UC",Table1[[#This Row],[Net Charge '[uAh']]]*0.076,Table1[[#This Row],[Material]]="SiC",Table1[[#This Row],[Net Charge '[uAh']]]*0.048,Table1[[#This Row],[Material]]="nSiC",Table1[[#This Row],[Net Charge '[uAh']]]*0.048,Table1[[#This Row],[Material]]="TiC",Table1[[#This Row],[Net Charge '[uAh']]]*0.032,Table1[[#This Row],[Material]]="NiO",Table1[[#This Row],[Net Charge '[uAh']]]*0.03,Table1[[#This Row],[Material]]="Nb",Table1[[#This Row],[Net Charge '[uAh']]]*0.023,Table1[[#This Row],[Material]]="TaC",Table1[[#This Row],[Net Charge '[uAh']]]*0.025,Table1[[#This Row],[Material]]="ThO",Table1[[#This Row],[Net Charge '[uAh']]]*0.076,TRUE,NA()),NA()) -> 292.1516 | AW55: 10 | AX55: 2017-09-12 | AY55: 2017-10-01 | AZ55: =IF(Table1[[#This Row],[Schedule end]]>0,IF(Table1[[#This Row],[Material]]="Ta",Table1[[#This Row],[Estimated current]]*(Table1[[#This Row],[Schedule end]]-Table1[[#This Row],[Schedule start]])*24*0.028,IF(Table1[[#This Row],[Material]]="ZrC", Table1[[#This Row],[Estimated current]]*(Table1[[#This Row],[Schedule end]]-Table1[[#This Row],[Schedule start]])*24*0.036,IF(Table1[[#This Row],[Material]]="UO2",Table1[[#This Row],[Estimated current]]*(Table1[[#This Row],[Schedule end]]-Table1[[#This Row],[Schedule start]])*24*0.116,IF(Table1[[#This Row],[Material]]="UC",Table1[[#This Row],[Estimated current]]*(Table1[[#This Row],[Schedule end]]-Table1[[#This Row],[Schedule start]])*24*0.076,IF(Table1[[#This Row],[Material]]="SiC",Table1[[#This Row],[Estimated current]]*(Table1[[#This Row],[Schedule end]]-Table1[[#This Row],[Schedule start]])*24*0.076,IF(Table1[[#This Row],[Material]]="nSiC",Table1[[#This Row],[Estimated current]]*(Table1[[#This Row],[Schedule end]]-Table1[[#This Row],[Schedule start]])*24*0.048,IF(Table1[[#This Row],[Material]]="TiC",Table1[[#This Row],[Estimated current]]*(Table1[[#This Row],[Schedule end]]-Table1[[#This Row],[Schedule start]])*24*0.032,IF(Table1[[#This Row],[Material]]="NiO",Table1[[#This Row],[Estimated current]]*(Table1[[#This Row],[Schedule end]]-Table1[[#This Row],[Schedule start]])*24*0.03,IF(Table1[[#This Row],[Material]]="Nb",Table1[[#This Row],[Estimated current]]*(Table1[[#This Row],[Schedule end]]-Table1[[#This Row],[Schedule start]])*24*0.023,IF(Table1[[#This Row],[Material]]="TaC",Table1[[#This Row],[Estimated current]]*(Table1[[#This Row],[Schedule end]]-Table1[[#This Row],[Schedule start]])*24*0.025,IF(Table1[[#This Row],[Material]]="ThO",Table1[[#This Row],[Estimated current]]*(Table1[[#This Row],[Schedule end]]-Table1[[#This Row],[Schedule start]])*24*0.076,NA()))))))))))),NA()) -> 346.56 | BA55: =Table1[[#This Row],[Estimated ship days]]/365 -> 0.9494794521 | BC55: 216 | BD55: Pail changed from 159 to 216 | BE55: Assayed | BF55: =Table1[[#This Row],[TS]]&"-"&Table1[[#This Row],[TM]]&"-"&Table1[[#This Row],[Material]]&"#"&Table1[[#This Row],[No]]&"-"&Table1[[#This Row],[HP/LP]]&"-"&Table1[[#This Row],[IS]] -> ITE-TM4-UC#21-LP-SIS
A56: =_xlfn.CONCAT(Table1[[#This Row],[Material]],"#",Table1[[#This Row],[No]]) -> Ta#53 | B56: Ta | C56: 53 | D56: HP | E56: SIS | G56: ITW | H56: TM2 | I56: 2017 | J56: 8 | K56: 15 | L56: 132 | M56: Link | R56: 2017-08-08 | S56: 2017-08-10 | T56: 2017-08-14 | U56: 2017-09-11 | V56: 2017-10-03 | W56: 12.4 | X56: 60 | Y56: 60 | Z56: 34980.6 | AA56: =Table1[[#This Row],[Net Charge '[uAh']]]*6200000000000000000*0.000001*3600 -> 7.80766992e+20 | AB56: 18.5 | AC56: =CONCATENATE(Table1[[#This Row],[Material]], "#", Table1[[#This Row],[No]]) -> Ta#53 | AD56: 2017-09-28 | AE56: 244000 | AF56: 2018-03-23 | AG56: 32700 | AH56: 2019-12-10 | AI56: 7240 | AJ56: 2021-11-15 | AK56: 1880 | AN56: 2021-11-15 | AP56: 2021-11-29 | AT56: =IF(AND(AND(Table1[[#This Row],[Online p+]]>0,Table1[[#This Row],[Shipping Date]]>0),NOT(Table1[[#This Row],[Shipping Date]]="")),Table1[[#This Row],[Shipping Date]]-Table1[[#This Row],[Offline p+]], NA()) ->  | AU56: =IF(Table1[[#This Row],[Offline p+]]>0,_xlfn.IFS(Table1[[#This Row],[Material]]="Ta",Table1[[#This Row],[Net Charge '[uAh']]]*0.034,Table1[[#This Row],[Material]]="ZrC",Table1[[#This Row],[Net Charge '[uAh']]]*0.05,Table1[[#This Row],[Material]]="UO2",Table1[[#This Row],[Net Charge '[uAh']]]*0.116,Table1[[#This Row],[Material]]="UC",Table1[[#This Row],[Net Charge '[uAh']]]*0.116,Table1[[#This Row],[Material]]="SiC",Table1[[#This Row],[Net Charge '[uAh']]]*0.05,Table1[[#This Row],[Material]]="nSiC",Table1[[#This Row],[Net Charge '[uAh']]]*0.05,Table1[[#This Row],[Material]]="TiC",Table1[[#This Row],[Net Charge '[uAh']]]*0.032,Table1[[#This Row],[Material]]="NiO",Table1[[#This Row],[Net Charge '[uAh']]]*0.03,Table1[[#This Row],[Material]]="Nb",Table1[[#This Row],[Net Charge '[uAh']]]*0.0305,Table1[[#This Row],[Material]]="TaC",Table1[[#This Row],[Net Charge '[uAh']]]*0.025,Table1[[#This Row],[Material]]="ThO",1095,TRUE,NA()),NA()) -> 1189.3404 | AV56: =IF(Table1[[#This Row],[Offline p+]]>0,_xlfn.IFS(Table1[[#This Row],[Material]]="Ta",Table1[[#This Row],[Net Charge '[uAh']]]*0.028,Table1[[#This Row],[Material]]="ZrC",Table1[[#This Row],[Net Charge '[uAh']]]*0.036,Table1[[#This Row],[Material]]="UO2",Table1[[#This Row],[Net Charge '[uAh']]]*0.116,Table1[[#This Row],[Material]]="UC",Table1[[#This Row],[Net Charge '[uAh']]]*0.076,Table1[[#This Row],[Material]]="SiC",Table1[[#This Row],[Net Charge '[uAh']]]*0.048,Table1[[#This Row],[Material]]="nSiC",Table1[[#This Row],[Net Charge '[uAh']]]*0.048,Table1[[#This Row],[Material]]="TiC",Table1[[#This Row],[Net Charge '[uAh']]]*0.032,Table1[[#This Row],[Material]]="NiO",Table1[[#This Row],[Net Charge '[uAh']]]*0.03,Table1[[#This Row],[Material]]="Nb",Table1[[#This Row],[Net Charge '[uAh']]]*0.023,Table1[[#This Row],[Material]]="TaC",Table1[[#This Row],[Net Charge '[uAh']]]*0.025,Table1[[#This Row],[Material]]="ThO",Table1[[#This Row],[Net Charge '[uAh']]]*0.076,TRUE,NA()),NA()) -> 979.4568 | AW56: 70 | AX56: 2017-08-15 | AY56: 2017-09-12 | AZ56: =IF(Table1[[#This Row],[Schedule end]]>0,IF(Table1[[#This Row],[Material]]="Ta",Table1[[#This Row],[Estimated current]]*(Table1[[#This Row],[Schedule end]]-Table1[[#This Row],[Schedule start]])*24*0.028,IF(Table1[[#This Row],[Material]]="ZrC", Table1[[#This Row],[Estimated current]]*(Table1[[#This Row],[Schedule end]]-Table1[[#This Row],[Schedule start]])*24*0.036,IF(Table1[[#This Row],[Material]]="UO2",Table1[[#This Row],[Estimated current]]*(Table1[[#This Row],[Schedule end]]-Table1[[#This Row],[Schedule start]])*24*0.116,IF(Table1[[#This Row],[Material]]="UC",Table1[[#This Row],[Estimated current]]*(Table1[[#This Row],[Schedule end]]-Table1[[#This Row],[Schedule start]])*24*0.076,IF(Table1[[#This Row],[Material]]="SiC",Table1[[#This Row],[Estimated current]]*(Table1[[#This Row],[Schedule end]]-Table1[[#This Row],[Schedule start]])*24*0.076,IF(Table1[[#This Row],[Material]]="nSiC",Table1[[#This Row],[Estimated current]]*(Table1[[#This Row],[Schedule end]]-Table1[[#This Row],[Schedule start]])*24*0.048,IF(Table1[[#This Row],[Material]]="TiC",Table1[[#This Row],[Estimated current]]*(Table1[[#This Row],[Schedule end]]-Table1[[#This Row],[Schedule start]])*24*0.032,IF(Table1[[#This Row],[Material]]="NiO",Table1[[#This Row],[Estimated current]]*(Table1[[#This Row],[Schedule end]]-Table1[[#This Row],[Schedule start]])*24*0.03,IF(Table1[[#This Row],[Material]]="Nb",Table1[[#This Row],[Estimated current]]*(Table1[[#This Row],[Schedule end]]-Table1[[#This Row],[Schedule start]])*24*0.023,IF(Table1[[#This Row],[Material]]="TaC",Table1[[#This Row],[Estimated current]]*(Table1[[#This Row],[Schedule end]]-Table1[[#This Row],[Schedule start]])*24*0.025,IF(Table1[[#This Row],[Material]]="ThO",Table1[[#This Row],[Estimated current]]*(Table1[[#This Row],[Schedule end]]-Table1[[#This Row],[Schedule start]])*24*0.076,NA()))))))))))),NA()) -> 1317.12 | BA56: =Table1[[#This Row],[Estimated ship days]]/365 -> 3.608547945 | BC56: 164 | BD56: Pail changed from 164 to 262 | BE56: Measured | BF56: =Table1[[#This Row],[TS]]&"-"&Table1[[#This Row],[TM]]&"-"&Table1[[#This Row],[Material]]&"#"&Table1[[#This Row],[No]]&"-"&Table1[[#This Row],[HP/LP]]&"-"&Table1[[#This Row],[IS]] -> ITW-TM2-Ta#53-HP-SIS
A57: =_xlfn.CONCAT(Table1[[#This Row],[Material]],"#",Table1[[#This Row],[No]]) -> Ta#52 | B57: Ta | C57: 52 | D57: LP | E57: SIS | G57: ITE | H57: TM4 | I57: 2017 | J57: 7 | K57: 19 | L57: 132 | M57: Link | R57: 2017-07-11 | S57: 2017-07-13 | T57: 2017-07-19 | U57: 2017-08-05 | V57: 2017-08-28 | W57: 12.8 | X57: 40 | Y57: 40 | Z57: 12933.42 | AA57: =Table1[[#This Row],[Net Charge '[uAh']]]*6200000000000000000*0.000001*3600 -> 2.886739344e+20 | AB57: 25 | AC57: =CONCATENATE(Table1[[#This Row],[Material]], "#", Table1[[#This Row],[No]]) -> Ta#52 | AD57: 2017-08-30 | AE57: 38100 | AF57: 2018-03-23 | AG57: 6420 | AH57: 2019-11-04 | AI57: 2260 | AJ57: 2019-12-10 | AK57: 2190 | AN57: 2020-01-13 | AP57: 2020-02-21 | AQ57: 2020-06-17 | AT57: =IF(AND(AND(Table1[[#This Row],[Online p+]]>0,Table1[[#This Row],[Shipping Date]]>0),NOT(Table1[[#This Row],[Shipping Date]]="")),Table1[[#This Row],[Shipping Date]]-Table1[[#This Row],[Offline p+]], NA()) -> 1047 | AU57: =IF(Table1[[#This Row],[Offline p+]]>0,_xlfn.IFS(Table1[[#This Row],[Material]]="Ta",Table1[[#This Row],[Net Charge '[uAh']]]*0.034,Table1[[#This Row],[Material]]="ZrC",Table1[[#This Row],[Net Charge '[uAh']]]*0.05,Table1[[#This Row],[Material]]="UO2",Table1[[#This Row],[Net Charge '[uAh']]]*0.116,Table1[[#This Row],[Material]]="UC",Table1[[#This Row],[Net Charge '[uAh']]]*0.116,Table1[[#This Row],[Material]]="SiC",Table1[[#This Row],[Net Charge '[uAh']]]*0.05,Table1[[#This Row],[Material]]="nSiC",Table1[[#This Row],[Net Charge '[uAh']]]*0.05,Table1[[#This Row],[Material]]="TiC",Table1[[#This Row],[Net Charge '[uAh']]]*0.032,Table1[[#This Row],[Material]]="NiO",Table1[[#This Row],[Net Charge '[uAh']]]*0.03,Table1[[#This Row],[Material]]="Nb",Table1[[#This Row],[Net Charge '[uAh']]]*0.0305,Table1[[#This Row],[Material]]="TaC",Table1[[#This Row],[Net Charge '[uAh']]]*0.025,Table1[[#This Row],[Material]]="ThO",1095,TRUE,NA()),NA()) -> 439.73628 | AV57: =IF(Table1[[#This Row],[Offline p+]]>0,_xlfn.IFS(Table1[[#This Row],[Material]]="Ta",Table1[[#This Row],[Net Charge '[uAh']]]*0.028,Table1[[#This Row],[Material]]="ZrC",Table1[[#This Row],[Net Charge '[uAh']]]*0.036,Table1[[#This Row],[Material]]="UO2",Table1[[#This Row],[Net Charge '[uAh']]]*0.116,Table1[[#This Row],[Material]]="UC",Table1[[#This Row],[Net Charge '[uAh']]]*0.076,Table1[[#This Row],[Material]]="SiC",Table1[[#This Row],[Net Charge '[uAh']]]*0.048,Table1[[#This Row],[Material]]="nSiC",Table1[[#This Row],[Net Charge '[uAh']]]*0.048,Table1[[#This Row],[Material]]="TiC",Table1[[#This Row],[Net Charge '[uAh']]]*0.032,Table1[[#This Row],[Material]]="NiO",Table1[[#This Row],[Net Charge '[uAh']]]*0.03,Table1[[#This Row],[Material]]="Nb",Table1[[#This Row],[Net Charge '[uAh']]]*0.023,Table1[[#This Row],[Material]]="TaC",Table1[[#This Row],[Net Charge '[uAh']]]*0.025,Table1[[#This Row],[Material]]="ThO",Table1[[#This Row],[Net Charge '[uAh']]]*0.076,TRUE,NA()),NA()) -> 362.13576 | AW57: 40 | AX57: 2017-07-19 | AY57: 2017-08-15 | AZ57: =IF(Table1[[#This Row],[Schedule end]]>0,IF(Table1[[#This Row],[Material]]="Ta",Table1[[#This Row],[Estimated current]]*(Table1[[#This Row],[Schedule end]]-Table1[[#This Row],[Schedule start]])*24*0.028,IF(Table1[[#This Row],[Material]]="ZrC", Table1[[#This Row],[Estimated current]]*(Table1[[#This Row],[Schedule end]]-Table1[[#This Row],[Schedule start]])*24*0.036,IF(Table1[[#This Row],[Material]]="UO2",Table1[[#This Row],[Estimated current]]*(Table1[[#This Row],[Schedule end]]-Table1[[#This Row],[Schedule start]])*24*0.116,IF(Table1[[#This Row],[Material]]="UC",Table1[[#This Row],[Estimated current]]*(Table1[[#This Row],[Schedule end]]-Table1[[#This Row],[Schedule start]])*24*0.076,IF(Table1[[#This Row],[Material]]="SiC",Table1[[#This Row],[Estimated current]]*(Table1[[#This Row],[Schedule end]]-Table1[[#This Row],[Schedule start]])*24*0.076,IF(Table1[[#This Row],[Material]]="nSiC",Table1[[#This Row],[Estimated current]]*(Table1[[#This Row],[Schedule end]]-Table1[[#This Row],[Schedule start]])*24*0.048,IF(Table1[[#This Row],[Material]]="TiC",Table1[[#This Row],[Estimated current]]*(Table1[[#This Row],[Schedule end]]-Table1[[#This Row],[Schedule start]])*24*0.032,IF(Table1[[#This Row],[Material]]="NiO",Table1[[#This Row],[Estimated current]]*(Table1[[#This Row],[Schedule end]]-Table1[[#This Row],[Schedule start]])*24*0.03,IF(Table1[[#This Row],[Material]]="Nb",Table1[[#This Row],[Estimated current]]*(Table1[[#This Row],[Schedule end]]-Table1[[#This Row],[Schedule start]])*24*0.023,IF(Table1[[#This Row],[Material]]="TaC",Table1[[#This Row],[Estimated current]]*(Table1[[#This Row],[Schedule end]]-Table1[[#This Row],[Schedule start]])*24*0.025,IF(Table1[[#This Row],[Material]]="ThO",Table1[[#This Row],[Estimated current]]*(Table1[[#This Row],[Schedule end]]-Table1[[#This Row],[Schedule start]])*24*0.076,NA()))))))))))),NA()) -> 725.76 | BA57: =Table1[[#This Row],[Estimated ship days]]/365 -> 1.988383562 | BC57: 230 | BD57: Pail changed from 152 to 230 | BE57: Assayed | BF57: =Table1[[#This Row],[TS]]&"-"&Table1[[#This Row],[TM]]&"-"&Table1[[#This Row],[Material]]&"#"&Table1[[#This Row],[No]]&"-"&Table1[[#This Row],[HP/LP]]&"-"&Table1[[#This Row],[IS]] -> ITE-TM4-Ta#52-LP-SIS
A58: =_xlfn.CONCAT(Table1[[#This Row],[Material]],"#",Table1[[#This Row],[No]]) -> SiC#36 | B58: SiC | C58: 36 | D58: HP | E58: FEBIAD | F58: CTL | G58: ITW | H58: TM2 | I58: 2017 | J58: 6 | K58: 20 | L58: 132 | M58: Link | R58: 2017-06-13 | S58: 2017-06-16 | T58: 2017-06-20 | U58: 2017-07-18 | V58: 2017-08-01 | W58: 14.8 | X58: 70 | Y58: 70 | Z58: 36533.18 | AA58: =Table1[[#This Row],[Net Charge '[uAh']]]*6200000000000000000*0.000001*3600 -> 8.154205776e+20 | AB58: 30 | AC58: =CONCATENATE(Table1[[#This Row],[Material]], "#", Table1[[#This Row],[No]]) -> SiC#36 | AD58: 2017-08-03 | AE58: 190000 | AF58: 2017-03-23 | AG58: 21000 | AH58: 2019-12-11 | AI58: 6000 | AN58: 2021-05-14 | AP58: 2021-05-19 | AT58: =IF(AND(AND(Table1[[#This Row],[Online p+]]>0,Table1[[#This Row],[Shipping Date]]>0),NOT(Table1[[#This Row],[Shipping Date]]="")),Table1[[#This Row],[Shipping Date]]-Table1[[#This Row],[Offline p+]], NA()) ->  | AU58: =IF(Table1[[#This Row],[Offline p+]]>0,_xlfn.IFS(Table1[[#This Row],[Material]]="Ta",Table1[[#This Row],[Net Charge '[uAh']]]*0.034,Table1[[#This Row],[Material]]="ZrC",Table1[[#This Row],[Net Charge '[uAh']]]*0.05,Table1[[#This Row],[Material]]="UO2",Table1[[#This Row],[Net Charge '[uAh']]]*0.116,Table1[[#This Row],[Material]]="UC",Table1[[#This Row],[Net Charge '[uAh']]]*0.116,Table1[[#This Row],[Material]]="SiC",Table1[[#This Row],[Net Charge '[uAh']]]*0.05,Table1[[#This Row],[Material]]="nSiC",Table1[[#This Row],[Net Charge '[uAh']]]*0.05,Table1[[#This Row],[Material]]="TiC",Table1[[#This Row],[Net Charge '[uAh']]]*0.032,Table1[[#This Row],[Material]]="NiO",Table1[[#This Row],[Net Charge '[uAh']]]*0.03,Table1[[#This Row],[Material]]="Nb",Table1[[#This Row],[Net Charge '[uAh']]]*0.0305,Table1[[#This Row],[Material]]="TaC",Table1[[#This Row],[Net Charge '[uAh']]]*0.025,Table1[[#This Row],[Material]]="ThO",1095,TRUE,NA()),NA()) -> 1826.659 | AV58: =IF(Table1[[#This Row],[Offline p+]]>0,_xlfn.IFS(Table1[[#This Row],[Material]]="Ta",Table1[[#This Row],[Net Charge '[uAh']]]*0.028,Table1[[#This Row],[Material]]="ZrC",Table1[[#This Row],[Net Charge '[uAh']]]*0.036,Table1[[#This Row],[Material]]="UO2",Table1[[#This Row],[Net Charge '[uAh']]]*0.116,Table1[[#This Row],[Material]]="UC",Table1[[#This Row],[Net Charge '[uAh']]]*0.076,Table1[[#This Row],[Material]]="SiC",Table1[[#This Row],[Net Charge '[uAh']]]*0.048,Table1[[#This Row],[Material]]="nSiC",Table1[[#This Row],[Net Charge '[uAh']]]*0.048,Table1[[#This Row],[Material]]="TiC",Table1[[#This Row],[Net Charge '[uAh']]]*0.032,Table1[[#This Row],[Material]]="NiO",Table1[[#This Row],[Net Charge '[uAh']]]*0.03,Table1[[#This Row],[Material]]="Nb",Table1[[#This Row],[Net Charge '[uAh']]]*0.023,Table1[[#This Row],[Material]]="TaC",Table1[[#This Row],[Net Charge '[uAh']]]*0.025,Table1[[#This Row],[Material]]="ThO",Table1[[#This Row],[Net Charge '[uAh']]]*0.076,TRUE,NA()),NA()) -> 1753.59264 | AW58: 60 | AX58: 2017-06-20 | AY58: 2017-07-19 | AZ58: =IF(Table1[[#This Row],[Schedule end]]>0,IF(Table1[[#This Row],[Material]]="Ta",Table1[[#This Row],[Estimated current]]*(Table1[[#This Row],[Schedule end]]-Table1[[#This Row],[Schedule start]])*24*0.028,IF(Table1[[#This Row],[Material]]="ZrC", Table1[[#This Row],[Estimated current]]*(Table1[[#This Row],[Schedule end]]-Table1[[#This Row],[Schedule start]])*24*0.036,IF(Table1[[#This Row],[Material]]="UO2",Table1[[#This Row],[Estimated current]]*(Table1[[#This Row],[Schedule end]]-Table1[[#This Row],[Schedule start]])*24*0.116,IF(Table1[[#This Row],[Material]]="UC",Table1[[#This Row],[Estimated current]]*(Table1[[#This Row],[Schedule end]]-Table1[[#This Row],[Schedule start]])*24*0.076,IF(Table1[[#This Row],[Material]]="SiC",Table1[[#This Row],[Estimated current]]*(Table1[[#This Row],[Schedule end]]-Table1[[#This Row],[Schedule start]])*24*0.076,IF(Table1[[#This Row],[Material]]="nSiC",Table1[[#This Row],[Estimated current]]*(Table1[[#This Row],[Schedule end]]-Table1[[#This Row],[Schedule start]])*24*0.048,IF(Table1[[#This Row],[Material]]="TiC",Table1[[#This Row],[Estimated current]]*(Table1[[#This Row],[Schedule end]]-Table1[[#This Row],[Schedule start]])*24*0.032,IF(Table1[[#This Row],[Material]]="NiO",Table1[[#This Row],[Estimated current]]*(Table1[[#This Row],[Schedule end]]-Table1[[#This Row],[Schedule start]])*24*0.03,IF(Table1[[#This Row],[Material]]="Nb",Table1[[#This Row],[Estimated current]]*(Table1[[#This Row],[Schedule end]]-Table1[[#This Row],[Schedule start]])*24*0.023,IF(Table1[[#This Row],[Material]]="TaC",Table1[[#This Row],[Estimated current]]*(Table1[[#This Row],[Schedule end]]-Table1[[#This Row],[Schedule start]])*24*0.025,IF(Table1[[#This Row],[Material]]="ThO",Table1[[#This Row],[Estimated current]]*(Table1[[#This Row],[Schedule end]]-Table1[[#This Row],[Schedule start]])*24*0.076,NA()))))))))))),NA()) -> 3173.76 | BA58: =Table1[[#This Row],[Estimated ship days]]/365 -> 8.695232877 | BC58: 250 | BD58: Pail changed from 151 to 250 | BE58: Measured | BF58: =Table1[[#This Row],[TS]]&"-"&Table1[[#This Row],[TM]]&"-"&Table1[[#This Row],[Material]]&"#"&Table1[[#This Row],[No]]&"-"&Table1[[#This Row],[HP/LP]]&"-"&Table1[[#This Row],[IS]] -> ITW-TM2-SiC#36-HP-FEBIAD
A59: =_xlfn.CONCAT(Table1[[#This Row],[Material]],"#",Table1[[#This Row],[No]]) -> UC#20 | B59: UC | C59: 20 | D59: LP | E59: IG-LIS | G59: ITE | H59: TM4 | I59: 2017 | J59: 6 | K59: 2 | L59: 132 | M59: Link | R59: 2017-05-23 | S59: 2017-05-26 | T59: 2017-06-03 | U59: 2017-06-20 | V59: 2017-06-26 | W59: 12.4 | X59: 10 | Y59: 9.8 | Z59: 3330.48 | AA59: =Table1[[#This Row],[Net Charge '[uAh']]]*6200000000000000000*0.000001*3600 -> 7.43363136e+19 | AB59: 28 | AC59: =CONCATENATE(Table1[[#This Row],[Material]], "#", Table1[[#This Row],[No]]) -> UC#20 | AD59: 2017-06-29 | AE59: 30100 | AF59: 2018-03-23 | AG59: 1300 | AH59: 2019-09-23 | AI59: 390 | AN59: 2019-04-29 | AT59: =IF(AND(AND(Table1[[#This Row],[Online p+]]>0,Table1[[#This Row],[Shipping Date]]>0),NOT(Table1[[#This Row],[Shipping Date]]="")),Table1[[#This Row],[Shipping Date]]-Table1[[#This Row],[Offline p+]], NA()) ->  | AU59: =IF(Table1[[#This Row],[Offline p+]]>0,_xlfn.IFS(Table1[[#This Row],[Material]]="Ta",Table1[[#This Row],[Net Charge '[uAh']]]*0.034,Table1[[#This Row],[Material]]="ZrC",Table1[[#This Row],[Net Charge '[uAh']]]*0.05,Table1[[#This Row],[Material]]="UO2",Table1[[#This Row],[Net Charge '[uAh']]]*0.116,Table1[[#This Row],[Material]]="UC",Table1[[#This Row],[Net Charge '[uAh']]]*0.116,Table1[[#This Row],[Material]]="SiC",Table1[[#This Row],[Net Charge '[uAh']]]*0.05,Table1[[#This Row],[Material]]="nSiC",Table1[[#This Row],[Net Charge '[uAh']]]*0.05,Table1[[#This Row],[Material]]="TiC",Table1[[#This Row],[Net Charge '[uAh']]]*0.032,Table1[[#This Row],[Material]]="NiO",Table1[[#This Row],[Net Charge '[uAh']]]*0.03,Table1[[#This Row],[Material]]="Nb",Table1[[#This Row],[Net Charge '[uAh']]]*0.0305,Table1[[#This Row],[Material]]="TaC",Table1[[#This Row],[Net Charge '[uAh']]]*0.025,Table1[[#This Row],[Material]]="ThO",1095,TRUE,NA()),NA()) -> 386.33568 | AV59: =IF(Table1[[#This Row],[Offline p+]]>0,_xlfn.IFS(Table1[[#This Row],[Material]]="Ta",Table1[[#This Row],[Net Charge '[uAh']]]*0.028,Table1[[#This Row],[Material]]="ZrC",Table1[[#This Row],[Net Charge '[uAh']]]*0.036,Table1[[#This Row],[Material]]="UO2",Table1[[#This Row],[Net Charge '[uAh']]]*0.116,Table1[[#This Row],[Material]]="UC",Table1[[#This Row],[Net Charge '[uAh']]]*0.076,Table1[[#This Row],[Material]]="SiC",Table1[[#This Row],[Net Charge '[uAh']]]*0.048,Table1[[#This Row],[Material]]="nSiC",Table1[[#This Row],[Net Charge '[uAh']]]*0.048,Table1[[#This Row],[Material]]="TiC",Table1[[#This Row],[Net Charge '[uAh']]]*0.032,Table1[[#This Row],[Material]]="NiO",Table1[[#This Row],[Net Charge '[uAh']]]*0.03,Table1[[#This Row],[Material]]="Nb",Table1[[#This Row],[Net Charge '[uAh']]]*0.023,Table1[[#This Row],[Material]]="TaC",Table1[[#This Row],[Net Charge '[uAh']]]*0.025,Table1[[#This Row],[Material]]="ThO",Table1[[#This Row],[Net Charge '[uAh']]]*0.076,TRUE,NA()),NA()) -> 253.11648 | AW59: 10 | AX59: 2017-06-02 | AY59: 2017-06-20 | AZ59: =IF(Table1[[#This Row],[Schedule end]]>0,IF(Table1[[#This Row],[Material]]="Ta",Table1[[#This Row],[Estimated current]]*(Table1[[#This Row],[Schedule end]]-Table1[[#This Row],[Schedule start]])*24*0.028,IF(Table1[[#This Row],[Material]]="ZrC", Table1[[#This Row],[Estimated current]]*(Table1[[#This Row],[Schedule end]]-Table1[[#This Row],[Schedule start]])*24*0.036,IF(Table1[[#This Row],[Material]]="UO2",Table1[[#This Row],[Estimated current]]*(Table1[[#This Row],[Schedule end]]-Table1[[#This Row],[Schedule start]])*24*0.116,IF(Table1[[#This Row],[Material]]="UC",Table1[[#This Row],[Estimated current]]*(Table1[[#This Row],[Schedule end]]-Table1[[#This Row],[Schedule start]])*24*0.076,IF(Table1[[#This Row],[Material]]="SiC",Table1[[#This Row],[Estimated current]]*(Table1[[#This Row],[Schedule end]]-Table1[[#This Row],[Schedule start]])*24*0.076,IF(Table1[[#This Row],[Material]]="nSiC",Table1[[#This Row],[Estimated current]]*(Table1[[#This Row],[Schedule end]]-Table1[[#This Row],[Schedule start]])*24*0.048,IF(Table1[[#This Row],[Material]]="TiC",Table1[[#This Row],[Estimated current]]*(Table1[[#This Row],[Schedule end]]-Table1[[#This Row],[Schedule start]])*24*0.032,IF(Table1[[#This Row],[Material]]="NiO",Table1[[#This Row],[Estimated current]]*(Table1[[#This Row],[Schedule end]]-Table1[[#This Row],[Schedule start]])*24*0.03,IF(Table1[[#This Row],[Material]]="Nb",Table1[[#This Row],[Estimated current]]*(Table1[[#This Row],[Schedule end]]-Table1[[#This Row],[Schedule start]])*24*0.023,IF(Table1[[#This Row],[Material]]="TaC",Table1[[#This Row],[Estimated current]]*(Table1[[#This Row],[Schedule end]]-Table1[[#This Row],[Schedule start]])*24*0.025,IF(Table1[[#This Row],[Material]]="ThO",Table1[[#This Row],[Estimated current]]*(Table1[[#This Row],[Schedule end]]-Table1[[#This Row],[Schedule start]])*24*0.076,NA()))))))))))),NA()) -> 328.32 | BA59: =Table1[[#This Row],[Estimated ship days]]/365 -> 0.8995068493 | BC59: 215 | BD59: Pail changed from 150 to 215 | BE59: Assayed | BF59: =Table1[[#This Row],[TS]]&"-"&Table1[[#This Row],[TM]]&"-"&Table1[[#This Row],[Material]]&"#"&Table1[[#This Row],[No]]&"-"&Table1[[#This Row],[HP/LP]]&"-"&Table1[[#This Row],[IS]] -> ITE-TM4-UC#20-LP-IG-LIS
A60: =_xlfn.CONCAT(Table1[[#This Row],[Material]],"#",Table1[[#This Row],[No]]) -> Ta#51 | B60: Ta | C60: 51 | D60: LP | E60: SIS | G60: ITW | H60: TM2 | I60: 2017 | J60: 5 | K60: 5 | L60: 132 | M60: Link | R60: 2017-04-15 | S60: 2017-04-30 | T60: 2017-05-05 | U60: 2017-05-30 | V60: 2017-06-06 | W60: 13.5 | X60: 40 | Y60: 40 | Z60: 19814.8 | AA60: =Table1[[#This Row],[Net Charge '[uAh']]]*6200000000000000000*0.000001*3600 -> 4.42266336e+20 | AB60: 20 | AC60: =CONCATENATE(Table1[[#This Row],[Material]], "#", Table1[[#This Row],[No]]) -> Ta#51 | AD60: 2017-06-12 | AE60: 144000 | AF60: 2018-03-23 | AG60: 7730 | AH60: 2019-11-04 | AI60: 3620 | AJ60: 2019-12-09 | AK60: 3730 | AL60: 2020-10-30 | AM60: 2040 | AN60: 2020-10-30 | AP60: 2020-12-01 | AT60: =IF(AND(AND(Table1[[#This Row],[Online p+]]>0,Table1[[#This Row],[Shipping Date]]>0),NOT(Table1[[#This Row],[Shipping Date]]="")),Table1[[#This Row],[Shipping Date]]-Table1[[#This Row],[Offline p+]], NA()) ->  | AU60: =IF(Table1[[#This Row],[Offline p+]]>0,_xlfn.IFS(Table1[[#This Row],[Material]]="Ta",Table1[[#This Row],[Net Charge '[uAh']]]*0.034,Table1[[#This Row],[Material]]="ZrC",Table1[[#This Row],[Net Charge '[uAh']]]*0.05,Table1[[#This Row],[Material]]="UO2",Table1[[#This Row],[Net Charge '[uAh']]]*0.116,Table1[[#This Row],[Material]]="UC",Table1[[#This Row],[Net Charge '[uAh']]]*0.116,Table1[[#This Row],[Material]]="SiC",Table1[[#This Row],[Net Charge '[uAh']]]*0.05,Table1[[#This Row],[Material]]="nSiC",Table1[[#This Row],[Net Charge '[uAh']]]*0.05,Table1[[#This Row],[Material]]="TiC",Table1[[#This Row],[Net Charge '[uAh']]]*0.032,Table1[[#This Row],[Material]]="NiO",Table1[[#This Row],[Net Charge '[uAh']]]*0.03,Table1[[#This Row],[Material]]="Nb",Table1[[#This Row],[Net Charge '[uAh']]]*0.0305,Table1[[#This Row],[Material]]="TaC",Table1[[#This Row],[Net Charge '[uAh']]]*0.025,Table1[[#This Row],[Material]]="ThO",1095,TRUE,NA()),NA()) -> 673.7032 | AV60: =IF(Table1[[#This Row],[Offline p+]]>0,_xlfn.IFS(Table1[[#This Row],[Material]]="Ta",Table1[[#This Row],[Net Charge '[uAh']]]*0.028,Table1[[#This Row],[Material]]="ZrC",Table1[[#This Row],[Net Charge '[uAh']]]*0.036,Table1[[#This Row],[Material]]="UO2",Table1[[#This Row],[Net Charge '[uAh']]]*0.116,Table1[[#This Row],[Material]]="UC",Table1[[#This Row],[Net Charge '[uAh']]]*0.076,Table1[[#This Row],[Material]]="SiC",Table1[[#This Row],[Net Charge '[uAh']]]*0.048,Table1[[#This Row],[Material]]="nSiC",Table1[[#This Row],[Net Charge '[uAh']]]*0.048,Table1[[#This Row],[Material]]="TiC",Table1[[#This Row],[Net Charge '[uAh']]]*0.032,Table1[[#This Row],[Material]]="NiO",Table1[[#This Row],[Net Charge '[uAh']]]*0.03,Table1[[#This Row],[Material]]="Nb",Table1[[#This Row],[Net Charge '[uAh']]]*0.023,Table1[[#This Row],[Material]]="TaC",Table1[[#This Row],[Net Charge '[uAh']]]*0.025,Table1[[#This Row],[Material]]="ThO",Table1[[#This Row],[Net Charge '[uAh']]]*0.076,TRUE,NA()),NA()) -> 554.8144 | AW60: 40 | AX60: 2017-05-05 | AY60: 2017-06-02 | AZ60: =IF(Table1[[#This Row],[Schedule end]]>0,IF(Table1[[#This Row],[Material]]="Ta",Table1[[#This Row],[Estimated current]]*(Table1[[#This Row],[Schedule end]]-Table1[[#This Row],[Schedule start]])*24*0.028,IF(Table1[[#This Row],[Material]]="ZrC", Table1[[#This Row],[Estimated current]]*(Table1[[#This Row],[Schedule end]]-Table1[[#This Row],[Schedule start]])*24*0.036,IF(Table1[[#This Row],[Material]]="UO2",Table1[[#This Row],[Estimated current]]*(Table1[[#This Row],[Schedule end]]-Table1[[#This Row],[Schedule start]])*24*0.116,IF(Table1[[#This Row],[Material]]="UC",Table1[[#This Row],[Estimated current]]*(Table1[[#This Row],[Schedule end]]-Table1[[#This Row],[Schedule start]])*24*0.076,IF(Table1[[#This Row],[Material]]="SiC",Table1[[#This Row],[Estimated current]]*(Table1[[#This Row],[Schedule end]]-Table1[[#This Row],[Schedule start]])*24*0.076,IF(Table1[[#This Row],[Material]]="nSiC",Table1[[#This Row],[Estimated current]]*(Table1[[#This Row],[Schedule end]]-Table1[[#This Row],[Schedule start]])*24*0.048,IF(Table1[[#This Row],[Material]]="TiC",Table1[[#This Row],[Estimated current]]*(Table1[[#This Row],[Schedule end]]-Table1[[#This Row],[Schedule start]])*24*0.032,IF(Table1[[#This Row],[Material]]="NiO",Table1[[#This Row],[Estimated current]]*(Table1[[#This Row],[Schedule end]]-Table1[[#This Row],[Schedule start]])*24*0.03,IF(Table1[[#This Row],[Material]]="Nb",Table1[[#This Row],[Estimated current]]*(Table1[[#This Row],[Schedule end]]-Table1[[#This Row],[Schedule start]])*24*0.023,IF(Table1[[#This Row],[Material]]="TaC",Table1[[#This Row],[Estimated current]]*(Table1[[#This Row],[Schedule end]]-Table1[[#This Row],[Schedule start]])*24*0.025,IF(Table1[[#This Row],[Material]]="ThO",Table1[[#This Row],[Estimated current]]*(Table1[[#This Row],[Schedule end]]-Table1[[#This Row],[Schedule start]])*24*0.076,NA()))))))))))),NA()) -> 752.64 | BA60: =Table1[[#This Row],[Estimated ship days]]/365 -> 2.062027397 | BC60: 149 | BD60: Pail changed from 149 to 242 | BE60: Assayed | BF60: =Table1[[#This Row],[TS]]&"-"&Table1[[#This Row],[TM]]&"-"&Table1[[#This Row],[Material]]&"#"&Table1[[#This Row],[No]]&"-"&Table1[[#This Row],[HP/LP]]&"-"&Table1[[#This Row],[IS]] -> ITW-TM2-Ta#51-LP-SIS
A61: =_xlfn.CONCAT(Table1[[#This Row],[Material]],"#",Table1[[#This Row],[No]]) -> UC#19 | B61: UC | C61: 19 | D61: LP | E61: SIS | G61: ITE | H61: TM4 | I61: 2017 | J61: 4 | K61: 14 | L61: 132 | M61: Link | R61: 2017-04-04 | S61: 2017-04-06 | T61: 2017-04-12 | U61: 2017-05-05 | V61: 2017-05-16 | W61: 12.5 | X61: 10 | Y61: 9.8 | Z61: 4401.84 | AA61: =Table1[[#This Row],[Net Charge '[uAh']]]*6200000000000000000*0.000001*3600 -> 9.82490688e+19 | AB61: 40 | AC61: =CONCATENATE(Table1[[#This Row],[Material]], "#", Table1[[#This Row],[No]]) -> UC#19 | AD61: 2017-05-18 | AE61: 22800 | AF61: 2018-03-23 | AG61: 1410 | AH61: 2019-09-23 | AI61: 490 | AN61: 2019-04-29 | AT61: =IF(AND(AND(Table1[[#This Row],[Online p+]]>0,Table1[[#This Row],[Shipping Date]]>0),NOT(Table1[[#This Row],[Shipping Date]]="")),Table1[[#This Row],[Shipping Date]]-Table1[[#This Row],[Offline p+]], NA()) ->  | AU61: =IF(Table1[[#This Row],[Offline p+]]>0,_xlfn.IFS(Table1[[#This Row],[Material]]="Ta",Table1[[#This Row],[Net Charge '[uAh']]]*0.034,Table1[[#This Row],[Material]]="ZrC",Table1[[#This Row],[Net Charge '[uAh']]]*0.05,Table1[[#This Row],[Material]]="UO2",Table1[[#This Row],[Net Charge '[uAh']]]*0.116,Table1[[#This Row],[Material]]="UC",Table1[[#This Row],[Net Charge '[uAh']]]*0.116,Table1[[#This Row],[Material]]="SiC",Table1[[#This Row],[Net Charge '[uAh']]]*0.05,Table1[[#This Row],[Material]]="nSiC",Table1[[#This Row],[Net Charge '[uAh']]]*0.05,Table1[[#This Row],[Material]]="TiC",Table1[[#This Row],[Net Charge '[uAh']]]*0.032,Table1[[#This Row],[Material]]="NiO",Table1[[#This Row],[Net Charge '[uAh']]]*0.03,Table1[[#This Row],[Material]]="Nb",Table1[[#This Row],[Net Charge '[uAh']]]*0.0305,Table1[[#This Row],[Material]]="TaC",Table1[[#This Row],[Net Charge '[uAh']]]*0.025,Table1[[#This Row],[Material]]="ThO",1095,TRUE,NA()),NA()) -> 510.61344 | AV61: =IF(Table1[[#This Row],[Offline p+]]>0,_xlfn.IFS(Table1[[#This Row],[Material]]="Ta",Table1[[#This Row],[Net Charge '[uAh']]]*0.028,Table1[[#This Row],[Material]]="ZrC",Table1[[#This Row],[Net Charge '[uAh']]]*0.036,Table1[[#This Row],[Material]]="UO2",Table1[[#This Row],[Net Charge '[uAh']]]*0.116,Table1[[#This Row],[Material]]="UC",Table1[[#This Row],[Net Charge '[uAh']]]*0.076,Table1[[#This Row],[Material]]="SiC",Table1[[#This Row],[Net Charge '[uAh']]]*0.048,Table1[[#This Row],[Material]]="nSiC",Table1[[#This Row],[Net Charge '[uAh']]]*0.048,Table1[[#This Row],[Material]]="TiC",Table1[[#This Row],[Net Charge '[uAh']]]*0.032,Table1[[#This Row],[Material]]="NiO",Table1[[#This Row],[Net Charge '[uAh']]]*0.03,Table1[[#This Row],[Material]]="Nb",Table1[[#This Row],[Net Charge '[uAh']]]*0.023,Table1[[#This Row],[Material]]="TaC",Table1[[#This Row],[Net Charge '[uAh']]]*0.025,Table1[[#This Row],[Material]]="ThO",Table1[[#This Row],[Net Charge '[uAh']]]*0.076,TRUE,NA()),NA()) -> 334.53984 | AW61: 10 | AX61: 2017-04-14 | AY61: 2017-05-05 | AZ61: =IF(Table1[[#This Row],[Schedule end]]>0,IF(Table1[[#This Row],[Material]]="Ta",Table1[[#This Row],[Estimated current]]*(Table1[[#This Row],[Schedule end]]-Table1[[#This Row],[Schedule start]])*24*0.028,IF(Table1[[#This Row],[Material]]="ZrC", Table1[[#This Row],[Estimated current]]*(Table1[[#This Row],[Schedule end]]-Table1[[#This Row],[Schedule start]])*24*0.036,IF(Table1[[#This Row],[Material]]="UO2",Table1[[#This Row],[Estimated current]]*(Table1[[#This Row],[Schedule end]]-Table1[[#This Row],[Schedule start]])*24*0.116,IF(Table1[[#This Row],[Material]]="UC",Table1[[#This Row],[Estimated current]]*(Table1[[#This Row],[Schedule end]]-Table1[[#This Row],[Schedule start]])*24*0.076,IF(Table1[[#This Row],[Material]]="SiC",Table1[[#This Row],[Estimated current]]*(Table1[[#This Row],[Schedule end]]-Table1[[#This Row],[Schedule start]])*24*0.076,IF(Table1[[#This Row],[Material]]="nSiC",Table1[[#This Row],[Estimated current]]*(Table1[[#This Row],[Schedule end]]-Table1[[#This Row],[Schedule start]])*24*0.048,IF(Table1[[#This Row],[Material]]="TiC",Table1[[#This Row],[Estimated current]]*(Table1[[#This Row],[Schedule end]]-Table1[[#This Row],[Schedule start]])*24*0.032,IF(Table1[[#This Row],[Material]]="NiO",Table1[[#This Row],[Estimated current]]*(Table1[[#This Row],[Schedule end]]-Table1[[#This Row],[Schedule start]])*24*0.03,IF(Table1[[#This Row],[Material]]="Nb",Table1[[#This Row],[Estimated current]]*(Table1[[#This Row],[Schedule end]]-Table1[[#This Row],[Schedule start]])*24*0.023,IF(Table1[[#This Row],[Material]]="TaC",Table1[[#This Row],[Estimated current]]*(Table1[[#This Row],[Schedule end]]-Table1[[#This Row],[Schedule start]])*24*0.025,IF(Table1[[#This Row],[Material]]="ThO",Table1[[#This Row],[Estimated current]]*(Table1[[#This Row],[Schedule end]]-Table1[[#This Row],[Schedule start]])*24*0.076,NA()))))))))))),NA()) -> 383.04 | BA61: =Table1[[#This Row],[Estimated ship days]]/365 -> 1.049424658 | BC61: 214 | BD61: Pail changed from 145 to 214 | BE61: Assayed | BF61: =Table1[[#This Row],[TS]]&"-"&Table1[[#This Row],[TM]]&"-"&Table1[[#This Row],[Material]]&"#"&Table1[[#This Row],[No]]&"-"&Table1[[#This Row],[HP/LP]]&"-"&Table1[[#This Row],[IS]] -> ITE-TM4-UC#19-LP-SIS
